Workbook

Sheet CONTRIBUENTE
C2: Questo file contiene UNA MACRO (non indispensabile) nel foglio F24 Accise. Puoi attivarla anche in un secondo momento, quando
C3: riapri il file. Per utilizzarla assicurati di salvare il file nel formato con macro ATTIVE. Le macro sono COMANDI automatici che completano
C4: le funzionalità di questo strumento, non contengono virus o altro. Qui trovi la spiegazione di Microsoft: | M4: MACRO
C5: Sistema interamente originale. Non necessita di aggiornamenti.
C6: di Marco Piccoli - P. IVA 01151800313
C7: Monfalcone - GO - Tel. 333 46 39 497
P8: Professionista Web di cui alla legge nr. 4/2013
C9: Leggi attentamente questa presentazione, osserva le "Note pratiche" e richiedi liberamente informazioni via mail.
C10: Una copia di questo file è sempre disponibile al sito www.marcopiccoli.it: | J10: Area Download .xlsx / xlsm
C12: Puoi usare questo file per annotare i tuoi F24 di TUTTI i MESI di OGNI ANNO. Al momento il trimestre selezionato è: | T12: DAL - GG/MM - AL
C13: =I89 -> 1° TRIMESTRE | G13: =IF(J140="",IF(E139=1,B136,""),J140) ->  | T13: =IF(I89="",F157,VLOOKUP(I89,C157:F160,4,FALSE)) -> 2024-01-01 | U13: =IF(I89="",G157,VLOOKUP(I89,C157:G160,5,FALSE)) -> 2024-03-31
B14: Questo strumento è liberamente utilizzabile DA TUTTI. Funziona integralmente per OGNI TRIMESTRE di ogni
B15: ANNO. Puoi sbloccarlo in qualsiasi momento per l' INTERO ANNO. I valori che inserisci sono sempre disponibili.
C16: =IF(K71=J144,B127,B126) -> Richiedi via mail il TUO CODICE di PROPRIETA' per EXCEL: | J16: info@marcopiccoli.it
C17: Note pratiche:
C18: USA IL TASTO - TAB - PER MUOVERE IL CURSORE NELLE | I18: USA IL TASTO - Canc - PER RIMUOVERE IL
C19: CELLE LIBERE. TUTTE LE ALTRE SONO BLOCCATE E NON | I19: CONTENUTO DI UNA CELLA. PER MAC USA
C20: TI SERVONO PER IL CORRETTO USO DI QUESTO FILE. | I20: - doppio tasto - NON TAGLIARE LE CELLE.
G22: per OpenOffice non disponibile
C25: Il file contiene 1 Selettore MACRO.
M26: Questo è il sistema
J27: F24 Accise 1.6 per Excel .xlsm
C29: =CONCATENATE(J27," è un sistema elettronico UNIVERSALE con il quale puoi creare e memorizzare molteplici modelli in 1 anno ed in più anni, identificandoli con") -> F24 Accise 1.6 per Excel .xlsm è un sistema elettronico UNIVERSALE con il quale puoi creare e memorizzare molteplici modelli in 1 anno ed in più anni, identificandoli con
C30: 1 numero di protocollo progressivo.
C31: Il documento si edita una riga sotto l' altra progressivamente e si stampa a scelta nel foglio del \ MODELLO Elettronico /.
C32: CONTRIBUENTE
C34: CODICE FISCALE | E34: 01234567891 | O34: X
C36: Dati Anagrafici | E36: Anagrafica CONTRIBUENTE
E37: Cognome, denominazione o ragione sociale
E38: Nome CONTRIBUENTE | J38: 2000-01-01
E39: Nome | J39: Data di nascita | M39: Sesso
M40: Provincia
E41: Comune (o Stato estero) di nascita
C43: Domicilio Fiscale | M43: Provincia
E44: Comune
E46: Via e numero civico
C48: Codice fiscale | K48: Codice identificativo
C50: Dopo aver compilato il quadro CONTRIBUENTE, utilizza i fogli \ SEZIONE /
C51: per generare i tuoi singoli documenti inserendo gli elementi specifici riga per riga.
C52: Assegna: 1 numero di protocollo progressivo per creare ogni singolo documento. Stesso nr. di prot. = stesso DOC.
C54: =IF(H138=1,G13,IF(ISERROR(K138),J135,J134)) -> Questo file risulta al momento completamente funzionante ed il sistema rileva tutti i suoi fogli.
C56: Note:
C60: PROPRIETA' illimitata del file
C61: Questo sistema può funzionare in enne copie rinominate a piacere. Funziona con calendario PERPETUO.
C62: Per attivarlo nella totalità dell' ANNO inserisci in qualsiasi momento il tuo codice di proprietà nell' apposito spazio. Puoi
C63: usare contemporaneamente più di un file. Salva un file IN BIANCO con le tue IMPOSTAZIONI da tenere come MATRICE.
F64: =IF(K71=J144,B136,"") -> 
D65: Anagrafica: | F65: =E36 -> Anagrafica CONTRIBUENTE
J67: Partita IVA / C.F: | K67: =E34 -> 01234567891
D69: Indirizzo: | F69: =E45 -> 0
C71: QUI | J71: Inserisci qui il tuo codice di proprietà ---> | Q71: =IF(ISBLANK(K71),0,1) -> 0
C72: =IF($K$71=$J$144,"ora è disattivato","cambi trimestre") -> cambi trimestre
C73: =C152 -> 89 | D73: giorni al | E73: primo mese disattivato | I73: =IF(K71="","",IF(J144=K71,B134,B135)) ->  | S73: Il codice che hai inserito nel sistema non è stato riconosciuto.
B74: =IF(K71=J144,B130,IF(I73=B135,B131,IF(C73<0,"",""))) ->  | S74: Le cause possono essere le seguenti:
C75: PREZZO per 1 codice di proprietà € 39,00 | H75: Questo sistema utilizza il codice ID: Contabilità #2
C76: =J27 -> F24 Accise 1.6 per Excel .xlsm | L76: www.marcopiccoli.it | S76: 1) La Ragione Sociale inserita non coincide con il testo in mio possesso.
S77: Verifica la punteggiatura e l' assenza di spazi iniziali / finali. Controlla la P.E.C. ricevuta.
C78: Questo file funziona solo se lasciato integro in tutte le sue parti. E' garantito il funzionamento con PC - Excel .xls o sup. | S78: 2) La Partita IVA inserita non coincide con il numero in mio possesso.
C79: Il sistema conta 8 fogli compreso il presente. I fogli NON POSSONO ESSERE ELIMINATI altrimenti l' intero sistema | S79: 3) Il codice che ti ho fornito non è stato correttamente inserito.
C80: non funzionerà. Se succede involontariamente NON SALVARE IL FILE ma chiudilo e riaprilo nuovamente. | S80: 4) Hai inserito un numero a caso?
D81: Pagina WEB del sistema | G81: Sezione info | K81: I tuoi | S81: Contattami liberamente via mail in qualsiasi momento per ulteriori informazioni sul codice.
D82: QUI | G82: F.A.Q. | H82: About me | K82: COMMENTI | S82: 5) Hai cambiato Ragione Sociale o Partita IVA? Contattami, il codice è una monoutenza specifica.
S83: 6) Hai usato il codice di un altro sistema? Non tutti i sistemi hanno lo stesso codice.
C84: Se desideri attivare questo sistema per l' INTERO ANNO e per OGNI ANNO, richiedi via mail il tuo Codice di Proprietà ed | S84: Questo file utilizza il codice di proprietà ID: Contabilità #2.
C85: inseriscilo direttamente nel file che stai già usando. Il codice ti viene inviato con regolare fattura. Chiedi istruzioni via mail.
M86: info@marcopiccoli.it | S86: Per qualsiasi altra cosa, contattami dopo aver considerato questi punti.
D87: SELEZIONA da qui il TRIMESTRE per il quale ATTIVARE questo sistema.
D88: I valori che via via inserisci sono sempre disponibili.
H89: ----> | I89: 1° TRIMESTRE
L92: Con "OK" accetti le regole | M92: OK
E93: A.C. cell di Marco Piccoli | L93: sull' utilizzo di questo file
E94: 34074 Monfalcone, GO - P. IVA 01151800313
E95: INFORMA CHIUNQUE ENTRI IN POSSESSO DI QUESTO FILE, CHE NON E'
E96: POSSIBILE UTILIZZARLO SENZA PROTEZIONI ORIGINALI e CHE SI ATTIVA
E97: ILLIMITATAMENTE SOLO CON REGOLARE CODICE DI PROPRIETA'.
E98: Questo strumento è interamente originale ed è distribuito professionalmente.
E99: E' coperto da diritti d' autore dal momento della sua pubblicazione sul sito
E100: www.marcopiccoli.it.
E101: L' inserimento del Codice di Proprietà, che viene inviato via P.E.C., estende tutti
E102: i diritti anche al Titolare del Sistema individuato nell' ANAGRAFICA di questo file. | O102: QUI
E103: Per qualsiasi altra informazione contattami liberamente via mail.
C106: =CONCATENATE(J27," / Sistema originale, nessuna riproduzione è permessa.") -> F24 Accise 1.6 per Excel .xlsm / Sistema originale, nessuna riproduzione è permessa.
C107: Rimuovere le protezioni originali, far circolare una parte del sistema o qualsiasi altro utilizzo (anche parziale, anche dei
C108: testi, anche a titolo gratuito) diverso dalle disposizioni originarie del file, sarà considerata violazione delle norme sulle
C109: opere d' ingegno. Il sistema originale privo di virus e malware si scarica al sito www.marcopiccoli.it.
R112: Torna su
B114: =J27 -> F24 Accise 1.6 per Excel .xlsm | L114: www.marcopiccoli.it
D118: X | E118: Maschile | F118: M
E119: Femminile | F119: F
B126: Richiedi via mail il TUO CODICE di PROPRIETA' per EXCEL: | H126: Il codice che hai inserito nel sistema non è stato riconosciuto.
B127: Contatta A.C. cell | H127: Le cause possono essere le seguenti:
B128: Questo file contiene delle MACRO. Leggi le istruzioni e completa il foglio \ IMPOSTAZIONI / prima di utilizzare il file.
B129: Questo file contiene delle MACRO. | K129: disattivato
B130: Questo sistema appartiene al TITOLARE in anagrafica. Qualsiasi altro uso non è permesso. | J130: Questo file si considera funzionante al momento della richiesta del codice.
B131: Verifica le NOTE che trovi a fondo pagina. | J131: Tieni costantemente una copia di sicurezza ed una MATRICE in bianco per gli anni successivi.
B134: OK ! Codice corretto. | E134: OK | F134: Sistema scaduto | J134: Questo file risulta al momento completamente funzionante ed il sistema rileva tutti i suoi fogli.
B135: CODICE NON VALIDO | E135: NO | F135: =IF(M92=E134,TRUE,FALSE) -> TRUE | J135: SISTEMA DANNEGGIATO !!! Chiudere senza salvare!
B136: TITOLARE DEL SISTEMA | J136: =IF(C152=0,"Sistema parzialmente attivato. Inserisci il tuo CODICE di PROPRIETA' nel foglio Presentazione.",CONCATENATE("Sistema attivato dal ",TEXT(T13,"GG/MM")," al ",TEXT(U13,"GG/MM"),". Modifica il trimestre dal foglio Presentazione.")) -> Sistema attivato dal 01/01 al 31/03. Modifica il trimestre dal foglio Presentazione.
B138: 1 | C138: BIT INTEGRITA' | E138: =IF(AND(F135=TRUE,K71=J144),1,0) -> 0 | F138: PROPRIETA' | H138: =IF(G13=F134,1,IF(F135=FALSE,1,0)) -> 0 | I138: SCADENZA | K138: =B138+'Sezione ERARIO'!H1021+'Sezione INPS'!N1024+'Sezione REGIONI'!H1024+'Sezione IMU e trib. locali'!I1030+'Sezione ACCISE'!J1022+'F24 Accise'!BD77+Tabelle!C19 -> 8 | L138: INTEGRITA'
E139: =IF(K71=J144,1,0) -> 0 | F139: PROPRIETA'
J140: =IF(F135=FALSE,"ERRORE: manca l' OK sulle regole di utilizzo del file.",IF(K71=J144,"",IF(C73<0,F134,""))) -> 
B142: Nome del Titolare | G142: P. IVA o Cod. Fiscale | M142: 1 | N142: 2 | O142: 3 | P142: 4 | Q142: 5 | R142: 6 | S142: 7 | T142: 8 | U142: 9 | V142: 10 | W142: 11 | Z142: =M144 -> 0 | AA142: =ROUND((Z142+AC142)*3,1) -> 3 | AB142: 61 | AC142: =N144 -> 1 | AD142: =ROUND((AC142+AF142)*3,1) -> 9 | AE142: =AB142-5 -> 56 | AF142: =O144 -> 2 | AG142: =ROUND((AF142+AI142)*3,1) -> 15 | AH142: =AE142-5 -> 51 | AI142: =P144 -> 3 | AJ142: =ROUND((AI142+AL142)*3,1) -> 21 | AK142: =AH142-5 -> 46 | AL142: =Q144 -> 4 | AM142: =ROUND((AL142+AO142)*3,1) -> 27 | AN142: =AK142-5 -> 41 | AO142: =R144 -> 5 | AP142: =ROUND((AO142+AR142)*3,1) -> 33 | AQ142: =AN142-5 -> 36 | AR142: =S144 -> 6 | AS142: =ROUND((AR142+AU142)*3,1) -> 39 | AT142: =AQ142-5 -> 31 | AU142: =T144 -> 7 | AV142: =ROUND((AU142+AX142)*3,1) -> 45 | AW142: =AT142-5 -> 26 | AX142: =U144 -> 8 | AY142: =ROUND((AX142+BA142)*3,1) -> 51 | AZ142: =AW142-5 -> 21 | BA142: =V144 -> 9 | BB142: =ROUND((BA142+BD142)*3,1) -> 30 | BC142: =AZ142-5 -> 16 | BD142: =W144 -> 1 | BE142: =ROUND((BD142+Z142)*3,1) -> 3 | BF142: =BC142-5 -> 11 | BI142: A | BJ142: B | BK142: C | BL142: D | BM142: F | BN142: E | BO142: I | BP142: G | BQ142: H | BR142: K | BS142: J | BT142: N | BU142: L | BV142: M | BW142: P | BX142: O | BY142: S | BZ142: Q | CA142: R | CB142: U | CC142: T | CD142: X | CE142: V | CF142: W | CG142: Z | CH142: Y | CI142: ù | CJ142: à | CK142: è | CL142: ì | CM142: ò | CN142: / | CP142: " | CQ142: - | CR142: . | CS142: 3 | CT142: 1 | CU142: 2 | CV142: 5 | CW142: 4 | CX142: 8 | CY142: 6 | CZ142: 7 | DA142: 0 | DB142: 9
B144: =E36 -> Anagrafica CONTRIBUENTE | G144: =E34 -> 01234567891 | J144: =CONCATENATE(J148,"-",J149,"-",J150) -> 223-BKBCC-823 | M144: =IF(ISERROR(VALUE(MID($G144,M142,1))),M142,IF(M142<($H145+1),VALUE(MID($G144,M142,1)),0)) -> 0 | N144: =IF(ISERROR(VALUE(MID($G144,N142,1))),N142,IF(N142<($H145+1),VALUE(MID($G144,N142,1)),0)) -> 1 | O144: =IF(ISERROR(VALUE(MID($G144,O142,1))),O142,IF(O142<($H145+1),VALUE(MID($G144,O142,1)),0)) -> 2 | P144: =IF(ISERROR(VALUE(MID($G144,P142,1))),P142,IF(P142<($H145+1),VALUE(MID($G144,P142,1)),0)) -> 3 | Q144: =IF(ISERROR(VALUE(MID($G144,Q142,1))),Q142,IF(Q142<($H145+1),VALUE(MID($G144,Q142,1)),0)) -> 4 | R144: 5 | S144: 6 | T144: 7 | U144: 8 | V144: 9 | W144: 1 | Z144: =HLOOKUP(MID($B144,Z142,1),$BI142:$DC144,3,FALSE) ->  | AA144: 1 | AB144: 33 | AC144: 1 | AD144: 3 | AE144: 33 | AF144: 12 | AG144: 21 | AH144: 33 | AI144: 1 | AJ144: 12 | AK144: 33 | AL144: 8 | AM144: 33 | AN144: 33 | AO144: 19 | AP144: 33 | AQ144: 33 | AR144: 1 | AS144: 33 | AT144: 33 | AU144: 5 | AV144: 33 | AW144: 33 | AX144: 7 | AY144: 33 | AZ144: 12 | BA144: 3 | BB144: 33 | BC144: 19 | BD144: 1 | BE144: 1 | BF144: 47 | BI144: 1 | BJ144: 2 | BK144: 3 | BL144: 4 | BM144: 5 | BN144: 6 | BO144: 7 | BP144: 8 | BQ144: 9 | BR144: 10 | BS144: 11 | BT144: 12 | BU144: 13 | BV144: 14 | BW144: 15 | BX144: 16 | BY144: 17 | BZ144: 18 | CA144: 19 | CB144: 20 | CC144: 21 | CD144: 22 | CE144: 23 | CF144: 24 | CG144: 25 | CH144: 26 | CI144: 27 | CJ144: 28 | CK144: 29 | CL144: 30 | CM144: 31 | CN144: 32 | CO144: 33 | CP144: 34 | CQ144: 35 | CR144: 36 | CS144: 37 | CT144: 38 | CU144: 39 | CV144: 40 | CW144: 41 | CX144: 42 | CY144: 43 | CZ144: 44 | DA144: 45 | DB144: 46 | DC144: 47
G145: LUNG. Txt | H145: =LEN(G144) -> 11 | BI145: A | BJ145: B | BK145: C | BL145: D | BM145: E | BN145: F | BO145: G | BP145: H | BQ145: I | BR145: J | BS145: K | BT145: L | BU145: M | BV145: N | BW145: O | BX145: P | BY145: Q | BZ145: R | CA145: S | CB145: T | CC145: U | CD145: V | CE145: W | CF145: X | CG145: Y | CH145: Z | CS145: =COUNTIF($Z142:$BF142,CS142) -> 3 | CT145: 2 | CU145: 1 | CV145: 1 | CW145: 1 | CX145: 1 | CY145: 1 | CZ145: 1 | DA145: 1 | DB145: 2
B146: 12 | X146: =IF(X149<0,X149*-1,X149) -> 227 | BG146: =IF(BG149<0,BG149*-1,BG149) -> 3734 | CQ146: 15 | CS146: =IF(ISERROR(HLOOKUP(SMALL($Z142:$BF142,CS142),$BI144:$CH145,2,FALSE)),HLOOKUP(SMALL($Z142:$BF142,CS142),$BI144:$CH145,2,TRUE),HLOOKUP(SMALL($Z142:$BF142,CS142),$BI144:$CH145,2,FALSE)) -> A | CT146: =IF(ISERROR(HLOOKUP(SMALL($Z142:$BF142,CT142+SUM($CS145:CS145)),$BI144:$CH145,2,FALSE)),HLOOKUP(SMALL($Z142:$BF142,CT142+SUM($CS145:CS145)),$BI144:$CH145,2,TRUE),HLOOKUP(SMALL($Z142:$BF142,CT142+SUM($CS145:CS145)),$BI144:$CH145,2,FALSE)) -> B | CU146: =IF(ISERROR(HLOOKUP(SMALL($Z142:$BF142,CU142+SUM($CS145:CT145)),$BI144:$CH145,2,FALSE)),HLOOKUP(SMALL($Z142:$BF142,CU142+SUM($CS145:CT145)),$BI144:$CH145,2,TRUE),HLOOKUP(SMALL($Z142:$BF142,CU142+SUM($CS145:CT145)),$BI144:$CH145,2,FALSE)) -> C | CV146: =IF(ISERROR(HLOOKUP(SMALL($Z142:$BF142,CV142+SUM($CS145:CU145)),$BI144:$CH145,2,FALSE)),HLOOKUP(SMALL($Z142:$BF142,CV142+SUM($CS145:CU145)),$BI144:$CH145,2,TRUE),HLOOKUP(SMALL($Z142:$BF142,CV142+SUM($CS145:CU145)),$BI144:$CH145,2,FALSE)) -> G | CW146: =IF(ISERROR(HLOOKUP(SMALL($Z142:$BF142,CW142+SUM($CS145:CV145)),$BI144:$CH145,2,FALSE)),HLOOKUP(SMALL($Z142:$BF142,CW142+SUM($CS145:CV145)),$BI144:$CH145,2,TRUE),HLOOKUP(SMALL($Z142:$BF142,CW142+SUM($CS145:CV145)),$BI144:$CH145,2,FALSE)) -> G | CX146: =IF(ISERROR(HLOOKUP(SMALL($Z142:$BF142,CX142+SUM($CS145:CW145)),$BI144:$CH145,2,FALSE)),HLOOKUP(SMALL($Z142:$BF142,CX142+SUM($CS145:CW145)),$BI144:$CH145,2,TRUE),HLOOKUP(SMALL($Z142:$BF142,CX142+SUM($CS145:CW145)),$BI144:$CH145,2,FALSE)) -> O | CY146: =IF(ISERROR(HLOOKUP(SMALL($Z142:$BF142,CY142+SUM($CS145:CX145)),$BI144:$CH145,2,FALSE)),HLOOKUP(SMALL($Z142:$BF142,CY142+SUM($CS145:CX145)),$BI144:$CH145,2,TRUE),HLOOKUP(SMALL($Z142:$BF142,CY142+SUM($CS145:CX145)),$BI144:$CH145,2,FALSE)) -> K | CZ146: =IF(ISERROR(HLOOKUP(SMALL($Z142:$BF142,CZ142+SUM($CS145:CY145)),$BI144:$CH145,2,FALSE)),HLOOKUP(SMALL($Z142:$BF142,CZ142+SUM($CS145:CY145)),$BI144:$CH145,2,TRUE),HLOOKUP(SMALL($Z142:$BF142,CZ142+SUM($CS145:CY145)),$BI144:$CH145,2,FALSE)) -> P | DA146: =IF(ISERROR(HLOOKUP(SMALL($Z142:$BF142,DA142+SUM($CS145:CZ145)),$BI144:$CH145,2,FALSE)),HLOOKUP(SMALL($Z142:$BF142,DA142+SUM($CS145:CZ145)),$BI144:$CH145,2,TRUE),HLOOKUP(SMALL($Z142:$BF142,DA142+SUM($CS145:CZ145)),$BI144:$CH145,2,FALSE)) -> G | DB146: =IF(ISERROR(HLOOKUP(SMALL($Z142:$BF142,CQ146),$BI144:$CH145,2,FALSE)),HLOOKUP(SMALL($Z142:$BF142,CQ146),$BI144:$CH145,2,TRUE),HLOOKUP(SMALL($Z142:$BF142,CQ146),$BI144:$CH145,2,FALSE)) -> K
M147: =M144*$B146 -> 0 | O147: =O144*$B146 -> 24 | Q147: =Q144*$B146 -> 48 | S147: =S144*$B146 -> 72 | U147: =U144*$B146 -> 96 | W147: =W144*$B146 -> 12 | X147: =IF(X150<0,X150*-1,X150) -> 280 | Z147: =Z144*$B146 ->  | AB147: =AB144*$B146 -> 396 | AD147: =AD144*$B146 -> 36 | AF147: =AF144*$B146 -> 144 | AH147: =AH144*$B146 -> 396 | AJ147: =AJ144*$B146 -> 144 | AL147: =AL144*$B146 -> 96 | AN147: =AN144*$B146 -> 396 | AP147: =AP144*$B146 -> 396 | AR147: =AR144*$B146 -> 12 | AT147: =AT144*$B146 -> 396 | AV147: =AV144*$B146 -> 396 | AX147: =AX144*$B146 -> 84 | AZ147: =AZ144*$B146 -> 144 | BB147: =BB144*$B146 -> 396 | BD147: =BD144*$B146 -> 12 | BF147: =BF144*$B146 -> 564 | BG147: =IF(BG150<0,BG150*-1,BG150) -> 3346 | CS147: =IF(ISERROR(CS146),0,CS146) -> A | CT147: B | CU147: C | CV147: G | CW147: G | CX147: O | CY147: K | CZ147: P | DA147: G | DB147: K
J148: =CONCATENATE(AE153,AF153,AG153) -> 223 | N148: =N144*$B146 -> 12 | P148: =P144*$B146 -> 36 | R148: =R144*$B146 -> 60 | T148: =T144*$B146 -> 84 | V148: =V144*$B146 -> 108 | X148: =IF(X151<0,X151*-1,X151) -> 1105 | AA148: =AA144*$B146 -> 12 | AC148: =AC144*$B146 -> 12 | AE148: =AE144*$B146 -> 396 | AG148: =AG144*$B146 -> 252 | AI148: =AI144*$B146 -> 12 | AK148: =AK144*$B146 -> 396 | AM148: =AM144*$B146 -> 396 | AO148: =AO144*$B146 -> 228 | AQ148: =AQ144*$B146 -> 396 | AS148: =AS144*$B146 -> 396 | AU148: =AU144*$B146 -> 60 | AW148: =AW144*$B146 -> 396 | AY148: =AY144*$B146 -> 396 | BA148: =BA144*$B146 -> 36 | BC148: =BC144*$B146 -> 228 | BE148: =BE144*$B146 -> 12 | BG148: =IF(BG151<0,BG151*-1,BG151) -> 15302
B149: =DAY(E149) -> 31 | C149: =MONTH(E149) -> 3 | D149: =YEAR(E149) -> 2024 | E149: =U13 -> 45382 | J149: =CONCATENATE(R153,S153,T153,U153,V153) -> BKBCC | M149: =M147-N144 -> -1 | O149: =O147-P144 -> 21 | Q149: =Q147-R144 -> 43 | S149: =S147-T144 -> 65 | U149: =U147-V144 -> 87 | W149: =W147-M144 -> 12 | X149: =SUM(M149:W149) -> 227 | Z149: =Z147-BF144 ->  | AB149: =AB147-AA144 -> 395 | AD149: =AD147-AC144 -> 35 | AF149: =AF147-AE144 -> 111 | AH149: =AH147-AG144 -> 375 | AJ149: =AJ147-AI144 -> 143 | AL149: =AL147-AK144 -> 63 | AN149: =AN147-AM144 -> 363 | AP149: =AP147-AO144 -> 377 | AR149: =AR147-AQ144 -> -21 | AT149: =AT147-AS144 -> 363 | AV149: =AV147-AU144 -> 391 | AX149: =AX147-AW144 -> 51 | AZ149: =AZ147-AY144 -> 111 | BB149: =BB147-BA144 -> 393 | BD149: =BD147-BC144 -> -7 | BF149: =BF147-BE144 -> 563 | BG149: =SUMIF(Z149:BF149,">0") -> 3734 | CS149: A | CT149: D | CU149: E | CV149: G | CW149: O | CX149: P | CY149: R | CZ149: R | DA149: S | DB149: U
B150: =DAY(E150) -> 2 | C150: =MONTH(E150) -> 1 | D150: =YEAR(E149) -> 2024 | E150: =TODAY() -> 45293 | J150: =CONCATENATE(AH153,AI153,AJ153) -> 823 | N150: =N148-M144 -> 12 | P150: =P148-O144 -> 34 | R150: =R148-Q144 -> 56 | T150: =T148-S144 -> 78 | V150: =V148-U144 -> 100 | X150: =SUM(M150:W150) -> 280 | AA150: =AA148-AB144 -> -21 | AC150: =AC148-AD144 -> 9 | AE150: =AE148-AF144 -> 384 | AG150: =AG148-AH144 -> 219 | AI150: =AI148-AJ144 -> 0 | AK150: =AK148-AL144 -> 388 | AM150: =AM148-AN144 -> 363 | AO150: =AO148-AP144 -> 195 | AQ150: =AQ148-AR144 -> 395 | AS150: =AS148-AT144 -> 363 | AU150: =AU148-AV144 -> 27 | AW150: =AW148-AX144 -> 389 | AY150: =AY148-AZ144 -> 384 | BA150: =BA148-BB144 -> 3 | BC150: =BC148-BD144 -> 227 | BE150: =BE148-BF144 -> -35 | BG150: =SUMIF(Z150:BF150,">0") -> 3346 | CS150: =IF(CS147=0,CS149,CS146) -> A | CT150: B | CU150: C | CV150: G | CW150: G | CX150: O | CY150: K | CZ150: P | DA150: G | DB150: K
M151: =M144+M147+M149 -> -1 | N151: =N144+N148+N150 -> 25 | O151: =O144+O147+O149 -> 47 | P151: =P144+P148+P150 -> 73 | Q151: =Q144+Q147+Q149 -> 95 | R151: =R144+R148+R150 -> 121 | S151: =S144+S147+S149 -> 143 | T151: =T144+T148+T150 -> 169 | U151: =U144+U147+U149 -> 191 | V151: =V144+V148+V150 -> 217 | W151: =W144+W147+W149 -> 25 | X151: =SUM(M151:W151) -> 1105 | Z151: =Z144+Z147+Z149 ->  | AA151: =AA144+AA148+AA150 -> -8 | AB151: =AB144+AB147+AB149 -> 824 | AC151: =AC144+AC148+AC150 -> 22 | AD151: =AD144+AD147+AD149 -> 74 | AE151: =AE144+AE148+AE150 -> 813 | AF151: =AF144+AF147+AF149 -> 267 | AG151: =AG144+AG148+AG150 -> 492 | AH151: =AH144+AH147+AH149 -> 804 | AI151: =AI144+AI148+AI150 -> 13 | AJ151: =AJ144+AJ147+AJ149 -> 299 | AK151: =AK144+AK148+AK150 -> 817 | AL151: =AL144+AL147+AL149 -> 167 | AM151: =AM144+AM148+AM150 -> 792 | AN151: =AN144+AN147+AN149 -> 792 | AO151: =AO144+AO148+AO150 -> 442 | AP151: =AP144+AP147+AP149 -> 806 | AQ151: =AQ144+AQ148+AQ150 -> 824 | AR151: =AR144+AR147+AR149 -> -8 | AS151: =AS144+AS148+AS150 -> 792 | AT151: =AT144+AT147+AT149 -> 792 | AU151: =AU144+AU148+AU150 -> 92 | AV151: =AV144+AV147+AV149 -> 820 | AW151: =AW144+AW148+AW150 -> 818 | AX151: =AX144+AX147+AX149 -> 142 | AY151: =AY144+AY148+AY150 -> 813 | AZ151: =AZ144+AZ147+AZ149 -> 267 | BA151: =BA144+BA148+BA150 -> 42 | BB151: =BB144+BB147+BB149 -> 822 | BC151: =BC144+BC148+BC150 -> 474 | BD151: =BD144+BD147+BD149 -> 6 | BE151: =BE144+BE148+BE150 -> -22 | BF151: =BF144+BF147+BF149 -> 1174 | BG151: =SUMIF(Z151:BF151,">0") -> 15302
B152: =DATE(D149,C149,B149) -> 45382 | C152: =IF((B152-B153)<0,0,B152-B153) -> 89
B153: =DATE(D150,C150,B150) -> 45293 | M153: =SUM(X149:X151) -> 1612 | Q153: =LEN(TEXT(M153,"@")) -> 4 | R153: =IF(Q153>0,HLOOKUP(MID(TEXT($M153,"@"),1,1),$CS142:$DB150,9,FALSE),"") -> B | S153: =IF($Q153>1,HLOOKUP(MID(TEXT($M153,"@"),2,1),$CS142:$DB150,9,FALSE),HLOOKUP(MID(TEXT($X153,"@"),1,1),$CS142:$DB150,9,FALSE)) -> K | T153: =IF($Q153>2,HLOOKUP(MID(TEXT($M153,"@"),3,1),$CS142:$DB150,9,FALSE),HLOOKUP(MID(TEXT($X153,"@"),2,1),$CS142:$DB150,9,FALSE)) -> B | U153: =IF($Q153>3,HLOOKUP(MID(TEXT($M153,"@"),4,1),$CS142:$DB150,9,FALSE),HLOOKUP(MID(TEXT($X153,"@"),3,1),$CS142:$DB150,9,FALSE)) -> C | V153: =IF($Q153>4,HLOOKUP(MID(TEXT($M153,"@"),5,1),$CS142:$DB150,9,FALSE),HLOOKUP(MID(TEXT($X153,"@"),4,1),$CS142:$DB150,9,FALSE)) -> C | W153: =LEN(TEXT(CONCATENATE(TEXT(X146,"@"),TEXT(X147,"@"),TEXT(X148,"@")),"@")) -> 10 | X153: =IF(W153<4,CONCATENATE(TEXT(CQ146,"@"),TEXT(X146,"@"),TEXT(X147,"@"),TEXT(X148,"@")),CONCATENATE(TEXT(X146,"@"),TEXT(X147,"@"),TEXT(X148,"@"))) -> 2272801105 | Z153: =SUM(BG149:BG151) -> 22382 | AD153: =LEN(TEXT(Z153,"@")) -> 5 | AE153: =IF(AD153>0,MID(TEXT($Z153,"@"),1,1),"") -> 2 | AF153: =IF($AD153>1,MID(TEXT($Z153,"@"),2,1),MID(TEXT($BG153,"@"),1,1)) -> 2 | AG153: =IF($AD153>2,MID(TEXT($Z153,"@"),3,1),MID(TEXT($BG153,"@"),2,1)) -> 3 | AH153: =IF($AD153>3,MID(TEXT($Z153,"@"),4,1),MID(TEXT($BG153,"@"),3,1)) -> 8 | AI153: =IF($AD153>4,MID(TEXT($Z153,"@"),5,1),MID(TEXT($BG153,"@"),4,1)) -> 2 | AJ153: =IF($AD153>5,MID(TEXT($Z153,"@"),6,1),MID(TEXT($BG153,"@"),5,1)) -> 3 | AK153: =LEN(TEXT(CONCATENATE(TEXT(BG146,"@"),TEXT(BG147,"@")),"@")) -> 8 | BG153: =IF(AK153<5,CONCATENATE(TEXT(BG148,"@"),TEXT(BG146,"@"),TEXT(BG147,"@")),CONCATENATE(TEXT(BG146,"@"),TEXT(BG147,"@"))) -> 37343346
F156: ANNO | G156: ='F24 Accise'!BO6 -> 2024
C157: 1° TRIMESTRE | E157: 1 | F157: =DATE(G156,E157,1) -> 2024-01-01 | G157: =F158-1 -> 2024-03-31
C158: 2° TRIMESTRE | E158: 4 | F158: =DATE(G156,E158,1) -> 2024-04-01 | G158: =F159-1 -> 2024-06-30
C159: 3° TRIMESTRE | E159: 7 | F159: =DATE(G156,E159,1) -> 2024-07-01 | G159: =F160-1 -> 2024-09-30
C160: 4° TRIMESTRE | E160: 10 | F160: =DATE(G156,E160,1) -> 2024-10-01 | G160: =DATE(G156,E161,31) -> 2024-12-31
E161: 12

Sheet Sezione ERARIO
D2: Contribuente: | J2: Compila le righe di questa sezione una sotto l' altra, assegnando un numero di protocollo progressivo e la data
D3: =CONTRIBUENTE!E34 -> 01234567891 | J3: in ogni riga. Nel foglio \ F24 Accise / potrai richiamare e stampare tutti i documenti così generati.
D4: =MAX(D1027:D1031) -> 2 | E4: Ultimo Protocollo | J4: SEZIONE ERARIO
E5: nelle SEZIONI | J5: =IF(M1021=0,"",CONTRIBUENTE!$F$134) ->  | M5: A | N5: B | P5: Vedi foglio \ Tabelle /
D6: NR. | E6: DATA | G6: Codice | H6: Codice | J6: codice | K6: rateaz./reg. | L6: anno di | M6: importi a debito | N6: importi a credito | P6: Delega irrevocabile a | T6: Protocollo | V6: SALDO di tutte le | X6: Pagamento con | Y6: bancario | Z6: circ. o | AD6: N O T E
D7: Prot. | G7: UFFICIO | H7: ATTO | J7: tributo | K7: prov./mese rif. | L7: riferimento | M7: VERSATI | N7: COMPENSATI | Q7: ABI | R7: CAB | T7: alfanumerico | V7: SEZIONI per il Prot. | W7: opz. | X7: assegno nr. | Y7: postale | Z7: vaglia | AA7: ABI | AB7: CAB
A9: 1 di 1000 | B9: =IF(AH9=$AH$1015,0,IF(M$1021=1,0,D9&"-"&YEAR(E9))) -> 1-2024 | C9: =IF(M$1021=1,0,B9&"-"&AF9) -> 1-2024-1 | D9: 1 | E9: 2024-01-01 | G9: 010 | H9: 01020304050 | J9: 0003 | K9: 01 01 | L9: 2020 | N9: 8 | P9: B1 | Q9: =IF(M$1021=1,"",IF(P9="","",VLOOKUP(P9,Tabelle!$B$5:$F$7,5,FALSE))) -> 00001 | R9: =IF(M$1021=1,"",IF(P9="","",VLOOKUP(P9,Tabelle!$B$5:$G$7,6,FALSE))) -> 10000 | T9: AB 000 | V9: =IF(AND(D9<>"",B9<>B8),(SUMIF(B$9:B$1008,B9,M$9:M$1008)-SUMIF(B$9:B$1008,B9,N$9:N$1008))+(SUMIF('Sezione INPS'!B$9:B$1008,B9,'Sezione INPS'!N$9:N$1008)-SUMIF('Sezione INPS'!B$9:B$1008,B9,'Sezione INPS'!O$9:O$1008))+(SUMIF('Sezione REGIONI'!B$9:B$1008,B9,'Sezione REGIONI'!K$9:K$1008)-SUMIF('Sezione REGIONI'!B$9:B$1008,B9,'Sezione REGIONI'!L$9:L$1008))+(SUMIF('Sezione IMU e trib. locali'!B$9:B$1008,B9,'Sezione IMU e trib. locali'!M$9:M$1008)-SUMIF('Sezione IMU e trib. locali'!B$9:B$1008,B9,'Sezione IMU e trib. locali'!N$9:N$1008))+(SUMIF('Sezione ACCISE'!B$9:B$1008,B9,'Sezione ACCISE'!N$9:N$1008)),0) -> 0 | W9: compila | X9: 012354 | Y9: X | AA9: 01234 | AB9: 56789 | AD9: Testo Libero | AF9: 1 | AH9: =IF(E9>0,IF(OR(MONTH(E9)<$L$1027,MONTH(E9)>$L$1028),AH$1015,0),0) -> 0
A10: 2 | B10: =IF(AH10=$AH$1015,0,IF(M$1021=1,0,D10&"-"&YEAR(E10))) -> 2-2024 | C10: 2-2024-1 | D10: 2 | E10: 2024-01-01 | G10: 011 | H10: 10203040500 | J10: 3000 | K10: 10 10 | L10: 2020 | N10: 16 | P10: B2 | Q10: =IF(M$1021=1,"",IF(P10="","",VLOOKUP(P10,Tabelle!$B$5:$F$7,5,FALSE))) -> 00002 | R10: =IF(M$1021=1,"",IF(P10="","",VLOOKUP(P10,Tabelle!$B$5:$G$7,6,FALSE))) -> 20000 | T10: CD 000 | V10: =IF(AND(D10<>"",B10<>B9),(SUMIF(B$9:B$1008,B10,M$9:M$1008)-SUMIF(B$9:B$1008,B10,N$9:N$1008))+(SUMIF('Sezione INPS'!B$9:B$1008,B10,'Sezione INPS'!N$9:N$1008)-SUMIF('Sezione INPS'!B$9:B$1008,B10,'Sezione INPS'!O$9:O$1008))+(SUMIF('Sezione REGIONI'!B$9:B$1008,B10,'Sezione REGIONI'!K$9:K$1008)-SUMIF('Sezione REGIONI'!B$9:B$1008,B10,'Sezione REGIONI'!L$9:L$1008))+(SUMIF('Sezione IMU e trib. locali'!B$9:B$1008,B10,'Sezione IMU e trib. locali'!M$9:M$1008)-SUMIF('Sezione IMU e trib. locali'!B$9:B$1008,B10,'Sezione IMU e trib. locali'!N$9:N$1008))+(SUMIF('Sezione ACCISE'!B$9:B$1008,B10,'Sezione ACCISE'!N$9:N$1008)),0) -> 0 | W10: compila | AD10: Testo Libero | AF10: =IF(B10="",0,IF(B10=B9,COUNTIF(B$9:B9,B10)+1,1)) -> 1 | AG10: =IF(OR(D10="",M$1021=1),0,IF(AF10=6,1,0)) -> 0 | AH10: =IF(E10>0,IF(OR(MONTH(E10)<$L$1027,MONTH(E10)>$L$1028),AH$1015,0),0) -> 0
A11: 3 | B11: -1900 | C11: -1900-1 | Q11: =IF(M$1021=1,"",IF(P11="","",VLOOKUP(P11,Tabelle!$B$5:$F$7,5,FALSE))) ->  | R11: =IF(M$1021=1,"",IF(P11="","",VLOOKUP(P11,Tabelle!$B$5:$G$7,6,FALSE))) ->  | V11: =IF(AND(D11<>"",B11<>B10),(SUMIF(B$9:B$1008,B11,M$9:M$1008)-SUMIF(B$9:B$1008,B11,N$9:N$1008))+(SUMIF('Sezione INPS'!B$9:B$1008,B11,'Sezione INPS'!N$9:N$1008)-SUMIF('Sezione INPS'!B$9:B$1008,B11,'Sezione INPS'!O$9:O$1008))+(SUMIF('Sezione REGIONI'!B$9:B$1008,B11,'Sezione REGIONI'!K$9:K$1008)-SUMIF('Sezione REGIONI'!B$9:B$1008,B11,'Sezione REGIONI'!L$9:L$1008))+(SUMIF('Sezione IMU e trib. locali'!B$9:B$1008,B11,'Sezione IMU e trib. locali'!M$9:M$1008)-SUMIF('Sezione IMU e trib. locali'!B$9:B$1008,B11,'Sezione IMU e trib. locali'!N$9:N$1008))+(SUMIF('Sezione ACCISE'!B$9:B$1008,B11,'Sezione ACCISE'!N$9:N$1008)),0) -> 0 | AF11: =IF(B11="",0,IF(B11=B10,COUNTIF(B$9:B10,B11)+1,1)) -> 1 | AG11: 0 | AH11: 0
A12: 4 | B12: -1900 | C12: -1900-2 | Q12: =IF(M$1021=1,"",IF(P12="","",VLOOKUP(P12,Tabelle!$B$5:$F$7,5,FALSE))) ->  | R12: =IF(M$1021=1,"",IF(P12="","",VLOOKUP(P12,Tabelle!$B$5:$G$7,6,FALSE))) ->  | V12: =IF(AND(D12<>"",B12<>B11),(SUMIF(B$9:B$1008,B12,M$9:M$1008)-SUMIF(B$9:B$1008,B12,N$9:N$1008))+(SUMIF('Sezione INPS'!B$9:B$1008,B12,'Sezione INPS'!N$9:N$1008)-SUMIF('Sezione INPS'!B$9:B$1008,B12,'Sezione INPS'!O$9:O$1008))+(SUMIF('Sezione REGIONI'!B$9:B$1008,B12,'Sezione REGIONI'!K$9:K$1008)-SUMIF('Sezione REGIONI'!B$9:B$1008,B12,'Sezione REGIONI'!L$9:L$1008))+(SUMIF('Sezione IMU e trib. locali'!B$9:B$1008,B12,'Sezione IMU e trib. locali'!M$9:M$1008)-SUMIF('Sezione IMU e trib. locali'!B$9:B$1008,B12,'Sezione IMU e trib. locali'!N$9:N$1008))+(SUMIF('Sezione ACCISE'!B$9:B$1008,B12,'Sezione ACCISE'!N$9:N$1008)),0) -> 0 | AF12: =IF(B12="",0,IF(B12=B11,COUNTIF(B$9:B11,B12)+1,1)) -> 2 | AG12: 0 | AH12: 0
A13: 5 | B13: -1900 | C13: -1900-3 | Q13: =IF(M$1021=1,"",IF(P13="","",VLOOKUP(P13,Tabelle!$B$5:$F$7,5,FALSE))) ->  | R13: =IF(M$1021=1,"",IF(P13="","",VLOOKUP(P13,Tabelle!$B$5:$G$7,6,FALSE))) ->  | V13: =IF(AND(D13<>"",B13<>B12),(SUMIF(B$9:B$1008,B13,M$9:M$1008)-SUMIF(B$9:B$1008,B13,N$9:N$1008))+(SUMIF('Sezione INPS'!B$9:B$1008,B13,'Sezione INPS'!N$9:N$1008)-SUMIF('Sezione INPS'!B$9:B$1008,B13,'Sezione INPS'!O$9:O$1008))+(SUMIF('Sezione REGIONI'!B$9:B$1008,B13,'Sezione REGIONI'!K$9:K$1008)-SUMIF('Sezione REGIONI'!B$9:B$1008,B13,'Sezione REGIONI'!L$9:L$1008))+(SUMIF('Sezione IMU e trib. locali'!B$9:B$1008,B13,'Sezione IMU e trib. locali'!M$9:M$1008)-SUMIF('Sezione IMU e trib. locali'!B$9:B$1008,B13,'Sezione IMU e trib. locali'!N$9:N$1008))+(SUMIF('Sezione ACCISE'!B$9:B$1008,B13,'Sezione ACCISE'!N$9:N$1008)),0) -> 0 | AF13: =IF(B13="",0,IF(B13=B12,COUNTIF(B$9:B12,B13)+1,1)) -> 3 | AG13: 0 | AH13: 0
A14: 6 | B14: -1900 | C14: -1900-4 | Q14: =IF(M$1021=1,"",IF(P14="","",VLOOKUP(P14,Tabelle!$B$5:$F$7,5,FALSE))) ->  | R14: =IF(M$1021=1,"",IF(P14="","",VLOOKUP(P14,Tabelle!$B$5:$G$7,6,FALSE))) ->  | V14: =IF(AND(D14<>"",B14<>B13),(SUMIF(B$9:B$1008,B14,M$9:M$1008)-SUMIF(B$9:B$1008,B14,N$9:N$1008))+(SUMIF('Sezione INPS'!B$9:B$1008,B14,'Sezione INPS'!N$9:N$1008)-SUMIF('Sezione INPS'!B$9:B$1008,B14,'Sezione INPS'!O$9:O$1008))+(SUMIF('Sezione REGIONI'!B$9:B$1008,B14,'Sezione REGIONI'!K$9:K$1008)-SUMIF('Sezione REGIONI'!B$9:B$1008,B14,'Sezione REGIONI'!L$9:L$1008))+(SUMIF('Sezione IMU e trib. locali'!B$9:B$1008,B14,'Sezione IMU e trib. locali'!M$9:M$1008)-SUMIF('Sezione IMU e trib. locali'!B$9:B$1008,B14,'Sezione IMU e trib. locali'!N$9:N$1008))+(SUMIF('Sezione ACCISE'!B$9:B$1008,B14,'Sezione ACCISE'!N$9:N$1008)),0) -> 0 | AF14: =IF(B14="",0,IF(B14=B13,COUNTIF(B$9:B13,B14)+1,1)) -> 4 | AG14: 0 | AH14: 0
A15: 7 | B15: -1900 | C15: -1900-5 | Q15: =IF(M$1021=1,"",IF(P15="","",VLOOKUP(P15,Tabelle!$B$5:$F$7,5,FALSE))) ->  | R15: =IF(M$1021=1,"",IF(P15="","",VLOOKUP(P15,Tabelle!$B$5:$G$7,6,FALSE))) ->  | V15: =IF(AND(D15<>"",B15<>B14),(SUMIF(B$9:B$1008,B15,M$9:M$1008)-SUMIF(B$9:B$1008,B15,N$9:N$1008))+(SUMIF('Sezione INPS'!B$9:B$1008,B15,'Sezione INPS'!N$9:N$1008)-SUMIF('Sezione INPS'!B$9:B$1008,B15,'Sezione INPS'!O$9:O$1008))+(SUMIF('Sezione REGIONI'!B$9:B$1008,B15,'Sezione REGIONI'!K$9:K$1008)-SUMIF('Sezione REGIONI'!B$9:B$1008,B15,'Sezione REGIONI'!L$9:L$1008))+(SUMIF('Sezione IMU e trib. locali'!B$9:B$1008,B15,'Sezione IMU e trib. locali'!M$9:M$1008)-SUMIF('Sezione IMU e trib. locali'!B$9:B$1008,B15,'Sezione IMU e trib. locali'!N$9:N$1008))+(SUMIF('Sezione ACCISE'!B$9:B$1008,B15,'Sezione ACCISE'!N$9:N$1008)),0) -> 0 | AF15: =IF(B15="",0,IF(B15=B14,COUNTIF(B$9:B14,B15)+1,1)) -> 5 | AG15: 0 | AH15: 0
A16: 8 | B16: -1900 | C16: -1900-6 | Q16: =IF(M$1021=1,"",IF(P16="","",VLOOKUP(P16,Tabelle!$B$5:$F$7,5,FALSE))) ->  | R16: =IF(M$1021=1,"",IF(P16="","",VLOOKUP(P16,Tabelle!$B$5:$G$7,6,FALSE))) ->  | V16: =IF(AND(D16<>"",B16<>B15),(SUMIF(B$9:B$1008,B16,M$9:M$1008)-SUMIF(B$9:B$1008,B16,N$9:N$1008))+(SUMIF('Sezione INPS'!B$9:B$1008,B16,'Sezione INPS'!N$9:N$1008)-SUMIF('Sezione INPS'!B$9:B$1008,B16,'Sezione INPS'!O$9:O$1008))+(SUMIF('Sezione REGIONI'!B$9:B$1008,B16,'Sezione REGIONI'!K$9:K$1008)-SUMIF('Sezione REGIONI'!B$9:B$1008,B16,'Sezione REGIONI'!L$9:L$1008))+(SUMIF('Sezione IMU e trib. locali'!B$9:B$1008,B16,'Sezione IMU e trib. locali'!M$9:M$1008)-SUMIF('Sezione IMU e trib. locali'!B$9:B$1008,B16,'Sezione IMU e trib. locali'!N$9:N$1008))+(SUMIF('Sezione ACCISE'!B$9:B$1008,B16,'Sezione ACCISE'!N$9:N$1008)),0) -> 0 | AF16: =IF(B16="",0,IF(B16=B15,COUNTIF(B$9:B15,B16)+1,1)) -> 6 | AG16: 0 | AH16: 0
A17: 9 | B17: -1900 | C17: -1900-7 | Q17: =IF(M$1021=1,"",IF(P17="","",VLOOKUP(P17,Tabelle!$B$5:$F$7,5,FALSE))) ->  | R17: =IF(M$1021=1,"",IF(P17="","",VLOOKUP(P17,Tabelle!$B$5:$G$7,6,FALSE))) ->  | V17: =IF(AND(D17<>"",B17<>B16),(SUMIF(B$9:B$1008,B17,M$9:M$1008)-SUMIF(B$9:B$1008,B17,N$9:N$1008))+(SUMIF('Sezione INPS'!B$9:B$1008,B17,'Sezione INPS'!N$9:N$1008)-SUMIF('Sezione INPS'!B$9:B$1008,B17,'Sezione INPS'!O$9:O$1008))+(SUMIF('Sezione REGIONI'!B$9:B$1008,B17,'Sezione REGIONI'!K$9:K$1008)-SUMIF('Sezione REGIONI'!B$9:B$1008,B17,'Sezione REGIONI'!L$9:L$1008))+(SUMIF('Sezione IMU e trib. locali'!B$9:B$1008,B17,'Sezione IMU e trib. locali'!M$9:M$1008)-SUMIF('Sezione IMU e trib. locali'!B$9:B$1008,B17,'Sezione IMU e trib. locali'!N$9:N$1008))+(SUMIF('Sezione ACCISE'!B$9:B$1008,B17,'Sezione ACCISE'!N$9:N$1008)),0) -> 0 | AF17: =IF(B17="",0,IF(B17=B16,COUNTIF(B$9:B16,B17)+1,1)) -> 7 | AG17: 0 | AH17: 0
A18: 10 | B18: -1900 | C18: -1900-8 | Q18: =IF(M$1021=1,"",IF(P18="","",VLOOKUP(P18,Tabelle!$B$5:$F$7,5,FALSE))) ->  | R18: =IF(M$1021=1,"",IF(P18="","",VLOOKUP(P18,Tabelle!$B$5:$G$7,6,FALSE))) ->  | V18: =IF(AND(D18<>"",B18<>B17),(SUMIF(B$9:B$1008,B18,M$9:M$1008)-SUMIF(B$9:B$1008,B18,N$9:N$1008))+(SUMIF('Sezione INPS'!B$9:B$1008,B18,'Sezione INPS'!N$9:N$1008)-SUMIF('Sezione INPS'!B$9:B$1008,B18,'Sezione INPS'!O$9:O$1008))+(SUMIF('Sezione REGIONI'!B$9:B$1008,B18,'Sezione REGIONI'!K$9:K$1008)-SUMIF('Sezione REGIONI'!B$9:B$1008,B18,'Sezione REGIONI'!L$9:L$1008))+(SUMIF('Sezione IMU e trib. locali'!B$9:B$1008,B18,'Sezione IMU e trib. locali'!M$9:M$1008)-SUMIF('Sezione IMU e trib. locali'!B$9:B$1008,B18,'Sezione IMU e trib. locali'!N$9:N$1008))+(SUMIF('Sezione ACCISE'!B$9:B$1008,B18,'Sezione ACCISE'!N$9:N$1008)),0) -> 0 | AF18: =IF(B18="",0,IF(B18=B17,COUNTIF(B$9:B17,B18)+1,1)) -> 8 | AG18: 0 | AH18: 0
A19: 11 | B19: -1900 | C19: -1900-9 | Q19: =IF(M$1021=1,"",IF(P19="","",VLOOKUP(P19,Tabelle!$B$5:$F$7,5,FALSE))) ->  | R19: =IF(M$1021=1,"",IF(P19="","",VLOOKUP(P19,Tabelle!$B$5:$G$7,6,FALSE))) ->  | V19: =IF(AND(D19<>"",B19<>B18),(SUMIF(B$9:B$1008,B19,M$9:M$1008)-SUMIF(B$9:B$1008,B19,N$9:N$1008))+(SUMIF('Sezione INPS'!B$9:B$1008,B19,'Sezione INPS'!N$9:N$1008)-SUMIF('Sezione INPS'!B$9:B$1008,B19,'Sezione INPS'!O$9:O$1008))+(SUMIF('Sezione REGIONI'!B$9:B$1008,B19,'Sezione REGIONI'!K$9:K$1008)-SUMIF('Sezione REGIONI'!B$9:B$1008,B19,'Sezione REGIONI'!L$9:L$1008))+(SUMIF('Sezione IMU e trib. locali'!B$9:B$1008,B19,'Sezione IMU e trib. locali'!M$9:M$1008)-SUMIF('Sezione IMU e trib. locali'!B$9:B$1008,B19,'Sezione IMU e trib. locali'!N$9:N$1008))+(SUMIF('Sezione ACCISE'!B$9:B$1008,B19,'Sezione ACCISE'!N$9:N$1008)),0) -> 0 | AF19: =IF(B19="",0,IF(B19=B18,COUNTIF(B$9:B18,B19)+1,1)) -> 9 | AG19: 0 | AH19: 0
A20: 12 | B20: -1900 | C20: -1900-10 | Q20: =IF(M$1021=1,"",IF(P20="","",VLOOKUP(P20,Tabelle!$B$5:$F$7,5,FALSE))) ->  | R20: =IF(M$1021=1,"",IF(P20="","",VLOOKUP(P20,Tabelle!$B$5:$G$7,6,FALSE))) ->  | V20: =IF(AND(D20<>"",B20<>B19),(SUMIF(B$9:B$1008,B20,M$9:M$1008)-SUMIF(B$9:B$1008,B20,N$9:N$1008))+(SUMIF('Sezione INPS'!B$9:B$1008,B20,'Sezione INPS'!N$9:N$1008)-SUMIF('Sezione INPS'!B$9:B$1008,B20,'Sezione INPS'!O$9:O$1008))+(SUMIF('Sezione REGIONI'!B$9:B$1008,B20,'Sezione REGIONI'!K$9:K$1008)-SUMIF('Sezione REGIONI'!B$9:B$1008,B20,'Sezione REGIONI'!L$9:L$1008))+(SUMIF('Sezione IMU e trib. locali'!B$9:B$1008,B20,'Sezione IMU e trib. locali'!M$9:M$1008)-SUMIF('Sezione IMU e trib. locali'!B$9:B$1008,B20,'Sezione IMU e trib. locali'!N$9:N$1008))+(SUMIF('Sezione ACCISE'!B$9:B$1008,B20,'Sezione ACCISE'!N$9:N$1008)),0) -> 0 | AF20: =IF(B20="",0,IF(B20=B19,COUNTIF(B$9:B19,B20)+1,1)) -> 10 | AG20: 0 | AH20: 0
A21: 13 | B21: -1900 | C21: -1900-11 | Q21: =IF(M$1021=1,"",IF(P21="","",VLOOKUP(P21,Tabelle!$B$5:$F$7,5,FALSE))) ->  | R21: =IF(M$1021=1,"",IF(P21="","",VLOOKUP(P21,Tabelle!$B$5:$G$7,6,FALSE))) ->  | V21: =IF(AND(D21<>"",B21<>B20),(SUMIF(B$9:B$1008,B21,M$9:M$1008)-SUMIF(B$9:B$1008,B21,N$9:N$1008))+(SUMIF('Sezione INPS'!B$9:B$1008,B21,'Sezione INPS'!N$9:N$1008)-SUMIF('Sezione INPS'!B$9:B$1008,B21,'Sezione INPS'!O$9:O$1008))+(SUMIF('Sezione REGIONI'!B$9:B$1008,B21,'Sezione REGIONI'!K$9:K$1008)-SUMIF('Sezione REGIONI'!B$9:B$1008,B21,'Sezione REGIONI'!L$9:L$1008))+(SUMIF('Sezione IMU e trib. locali'!B$9:B$1008,B21,'Sezione IMU e trib. locali'!M$9:M$1008)-SUMIF('Sezione IMU e trib. locali'!B$9:B$1008,B21,'Sezione IMU e trib. locali'!N$9:N$1008))+(SUMIF('Sezione ACCISE'!B$9:B$1008,B21,'Sezione ACCISE'!N$9:N$1008)),0) -> 0 | AF21: =IF(B21="",0,IF(B21=B20,COUNTIF(B$9:B20,B21)+1,1)) -> 11 | AG21: 0 | AH21: 0
A22: 14 | B22: -1900 | C22: -1900-12 | Q22: =IF(M$1021=1,"",IF(P22="","",VLOOKUP(P22,Tabelle!$B$5:$F$7,5,FALSE))) ->  | R22: =IF(M$1021=1,"",IF(P22="","",VLOOKUP(P22,Tabelle!$B$5:$G$7,6,FALSE))) ->  | V22: =IF(AND(D22<>"",B22<>B21),(SUMIF(B$9:B$1008,B22,M$9:M$1008)-SUMIF(B$9:B$1008,B22,N$9:N$1008))+(SUMIF('Sezione INPS'!B$9:B$1008,B22,'Sezione INPS'!N$9:N$1008)-SUMIF('Sezione INPS'!B$9:B$1008,B22,'Sezione INPS'!O$9:O$1008))+(SUMIF('Sezione REGIONI'!B$9:B$1008,B22,'Sezione REGIONI'!K$9:K$1008)-SUMIF('Sezione REGIONI'!B$9:B$1008,B22,'Sezione REGIONI'!L$9:L$1008))+(SUMIF('Sezione IMU e trib. locali'!B$9:B$1008,B22,'Sezione IMU e trib. locali'!M$9:M$1008)-SUMIF('Sezione IMU e trib. locali'!B$9:B$1008,B22,'Sezione IMU e trib. locali'!N$9:N$1008))+(SUMIF('Sezione ACCISE'!B$9:B$1008,B22,'Sezione ACCISE'!N$9:N$1008)),0) -> 0 | AF22: =IF(B22="",0,IF(B22=B21,COUNTIF(B$9:B21,B22)+1,1)) -> 12 | AG22: 0 | AH22: 0
A23: 15 | B23: -1900 | C23: -1900-13 | Q23: =IF(M$1021=1,"",IF(P23="","",VLOOKUP(P23,Tabelle!$B$5:$F$7,5,FALSE))) ->  | R23: =IF(M$1021=1,"",IF(P23="","",VLOOKUP(P23,Tabelle!$B$5:$G$7,6,FALSE))) ->  | V23: =IF(AND(D23<>"",B23<>B22),(SUMIF(B$9:B$1008,B23,M$9:M$1008)-SUMIF(B$9:B$1008,B23,N$9:N$1008))+(SUMIF('Sezione INPS'!B$9:B$1008,B23,'Sezione INPS'!N$9:N$1008)-SUMIF('Sezione INPS'!B$9:B$1008,B23,'Sezione INPS'!O$9:O$1008))+(SUMIF('Sezione REGIONI'!B$9:B$1008,B23,'Sezione REGIONI'!K$9:K$1008)-SUMIF('Sezione REGIONI'!B$9:B$1008,B23,'Sezione REGIONI'!L$9:L$1008))+(SUMIF('Sezione IMU e trib. locali'!B$9:B$1008,B23,'Sezione IMU e trib. locali'!M$9:M$1008)-SUMIF('Sezione IMU e trib. locali'!B$9:B$1008,B23,'Sezione IMU e trib. locali'!N$9:N$1008))+(SUMIF('Sezione ACCISE'!B$9:B$1008,B23,'Sezione ACCISE'!N$9:N$1008)),0) -> 0 | AF23: =IF(B23="",0,IF(B23=B22,COUNTIF(B$9:B22,B23)+1,1)) -> 13 | AG23: 0 | AH23: 0
A24: 16 | B24: -1900 | C24: -1900-14 | Q24: =IF(M$1021=1,"",IF(P24="","",VLOOKUP(P24,Tabelle!$B$5:$F$7,5,FALSE))) ->  | R24: =IF(M$1021=1,"",IF(P24="","",VLOOKUP(P24,Tabelle!$B$5:$G$7,6,FALSE))) ->  | V24: =IF(AND(D24<>"",B24<>B23),(SUMIF(B$9:B$1008,B24,M$9:M$1008)-SUMIF(B$9:B$1008,B24,N$9:N$1008))+(SUMIF('Sezione INPS'!B$9:B$1008,B24,'Sezione INPS'!N$9:N$1008)-SUMIF('Sezione INPS'!B$9:B$1008,B24,'Sezione INPS'!O$9:O$1008))+(SUMIF('Sezione REGIONI'!B$9:B$1008,B24,'Sezione REGIONI'!K$9:K$1008)-SUMIF('Sezione REGIONI'!B$9:B$1008,B24,'Sezione REGIONI'!L$9:L$1008))+(SUMIF('Sezione IMU e trib. locali'!B$9:B$1008,B24,'Sezione IMU e trib. locali'!M$9:M$1008)-SUMIF('Sezione IMU e trib. locali'!B$9:B$1008,B24,'Sezione IMU e trib. locali'!N$9:N$1008))+(SUMIF('Sezione ACCISE'!B$9:B$1008,B24,'Sezione ACCISE'!N$9:N$1008)),0) -> 0 | AF24: =IF(B24="",0,IF(B24=B23,COUNTIF(B$9:B23,B24)+1,1)) -> 14 | AG24: 0 | AH24: 0
A25: 17 | B25: -1900 | C25: -1900-15 | Q25: =IF(M$1021=1,"",IF(P25="","",VLOOKUP(P25,Tabelle!$B$5:$F$7,5,FALSE))) ->  | R25: =IF(M$1021=1,"",IF(P25="","",VLOOKUP(P25,Tabelle!$B$5:$G$7,6,FALSE))) ->  | V25: =IF(AND(D25<>"",B25<>B24),(SUMIF(B$9:B$1008,B25,M$9:M$1008)-SUMIF(B$9:B$1008,B25,N$9:N$1008))+(SUMIF('Sezione INPS'!B$9:B$1008,B25,'Sezione INPS'!N$9:N$1008)-SUMIF('Sezione INPS'!B$9:B$1008,B25,'Sezione INPS'!O$9:O$1008))+(SUMIF('Sezione REGIONI'!B$9:B$1008,B25,'Sezione REGIONI'!K$9:K$1008)-SUMIF('Sezione REGIONI'!B$9:B$1008,B25,'Sezione REGIONI'!L$9:L$1008))+(SUMIF('Sezione IMU e trib. locali'!B$9:B$1008,B25,'Sezione IMU e trib. locali'!M$9:M$1008)-SUMIF('Sezione IMU e trib. locali'!B$9:B$1008,B25,'Sezione IMU e trib. locali'!N$9:N$1008))+(SUMIF('Sezione ACCISE'!B$9:B$1008,B25,'Sezione ACCISE'!N$9:N$1008)),0) -> 0 | AF25: =IF(B25="",0,IF(B25=B24,COUNTIF(B$9:B24,B25)+1,1)) -> 15 | AG25: 0 | AH25: 0
A26: 18 | B26: -1900 | C26: -1900-16 | Q26: =IF(M$1021=1,"",IF(P26="","",VLOOKUP(P26,Tabelle!$B$5:$F$7,5,FALSE))) ->  | R26: =IF(M$1021=1,"",IF(P26="","",VLOOKUP(P26,Tabelle!$B$5:$G$7,6,FALSE))) ->  | V26: =IF(AND(D26<>"",B26<>B25),(SUMIF(B$9:B$1008,B26,M$9:M$1008)-SUMIF(B$9:B$1008,B26,N$9:N$1008))+(SUMIF('Sezione INPS'!B$9:B$1008,B26,'Sezione INPS'!N$9:N$1008)-SUMIF('Sezione INPS'!B$9:B$1008,B26,'Sezione INPS'!O$9:O$1008))+(SUMIF('Sezione REGIONI'!B$9:B$1008,B26,'Sezione REGIONI'!K$9:K$1008)-SUMIF('Sezione REGIONI'!B$9:B$1008,B26,'Sezione REGIONI'!L$9:L$1008))+(SUMIF('Sezione IMU e trib. locali'!B$9:B$1008,B26,'Sezione IMU e trib. locali'!M$9:M$1008)-SUMIF('Sezione IMU e trib. locali'!B$9:B$1008,B26,'Sezione IMU e trib. locali'!N$9:N$1008))+(SUMIF('Sezione ACCISE'!B$9:B$1008,B26,'Sezione ACCISE'!N$9:N$1008)),0) -> 0 | AF26: =IF(B26="",0,IF(B26=B25,COUNTIF(B$9:B25,B26)+1,1)) -> 16 | AG26: 0 | AH26: 0
A27: 19 | B27: -1900 | C27: -1900-17 | Q27: =IF(M$1021=1,"",IF(P27="","",VLOOKUP(P27,Tabelle!$B$5:$F$7,5,FALSE))) ->  | R27: =IF(M$1021=1,"",IF(P27="","",VLOOKUP(P27,Tabelle!$B$5:$G$7,6,FALSE))) ->  | V27: =IF(AND(D27<>"",B27<>B26),(SUMIF(B$9:B$1008,B27,M$9:M$1008)-SUMIF(B$9:B$1008,B27,N$9:N$1008))+(SUMIF('Sezione INPS'!B$9:B$1008,B27,'Sezione INPS'!N$9:N$1008)-SUMIF('Sezione INPS'!B$9:B$1008,B27,'Sezione INPS'!O$9:O$1008))+(SUMIF('Sezione REGIONI'!B$9:B$1008,B27,'Sezione REGIONI'!K$9:K$1008)-SUMIF('Sezione REGIONI'!B$9:B$1008,B27,'Sezione REGIONI'!L$9:L$1008))+(SUMIF('Sezione IMU e trib. locali'!B$9:B$1008,B27,'Sezione IMU e trib. locali'!M$9:M$1008)-SUMIF('Sezione IMU e trib. locali'!B$9:B$1008,B27,'Sezione IMU e trib. locali'!N$9:N$1008))+(SUMIF('Sezione ACCISE'!B$9:B$1008,B27,'Sezione ACCISE'!N$9:N$1008)),0) -> 0 | AF27: =IF(B27="",0,IF(B27=B26,COUNTIF(B$9:B26,B27)+1,1)) -> 17 | AG27: 0 | AH27: 0
A28: 20 | B28: -1900 | C28: -1900-18 | Q28: =IF(M$1021=1,"",IF(P28="","",VLOOKUP(P28,Tabelle!$B$5:$F$7,5,FALSE))) ->  | R28: =IF(M$1021=1,"",IF(P28="","",VLOOKUP(P28,Tabelle!$B$5:$G$7,6,FALSE))) ->  | V28: =IF(AND(D28<>"",B28<>B27),(SUMIF(B$9:B$1008,B28,M$9:M$1008)-SUMIF(B$9:B$1008,B28,N$9:N$1008))+(SUMIF('Sezione INPS'!B$9:B$1008,B28,'Sezione INPS'!N$9:N$1008)-SUMIF('Sezione INPS'!B$9:B$1008,B28,'Sezione INPS'!O$9:O$1008))+(SUMIF('Sezione REGIONI'!B$9:B$1008,B28,'Sezione REGIONI'!K$9:K$1008)-SUMIF('Sezione REGIONI'!B$9:B$1008,B28,'Sezione REGIONI'!L$9:L$1008))+(SUMIF('Sezione IMU e trib. locali'!B$9:B$1008,B28,'Sezione IMU e trib. locali'!M$9:M$1008)-SUMIF('Sezione IMU e trib. locali'!B$9:B$1008,B28,'Sezione IMU e trib. locali'!N$9:N$1008))+(SUMIF('Sezione ACCISE'!B$9:B$1008,B28,'Sezione ACCISE'!N$9:N$1008)),0) -> 0 | AF28: =IF(B28="",0,IF(B28=B27,COUNTIF(B$9:B27,B28)+1,1)) -> 18 | AG28: 0 | AH28: 0
A29: 21 | B29: -1900 | C29: -1900-19 | Q29: =IF(M$1021=1,"",IF(P29="","",VLOOKUP(P29,Tabelle!$B$5:$F$7,5,FALSE))) ->  | R29: =IF(M$1021=1,"",IF(P29="","",VLOOKUP(P29,Tabelle!$B$5:$G$7,6,FALSE))) ->  | V29: =IF(AND(D29<>"",B29<>B28),(SUMIF(B$9:B$1008,B29,M$9:M$1008)-SUMIF(B$9:B$1008,B29,N$9:N$1008))+(SUMIF('Sezione INPS'!B$9:B$1008,B29,'Sezione INPS'!N$9:N$1008)-SUMIF('Sezione INPS'!B$9:B$1008,B29,'Sezione INPS'!O$9:O$1008))+(SUMIF('Sezione REGIONI'!B$9:B$1008,B29,'Sezione REGIONI'!K$9:K$1008)-SUMIF('Sezione REGIONI'!B$9:B$1008,B29,'Sezione REGIONI'!L$9:L$1008))+(SUMIF('Sezione IMU e trib. locali'!B$9:B$1008,B29,'Sezione IMU e trib. locali'!M$9:M$1008)-SUMIF('Sezione IMU e trib. locali'!B$9:B$1008,B29,'Sezione IMU e trib. locali'!N$9:N$1008))+(SUMIF('Sezione ACCISE'!B$9:B$1008,B29,'Sezione ACCISE'!N$9:N$1008)),0) -> 0 | AF29: =IF(B29="",0,IF(B29=B28,COUNTIF(B$9:B28,B29)+1,1)) -> 19 | AG29: 0 | AH29: 0
A30: 22 | B30: -1900 | C30: -1900-20 | Q30: =IF(M$1021=1,"",IF(P30="","",VLOOKUP(P30,Tabelle!$B$5:$F$7,5,FALSE))) ->  | R30: =IF(M$1021=1,"",IF(P30="","",VLOOKUP(P30,Tabelle!$B$5:$G$7,6,FALSE))) ->  | V30: =IF(AND(D30<>"",B30<>B29),(SUMIF(B$9:B$1008,B30,M$9:M$1008)-SUMIF(B$9:B$1008,B30,N$9:N$1008))+(SUMIF('Sezione INPS'!B$9:B$1008,B30,'Sezione INPS'!N$9:N$1008)-SUMIF('Sezione INPS'!B$9:B$1008,B30,'Sezione INPS'!O$9:O$1008))+(SUMIF('Sezione REGIONI'!B$9:B$1008,B30,'Sezione REGIONI'!K$9:K$1008)-SUMIF('Sezione REGIONI'!B$9:B$1008,B30,'Sezione REGIONI'!L$9:L$1008))+(SUMIF('Sezione IMU e trib. locali'!B$9:B$1008,B30,'Sezione IMU e trib. locali'!M$9:M$1008)-SUMIF('Sezione IMU e trib. locali'!B$9:B$1008,B30,'Sezione IMU e trib. locali'!N$9:N$1008))+(SUMIF('Sezione ACCISE'!B$9:B$1008,B30,'Sezione ACCISE'!N$9:N$1008)),0) -> 0 | AF30: =IF(B30="",0,IF(B30=B29,COUNTIF(B$9:B29,B30)+1,1)) -> 20 | AG30: 0 | AH30: 0
A31: 23 | B31: -1900 | C31: -1900-21 | Q31: =IF(M$1021=1,"",IF(P31="","",VLOOKUP(P31,Tabelle!$B$5:$F$7,5,FALSE))) ->  | R31: =IF(M$1021=1,"",IF(P31="","",VLOOKUP(P31,Tabelle!$B$5:$G$7,6,FALSE))) ->  | V31: =IF(AND(D31<>"",B31<>B30),(SUMIF(B$9:B$1008,B31,M$9:M$1008)-SUMIF(B$9:B$1008,B31,N$9:N$1008))+(SUMIF('Sezione INPS'!B$9:B$1008,B31,'Sezione INPS'!N$9:N$1008)-SUMIF('Sezione INPS'!B$9:B$1008,B31,'Sezione INPS'!O$9:O$1008))+(SUMIF('Sezione REGIONI'!B$9:B$1008,B31,'Sezione REGIONI'!K$9:K$1008)-SUMIF('Sezione REGIONI'!B$9:B$1008,B31,'Sezione REGIONI'!L$9:L$1008))+(SUMIF('Sezione IMU e trib. locali'!B$9:B$1008,B31,'Sezione IMU e trib. locali'!M$9:M$1008)-SUMIF('Sezione IMU e trib. locali'!B$9:B$1008,B31,'Sezione IMU e trib. locali'!N$9:N$1008))+(SUMIF('Sezione ACCISE'!B$9:B$1008,B31,'Sezione ACCISE'!N$9:N$1008)),0) -> 0 | AF31: =IF(B31="",0,IF(B31=B30,COUNTIF(B$9:B30,B31)+1,1)) -> 21 | AG31: 0 | AH31: 0
A32: 24 | B32: -1900 | C32: -1900-22 | Q32: =IF(M$1021=1,"",IF(P32="","",VLOOKUP(P32,Tabelle!$B$5:$F$7,5,FALSE))) ->  | R32: =IF(M$1021=1,"",IF(P32="","",VLOOKUP(P32,Tabelle!$B$5:$G$7,6,FALSE))) ->  | V32: =IF(AND(D32<>"",B32<>B31),(SUMIF(B$9:B$1008,B32,M$9:M$1008)-SUMIF(B$9:B$1008,B32,N$9:N$1008))+(SUMIF('Sezione INPS'!B$9:B$1008,B32,'Sezione INPS'!N$9:N$1008)-SUMIF('Sezione INPS'!B$9:B$1008,B32,'Sezione INPS'!O$9:O$1008))+(SUMIF('Sezione REGIONI'!B$9:B$1008,B32,'Sezione REGIONI'!K$9:K$1008)-SUMIF('Sezione REGIONI'!B$9:B$1008,B32,'Sezione REGIONI'!L$9:L$1008))+(SUMIF('Sezione IMU e trib. locali'!B$9:B$1008,B32,'Sezione IMU e trib. locali'!M$9:M$1008)-SUMIF('Sezione IMU e trib. locali'!B$9:B$1008,B32,'Sezione IMU e trib. locali'!N$9:N$1008))+(SUMIF('Sezione ACCISE'!B$9:B$1008,B32,'Sezione ACCISE'!N$9:N$1008)),0) -> 0 | AF32: =IF(B32="",0,IF(B32=B31,COUNTIF(B$9:B31,B32)+1,1)) -> 22 | AG32: 0 | AH32: 0
A33: 25 | B33: -1900 | C33: -1900-23 | Q33: =IF(M$1021=1,"",IF(P33="","",VLOOKUP(P33,Tabelle!$B$5:$F$7,5,FALSE))) ->  | R33: =IF(M$1021=1,"",IF(P33="","",VLOOKUP(P33,Tabelle!$B$5:$G$7,6,FALSE))) ->  | V33: =IF(AND(D33<>"",B33<>B32),(SUMIF(B$9:B$1008,B33,M$9:M$1008)-SUMIF(B$9:B$1008,B33,N$9:N$1008))+(SUMIF('Sezione INPS'!B$9:B$1008,B33,'Sezione INPS'!N$9:N$1008)-SUMIF('Sezione INPS'!B$9:B$1008,B33,'Sezione INPS'!O$9:O$1008))+(SUMIF('Sezione REGIONI'!B$9:B$1008,B33,'Sezione REGIONI'!K$9:K$1008)-SUMIF('Sezione REGIONI'!B$9:B$1008,B33,'Sezione REGIONI'!L$9:L$1008))+(SUMIF('Sezione IMU e trib. locali'!B$9:B$1008,B33,'Sezione IMU e trib. locali'!M$9:M$1008)-SUMIF('Sezione IMU e trib. locali'!B$9:B$1008,B33,'Sezione IMU e trib. locali'!N$9:N$1008))+(SUMIF('Sezione ACCISE'!B$9:B$1008,B33,'Sezione ACCISE'!N$9:N$1008)),0) -> 0 | AF33: =IF(B33="",0,IF(B33=B32,COUNTIF(B$9:B32,B33)+1,1)) -> 23 | AG33: 0 | AH33: 0
A34: 26 | B34: -1900 | C34: -1900-24 | Q34: =IF(M$1021=1,"",IF(P34="","",VLOOKUP(P34,Tabelle!$B$5:$F$7,5,FALSE))) ->  | R34: =IF(M$1021=1,"",IF(P34="","",VLOOKUP(P34,Tabelle!$B$5:$G$7,6,FALSE))) ->  | V34: =IF(AND(D34<>"",B34<>B33),(SUMIF(B$9:B$1008,B34,M$9:M$1008)-SUMIF(B$9:B$1008,B34,N$9:N$1008))+(SUMIF('Sezione INPS'!B$9:B$1008,B34,'Sezione INPS'!N$9:N$1008)-SUMIF('Sezione INPS'!B$9:B$1008,B34,'Sezione INPS'!O$9:O$1008))+(SUMIF('Sezione REGIONI'!B$9:B$1008,B34,'Sezione REGIONI'!K$9:K$1008)-SUMIF('Sezione REGIONI'!B$9:B$1008,B34,'Sezione REGIONI'!L$9:L$1008))+(SUMIF('Sezione IMU e trib. locali'!B$9:B$1008,B34,'Sezione IMU e trib. locali'!M$9:M$1008)-SUMIF('Sezione IMU e trib. locali'!B$9:B$1008,B34,'Sezione IMU e trib. locali'!N$9:N$1008))+(SUMIF('Sezione ACCISE'!B$9:B$1008,B34,'Sezione ACCISE'!N$9:N$1008)),0) -> 0 | AF34: =IF(B34="",0,IF(B34=B33,COUNTIF(B$9:B33,B34)+1,1)) -> 24 | AG34: 0 | AH34: 0
A35: 27 | B35: -1900 | C35: -1900-25 | Q35: =IF(M$1021=1,"",IF(P35="","",VLOOKUP(P35,Tabelle!$B$5:$F$7,5,FALSE))) ->  | R35: =IF(M$1021=1,"",IF(P35="","",VLOOKUP(P35,Tabelle!$B$5:$G$7,6,FALSE))) ->  | V35: =IF(AND(D35<>"",B35<>B34),(SUMIF(B$9:B$1008,B35,M$9:M$1008)-SUMIF(B$9:B$1008,B35,N$9:N$1008))+(SUMIF('Sezione INPS'!B$9:B$1008,B35,'Sezione INPS'!N$9:N$1008)-SUMIF('Sezione INPS'!B$9:B$1008,B35,'Sezione INPS'!O$9:O$1008))+(SUMIF('Sezione REGIONI'!B$9:B$1008,B35,'Sezione REGIONI'!K$9:K$1008)-SUMIF('Sezione REGIONI'!B$9:B$1008,B35,'Sezione REGIONI'!L$9:L$1008))+(SUMIF('Sezione IMU e trib. locali'!B$9:B$1008,B35,'Sezione IMU e trib. locali'!M$9:M$1008)-SUMIF('Sezione IMU e trib. locali'!B$9:B$1008,B35,'Sezione IMU e trib. locali'!N$9:N$1008))+(SUMIF('Sezione ACCISE'!B$9:B$1008,B35,'Sezione ACCISE'!N$9:N$1008)),0) -> 0 | AF35: =IF(B35="",0,IF(B35=B34,COUNTIF(B$9:B34,B35)+1,1)) -> 25 | AG35: 0 | AH35: 0
A36: 28 | B36: -1900 | C36: -1900-26 | Q36: =IF(M$1021=1,"",IF(P36="","",VLOOKUP(P36,Tabelle!$B$5:$F$7,5,FALSE))) ->  | R36: =IF(M$1021=1,"",IF(P36="","",VLOOKUP(P36,Tabelle!$B$5:$G$7,6,FALSE))) ->  | V36: =IF(AND(D36<>"",B36<>B35),(SUMIF(B$9:B$1008,B36,M$9:M$1008)-SUMIF(B$9:B$1008,B36,N$9:N$1008))+(SUMIF('Sezione INPS'!B$9:B$1008,B36,'Sezione INPS'!N$9:N$1008)-SUMIF('Sezione INPS'!B$9:B$1008,B36,'Sezione INPS'!O$9:O$1008))+(SUMIF('Sezione REGIONI'!B$9:B$1008,B36,'Sezione REGIONI'!K$9:K$1008)-SUMIF('Sezione REGIONI'!B$9:B$1008,B36,'Sezione REGIONI'!L$9:L$1008))+(SUMIF('Sezione IMU e trib. locali'!B$9:B$1008,B36,'Sezione IMU e trib. locali'!M$9:M$1008)-SUMIF('Sezione IMU e trib. locali'!B$9:B$1008,B36,'Sezione IMU e trib. locali'!N$9:N$1008))+(SUMIF('Sezione ACCISE'!B$9:B$1008,B36,'Sezione ACCISE'!N$9:N$1008)),0) -> 0 | AF36: =IF(B36="",0,IF(B36=B35,COUNTIF(B$9:B35,B36)+1,1)) -> 26 | AG36: 0 | AH36: 0
A37: 29 | B37: -1900 | C37: -1900-27 | Q37: =IF(M$1021=1,"",IF(P37="","",VLOOKUP(P37,Tabelle!$B$5:$F$7,5,FALSE))) ->  | R37: =IF(M$1021=1,"",IF(P37="","",VLOOKUP(P37,Tabelle!$B$5:$G$7,6,FALSE))) ->  | V37: =IF(AND(D37<>"",B37<>B36),(SUMIF(B$9:B$1008,B37,M$9:M$1008)-SUMIF(B$9:B$1008,B37,N$9:N$1008))+(SUMIF('Sezione INPS'!B$9:B$1008,B37,'Sezione INPS'!N$9:N$1008)-SUMIF('Sezione INPS'!B$9:B$1008,B37,'Sezione INPS'!O$9:O$1008))+(SUMIF('Sezione REGIONI'!B$9:B$1008,B37,'Sezione REGIONI'!K$9:K$1008)-SUMIF('Sezione REGIONI'!B$9:B$1008,B37,'Sezione REGIONI'!L$9:L$1008))+(SUMIF('Sezione IMU e trib. locali'!B$9:B$1008,B37,'Sezione IMU e trib. locali'!M$9:M$1008)-SUMIF('Sezione IMU e trib. locali'!B$9:B$1008,B37,'Sezione IMU e trib. locali'!N$9:N$1008))+(SUMIF('Sezione ACCISE'!B$9:B$1008,B37,'Sezione ACCISE'!N$9:N$1008)),0) -> 0 | AF37: =IF(B37="",0,IF(B37=B36,COUNTIF(B$9:B36,B37)+1,1)) -> 27 | AG37: 0 | AH37: 0
A38: 30 | B38: -1900 | C38: -1900-28 | Q38: =IF(M$1021=1,"",IF(P38="","",VLOOKUP(P38,Tabelle!$B$5:$F$7,5,FALSE))) ->  | R38: =IF(M$1021=1,"",IF(P38="","",VLOOKUP(P38,Tabelle!$B$5:$G$7,6,FALSE))) ->  | V38: =IF(AND(D38<>"",B38<>B37),(SUMIF(B$9:B$1008,B38,M$9:M$1008)-SUMIF(B$9:B$1008,B38,N$9:N$1008))+(SUMIF('Sezione INPS'!B$9:B$1008,B38,'Sezione INPS'!N$9:N$1008)-SUMIF('Sezione INPS'!B$9:B$1008,B38,'Sezione INPS'!O$9:O$1008))+(SUMIF('Sezione REGIONI'!B$9:B$1008,B38,'Sezione REGIONI'!K$9:K$1008)-SUMIF('Sezione REGIONI'!B$9:B$1008,B38,'Sezione REGIONI'!L$9:L$1008))+(SUMIF('Sezione IMU e trib. locali'!B$9:B$1008,B38,'Sezione IMU e trib. locali'!M$9:M$1008)-SUMIF('Sezione IMU e trib. locali'!B$9:B$1008,B38,'Sezione IMU e trib. locali'!N$9:N$1008))+(SUMIF('Sezione ACCISE'!B$9:B$1008,B38,'Sezione ACCISE'!N$9:N$1008)),0) -> 0 | AF38: =IF(B38="",0,IF(B38=B37,COUNTIF(B$9:B37,B38)+1,1)) -> 28 | AG38: 0 | AH38: 0
A39: 31 | B39: -1900 | C39: -1900-29 | Q39: =IF(M$1021=1,"",IF(P39="","",VLOOKUP(P39,Tabelle!$B$5:$F$7,5,FALSE))) ->  | R39: =IF(M$1021=1,"",IF(P39="","",VLOOKUP(P39,Tabelle!$B$5:$G$7,6,FALSE))) ->  | V39: =IF(AND(D39<>"",B39<>B38),(SUMIF(B$9:B$1008,B39,M$9:M$1008)-SUMIF(B$9:B$1008,B39,N$9:N$1008))+(SUMIF('Sezione INPS'!B$9:B$1008,B39,'Sezione INPS'!N$9:N$1008)-SUMIF('Sezione INPS'!B$9:B$1008,B39,'Sezione INPS'!O$9:O$1008))+(SUMIF('Sezione REGIONI'!B$9:B$1008,B39,'Sezione REGIONI'!K$9:K$1008)-SUMIF('Sezione REGIONI'!B$9:B$1008,B39,'Sezione REGIONI'!L$9:L$1008))+(SUMIF('Sezione IMU e trib. locali'!B$9:B$1008,B39,'Sezione IMU e trib. locali'!M$9:M$1008)-SUMIF('Sezione IMU e trib. locali'!B$9:B$1008,B39,'Sezione IMU e trib. locali'!N$9:N$1008))+(SUMIF('Sezione ACCISE'!B$9:B$1008,B39,'Sezione ACCISE'!N$9:N$1008)),0) -> 0 | AF39: =IF(B39="",0,IF(B39=B38,COUNTIF(B$9:B38,B39)+1,1)) -> 29 | AG39: 0 | AH39: 0
A40: 32 | B40: -1900 | C40: -1900-30 | Q40: =IF(M$1021=1,"",IF(P40="","",VLOOKUP(P40,Tabelle!$B$5:$F$7,5,FALSE))) ->  | R40: =IF(M$1021=1,"",IF(P40="","",VLOOKUP(P40,Tabelle!$B$5:$G$7,6,FALSE))) ->  | V40: =IF(AND(D40<>"",B40<>B39),(SUMIF(B$9:B$1008,B40,M$9:M$1008)-SUMIF(B$9:B$1008,B40,N$9:N$1008))+(SUMIF('Sezione INPS'!B$9:B$1008,B40,'Sezione INPS'!N$9:N$1008)-SUMIF('Sezione INPS'!B$9:B$1008,B40,'Sezione INPS'!O$9:O$1008))+(SUMIF('Sezione REGIONI'!B$9:B$1008,B40,'Sezione REGIONI'!K$9:K$1008)-SUMIF('Sezione REGIONI'!B$9:B$1008,B40,'Sezione REGIONI'!L$9:L$1008))+(SUMIF('Sezione IMU e trib. locali'!B$9:B$1008,B40,'Sezione IMU e trib. locali'!M$9:M$1008)-SUMIF('Sezione IMU e trib. locali'!B$9:B$1008,B40,'Sezione IMU e trib. locali'!N$9:N$1008))+(SUMIF('Sezione ACCISE'!B$9:B$1008,B40,'Sezione ACCISE'!N$9:N$1008)),0) -> 0 | AF40: =IF(B40="",0,IF(B40=B39,COUNTIF(B$9:B39,B40)+1,1)) -> 30 | AG40: 0 | AH40: 0
A41: 33 | B41: -1900 | C41: -1900-31 | Q41: =IF(M$1021=1,"",IF(P41="","",VLOOKUP(P41,Tabelle!$B$5:$F$7,5,FALSE))) ->  | R41: =IF(M$1021=1,"",IF(P41="","",VLOOKUP(P41,Tabelle!$B$5:$G$7,6,FALSE))) ->  | V41: =IF(AND(D41<>"",B41<>B40),(SUMIF(B$9:B$1008,B41,M$9:M$1008)-SUMIF(B$9:B$1008,B41,N$9:N$1008))+(SUMIF('Sezione INPS'!B$9:B$1008,B41,'Sezione INPS'!N$9:N$1008)-SUMIF('Sezione INPS'!B$9:B$1008,B41,'Sezione INPS'!O$9:O$1008))+(SUMIF('Sezione REGIONI'!B$9:B$1008,B41,'Sezione REGIONI'!K$9:K$1008)-SUMIF('Sezione REGIONI'!B$9:B$1008,B41,'Sezione REGIONI'!L$9:L$1008))+(SUMIF('Sezione IMU e trib. locali'!B$9:B$1008,B41,'Sezione IMU e trib. locali'!M$9:M$1008)-SUMIF('Sezione IMU e trib. locali'!B$9:B$1008,B41,'Sezione IMU e trib. locali'!N$9:N$1008))+(SUMIF('Sezione ACCISE'!B$9:B$1008,B41,'Sezione ACCISE'!N$9:N$1008)),0) -> 0 | AF41: =IF(B41="",0,IF(B41=B40,COUNTIF(B$9:B40,B41)+1,1)) -> 31 | AG41: 0 | AH41: 0
A42: 34 | B42: -1900 | C42: -1900-32 | Q42: =IF(M$1021=1,"",IF(P42="","",VLOOKUP(P42,Tabelle!$B$5:$F$7,5,FALSE))) ->  | R42: =IF(M$1021=1,"",IF(P42="","",VLOOKUP(P42,Tabelle!$B$5:$G$7,6,FALSE))) ->  | V42: =IF(AND(D42<>"",B42<>B41),(SUMIF(B$9:B$1008,B42,M$9:M$1008)-SUMIF(B$9:B$1008,B42,N$9:N$1008))+(SUMIF('Sezione INPS'!B$9:B$1008,B42,'Sezione INPS'!N$9:N$1008)-SUMIF('Sezione INPS'!B$9:B$1008,B42,'Sezione INPS'!O$9:O$1008))+(SUMIF('Sezione REGIONI'!B$9:B$1008,B42,'Sezione REGIONI'!K$9:K$1008)-SUMIF('Sezione REGIONI'!B$9:B$1008,B42,'Sezione REGIONI'!L$9:L$1008))+(SUMIF('Sezione IMU e trib. locali'!B$9:B$1008,B42,'Sezione IMU e trib. locali'!M$9:M$1008)-SUMIF('Sezione IMU e trib. locali'!B$9:B$1008,B42,'Sezione IMU e trib. locali'!N$9:N$1008))+(SUMIF('Sezione ACCISE'!B$9:B$1008,B42,'Sezione ACCISE'!N$9:N$1008)),0) -> 0 | AF42: =IF(B42="",0,IF(B42=B41,COUNTIF(B$9:B41,B42)+1,1)) -> 32 | AG42: 0 | AH42: 0
A43: 35 | B43: -1900 | C43: -1900-33 | Q43: =IF(M$1021=1,"",IF(P43="","",VLOOKUP(P43,Tabelle!$B$5:$F$7,5,FALSE))) ->  | R43: =IF(M$1021=1,"",IF(P43="","",VLOOKUP(P43,Tabelle!$B$5:$G$7,6,FALSE))) ->  | V43: =IF(AND(D43<>"",B43<>B42),(SUMIF(B$9:B$1008,B43,M$9:M$1008)-SUMIF(B$9:B$1008,B43,N$9:N$1008))+(SUMIF('Sezione INPS'!B$9:B$1008,B43,'Sezione INPS'!N$9:N$1008)-SUMIF('Sezione INPS'!B$9:B$1008,B43,'Sezione INPS'!O$9:O$1008))+(SUMIF('Sezione REGIONI'!B$9:B$1008,B43,'Sezione REGIONI'!K$9:K$1008)-SUMIF('Sezione REGIONI'!B$9:B$1008,B43,'Sezione REGIONI'!L$9:L$1008))+(SUMIF('Sezione IMU e trib. locali'!B$9:B$1008,B43,'Sezione IMU e trib. locali'!M$9:M$1008)-SUMIF('Sezione IMU e trib. locali'!B$9:B$1008,B43,'Sezione IMU e trib. locali'!N$9:N$1008))+(SUMIF('Sezione ACCISE'!B$9:B$1008,B43,'Sezione ACCISE'!N$9:N$1008)),0) -> 0 | AF43: =IF(B43="",0,IF(B43=B42,COUNTIF(B$9:B42,B43)+1,1)) -> 33 | AG43: 0 | AH43: 0
A44: 36 | B44: -1900 | C44: -1900-34 | Q44: =IF(M$1021=1,"",IF(P44="","",VLOOKUP(P44,Tabelle!$B$5:$F$7,5,FALSE))) ->  | R44: =IF(M$1021=1,"",IF(P44="","",VLOOKUP(P44,Tabelle!$B$5:$G$7,6,FALSE))) ->  | V44: =IF(AND(D44<>"",B44<>B43),(SUMIF(B$9:B$1008,B44,M$9:M$1008)-SUMIF(B$9:B$1008,B44,N$9:N$1008))+(SUMIF('Sezione INPS'!B$9:B$1008,B44,'Sezione INPS'!N$9:N$1008)-SUMIF('Sezione INPS'!B$9:B$1008,B44,'Sezione INPS'!O$9:O$1008))+(SUMIF('Sezione REGIONI'!B$9:B$1008,B44,'Sezione REGIONI'!K$9:K$1008)-SUMIF('Sezione REGIONI'!B$9:B$1008,B44,'Sezione REGIONI'!L$9:L$1008))+(SUMIF('Sezione IMU e trib. locali'!B$9:B$1008,B44,'Sezione IMU e trib. locali'!M$9:M$1008)-SUMIF('Sezione IMU e trib. locali'!B$9:B$1008,B44,'Sezione IMU e trib. locali'!N$9:N$1008))+(SUMIF('Sezione ACCISE'!B$9:B$1008,B44,'Sezione ACCISE'!N$9:N$1008)),0) -> 0 | AF44: =IF(B44="",0,IF(B44=B43,COUNTIF(B$9:B43,B44)+1,1)) -> 34 | AG44: 0 | AH44: 0
A45: 37 | B45: -1900 | C45: -1900-35 | Q45: =IF(M$1021=1,"",IF(P45="","",VLOOKUP(P45,Tabelle!$B$5:$F$7,5,FALSE))) ->  | R45: =IF(M$1021=1,"",IF(P45="","",VLOOKUP(P45,Tabelle!$B$5:$G$7,6,FALSE))) ->  | V45: =IF(AND(D45<>"",B45<>B44),(SUMIF(B$9:B$1008,B45,M$9:M$1008)-SUMIF(B$9:B$1008,B45,N$9:N$1008))+(SUMIF('Sezione INPS'!B$9:B$1008,B45,'Sezione INPS'!N$9:N$1008)-SUMIF('Sezione INPS'!B$9:B$1008,B45,'Sezione INPS'!O$9:O$1008))+(SUMIF('Sezione REGIONI'!B$9:B$1008,B45,'Sezione REGIONI'!K$9:K$1008)-SUMIF('Sezione REGIONI'!B$9:B$1008,B45,'Sezione REGIONI'!L$9:L$1008))+(SUMIF('Sezione IMU e trib. locali'!B$9:B$1008,B45,'Sezione IMU e trib. locali'!M$9:M$1008)-SUMIF('Sezione IMU e trib. locali'!B$9:B$1008,B45,'Sezione IMU e trib. locali'!N$9:N$1008))+(SUMIF('Sezione ACCISE'!B$9:B$1008,B45,'Sezione ACCISE'!N$9:N$1008)),0) -> 0 | AF45: =IF(B45="",0,IF(B45=B44,COUNTIF(B$9:B44,B45)+1,1)) -> 35 | AG45: 0 | AH45: 0
A46: 38 | B46: -1900 | C46: -1900-36 | Q46: =IF(M$1021=1,"",IF(P46="","",VLOOKUP(P46,Tabelle!$B$5:$F$7,5,FALSE))) ->  | R46: =IF(M$1021=1,"",IF(P46="","",VLOOKUP(P46,Tabelle!$B$5:$G$7,6,FALSE))) ->  | V46: =IF(AND(D46<>"",B46<>B45),(SUMIF(B$9:B$1008,B46,M$9:M$1008)-SUMIF(B$9:B$1008,B46,N$9:N$1008))+(SUMIF('Sezione INPS'!B$9:B$1008,B46,'Sezione INPS'!N$9:N$1008)-SUMIF('Sezione INPS'!B$9:B$1008,B46,'Sezione INPS'!O$9:O$1008))+(SUMIF('Sezione REGIONI'!B$9:B$1008,B46,'Sezione REGIONI'!K$9:K$1008)-SUMIF('Sezione REGIONI'!B$9:B$1008,B46,'Sezione REGIONI'!L$9:L$1008))+(SUMIF('Sezione IMU e trib. locali'!B$9:B$1008,B46,'Sezione IMU e trib. locali'!M$9:M$1008)-SUMIF('Sezione IMU e trib. locali'!B$9:B$1008,B46,'Sezione IMU e trib. locali'!N$9:N$1008))+(SUMIF('Sezione ACCISE'!B$9:B$1008,B46,'Sezione ACCISE'!N$9:N$1008)),0) -> 0 | AF46: =IF(B46="",0,IF(B46=B45,COUNTIF(B$9:B45,B46)+1,1)) -> 36 | AG46: 0 | AH46: 0
A47: 39 | B47: -1900 | C47: -1900-37 | Q47: =IF(M$1021=1,"",IF(P47="","",VLOOKUP(P47,Tabelle!$B$5:$F$7,5,FALSE))) ->  | R47: =IF(M$1021=1,"",IF(P47="","",VLOOKUP(P47,Tabelle!$B$5:$G$7,6,FALSE))) ->  | V47: =IF(AND(D47<>"",B47<>B46),(SUMIF(B$9:B$1008,B47,M$9:M$1008)-SUMIF(B$9:B$1008,B47,N$9:N$1008))+(SUMIF('Sezione INPS'!B$9:B$1008,B47,'Sezione INPS'!N$9:N$1008)-SUMIF('Sezione INPS'!B$9:B$1008,B47,'Sezione INPS'!O$9:O$1008))+(SUMIF('Sezione REGIONI'!B$9:B$1008,B47,'Sezione REGIONI'!K$9:K$1008)-SUMIF('Sezione REGIONI'!B$9:B$1008,B47,'Sezione REGIONI'!L$9:L$1008))+(SUMIF('Sezione IMU e trib. locali'!B$9:B$1008,B47,'Sezione IMU e trib. locali'!M$9:M$1008)-SUMIF('Sezione IMU e trib. locali'!B$9:B$1008,B47,'Sezione IMU e trib. locali'!N$9:N$1008))+(SUMIF('Sezione ACCISE'!B$9:B$1008,B47,'Sezione ACCISE'!N$9:N$1008)),0) -> 0 | AF47: =IF(B47="",0,IF(B47=B46,COUNTIF(B$9:B46,B47)+1,1)) -> 37 | AG47: 0 | AH47: 0
A48: 40 | B48: -1900 | C48: -1900-38 | Q48: =IF(M$1021=1,"",IF(P48="","",VLOOKUP(P48,Tabelle!$B$5:$F$7,5,FALSE))) ->  | R48: =IF(M$1021=1,"",IF(P48="","",VLOOKUP(P48,Tabelle!$B$5:$G$7,6,FALSE))) ->  | V48: =IF(AND(D48<>"",B48<>B47),(SUMIF(B$9:B$1008,B48,M$9:M$1008)-SUMIF(B$9:B$1008,B48,N$9:N$1008))+(SUMIF('Sezione INPS'!B$9:B$1008,B48,'Sezione INPS'!N$9:N$1008)-SUMIF('Sezione INPS'!B$9:B$1008,B48,'Sezione INPS'!O$9:O$1008))+(SUMIF('Sezione REGIONI'!B$9:B$1008,B48,'Sezione REGIONI'!K$9:K$1008)-SUMIF('Sezione REGIONI'!B$9:B$1008,B48,'Sezione REGIONI'!L$9:L$1008))+(SUMIF('Sezione IMU e trib. locali'!B$9:B$1008,B48,'Sezione IMU e trib. locali'!M$9:M$1008)-SUMIF('Sezione IMU e trib. locali'!B$9:B$1008,B48,'Sezione IMU e trib. locali'!N$9:N$1008))+(SUMIF('Sezione ACCISE'!B$9:B$1008,B48,'Sezione ACCISE'!N$9:N$1008)),0) -> 0 | AF48: =IF(B48="",0,IF(B48=B47,COUNTIF(B$9:B47,B48)+1,1)) -> 38 | AG48: 0 | AH48: 0
A49: 41 | B49: -1900 | C49: -1900-39 | Q49: =IF(M$1021=1,"",IF(P49="","",VLOOKUP(P49,Tabelle!$B$5:$F$7,5,FALSE))) ->  | R49: =IF(M$1021=1,"",IF(P49="","",VLOOKUP(P49,Tabelle!$B$5:$G$7,6,FALSE))) ->  | V49: =IF(AND(D49<>"",B49<>B48),(SUMIF(B$9:B$1008,B49,M$9:M$1008)-SUMIF(B$9:B$1008,B49,N$9:N$1008))+(SUMIF('Sezione INPS'!B$9:B$1008,B49,'Sezione INPS'!N$9:N$1008)-SUMIF('Sezione INPS'!B$9:B$1008,B49,'Sezione INPS'!O$9:O$1008))+(SUMIF('Sezione REGIONI'!B$9:B$1008,B49,'Sezione REGIONI'!K$9:K$1008)-SUMIF('Sezione REGIONI'!B$9:B$1008,B49,'Sezione REGIONI'!L$9:L$1008))+(SUMIF('Sezione IMU e trib. locali'!B$9:B$1008,B49,'Sezione IMU e trib. locali'!M$9:M$1008)-SUMIF('Sezione IMU e trib. locali'!B$9:B$1008,B49,'Sezione IMU e trib. locali'!N$9:N$1008))+(SUMIF('Sezione ACCISE'!B$9:B$1008,B49,'Sezione ACCISE'!N$9:N$1008)),0) -> 0 | AF49: =IF(B49="",0,IF(B49=B48,COUNTIF(B$9:B48,B49)+1,1)) -> 39 | AG49: 0 | AH49: 0
A50: 42 | B50: -1900 | C50: -1900-40 | Q50: =IF(M$1021=1,"",IF(P50="","",VLOOKUP(P50,Tabelle!$B$5:$F$7,5,FALSE))) ->  | R50: =IF(M$1021=1,"",IF(P50="","",VLOOKUP(P50,Tabelle!$B$5:$G$7,6,FALSE))) ->  | V50: =IF(AND(D50<>"",B50<>B49),(SUMIF(B$9:B$1008,B50,M$9:M$1008)-SUMIF(B$9:B$1008,B50,N$9:N$1008))+(SUMIF('Sezione INPS'!B$9:B$1008,B50,'Sezione INPS'!N$9:N$1008)-SUMIF('Sezione INPS'!B$9:B$1008,B50,'Sezione INPS'!O$9:O$1008))+(SUMIF('Sezione REGIONI'!B$9:B$1008,B50,'Sezione REGIONI'!K$9:K$1008)-SUMIF('Sezione REGIONI'!B$9:B$1008,B50,'Sezione REGIONI'!L$9:L$1008))+(SUMIF('Sezione IMU e trib. locali'!B$9:B$1008,B50,'Sezione IMU e trib. locali'!M$9:M$1008)-SUMIF('Sezione IMU e trib. locali'!B$9:B$1008,B50,'Sezione IMU e trib. locali'!N$9:N$1008))+(SUMIF('Sezione ACCISE'!B$9:B$1008,B50,'Sezione ACCISE'!N$9:N$1008)),0) -> 0 | AF50: =IF(B50="",0,IF(B50=B49,COUNTIF(B$9:B49,B50)+1,1)) -> 40 | AG50: 0 | AH50: 0
A51: 43 | B51: -1900 | C51: -1900-41 | Q51: =IF(M$1021=1,"",IF(P51="","",VLOOKUP(P51,Tabelle!$B$5:$F$7,5,FALSE))) ->  | R51: =IF(M$1021=1,"",IF(P51="","",VLOOKUP(P51,Tabelle!$B$5:$G$7,6,FALSE))) ->  | V51: =IF(AND(D51<>"",B51<>B50),(SUMIF(B$9:B$1008,B51,M$9:M$1008)-SUMIF(B$9:B$1008,B51,N$9:N$1008))+(SUMIF('Sezione INPS'!B$9:B$1008,B51,'Sezione INPS'!N$9:N$1008)-SUMIF('Sezione INPS'!B$9:B$1008,B51,'Sezione INPS'!O$9:O$1008))+(SUMIF('Sezione REGIONI'!B$9:B$1008,B51,'Sezione REGIONI'!K$9:K$1008)-SUMIF('Sezione REGIONI'!B$9:B$1008,B51,'Sezione REGIONI'!L$9:L$1008))+(SUMIF('Sezione IMU e trib. locali'!B$9:B$1008,B51,'Sezione IMU e trib. locali'!M$9:M$1008)-SUMIF('Sezione IMU e trib. locali'!B$9:B$1008,B51,'Sezione IMU e trib. locali'!N$9:N$1008))+(SUMIF('Sezione ACCISE'!B$9:B$1008,B51,'Sezione ACCISE'!N$9:N$1008)),0) -> 0 | AF51: =IF(B51="",0,IF(B51=B50,COUNTIF(B$9:B50,B51)+1,1)) -> 41 | AG51: 0 | AH51: 0
A52: 44 | B52: -1900 | C52: -1900-42 | Q52: =IF(M$1021=1,"",IF(P52="","",VLOOKUP(P52,Tabelle!$B$5:$F$7,5,FALSE))) ->  | R52: =IF(M$1021=1,"",IF(P52="","",VLOOKUP(P52,Tabelle!$B$5:$G$7,6,FALSE))) ->  | V52: =IF(AND(D52<>"",B52<>B51),(SUMIF(B$9:B$1008,B52,M$9:M$1008)-SUMIF(B$9:B$1008,B52,N$9:N$1008))+(SUMIF('Sezione INPS'!B$9:B$1008,B52,'Sezione INPS'!N$9:N$1008)-SUMIF('Sezione INPS'!B$9:B$1008,B52,'Sezione INPS'!O$9:O$1008))+(SUMIF('Sezione REGIONI'!B$9:B$1008,B52,'Sezione REGIONI'!K$9:K$1008)-SUMIF('Sezione REGIONI'!B$9:B$1008,B52,'Sezione REGIONI'!L$9:L$1008))+(SUMIF('Sezione IMU e trib. locali'!B$9:B$1008,B52,'Sezione IMU e trib. locali'!M$9:M$1008)-SUMIF('Sezione IMU e trib. locali'!B$9:B$1008,B52,'Sezione IMU e trib. locali'!N$9:N$1008))+(SUMIF('Sezione ACCISE'!B$9:B$1008,B52,'Sezione ACCISE'!N$9:N$1008)),0) -> 0 | AF52: =IF(B52="",0,IF(B52=B51,COUNTIF(B$9:B51,B52)+1,1)) -> 42 | AG52: 0 | AH52: 0
A53: 45 | B53: -1900 | C53: -1900-43 | Q53: =IF(M$1021=1,"",IF(P53="","",VLOOKUP(P53,Tabelle!$B$5:$F$7,5,FALSE))) ->  | R53: =IF(M$1021=1,"",IF(P53="","",VLOOKUP(P53,Tabelle!$B$5:$G$7,6,FALSE))) ->  | V53: =IF(AND(D53<>"",B53<>B52),(SUMIF(B$9:B$1008,B53,M$9:M$1008)-SUMIF(B$9:B$1008,B53,N$9:N$1008))+(SUMIF('Sezione INPS'!B$9:B$1008,B53,'Sezione INPS'!N$9:N$1008)-SUMIF('Sezione INPS'!B$9:B$1008,B53,'Sezione INPS'!O$9:O$1008))+(SUMIF('Sezione REGIONI'!B$9:B$1008,B53,'Sezione REGIONI'!K$9:K$1008)-SUMIF('Sezione REGIONI'!B$9:B$1008,B53,'Sezione REGIONI'!L$9:L$1008))+(SUMIF('Sezione IMU e trib. locali'!B$9:B$1008,B53,'Sezione IMU e trib. locali'!M$9:M$1008)-SUMIF('Sezione IMU e trib. locali'!B$9:B$1008,B53,'Sezione IMU e trib. locali'!N$9:N$1008))+(SUMIF('Sezione ACCISE'!B$9:B$1008,B53,'Sezione ACCISE'!N$9:N$1008)),0) -> 0 | AF53: =IF(B53="",0,IF(B53=B52,COUNTIF(B$9:B52,B53)+1,1)) -> 43 | AG53: 0 | AH53: 0
A54: 46 | B54: -1900 | C54: -1900-44 | Q54: =IF(M$1021=1,"",IF(P54="","",VLOOKUP(P54,Tabelle!$B$5:$F$7,5,FALSE))) ->  | R54: =IF(M$1021=1,"",IF(P54="","",VLOOKUP(P54,Tabelle!$B$5:$G$7,6,FALSE))) ->  | V54: =IF(AND(D54<>"",B54<>B53),(SUMIF(B$9:B$1008,B54,M$9:M$1008)-SUMIF(B$9:B$1008,B54,N$9:N$1008))+(SUMIF('Sezione INPS'!B$9:B$1008,B54,'Sezione INPS'!N$9:N$1008)-SUMIF('Sezione INPS'!B$9:B$1008,B54,'Sezione INPS'!O$9:O$1008))+(SUMIF('Sezione REGIONI'!B$9:B$1008,B54,'Sezione REGIONI'!K$9:K$1008)-SUMIF('Sezione REGIONI'!B$9:B$1008,B54,'Sezione REGIONI'!L$9:L$1008))+(SUMIF('Sezione IMU e trib. locali'!B$9:B$1008,B54,'Sezione IMU e trib. locali'!M$9:M$1008)-SUMIF('Sezione IMU e trib. locali'!B$9:B$1008,B54,'Sezione IMU e trib. locali'!N$9:N$1008))+(SUMIF('Sezione ACCISE'!B$9:B$1008,B54,'Sezione ACCISE'!N$9:N$1008)),0) -> 0 | AF54: =IF(B54="",0,IF(B54=B53,COUNTIF(B$9:B53,B54)+1,1)) -> 44 | AG54: 0 | AH54: 0
A55: 47 | B55: -1900 | C55: -1900-45 | Q55: =IF(M$1021=1,"",IF(P55="","",VLOOKUP(P55,Tabelle!$B$5:$F$7,5,FALSE))) ->  | R55: =IF(M$1021=1,"",IF(P55="","",VLOOKUP(P55,Tabelle!$B$5:$G$7,6,FALSE))) ->  | V55: =IF(AND(D55<>"",B55<>B54),(SUMIF(B$9:B$1008,B55,M$9:M$1008)-SUMIF(B$9:B$1008,B55,N$9:N$1008))+(SUMIF('Sezione INPS'!B$9:B$1008,B55,'Sezione INPS'!N$9:N$1008)-SUMIF('Sezione INPS'!B$9:B$1008,B55,'Sezione INPS'!O$9:O$1008))+(SUMIF('Sezione REGIONI'!B$9:B$1008,B55,'Sezione REGIONI'!K$9:K$1008)-SUMIF('Sezione REGIONI'!B$9:B$1008,B55,'Sezione REGIONI'!L$9:L$1008))+(SUMIF('Sezione IMU e trib. locali'!B$9:B$1008,B55,'Sezione IMU e trib. locali'!M$9:M$1008)-SUMIF('Sezione IMU e trib. locali'!B$9:B$1008,B55,'Sezione IMU e trib. locali'!N$9:N$1008))+(SUMIF('Sezione ACCISE'!B$9:B$1008,B55,'Sezione ACCISE'!N$9:N$1008)),0) -> 0 | AF55: =IF(B55="",0,IF(B55=B54,COUNTIF(B$9:B54,B55)+1,1)) -> 45 | AG55: 0 | AH55: 0
A56: 48 | B56: -1900 | C56: -1900-46 | Q56: =IF(M$1021=1,"",IF(P56="","",VLOOKUP(P56,Tabelle!$B$5:$F$7,5,FALSE))) ->  | R56: =IF(M$1021=1,"",IF(P56="","",VLOOKUP(P56,Tabelle!$B$5:$G$7,6,FALSE))) ->  | V56: =IF(AND(D56<>"",B56<>B55),(SUMIF(B$9:B$1008,B56,M$9:M$1008)-SUMIF(B$9:B$1008,B56,N$9:N$1008))+(SUMIF('Sezione INPS'!B$9:B$1008,B56,'Sezione INPS'!N$9:N$1008)-SUMIF('Sezione INPS'!B$9:B$1008,B56,'Sezione INPS'!O$9:O$1008))+(SUMIF('Sezione REGIONI'!B$9:B$1008,B56,'Sezione REGIONI'!K$9:K$1008)-SUMIF('Sezione REGIONI'!B$9:B$1008,B56,'Sezione REGIONI'!L$9:L$1008))+(SUMIF('Sezione IMU e trib. locali'!B$9:B$1008,B56,'Sezione IMU e trib. locali'!M$9:M$1008)-SUMIF('Sezione IMU e trib. locali'!B$9:B$1008,B56,'Sezione IMU e trib. locali'!N$9:N$1008))+(SUMIF('Sezione ACCISE'!B$9:B$1008,B56,'Sezione ACCISE'!N$9:N$1008)),0) -> 0 | AF56: =IF(B56="",0,IF(B56=B55,COUNTIF(B$9:B55,B56)+1,1)) -> 46 | AG56: 0 | AH56: 0
A57: 49 | B57: -1900 | C57: -1900-47 | Q57: =IF(M$1021=1,"",IF(P57="","",VLOOKUP(P57,Tabelle!$B$5:$F$7,5,FALSE))) ->  | R57: =IF(M$1021=1,"",IF(P57="","",VLOOKUP(P57,Tabelle!$B$5:$G$7,6,FALSE))) ->  | V57: =IF(AND(D57<>"",B57<>B56),(SUMIF(B$9:B$1008,B57,M$9:M$1008)-SUMIF(B$9:B$1008,B57,N$9:N$1008))+(SUMIF('Sezione INPS'!B$9:B$1008,B57,'Sezione INPS'!N$9:N$1008)-SUMIF('Sezione INPS'!B$9:B$1008,B57,'Sezione INPS'!O$9:O$1008))+(SUMIF('Sezione REGIONI'!B$9:B$1008,B57,'Sezione REGIONI'!K$9:K$1008)-SUMIF('Sezione REGIONI'!B$9:B$1008,B57,'Sezione REGIONI'!L$9:L$1008))+(SUMIF('Sezione IMU e trib. locali'!B$9:B$1008,B57,'Sezione IMU e trib. locali'!M$9:M$1008)-SUMIF('Sezione IMU e trib. locali'!B$9:B$1008,B57,'Sezione IMU e trib. locali'!N$9:N$1008))+(SUMIF('Sezione ACCISE'!B$9:B$1008,B57,'Sezione ACCISE'!N$9:N$1008)),0) -> 0 | AF57: =IF(B57="",0,IF(B57=B56,COUNTIF(B$9:B56,B57)+1,1)) -> 47 | AG57: 0 | AH57: 0
A58: 50 | B58: -1900 | C58: -1900-48 | Q58: =IF(M$1021=1,"",IF(P58="","",VLOOKUP(P58,Tabelle!$B$5:$F$7,5,FALSE))) ->  | R58: =IF(M$1021=1,"",IF(P58="","",VLOOKUP(P58,Tabelle!$B$5:$G$7,6,FALSE))) ->  | V58: =IF(AND(D58<>"",B58<>B57),(SUMIF(B$9:B$1008,B58,M$9:M$1008)-SUMIF(B$9:B$1008,B58,N$9:N$1008))+(SUMIF('Sezione INPS'!B$9:B$1008,B58,'Sezione INPS'!N$9:N$1008)-SUMIF('Sezione INPS'!B$9:B$1008,B58,'Sezione INPS'!O$9:O$1008))+(SUMIF('Sezione REGIONI'!B$9:B$1008,B58,'Sezione REGIONI'!K$9:K$1008)-SUMIF('Sezione REGIONI'!B$9:B$1008,B58,'Sezione REGIONI'!L$9:L$1008))+(SUMIF('Sezione IMU e trib. locali'!B$9:B$1008,B58,'Sezione IMU e trib. locali'!M$9:M$1008)-SUMIF('Sezione IMU e trib. locali'!B$9:B$1008,B58,'Sezione IMU e trib. locali'!N$9:N$1008))+(SUMIF('Sezione ACCISE'!B$9:B$1008,B58,'Sezione ACCISE'!N$9:N$1008)),0) -> 0 | AF58: =IF(B58="",0,IF(B58=B57,COUNTIF(B$9:B57,B58)+1,1)) -> 48 | AG58: 0 | AH58: 0
A59: 51 | B59: -1900 | C59: -1900-49 | Q59: =IF(M$1021=1,"",IF(P59="","",VLOOKUP(P59,Tabelle!$B$5:$F$7,5,FALSE))) ->  | R59: =IF(M$1021=1,"",IF(P59="","",VLOOKUP(P59,Tabelle!$B$5:$G$7,6,FALSE))) ->  | V59: =IF(AND(D59<>"",B59<>B58),(SUMIF(B$9:B$1008,B59,M$9:M$1008)-SUMIF(B$9:B$1008,B59,N$9:N$1008))+(SUMIF('Sezione INPS'!B$9:B$1008,B59,'Sezione INPS'!N$9:N$1008)-SUMIF('Sezione INPS'!B$9:B$1008,B59,'Sezione INPS'!O$9:O$1008))+(SUMIF('Sezione REGIONI'!B$9:B$1008,B59,'Sezione REGIONI'!K$9:K$1008)-SUMIF('Sezione REGIONI'!B$9:B$1008,B59,'Sezione REGIONI'!L$9:L$1008))+(SUMIF('Sezione IMU e trib. locali'!B$9:B$1008,B59,'Sezione IMU e trib. locali'!M$9:M$1008)-SUMIF('Sezione IMU e trib. locali'!B$9:B$1008,B59,'Sezione IMU e trib. locali'!N$9:N$1008))+(SUMIF('Sezione ACCISE'!B$9:B$1008,B59,'Sezione ACCISE'!N$9:N$1008)),0) -> 0 | AF59: =IF(B59="",0,IF(B59=B58,COUNTIF(B$9:B58,B59)+1,1)) -> 49 | AG59: 0 | AH59: 0
A60: 52 | B60: -1900 | C60: -1900-50 | Q60: =IF(M$1021=1,"",IF(P60="","",VLOOKUP(P60,Tabelle!$B$5:$F$7,5,FALSE))) ->  | R60: =IF(M$1021=1,"",IF(P60="","",VLOOKUP(P60,Tabelle!$B$5:$G$7,6,FALSE))) ->  | V60: =IF(AND(D60<>"",B60<>B59),(SUMIF(B$9:B$1008,B60,M$9:M$1008)-SUMIF(B$9:B$1008,B60,N$9:N$1008))+(SUMIF('Sezione INPS'!B$9:B$1008,B60,'Sezione INPS'!N$9:N$1008)-SUMIF('Sezione INPS'!B$9:B$1008,B60,'Sezione INPS'!O$9:O$1008))+(SUMIF('Sezione REGIONI'!B$9:B$1008,B60,'Sezione REGIONI'!K$9:K$1008)-SUMIF('Sezione REGIONI'!B$9:B$1008,B60,'Sezione REGIONI'!L$9:L$1008))+(SUMIF('Sezione IMU e trib. locali'!B$9:B$1008,B60,'Sezione IMU e trib. locali'!M$9:M$1008)-SUMIF('Sezione IMU e trib. locali'!B$9:B$1008,B60,'Sezione IMU e trib. locali'!N$9:N$1008))+(SUMIF('Sezione ACCISE'!B$9:B$1008,B60,'Sezione ACCISE'!N$9:N$1008)),0) -> 0 | AF60: =IF(B60="",0,IF(B60=B59,COUNTIF(B$9:B59,B60)+1,1)) -> 50 | AG60: 0 | AH60: 0
A61: 53 | B61: -1900 | C61: -1900-51 | Q61: =IF(M$1021=1,"",IF(P61="","",VLOOKUP(P61,Tabelle!$B$5:$F$7,5,FALSE))) ->  | R61: =IF(M$1021=1,"",IF(P61="","",VLOOKUP(P61,Tabelle!$B$5:$G$7,6,FALSE))) ->  | V61: =IF(AND(D61<>"",B61<>B60),(SUMIF(B$9:B$1008,B61,M$9:M$1008)-SUMIF(B$9:B$1008,B61,N$9:N$1008))+(SUMIF('Sezione INPS'!B$9:B$1008,B61,'Sezione INPS'!N$9:N$1008)-SUMIF('Sezione INPS'!B$9:B$1008,B61,'Sezione INPS'!O$9:O$1008))+(SUMIF('Sezione REGIONI'!B$9:B$1008,B61,'Sezione REGIONI'!K$9:K$1008)-SUMIF('Sezione REGIONI'!B$9:B$1008,B61,'Sezione REGIONI'!L$9:L$1008))+(SUMIF('Sezione IMU e trib. locali'!B$9:B$1008,B61,'Sezione IMU e trib. locali'!M$9:M$1008)-SUMIF('Sezione IMU e trib. locali'!B$9:B$1008,B61,'Sezione IMU e trib. locali'!N$9:N$1008))+(SUMIF('Sezione ACCISE'!B$9:B$1008,B61,'Sezione ACCISE'!N$9:N$1008)),0) -> 0 | AF61: =IF(B61="",0,IF(B61=B60,COUNTIF(B$9:B60,B61)+1,1)) -> 51 | AG61: 0 | AH61: 0
A62: 54 | B62: -1900 | C62: -1900-52 | Q62: =IF(M$1021=1,"",IF(P62="","",VLOOKUP(P62,Tabelle!$B$5:$F$7,5,FALSE))) ->  | R62: =IF(M$1021=1,"",IF(P62="","",VLOOKUP(P62,Tabelle!$B$5:$G$7,6,FALSE))) ->  | V62: =IF(AND(D62<>"",B62<>B61),(SUMIF(B$9:B$1008,B62,M$9:M$1008)-SUMIF(B$9:B$1008,B62,N$9:N$1008))+(SUMIF('Sezione INPS'!B$9:B$1008,B62,'Sezione INPS'!N$9:N$1008)-SUMIF('Sezione INPS'!B$9:B$1008,B62,'Sezione INPS'!O$9:O$1008))+(SUMIF('Sezione REGIONI'!B$9:B$1008,B62,'Sezione REGIONI'!K$9:K$1008)-SUMIF('Sezione REGIONI'!B$9:B$1008,B62,'Sezione REGIONI'!L$9:L$1008))+(SUMIF('Sezione IMU e trib. locali'!B$9:B$1008,B62,'Sezione IMU e trib. locali'!M$9:M$1008)-SUMIF('Sezione IMU e trib. locali'!B$9:B$1008,B62,'Sezione IMU e trib. locali'!N$9:N$1008))+(SUMIF('Sezione ACCISE'!B$9:B$1008,B62,'Sezione ACCISE'!N$9:N$1008)),0) -> 0 | AF62: =IF(B62="",0,IF(B62=B61,COUNTIF(B$9:B61,B62)+1,1)) -> 52 | AG62: 0 | AH62: 0
A63: 55 | B63: -1900 | C63: -1900-53 | Q63: =IF(M$1021=1,"",IF(P63="","",VLOOKUP(P63,Tabelle!$B$5:$F$7,5,FALSE))) ->  | R63: =IF(M$1021=1,"",IF(P63="","",VLOOKUP(P63,Tabelle!$B$5:$G$7,6,FALSE))) ->  | V63: =IF(AND(D63<>"",B63<>B62),(SUMIF(B$9:B$1008,B63,M$9:M$1008)-SUMIF(B$9:B$1008,B63,N$9:N$1008))+(SUMIF('Sezione INPS'!B$9:B$1008,B63,'Sezione INPS'!N$9:N$1008)-SUMIF('Sezione INPS'!B$9:B$1008,B63,'Sezione INPS'!O$9:O$1008))+(SUMIF('Sezione REGIONI'!B$9:B$1008,B63,'Sezione REGIONI'!K$9:K$1008)-SUMIF('Sezione REGIONI'!B$9:B$1008,B63,'Sezione REGIONI'!L$9:L$1008))+(SUMIF('Sezione IMU e trib. locali'!B$9:B$1008,B63,'Sezione IMU e trib. locali'!M$9:M$1008)-SUMIF('Sezione IMU e trib. locali'!B$9:B$1008,B63,'Sezione IMU e trib. locali'!N$9:N$1008))+(SUMIF('Sezione ACCISE'!B$9:B$1008,B63,'Sezione ACCISE'!N$9:N$1008)),0) -> 0 | AF63: =IF(B63="",0,IF(B63=B62,COUNTIF(B$9:B62,B63)+1,1)) -> 53 | AG63: 0 | AH63: 0
A64: 56 | B64: -1900 | C64: -1900-54 | Q64: =IF(M$1021=1,"",IF(P64="","",VLOOKUP(P64,Tabelle!$B$5:$F$7,5,FALSE))) ->  | R64: =IF(M$1021=1,"",IF(P64="","",VLOOKUP(P64,Tabelle!$B$5:$G$7,6,FALSE))) ->  | V64: =IF(AND(D64<>"",B64<>B63),(SUMIF(B$9:B$1008,B64,M$9:M$1008)-SUMIF(B$9:B$1008,B64,N$9:N$1008))+(SUMIF('Sezione INPS'!B$9:B$1008,B64,'Sezione INPS'!N$9:N$1008)-SUMIF('Sezione INPS'!B$9:B$1008,B64,'Sezione INPS'!O$9:O$1008))+(SUMIF('Sezione REGIONI'!B$9:B$1008,B64,'Sezione REGIONI'!K$9:K$1008)-SUMIF('Sezione REGIONI'!B$9:B$1008,B64,'Sezione REGIONI'!L$9:L$1008))+(SUMIF('Sezione IMU e trib. locali'!B$9:B$1008,B64,'Sezione IMU e trib. locali'!M$9:M$1008)-SUMIF('Sezione IMU e trib. locali'!B$9:B$1008,B64,'Sezione IMU e trib. locali'!N$9:N$1008))+(SUMIF('Sezione ACCISE'!B$9:B$1008,B64,'Sezione ACCISE'!N$9:N$1008)),0) -> 0 | AF64: =IF(B64="",0,IF(B64=B63,COUNTIF(B$9:B63,B64)+1,1)) -> 54 | AG64: 0 | AH64: 0
A65: 57 | B65: -1900 | C65: -1900-55 | Q65: =IF(M$1021=1,"",IF(P65="","",VLOOKUP(P65,Tabelle!$B$5:$F$7,5,FALSE))) ->  | R65: =IF(M$1021=1,"",IF(P65="","",VLOOKUP(P65,Tabelle!$B$5:$G$7,6,FALSE))) ->  | V65: =IF(AND(D65<>"",B65<>B64),(SUMIF(B$9:B$1008,B65,M$9:M$1008)-SUMIF(B$9:B$1008,B65,N$9:N$1008))+(SUMIF('Sezione INPS'!B$9:B$1008,B65,'Sezione INPS'!N$9:N$1008)-SUMIF('Sezione INPS'!B$9:B$1008,B65,'Sezione INPS'!O$9:O$1008))+(SUMIF('Sezione REGIONI'!B$9:B$1008,B65,'Sezione REGIONI'!K$9:K$1008)-SUMIF('Sezione REGIONI'!B$9:B$1008,B65,'Sezione REGIONI'!L$9:L$1008))+(SUMIF('Sezione IMU e trib. locali'!B$9:B$1008,B65,'Sezione IMU e trib. locali'!M$9:M$1008)-SUMIF('Sezione IMU e trib. locali'!B$9:B$1008,B65,'Sezione IMU e trib. locali'!N$9:N$1008))+(SUMIF('Sezione ACCISE'!B$9:B$1008,B65,'Sezione ACCISE'!N$9:N$1008)),0) -> 0 | AF65: =IF(B65="",0,IF(B65=B64,COUNTIF(B$9:B64,B65)+1,1)) -> 55 | AG65: 0 | AH65: 0
A66: 58 | B66: -1900 | C66: -1900-56 | Q66: =IF(M$1021=1,"",IF(P66="","",VLOOKUP(P66,Tabelle!$B$5:$F$7,5,FALSE))) ->  | R66: =IF(M$1021=1,"",IF(P66="","",VLOOKUP(P66,Tabelle!$B$5:$G$7,6,FALSE))) ->  | V66: =IF(AND(D66<>"",B66<>B65),(SUMIF(B$9:B$1008,B66,M$9:M$1008)-SUMIF(B$9:B$1008,B66,N$9:N$1008))+(SUMIF('Sezione INPS'!B$9:B$1008,B66,'Sezione INPS'!N$9:N$1008)-SUMIF('Sezione INPS'!B$9:B$1008,B66,'Sezione INPS'!O$9:O$1008))+(SUMIF('Sezione REGIONI'!B$9:B$1008,B66,'Sezione REGIONI'!K$9:K$1008)-SUMIF('Sezione REGIONI'!B$9:B$1008,B66,'Sezione REGIONI'!L$9:L$1008))+(SUMIF('Sezione IMU e trib. locali'!B$9:B$1008,B66,'Sezione IMU e trib. locali'!M$9:M$1008)-SUMIF('Sezione IMU e trib. locali'!B$9:B$1008,B66,'Sezione IMU e trib. locali'!N$9:N$1008))+(SUMIF('Sezione ACCISE'!B$9:B$1008,B66,'Sezione ACCISE'!N$9:N$1008)),0) -> 0 | AF66: =IF(B66="",0,IF(B66=B65,COUNTIF(B$9:B65,B66)+1,1)) -> 56 | AG66: 0 | AH66: 0
A67: 59 | B67: -1900 | C67: -1900-57 | Q67: =IF(M$1021=1,"",IF(P67="","",VLOOKUP(P67,Tabelle!$B$5:$F$7,5,FALSE))) ->  | R67: =IF(M$1021=1,"",IF(P67="","",VLOOKUP(P67,Tabelle!$B$5:$G$7,6,FALSE))) ->  | V67: =IF(AND(D67<>"",B67<>B66),(SUMIF(B$9:B$1008,B67,M$9:M$1008)-SUMIF(B$9:B$1008,B67,N$9:N$1008))+(SUMIF('Sezione INPS'!B$9:B$1008,B67,'Sezione INPS'!N$9:N$1008)-SUMIF('Sezione INPS'!B$9:B$1008,B67,'Sezione INPS'!O$9:O$1008))+(SUMIF('Sezione REGIONI'!B$9:B$1008,B67,'Sezione REGIONI'!K$9:K$1008)-SUMIF('Sezione REGIONI'!B$9:B$1008,B67,'Sezione REGIONI'!L$9:L$1008))+(SUMIF('Sezione IMU e trib. locali'!B$9:B$1008,B67,'Sezione IMU e trib. locali'!M$9:M$1008)-SUMIF('Sezione IMU e trib. locali'!B$9:B$1008,B67,'Sezione IMU e trib. locali'!N$9:N$1008))+(SUMIF('Sezione ACCISE'!B$9:B$1008,B67,'Sezione ACCISE'!N$9:N$1008)),0) -> 0 | AF67: =IF(B67="",0,IF(B67=B66,COUNTIF(B$9:B66,B67)+1,1)) -> 57 | AG67: 0 | AH67: 0
A68: 60 | B68: -1900 | C68: -1900-58 | Q68: =IF(M$1021=1,"",IF(P68="","",VLOOKUP(P68,Tabelle!$B$5:$F$7,5,FALSE))) ->  | R68: =IF(M$1021=1,"",IF(P68="","",VLOOKUP(P68,Tabelle!$B$5:$G$7,6,FALSE))) ->  | V68: =IF(AND(D68<>"",B68<>B67),(SUMIF(B$9:B$1008,B68,M$9:M$1008)-SUMIF(B$9:B$1008,B68,N$9:N$1008))+(SUMIF('Sezione INPS'!B$9:B$1008,B68,'Sezione INPS'!N$9:N$1008)-SUMIF('Sezione INPS'!B$9:B$1008,B68,'Sezione INPS'!O$9:O$1008))+(SUMIF('Sezione REGIONI'!B$9:B$1008,B68,'Sezione REGIONI'!K$9:K$1008)-SUMIF('Sezione REGIONI'!B$9:B$1008,B68,'Sezione REGIONI'!L$9:L$1008))+(SUMIF('Sezione IMU e trib. locali'!B$9:B$1008,B68,'Sezione IMU e trib. locali'!M$9:M$1008)-SUMIF('Sezione IMU e trib. locali'!B$9:B$1008,B68,'Sezione IMU e trib. locali'!N$9:N$1008))+(SUMIF('Sezione ACCISE'!B$9:B$1008,B68,'Sezione ACCISE'!N$9:N$1008)),0) -> 0 | AF68: =IF(B68="",0,IF(B68=B67,COUNTIF(B$9:B67,B68)+1,1)) -> 58 | AG68: 0 | AH68: 0
A69: 61 | B69: -1900 | C69: -1900-59 | Q69: =IF(M$1021=1,"",IF(P69="","",VLOOKUP(P69,Tabelle!$B$5:$F$7,5,FALSE))) ->  | R69: =IF(M$1021=1,"",IF(P69="","",VLOOKUP(P69,Tabelle!$B$5:$G$7,6,FALSE))) ->  | V69: =IF(AND(D69<>"",B69<>B68),(SUMIF(B$9:B$1008,B69,M$9:M$1008)-SUMIF(B$9:B$1008,B69,N$9:N$1008))+(SUMIF('Sezione INPS'!B$9:B$1008,B69,'Sezione INPS'!N$9:N$1008)-SUMIF('Sezione INPS'!B$9:B$1008,B69,'Sezione INPS'!O$9:O$1008))+(SUMIF('Sezione REGIONI'!B$9:B$1008,B69,'Sezione REGIONI'!K$9:K$1008)-SUMIF('Sezione REGIONI'!B$9:B$1008,B69,'Sezione REGIONI'!L$9:L$1008))+(SUMIF('Sezione IMU e trib. locali'!B$9:B$1008,B69,'Sezione IMU e trib. locali'!M$9:M$1008)-SUMIF('Sezione IMU e trib. locali'!B$9:B$1008,B69,'Sezione IMU e trib. locali'!N$9:N$1008))+(SUMIF('Sezione ACCISE'!B$9:B$1008,B69,'Sezione ACCISE'!N$9:N$1008)),0) -> 0 | AF69: =IF(B69="",0,IF(B69=B68,COUNTIF(B$9:B68,B69)+1,1)) -> 59 | AG69: 0 | AH69: 0
A70: 62 | B70: -1900 | C70: -1900-60 | Q70: =IF(M$1021=1,"",IF(P70="","",VLOOKUP(P70,Tabelle!$B$5:$F$7,5,FALSE))) ->  | R70: =IF(M$1021=1,"",IF(P70="","",VLOOKUP(P70,Tabelle!$B$5:$G$7,6,FALSE))) ->  | V70: =IF(AND(D70<>"",B70<>B69),(SUMIF(B$9:B$1008,B70,M$9:M$1008)-SUMIF(B$9:B$1008,B70,N$9:N$1008))+(SUMIF('Sezione INPS'!B$9:B$1008,B70,'Sezione INPS'!N$9:N$1008)-SUMIF('Sezione INPS'!B$9:B$1008,B70,'Sezione INPS'!O$9:O$1008))+(SUMIF('Sezione REGIONI'!B$9:B$1008,B70,'Sezione REGIONI'!K$9:K$1008)-SUMIF('Sezione REGIONI'!B$9:B$1008,B70,'Sezione REGIONI'!L$9:L$1008))+(SUMIF('Sezione IMU e trib. locali'!B$9:B$1008,B70,'Sezione IMU e trib. locali'!M$9:M$1008)-SUMIF('Sezione IMU e trib. locali'!B$9:B$1008,B70,'Sezione IMU e trib. locali'!N$9:N$1008))+(SUMIF('Sezione ACCISE'!B$9:B$1008,B70,'Sezione ACCISE'!N$9:N$1008)),0) -> 0 | AF70: =IF(B70="",0,IF(B70=B69,COUNTIF(B$9:B69,B70)+1,1)) -> 60 | AG70: 0 | AH70: 0
A71: 63 | B71: -1900 | C71: -1900-61 | Q71: =IF(M$1021=1,"",IF(P71="","",VLOOKUP(P71,Tabelle!$B$5:$F$7,5,FALSE))) ->  | R71: =IF(M$1021=1,"",IF(P71="","",VLOOKUP(P71,Tabelle!$B$5:$G$7,6,FALSE))) ->  | V71: =IF(AND(D71<>"",B71<>B70),(SUMIF(B$9:B$1008,B71,M$9:M$1008)-SUMIF(B$9:B$1008,B71,N$9:N$1008))+(SUMIF('Sezione INPS'!B$9:B$1008,B71,'Sezione INPS'!N$9:N$1008)-SUMIF('Sezione INPS'!B$9:B$1008,B71,'Sezione INPS'!O$9:O$1008))+(SUMIF('Sezione REGIONI'!B$9:B$1008,B71,'Sezione REGIONI'!K$9:K$1008)-SUMIF('Sezione REGIONI'!B$9:B$1008,B71,'Sezione REGIONI'!L$9:L$1008))+(SUMIF('Sezione IMU e trib. locali'!B$9:B$1008,B71,'Sezione IMU e trib. locali'!M$9:M$1008)-SUMIF('Sezione IMU e trib. locali'!B$9:B$1008,B71,'Sezione IMU e trib. locali'!N$9:N$1008))+(SUMIF('Sezione ACCISE'!B$9:B$1008,B71,'Sezione ACCISE'!N$9:N$1008)),0) -> 0 | AF71: =IF(B71="",0,IF(B71=B70,COUNTIF(B$9:B70,B71)+1,1)) -> 61 | AG71: 0 | AH71: 0
A72: 64 | B72: -1900 | C72: -1900-62 | Q72: =IF(M$1021=1,"",IF(P72="","",VLOOKUP(P72,Tabelle!$B$5:$F$7,5,FALSE))) ->  | R72: =IF(M$1021=1,"",IF(P72="","",VLOOKUP(P72,Tabelle!$B$5:$G$7,6,FALSE))) ->  | V72: =IF(AND(D72<>"",B72<>B71),(SUMIF(B$9:B$1008,B72,M$9:M$1008)-SUMIF(B$9:B$1008,B72,N$9:N$1008))+(SUMIF('Sezione INPS'!B$9:B$1008,B72,'Sezione INPS'!N$9:N$1008)-SUMIF('Sezione INPS'!B$9:B$1008,B72,'Sezione INPS'!O$9:O$1008))+(SUMIF('Sezione REGIONI'!B$9:B$1008,B72,'Sezione REGIONI'!K$9:K$1008)-SUMIF('Sezione REGIONI'!B$9:B$1008,B72,'Sezione REGIONI'!L$9:L$1008))+(SUMIF('Sezione IMU e trib. locali'!B$9:B$1008,B72,'Sezione IMU e trib. locali'!M$9:M$1008)-SUMIF('Sezione IMU e trib. locali'!B$9:B$1008,B72,'Sezione IMU e trib. locali'!N$9:N$1008))+(SUMIF('Sezione ACCISE'!B$9:B$1008,B72,'Sezione ACCISE'!N$9:N$1008)),0) -> 0 | AF72: =IF(B72="",0,IF(B72=B71,COUNTIF(B$9:B71,B72)+1,1)) -> 62 | AG72: 0 | AH72: 0
A73: 65 | B73: -1900 | C73: =IF(M$1021=1,0,B73&"-"&AF73) -> -1900-63 | Q73: =IF(M$1021=1,"",IF(P73="","",VLOOKUP(P73,Tabelle!$B$5:$F$7,5,FALSE))) ->  | R73: =IF(M$1021=1,"",IF(P73="","",VLOOKUP(P73,Tabelle!$B$5:$G$7,6,FALSE))) ->  | V73: =IF(AND(D73<>"",B73<>B72),(SUMIF(B$9:B$1008,B73,M$9:M$1008)-SUMIF(B$9:B$1008,B73,N$9:N$1008))+(SUMIF('Sezione INPS'!B$9:B$1008,B73,'Sezione INPS'!N$9:N$1008)-SUMIF('Sezione INPS'!B$9:B$1008,B73,'Sezione INPS'!O$9:O$1008))+(SUMIF('Sezione REGIONI'!B$9:B$1008,B73,'Sezione REGIONI'!K$9:K$1008)-SUMIF('Sezione REGIONI'!B$9:B$1008,B73,'Sezione REGIONI'!L$9:L$1008))+(SUMIF('Sezione IMU e trib. locali'!B$9:B$1008,B73,'Sezione IMU e trib. locali'!M$9:M$1008)-SUMIF('Sezione IMU e trib. locali'!B$9:B$1008,B73,'Sezione IMU e trib. locali'!N$9:N$1008))+(SUMIF('Sezione ACCISE'!B$9:B$1008,B73,'Sezione ACCISE'!N$9:N$1008)),0) -> 0 | AF73: =IF(B73="",0,IF(B73=B72,COUNTIF(B$9:B72,B73)+1,1)) -> 63 | AG73: 0 | AH73: 0
A74: 66 | B74: =IF(AH74=$AH$1015,0,IF(M$1021=1,0,D74&"-"&YEAR(E74))) -> -1900 | C74: -1900-64 | Q74: =IF(M$1021=1,"",IF(P74="","",VLOOKUP(P74,Tabelle!$B$5:$F$7,5,FALSE))) ->  | R74: =IF(M$1021=1,"",IF(P74="","",VLOOKUP(P74,Tabelle!$B$5:$G$7,6,FALSE))) ->  | V74: =IF(AND(D74<>"",B74<>B73),(SUMIF(B$9:B$1008,B74,M$9:M$1008)-SUMIF(B$9:B$1008,B74,N$9:N$1008))+(SUMIF('Sezione INPS'!B$9:B$1008,B74,'Sezione INPS'!N$9:N$1008)-SUMIF('Sezione INPS'!B$9:B$1008,B74,'Sezione INPS'!O$9:O$1008))+(SUMIF('Sezione REGIONI'!B$9:B$1008,B74,'Sezione REGIONI'!K$9:K$1008)-SUMIF('Sezione REGIONI'!B$9:B$1008,B74,'Sezione REGIONI'!L$9:L$1008))+(SUMIF('Sezione IMU e trib. locali'!B$9:B$1008,B74,'Sezione IMU e trib. locali'!M$9:M$1008)-SUMIF('Sezione IMU e trib. locali'!B$9:B$1008,B74,'Sezione IMU e trib. locali'!N$9:N$1008))+(SUMIF('Sezione ACCISE'!B$9:B$1008,B74,'Sezione ACCISE'!N$9:N$1008)),0) -> 0 | AF74: =IF(B74="",0,IF(B74=B73,COUNTIF(B$9:B73,B74)+1,1)) -> 64 | AG74: =IF(OR(D74="",M$1021=1),0,IF(AF74=6,1,0)) -> 0 | AH74: =IF(E74>0,IF(OR(MONTH(E74)<$L$1027,MONTH(E74)>$L$1028),AH$1015,0),0) -> 0
A75: 67 | B75: -1900 | C75: -1900-65 | Q75: =IF(M$1021=1,"",IF(P75="","",VLOOKUP(P75,Tabelle!$B$5:$F$7,5,FALSE))) ->  | R75: =IF(M$1021=1,"",IF(P75="","",VLOOKUP(P75,Tabelle!$B$5:$G$7,6,FALSE))) ->  | V75: =IF(AND(D75<>"",B75<>B74),(SUMIF(B$9:B$1008,B75,M$9:M$1008)-SUMIF(B$9:B$1008,B75,N$9:N$1008))+(SUMIF('Sezione INPS'!B$9:B$1008,B75,'Sezione INPS'!N$9:N$1008)-SUMIF('Sezione INPS'!B$9:B$1008,B75,'Sezione INPS'!O$9:O$1008))+(SUMIF('Sezione REGIONI'!B$9:B$1008,B75,'Sezione REGIONI'!K$9:K$1008)-SUMIF('Sezione REGIONI'!B$9:B$1008,B75,'Sezione REGIONI'!L$9:L$1008))+(SUMIF('Sezione IMU e trib. locali'!B$9:B$1008,B75,'Sezione IMU e trib. locali'!M$9:M$1008)-SUMIF('Sezione IMU e trib. locali'!B$9:B$1008,B75,'Sezione IMU e trib. locali'!N$9:N$1008))+(SUMIF('Sezione ACCISE'!B$9:B$1008,B75,'Sezione ACCISE'!N$9:N$1008)),0) -> 0 | AF75: =IF(B75="",0,IF(B75=B74,COUNTIF(B$9:B74,B75)+1,1)) -> 65 | AG75: 0 | AH75: 0
A76: 68 | B76: -1900 | C76: -1900-66 | Q76: =IF(M$1021=1,"",IF(P76="","",VLOOKUP(P76,Tabelle!$B$5:$F$7,5,FALSE))) ->  | R76: =IF(M$1021=1,"",IF(P76="","",VLOOKUP(P76,Tabelle!$B$5:$G$7,6,FALSE))) ->  | V76: =IF(AND(D76<>"",B76<>B75),(SUMIF(B$9:B$1008,B76,M$9:M$1008)-SUMIF(B$9:B$1008,B76,N$9:N$1008))+(SUMIF('Sezione INPS'!B$9:B$1008,B76,'Sezione INPS'!N$9:N$1008)-SUMIF('Sezione INPS'!B$9:B$1008,B76,'Sezione INPS'!O$9:O$1008))+(SUMIF('Sezione REGIONI'!B$9:B$1008,B76,'Sezione REGIONI'!K$9:K$1008)-SUMIF('Sezione REGIONI'!B$9:B$1008,B76,'Sezione REGIONI'!L$9:L$1008))+(SUMIF('Sezione IMU e trib. locali'!B$9:B$1008,B76,'Sezione IMU e trib. locali'!M$9:M$1008)-SUMIF('Sezione IMU e trib. locali'!B$9:B$1008,B76,'Sezione IMU e trib. locali'!N$9:N$1008))+(SUMIF('Sezione ACCISE'!B$9:B$1008,B76,'Sezione ACCISE'!N$9:N$1008)),0) -> 0 | AF76: =IF(B76="",0,IF(B76=B75,COUNTIF(B$9:B75,B76)+1,1)) -> 66 | AG76: 0 | AH76: 0
A77: 69 | B77: -1900 | C77: -1900-67 | Q77: =IF(M$1021=1,"",IF(P77="","",VLOOKUP(P77,Tabelle!$B$5:$F$7,5,FALSE))) ->  | R77: =IF(M$1021=1,"",IF(P77="","",VLOOKUP(P77,Tabelle!$B$5:$G$7,6,FALSE))) ->  | V77: =IF(AND(D77<>"",B77<>B76),(SUMIF(B$9:B$1008,B77,M$9:M$1008)-SUMIF(B$9:B$1008,B77,N$9:N$1008))+(SUMIF('Sezione INPS'!B$9:B$1008,B77,'Sezione INPS'!N$9:N$1008)-SUMIF('Sezione INPS'!B$9:B$1008,B77,'Sezione INPS'!O$9:O$1008))+(SUMIF('Sezione REGIONI'!B$9:B$1008,B77,'Sezione REGIONI'!K$9:K$1008)-SUMIF('Sezione REGIONI'!B$9:B$1008,B77,'Sezione REGIONI'!L$9:L$1008))+(SUMIF('Sezione IMU e trib. locali'!B$9:B$1008,B77,'Sezione IMU e trib. locali'!M$9:M$1008)-SUMIF('Sezione IMU e trib. locali'!B$9:B$1008,B77,'Sezione IMU e trib. locali'!N$9:N$1008))+(SUMIF('Sezione ACCISE'!B$9:B$1008,B77,'Sezione ACCISE'!N$9:N$1008)),0) -> 0 | AF77: =IF(B77="",0,IF(B77=B76,COUNTIF(B$9:B76,B77)+1,1)) -> 67 | AG77: 0 | AH77: 0
A78: 70 | B78: -1900 | C78: -1900-68 | Q78: =IF(M$1021=1,"",IF(P78="","",VLOOKUP(P78,Tabelle!$B$5:$F$7,5,FALSE))) ->  | R78: =IF(M$1021=1,"",IF(P78="","",VLOOKUP(P78,Tabelle!$B$5:$G$7,6,FALSE))) ->  | V78: =IF(AND(D78<>"",B78<>B77),(SUMIF(B$9:B$1008,B78,M$9:M$1008)-SUMIF(B$9:B$1008,B78,N$9:N$1008))+(SUMIF('Sezione INPS'!B$9:B$1008,B78,'Sezione INPS'!N$9:N$1008)-SUMIF('Sezione INPS'!B$9:B$1008,B78,'Sezione INPS'!O$9:O$1008))+(SUMIF('Sezione REGIONI'!B$9:B$1008,B78,'Sezione REGIONI'!K$9:K$1008)-SUMIF('Sezione REGIONI'!B$9:B$1008,B78,'Sezione REGIONI'!L$9:L$1008))+(SUMIF('Sezione IMU e trib. locali'!B$9:B$1008,B78,'Sezione IMU e trib. locali'!M$9:M$1008)-SUMIF('Sezione IMU e trib. locali'!B$9:B$1008,B78,'Sezione IMU e trib. locali'!N$9:N$1008))+(SUMIF('Sezione ACCISE'!B$9:B$1008,B78,'Sezione ACCISE'!N$9:N$1008)),0) -> 0 | AF78: =IF(B78="",0,IF(B78=B77,COUNTIF(B$9:B77,B78)+1,1)) -> 68 | AG78: 0 | AH78: 0
A79: 71 | B79: -1900 | C79: -1900-69 | Q79: =IF(M$1021=1,"",IF(P79="","",VLOOKUP(P79,Tabelle!$B$5:$F$7,5,FALSE))) ->  | R79: =IF(M$1021=1,"",IF(P79="","",VLOOKUP(P79,Tabelle!$B$5:$G$7,6,FALSE))) ->  | V79: =IF(AND(D79<>"",B79<>B78),(SUMIF(B$9:B$1008,B79,M$9:M$1008)-SUMIF(B$9:B$1008,B79,N$9:N$1008))+(SUMIF('Sezione INPS'!B$9:B$1008,B79,'Sezione INPS'!N$9:N$1008)-SUMIF('Sezione INPS'!B$9:B$1008,B79,'Sezione INPS'!O$9:O$1008))+(SUMIF('Sezione REGIONI'!B$9:B$1008,B79,'Sezione REGIONI'!K$9:K$1008)-SUMIF('Sezione REGIONI'!B$9:B$1008,B79,'Sezione REGIONI'!L$9:L$1008))+(SUMIF('Sezione IMU e trib. locali'!B$9:B$1008,B79,'Sezione IMU e trib. locali'!M$9:M$1008)-SUMIF('Sezione IMU e trib. locali'!B$9:B$1008,B79,'Sezione IMU e trib. locali'!N$9:N$1008))+(SUMIF('Sezione ACCISE'!B$9:B$1008,B79,'Sezione ACCISE'!N$9:N$1008)),0) -> 0 | AF79: =IF(B79="",0,IF(B79=B78,COUNTIF(B$9:B78,B79)+1,1)) -> 69 | AG79: 0 | AH79: 0
A80: 72 | B80: -1900 | C80: -1900-70 | Q80: =IF(M$1021=1,"",IF(P80="","",VLOOKUP(P80,Tabelle!$B$5:$F$7,5,FALSE))) ->  | R80: =IF(M$1021=1,"",IF(P80="","",VLOOKUP(P80,Tabelle!$B$5:$G$7,6,FALSE))) ->  | V80: =IF(AND(D80<>"",B80<>B79),(SUMIF(B$9:B$1008,B80,M$9:M$1008)-SUMIF(B$9:B$1008,B80,N$9:N$1008))+(SUMIF('Sezione INPS'!B$9:B$1008,B80,'Sezione INPS'!N$9:N$1008)-SUMIF('Sezione INPS'!B$9:B$1008,B80,'Sezione INPS'!O$9:O$1008))+(SUMIF('Sezione REGIONI'!B$9:B$1008,B80,'Sezione REGIONI'!K$9:K$1008)-SUMIF('Sezione REGIONI'!B$9:B$1008,B80,'Sezione REGIONI'!L$9:L$1008))+(SUMIF('Sezione IMU e trib. locali'!B$9:B$1008,B80,'Sezione IMU e trib. locali'!M$9:M$1008)-SUMIF('Sezione IMU e trib. locali'!B$9:B$1008,B80,'Sezione IMU e trib. locali'!N$9:N$1008))+(SUMIF('Sezione ACCISE'!B$9:B$1008,B80,'Sezione ACCISE'!N$9:N$1008)),0) -> 0 | AF80: =IF(B80="",0,IF(B80=B79,COUNTIF(B$9:B79,B80)+1,1)) -> 70 | AG80: 0 | AH80: 0
A81: 73 | B81: -1900 | C81: -1900-71 | Q81: =IF(M$1021=1,"",IF(P81="","",VLOOKUP(P81,Tabelle!$B$5:$F$7,5,FALSE))) ->  | R81: =IF(M$1021=1,"",IF(P81="","",VLOOKUP(P81,Tabelle!$B$5:$G$7,6,FALSE))) ->  | V81: =IF(AND(D81<>"",B81<>B80),(SUMIF(B$9:B$1008,B81,M$9:M$1008)-SUMIF(B$9:B$1008,B81,N$9:N$1008))+(SUMIF('Sezione INPS'!B$9:B$1008,B81,'Sezione INPS'!N$9:N$1008)-SUMIF('Sezione INPS'!B$9:B$1008,B81,'Sezione INPS'!O$9:O$1008))+(SUMIF('Sezione REGIONI'!B$9:B$1008,B81,'Sezione REGIONI'!K$9:K$1008)-SUMIF('Sezione REGIONI'!B$9:B$1008,B81,'Sezione REGIONI'!L$9:L$1008))+(SUMIF('Sezione IMU e trib. locali'!B$9:B$1008,B81,'Sezione IMU e trib. locali'!M$9:M$1008)-SUMIF('Sezione IMU e trib. locali'!B$9:B$1008,B81,'Sezione IMU e trib. locali'!N$9:N$1008))+(SUMIF('Sezione ACCISE'!B$9:B$1008,B81,'Sezione ACCISE'!N$9:N$1008)),0) -> 0 | AF81: =IF(B81="",0,IF(B81=B80,COUNTIF(B$9:B80,B81)+1,1)) -> 71 | AG81: 0 | AH81: 0
A82: 74 | B82: -1900 | C82: -1900-72 | Q82: =IF(M$1021=1,"",IF(P82="","",VLOOKUP(P82,Tabelle!$B$5:$F$7,5,FALSE))) ->  | R82: =IF(M$1021=1,"",IF(P82="","",VLOOKUP(P82,Tabelle!$B$5:$G$7,6,FALSE))) ->  | V82: =IF(AND(D82<>"",B82<>B81),(SUMIF(B$9:B$1008,B82,M$9:M$1008)-SUMIF(B$9:B$1008,B82,N$9:N$1008))+(SUMIF('Sezione INPS'!B$9:B$1008,B82,'Sezione INPS'!N$9:N$1008)-SUMIF('Sezione INPS'!B$9:B$1008,B82,'Sezione INPS'!O$9:O$1008))+(SUMIF('Sezione REGIONI'!B$9:B$1008,B82,'Sezione REGIONI'!K$9:K$1008)-SUMIF('Sezione REGIONI'!B$9:B$1008,B82,'Sezione REGIONI'!L$9:L$1008))+(SUMIF('Sezione IMU e trib. locali'!B$9:B$1008,B82,'Sezione IMU e trib. locali'!M$9:M$1008)-SUMIF('Sezione IMU e trib. locali'!B$9:B$1008,B82,'Sezione IMU e trib. locali'!N$9:N$1008))+(SUMIF('Sezione ACCISE'!B$9:B$1008,B82,'Sezione ACCISE'!N$9:N$1008)),0) -> 0 | AF82: =IF(B82="",0,IF(B82=B81,COUNTIF(B$9:B81,B82)+1,1)) -> 72 | AG82: 0 | AH82: 0
A83: 75 | B83: -1900 | C83: -1900-73 | Q83: =IF(M$1021=1,"",IF(P83="","",VLOOKUP(P83,Tabelle!$B$5:$F$7,5,FALSE))) ->  | R83: =IF(M$1021=1,"",IF(P83="","",VLOOKUP(P83,Tabelle!$B$5:$G$7,6,FALSE))) ->  | V83: =IF(AND(D83<>"",B83<>B82),(SUMIF(B$9:B$1008,B83,M$9:M$1008)-SUMIF(B$9:B$1008,B83,N$9:N$1008))+(SUMIF('Sezione INPS'!B$9:B$1008,B83,'Sezione INPS'!N$9:N$1008)-SUMIF('Sezione INPS'!B$9:B$1008,B83,'Sezione INPS'!O$9:O$1008))+(SUMIF('Sezione REGIONI'!B$9:B$1008,B83,'Sezione REGIONI'!K$9:K$1008)-SUMIF('Sezione REGIONI'!B$9:B$1008,B83,'Sezione REGIONI'!L$9:L$1008))+(SUMIF('Sezione IMU e trib. locali'!B$9:B$1008,B83,'Sezione IMU e trib. locali'!M$9:M$1008)-SUMIF('Sezione IMU e trib. locali'!B$9:B$1008,B83,'Sezione IMU e trib. locali'!N$9:N$1008))+(SUMIF('Sezione ACCISE'!B$9:B$1008,B83,'Sezione ACCISE'!N$9:N$1008)),0) -> 0 | AF83: =IF(B83="",0,IF(B83=B82,COUNTIF(B$9:B82,B83)+1,1)) -> 73 | AG83: 0 | AH83: 0
A84: 76 | B84: -1900 | C84: -1900-74 | Q84: =IF(M$1021=1,"",IF(P84="","",VLOOKUP(P84,Tabelle!$B$5:$F$7,5,FALSE))) ->  | R84: =IF(M$1021=1,"",IF(P84="","",VLOOKUP(P84,Tabelle!$B$5:$G$7,6,FALSE))) ->  | V84: =IF(AND(D84<>"",B84<>B83),(SUMIF(B$9:B$1008,B84,M$9:M$1008)-SUMIF(B$9:B$1008,B84,N$9:N$1008))+(SUMIF('Sezione INPS'!B$9:B$1008,B84,'Sezione INPS'!N$9:N$1008)-SUMIF('Sezione INPS'!B$9:B$1008,B84,'Sezione INPS'!O$9:O$1008))+(SUMIF('Sezione REGIONI'!B$9:B$1008,B84,'Sezione REGIONI'!K$9:K$1008)-SUMIF('Sezione REGIONI'!B$9:B$1008,B84,'Sezione REGIONI'!L$9:L$1008))+(SUMIF('Sezione IMU e trib. locali'!B$9:B$1008,B84,'Sezione IMU e trib. locali'!M$9:M$1008)-SUMIF('Sezione IMU e trib. locali'!B$9:B$1008,B84,'Sezione IMU e trib. locali'!N$9:N$1008))+(SUMIF('Sezione ACCISE'!B$9:B$1008,B84,'Sezione ACCISE'!N$9:N$1008)),0) -> 0 | AF84: =IF(B84="",0,IF(B84=B83,COUNTIF(B$9:B83,B84)+1,1)) -> 74 | AG84: 0 | AH84: 0
A85: 77 | B85: -1900 | C85: -1900-75 | Q85: =IF(M$1021=1,"",IF(P85="","",VLOOKUP(P85,Tabelle!$B$5:$F$7,5,FALSE))) ->  | R85: =IF(M$1021=1,"",IF(P85="","",VLOOKUP(P85,Tabelle!$B$5:$G$7,6,FALSE))) ->  | V85: =IF(AND(D85<>"",B85<>B84),(SUMIF(B$9:B$1008,B85,M$9:M$1008)-SUMIF(B$9:B$1008,B85,N$9:N$1008))+(SUMIF('Sezione INPS'!B$9:B$1008,B85,'Sezione INPS'!N$9:N$1008)-SUMIF('Sezione INPS'!B$9:B$1008,B85,'Sezione INPS'!O$9:O$1008))+(SUMIF('Sezione REGIONI'!B$9:B$1008,B85,'Sezione REGIONI'!K$9:K$1008)-SUMIF('Sezione REGIONI'!B$9:B$1008,B85,'Sezione REGIONI'!L$9:L$1008))+(SUMIF('Sezione IMU e trib. locali'!B$9:B$1008,B85,'Sezione IMU e trib. locali'!M$9:M$1008)-SUMIF('Sezione IMU e trib. locali'!B$9:B$1008,B85,'Sezione IMU e trib. locali'!N$9:N$1008))+(SUMIF('Sezione ACCISE'!B$9:B$1008,B85,'Sezione ACCISE'!N$9:N$1008)),0) -> 0 | AF85: =IF(B85="",0,IF(B85=B84,COUNTIF(B$9:B84,B85)+1,1)) -> 75 | AG85: 0 | AH85: 0
A86: 78 | B86: -1900 | C86: -1900-76 | Q86: =IF(M$1021=1,"",IF(P86="","",VLOOKUP(P86,Tabelle!$B$5:$F$7,5,FALSE))) ->  | R86: =IF(M$1021=1,"",IF(P86="","",VLOOKUP(P86,Tabelle!$B$5:$G$7,6,FALSE))) ->  | V86: =IF(AND(D86<>"",B86<>B85),(SUMIF(B$9:B$1008,B86,M$9:M$1008)-SUMIF(B$9:B$1008,B86,N$9:N$1008))+(SUMIF('Sezione INPS'!B$9:B$1008,B86,'Sezione INPS'!N$9:N$1008)-SUMIF('Sezione INPS'!B$9:B$1008,B86,'Sezione INPS'!O$9:O$1008))+(SUMIF('Sezione REGIONI'!B$9:B$1008,B86,'Sezione REGIONI'!K$9:K$1008)-SUMIF('Sezione REGIONI'!B$9:B$1008,B86,'Sezione REGIONI'!L$9:L$1008))+(SUMIF('Sezione IMU e trib. locali'!B$9:B$1008,B86,'Sezione IMU e trib. locali'!M$9:M$1008)-SUMIF('Sezione IMU e trib. locali'!B$9:B$1008,B86,'Sezione IMU e trib. locali'!N$9:N$1008))+(SUMIF('Sezione ACCISE'!B$9:B$1008,B86,'Sezione ACCISE'!N$9:N$1008)),0) -> 0 | AF86: =IF(B86="",0,IF(B86=B85,COUNTIF(B$9:B85,B86)+1,1)) -> 76 | AG86: 0 | AH86: 0
A87: 79 | B87: -1900 | C87: -1900-77 | Q87: =IF(M$1021=1,"",IF(P87="","",VLOOKUP(P87,Tabelle!$B$5:$F$7,5,FALSE))) ->  | R87: =IF(M$1021=1,"",IF(P87="","",VLOOKUP(P87,Tabelle!$B$5:$G$7,6,FALSE))) ->  | V87: =IF(AND(D87<>"",B87<>B86),(SUMIF(B$9:B$1008,B87,M$9:M$1008)-SUMIF(B$9:B$1008,B87,N$9:N$1008))+(SUMIF('Sezione INPS'!B$9:B$1008,B87,'Sezione INPS'!N$9:N$1008)-SUMIF('Sezione INPS'!B$9:B$1008,B87,'Sezione INPS'!O$9:O$1008))+(SUMIF('Sezione REGIONI'!B$9:B$1008,B87,'Sezione REGIONI'!K$9:K$1008)-SUMIF('Sezione REGIONI'!B$9:B$1008,B87,'Sezione REGIONI'!L$9:L$1008))+(SUMIF('Sezione IMU e trib. locali'!B$9:B$1008,B87,'Sezione IMU e trib. locali'!M$9:M$1008)-SUMIF('Sezione IMU e trib. locali'!B$9:B$1008,B87,'Sezione IMU e trib. locali'!N$9:N$1008))+(SUMIF('Sezione ACCISE'!B$9:B$1008,B87,'Sezione ACCISE'!N$9:N$1008)),0) -> 0 | AF87: =IF(B87="",0,IF(B87=B86,COUNTIF(B$9:B86,B87)+1,1)) -> 77 | AG87: 0 | AH87: 0
A88: 80 | B88: -1900 | C88: -1900-78 | Q88: =IF(M$1021=1,"",IF(P88="","",VLOOKUP(P88,Tabelle!$B$5:$F$7,5,FALSE))) ->  | R88: =IF(M$1021=1,"",IF(P88="","",VLOOKUP(P88,Tabelle!$B$5:$G$7,6,FALSE))) ->  | V88: =IF(AND(D88<>"",B88<>B87),(SUMIF(B$9:B$1008,B88,M$9:M$1008)-SUMIF(B$9:B$1008,B88,N$9:N$1008))+(SUMIF('Sezione INPS'!B$9:B$1008,B88,'Sezione INPS'!N$9:N$1008)-SUMIF('Sezione INPS'!B$9:B$1008,B88,'Sezione INPS'!O$9:O$1008))+(SUMIF('Sezione REGIONI'!B$9:B$1008,B88,'Sezione REGIONI'!K$9:K$1008)-SUMIF('Sezione REGIONI'!B$9:B$1008,B88,'Sezione REGIONI'!L$9:L$1008))+(SUMIF('Sezione IMU e trib. locali'!B$9:B$1008,B88,'Sezione IMU e trib. locali'!M$9:M$1008)-SUMIF('Sezione IMU e trib. locali'!B$9:B$1008,B88,'Sezione IMU e trib. locali'!N$9:N$1008))+(SUMIF('Sezione ACCISE'!B$9:B$1008,B88,'Sezione ACCISE'!N$9:N$1008)),0) -> 0 | AF88: =IF(B88="",0,IF(B88=B87,COUNTIF(B$9:B87,B88)+1,1)) -> 78 | AG88: 0 | AH88: 0
A89: 81 | B89: -1900 | C89: -1900-79 | Q89: =IF(M$1021=1,"",IF(P89="","",VLOOKUP(P89,Tabelle!$B$5:$F$7,5,FALSE))) ->  | R89: =IF(M$1021=1,"",IF(P89="","",VLOOKUP(P89,Tabelle!$B$5:$G$7,6,FALSE))) ->  | V89: =IF(AND(D89<>"",B89<>B88),(SUMIF(B$9:B$1008,B89,M$9:M$1008)-SUMIF(B$9:B$1008,B89,N$9:N$1008))+(SUMIF('Sezione INPS'!B$9:B$1008,B89,'Sezione INPS'!N$9:N$1008)-SUMIF('Sezione INPS'!B$9:B$1008,B89,'Sezione INPS'!O$9:O$1008))+(SUMIF('Sezione REGIONI'!B$9:B$1008,B89,'Sezione REGIONI'!K$9:K$1008)-SUMIF('Sezione REGIONI'!B$9:B$1008,B89,'Sezione REGIONI'!L$9:L$1008))+(SUMIF('Sezione IMU e trib. locali'!B$9:B$1008,B89,'Sezione IMU e trib. locali'!M$9:M$1008)-SUMIF('Sezione IMU e trib. locali'!B$9:B$1008,B89,'Sezione IMU e trib. locali'!N$9:N$1008))+(SUMIF('Sezione ACCISE'!B$9:B$1008,B89,'Sezione ACCISE'!N$9:N$1008)),0) -> 0 | AF89: =IF(B89="",0,IF(B89=B88,COUNTIF(B$9:B88,B89)+1,1)) -> 79 | AG89: 0 | AH89: 0
A90: 82 | B90: -1900 | C90: -1900-80 | Q90: =IF(M$1021=1,"",IF(P90="","",VLOOKUP(P90,Tabelle!$B$5:$F$7,5,FALSE))) ->  | R90: =IF(M$1021=1,"",IF(P90="","",VLOOKUP(P90,Tabelle!$B$5:$G$7,6,FALSE))) ->  | V90: =IF(AND(D90<>"",B90<>B89),(SUMIF(B$9:B$1008,B90,M$9:M$1008)-SUMIF(B$9:B$1008,B90,N$9:N$1008))+(SUMIF('Sezione INPS'!B$9:B$1008,B90,'Sezione INPS'!N$9:N$1008)-SUMIF('Sezione INPS'!B$9:B$1008,B90,'Sezione INPS'!O$9:O$1008))+(SUMIF('Sezione REGIONI'!B$9:B$1008,B90,'Sezione REGIONI'!K$9:K$1008)-SUMIF('Sezione REGIONI'!B$9:B$1008,B90,'Sezione REGIONI'!L$9:L$1008))+(SUMIF('Sezione IMU e trib. locali'!B$9:B$1008,B90,'Sezione IMU e trib. locali'!M$9:M$1008)-SUMIF('Sezione IMU e trib. locali'!B$9:B$1008,B90,'Sezione IMU e trib. locali'!N$9:N$1008))+(SUMIF('Sezione ACCISE'!B$9:B$1008,B90,'Sezione ACCISE'!N$9:N$1008)),0) -> 0 | AF90: =IF(B90="",0,IF(B90=B89,COUNTIF(B$9:B89,B90)+1,1)) -> 80 | AG90: 0 | AH90: 0
A91: 83 | B91: -1900 | C91: -1900-81 | Q91: =IF(M$1021=1,"",IF(P91="","",VLOOKUP(P91,Tabelle!$B$5:$F$7,5,FALSE))) ->  | R91: =IF(M$1021=1,"",IF(P91="","",VLOOKUP(P91,Tabelle!$B$5:$G$7,6,FALSE))) ->  | V91: =IF(AND(D91<>"",B91<>B90),(SUMIF(B$9:B$1008,B91,M$9:M$1008)-SUMIF(B$9:B$1008,B91,N$9:N$1008))+(SUMIF('Sezione INPS'!B$9:B$1008,B91,'Sezione INPS'!N$9:N$1008)-SUMIF('Sezione INPS'!B$9:B$1008,B91,'Sezione INPS'!O$9:O$1008))+(SUMIF('Sezione REGIONI'!B$9:B$1008,B91,'Sezione REGIONI'!K$9:K$1008)-SUMIF('Sezione REGIONI'!B$9:B$1008,B91,'Sezione REGIONI'!L$9:L$1008))+(SUMIF('Sezione IMU e trib. locali'!B$9:B$1008,B91,'Sezione IMU e trib. locali'!M$9:M$1008)-SUMIF('Sezione IMU e trib. locali'!B$9:B$1008,B91,'Sezione IMU e trib. locali'!N$9:N$1008))+(SUMIF('Sezione ACCISE'!B$9:B$1008,B91,'Sezione ACCISE'!N$9:N$1008)),0) -> 0 | AF91: =IF(B91="",0,IF(B91=B90,COUNTIF(B$9:B90,B91)+1,1)) -> 81 | AG91: 0 | AH91: 0
A92: 84 | B92: -1900 | C92: -1900-82 | Q92: =IF(M$1021=1,"",IF(P92="","",VLOOKUP(P92,Tabelle!$B$5:$F$7,5,FALSE))) ->  | R92: =IF(M$1021=1,"",IF(P92="","",VLOOKUP(P92,Tabelle!$B$5:$G$7,6,FALSE))) ->  | V92: =IF(AND(D92<>"",B92<>B91),(SUMIF(B$9:B$1008,B92,M$9:M$1008)-SUMIF(B$9:B$1008,B92,N$9:N$1008))+(SUMIF('Sezione INPS'!B$9:B$1008,B92,'Sezione INPS'!N$9:N$1008)-SUMIF('Sezione INPS'!B$9:B$1008,B92,'Sezione INPS'!O$9:O$1008))+(SUMIF('Sezione REGIONI'!B$9:B$1008,B92,'Sezione REGIONI'!K$9:K$1008)-SUMIF('Sezione REGIONI'!B$9:B$1008,B92,'Sezione REGIONI'!L$9:L$1008))+(SUMIF('Sezione IMU e trib. locali'!B$9:B$1008,B92,'Sezione IMU e trib. locali'!M$9:M$1008)-SUMIF('Sezione IMU e trib. locali'!B$9:B$1008,B92,'Sezione IMU e trib. locali'!N$9:N$1008))+(SUMIF('Sezione ACCISE'!B$9:B$1008,B92,'Sezione ACCISE'!N$9:N$1008)),0) -> 0 | AF92: =IF(B92="",0,IF(B92=B91,COUNTIF(B$9:B91,B92)+1,1)) -> 82 | AG92: 0 | AH92: 0
A93: 85 | B93: -1900 | C93: -1900-83 | Q93: =IF(M$1021=1,"",IF(P93="","",VLOOKUP(P93,Tabelle!$B$5:$F$7,5,FALSE))) ->  | R93: =IF(M$1021=1,"",IF(P93="","",VLOOKUP(P93,Tabelle!$B$5:$G$7,6,FALSE))) ->  | V93: =IF(AND(D93<>"",B93<>B92),(SUMIF(B$9:B$1008,B93,M$9:M$1008)-SUMIF(B$9:B$1008,B93,N$9:N$1008))+(SUMIF('Sezione INPS'!B$9:B$1008,B93,'Sezione INPS'!N$9:N$1008)-SUMIF('Sezione INPS'!B$9:B$1008,B93,'Sezione INPS'!O$9:O$1008))+(SUMIF('Sezione REGIONI'!B$9:B$1008,B93,'Sezione REGIONI'!K$9:K$1008)-SUMIF('Sezione REGIONI'!B$9:B$1008,B93,'Sezione REGIONI'!L$9:L$1008))+(SUMIF('Sezione IMU e trib. locali'!B$9:B$1008,B93,'Sezione IMU e trib. locali'!M$9:M$1008)-SUMIF('Sezione IMU e trib. locali'!B$9:B$1008,B93,'Sezione IMU e trib. locali'!N$9:N$1008))+(SUMIF('Sezione ACCISE'!B$9:B$1008,B93,'Sezione ACCISE'!N$9:N$1008)),0) -> 0 | AF93: =IF(B93="",0,IF(B93=B92,COUNTIF(B$9:B92,B93)+1,1)) -> 83 | AG93: 0 | AH93: 0
A94: 86 | B94: -1900 | C94: -1900-84 | Q94: =IF(M$1021=1,"",IF(P94="","",VLOOKUP(P94,Tabelle!$B$5:$F$7,5,FALSE))) ->  | R94: =IF(M$1021=1,"",IF(P94="","",VLOOKUP(P94,Tabelle!$B$5:$G$7,6,FALSE))) ->  | V94: =IF(AND(D94<>"",B94<>B93),(SUMIF(B$9:B$1008,B94,M$9:M$1008)-SUMIF(B$9:B$1008,B94,N$9:N$1008))+(SUMIF('Sezione INPS'!B$9:B$1008,B94,'Sezione INPS'!N$9:N$1008)-SUMIF('Sezione INPS'!B$9:B$1008,B94,'Sezione INPS'!O$9:O$1008))+(SUMIF('Sezione REGIONI'!B$9:B$1008,B94,'Sezione REGIONI'!K$9:K$1008)-SUMIF('Sezione REGIONI'!B$9:B$1008,B94,'Sezione REGIONI'!L$9:L$1008))+(SUMIF('Sezione IMU e trib. locali'!B$9:B$1008,B94,'Sezione IMU e trib. locali'!M$9:M$1008)-SUMIF('Sezione IMU e trib. locali'!B$9:B$1008,B94,'Sezione IMU e trib. locali'!N$9:N$1008))+(SUMIF('Sezione ACCISE'!B$9:B$1008,B94,'Sezione ACCISE'!N$9:N$1008)),0) -> 0 | AF94: =IF(B94="",0,IF(B94=B93,COUNTIF(B$9:B93,B94)+1,1)) -> 84 | AG94: 0 | AH94: 0
A95: 87 | B95: -1900 | C95: -1900-85 | Q95: =IF(M$1021=1,"",IF(P95="","",VLOOKUP(P95,Tabelle!$B$5:$F$7,5,FALSE))) ->  | R95: =IF(M$1021=1,"",IF(P95="","",VLOOKUP(P95,Tabelle!$B$5:$G$7,6,FALSE))) ->  | V95: =IF(AND(D95<>"",B95<>B94),(SUMIF(B$9:B$1008,B95,M$9:M$1008)-SUMIF(B$9:B$1008,B95,N$9:N$1008))+(SUMIF('Sezione INPS'!B$9:B$1008,B95,'Sezione INPS'!N$9:N$1008)-SUMIF('Sezione INPS'!B$9:B$1008,B95,'Sezione INPS'!O$9:O$1008))+(SUMIF('Sezione REGIONI'!B$9:B$1008,B95,'Sezione REGIONI'!K$9:K$1008)-SUMIF('Sezione REGIONI'!B$9:B$1008,B95,'Sezione REGIONI'!L$9:L$1008))+(SUMIF('Sezione IMU e trib. locali'!B$9:B$1008,B95,'Sezione IMU e trib. locali'!M$9:M$1008)-SUMIF('Sezione IMU e trib. locali'!B$9:B$1008,B95,'Sezione IMU e trib. locali'!N$9:N$1008))+(SUMIF('Sezione ACCISE'!B$9:B$1008,B95,'Sezione ACCISE'!N$9:N$1008)),0) -> 0 | AF95: =IF(B95="",0,IF(B95=B94,COUNTIF(B$9:B94,B95)+1,1)) -> 85 | AG95: 0 | AH95: 0
A96: 88 | B96: -1900 | C96: -1900-86 | Q96: =IF(M$1021=1,"",IF(P96="","",VLOOKUP(P96,Tabelle!$B$5:$F$7,5,FALSE))) ->  | R96: =IF(M$1021=1,"",IF(P96="","",VLOOKUP(P96,Tabelle!$B$5:$G$7,6,FALSE))) ->  | V96: =IF(AND(D96<>"",B96<>B95),(SUMIF(B$9:B$1008,B96,M$9:M$1008)-SUMIF(B$9:B$1008,B96,N$9:N$1008))+(SUMIF('Sezione INPS'!B$9:B$1008,B96,'Sezione INPS'!N$9:N$1008)-SUMIF('Sezione INPS'!B$9:B$1008,B96,'Sezione INPS'!O$9:O$1008))+(SUMIF('Sezione REGIONI'!B$9:B$1008,B96,'Sezione REGIONI'!K$9:K$1008)-SUMIF('Sezione REGIONI'!B$9:B$1008,B96,'Sezione REGIONI'!L$9:L$1008))+(SUMIF('Sezione IMU e trib. locali'!B$9:B$1008,B96,'Sezione IMU e trib. locali'!M$9:M$1008)-SUMIF('Sezione IMU e trib. locali'!B$9:B$1008,B96,'Sezione IMU e trib. locali'!N$9:N$1008))+(SUMIF('Sezione ACCISE'!B$9:B$1008,B96,'Sezione ACCISE'!N$9:N$1008)),0) -> 0 | AF96: =IF(B96="",0,IF(B96=B95,COUNTIF(B$9:B95,B96)+1,1)) -> 86 | AG96: 0 | AH96: 0
A97: 89 | B97: -1900 | C97: -1900-87 | Q97: =IF(M$1021=1,"",IF(P97="","",VLOOKUP(P97,Tabelle!$B$5:$F$7,5,FALSE))) ->  | R97: =IF(M$1021=1,"",IF(P97="","",VLOOKUP(P97,Tabelle!$B$5:$G$7,6,FALSE))) ->  | V97: =IF(AND(D97<>"",B97<>B96),(SUMIF(B$9:B$1008,B97,M$9:M$1008)-SUMIF(B$9:B$1008,B97,N$9:N$1008))+(SUMIF('Sezione INPS'!B$9:B$1008,B97,'Sezione INPS'!N$9:N$1008)-SUMIF('Sezione INPS'!B$9:B$1008,B97,'Sezione INPS'!O$9:O$1008))+(SUMIF('Sezione REGIONI'!B$9:B$1008,B97,'Sezione REGIONI'!K$9:K$1008)-SUMIF('Sezione REGIONI'!B$9:B$1008,B97,'Sezione REGIONI'!L$9:L$1008))+(SUMIF('Sezione IMU e trib. locali'!B$9:B$1008,B97,'Sezione IMU e trib. locali'!M$9:M$1008)-SUMIF('Sezione IMU e trib. locali'!B$9:B$1008,B97,'Sezione IMU e trib. locali'!N$9:N$1008))+(SUMIF('Sezione ACCISE'!B$9:B$1008,B97,'Sezione ACCISE'!N$9:N$1008)),0) -> 0 | AF97: =IF(B97="",0,IF(B97=B96,COUNTIF(B$9:B96,B97)+1,1)) -> 87 | AG97: 0 | AH97: 0
A98: 90 | B98: -1900 | C98: -1900-88 | Q98: =IF(M$1021=1,"",IF(P98="","",VLOOKUP(P98,Tabelle!$B$5:$F$7,5,FALSE))) ->  | R98: =IF(M$1021=1,"",IF(P98="","",VLOOKUP(P98,Tabelle!$B$5:$G$7,6,FALSE))) ->  | V98: =IF(AND(D98<>"",B98<>B97),(SUMIF(B$9:B$1008,B98,M$9:M$1008)-SUMIF(B$9:B$1008,B98,N$9:N$1008))+(SUMIF('Sezione INPS'!B$9:B$1008,B98,'Sezione INPS'!N$9:N$1008)-SUMIF('Sezione INPS'!B$9:B$1008,B98,'Sezione INPS'!O$9:O$1008))+(SUMIF('Sezione REGIONI'!B$9:B$1008,B98,'Sezione REGIONI'!K$9:K$1008)-SUMIF('Sezione REGIONI'!B$9:B$1008,B98,'Sezione REGIONI'!L$9:L$1008))+(SUMIF('Sezione IMU e trib. locali'!B$9:B$1008,B98,'Sezione IMU e trib. locali'!M$9:M$1008)-SUMIF('Sezione IMU e trib. locali'!B$9:B$1008,B98,'Sezione IMU e trib. locali'!N$9:N$1008))+(SUMIF('Sezione ACCISE'!B$9:B$1008,B98,'Sezione ACCISE'!N$9:N$1008)),0) -> 0 | AF98: =IF(B98="",0,IF(B98=B97,COUNTIF(B$9:B97,B98)+1,1)) -> 88 | AG98: 0 | AH98: 0
A99: 91 | B99: -1900 | C99: -1900-89 | Q99: =IF(M$1021=1,"",IF(P99="","",VLOOKUP(P99,Tabelle!$B$5:$F$7,5,FALSE))) ->  | R99: =IF(M$1021=1,"",IF(P99="","",VLOOKUP(P99,Tabelle!$B$5:$G$7,6,FALSE))) ->  | V99: =IF(AND(D99<>"",B99<>B98),(SUMIF(B$9:B$1008,B99,M$9:M$1008)-SUMIF(B$9:B$1008,B99,N$9:N$1008))+(SUMIF('Sezione INPS'!B$9:B$1008,B99,'Sezione INPS'!N$9:N$1008)-SUMIF('Sezione INPS'!B$9:B$1008,B99,'Sezione INPS'!O$9:O$1008))+(SUMIF('Sezione REGIONI'!B$9:B$1008,B99,'Sezione REGIONI'!K$9:K$1008)-SUMIF('Sezione REGIONI'!B$9:B$1008,B99,'Sezione REGIONI'!L$9:L$1008))+(SUMIF('Sezione IMU e trib. locali'!B$9:B$1008,B99,'Sezione IMU e trib. locali'!M$9:M$1008)-SUMIF('Sezione IMU e trib. locali'!B$9:B$1008,B99,'Sezione IMU e trib. locali'!N$9:N$1008))+(SUMIF('Sezione ACCISE'!B$9:B$1008,B99,'Sezione ACCISE'!N$9:N$1008)),0) -> 0 | AF99: =IF(B99="",0,IF(B99=B98,COUNTIF(B$9:B98,B99)+1,1)) -> 89 | AG99: 0 | AH99: 0
A100: 92 | B100: -1900 | C100: -1900-90 | Q100: =IF(M$1021=1,"",IF(P100="","",VLOOKUP(P100,Tabelle!$B$5:$F$7,5,FALSE))) ->  | R100: =IF(M$1021=1,"",IF(P100="","",VLOOKUP(P100,Tabelle!$B$5:$G$7,6,FALSE))) ->  | V100: =IF(AND(D100<>"",B100<>B99),(SUMIF(B$9:B$1008,B100,M$9:M$1008)-SUMIF(B$9:B$1008,B100,N$9:N$1008))+(SUMIF('Sezione INPS'!B$9:B$1008,B100,'Sezione INPS'!N$9:N$1008)-SUMIF('Sezione INPS'!B$9:B$1008,B100,'Sezione INPS'!O$9:O$1008))+(SUMIF('Sezione REGIONI'!B$9:B$1008,B100,'Sezione REGIONI'!K$9:K$1008)-SUMIF('Sezione REGIONI'!B$9:B$1008,B100,'Sezione REGIONI'!L$9:L$1008))+(SUMIF('Sezione IMU e trib. locali'!B$9:B$1008,B100,'Sezione IMU e trib. locali'!M$9:M$1008)-SUMIF('Sezione IMU e trib. locali'!B$9:B$1008,B100,'Sezione IMU e trib. locali'!N$9:N$1008))+(SUMIF('Sezione ACCISE'!B$9:B$1008,B100,'Sezione ACCISE'!N$9:N$1008)),0) -> 0 | AF100: =IF(B100="",0,IF(B100=B99,COUNTIF(B$9:B99,B100)+1,1)) -> 90 | AG100: 0 | AH100: 0
A101: 93 | B101: -1900 | C101: -1900-91 | Q101: =IF(M$1021=1,"",IF(P101="","",VLOOKUP(P101,Tabelle!$B$5:$F$7,5,FALSE))) ->  | R101: =IF(M$1021=1,"",IF(P101="","",VLOOKUP(P101,Tabelle!$B$5:$G$7,6,FALSE))) ->  | V101: =IF(AND(D101<>"",B101<>B100),(SUMIF(B$9:B$1008,B101,M$9:M$1008)-SUMIF(B$9:B$1008,B101,N$9:N$1008))+(SUMIF('Sezione INPS'!B$9:B$1008,B101,'Sezione INPS'!N$9:N$1008)-SUMIF('Sezione INPS'!B$9:B$1008,B101,'Sezione INPS'!O$9:O$1008))+(SUMIF('Sezione REGIONI'!B$9:B$1008,B101,'Sezione REGIONI'!K$9:K$1008)-SUMIF('Sezione REGIONI'!B$9:B$1008,B101,'Sezione REGIONI'!L$9:L$1008))+(SUMIF('Sezione IMU e trib. locali'!B$9:B$1008,B101,'Sezione IMU e trib. locali'!M$9:M$1008)-SUMIF('Sezione IMU e trib. locali'!B$9:B$1008,B101,'Sezione IMU e trib. locali'!N$9:N$1008))+(SUMIF('Sezione ACCISE'!B$9:B$1008,B101,'Sezione ACCISE'!N$9:N$1008)),0) -> 0 | AF101: =IF(B101="",0,IF(B101=B100,COUNTIF(B$9:B100,B101)+1,1)) -> 91 | AG101: 0 | AH101: 0
A102: 94 | B102: -1900 | C102: -1900-92 | Q102: =IF(M$1021=1,"",IF(P102="","",VLOOKUP(P102,Tabelle!$B$5:$F$7,5,FALSE))) ->  | R102: =IF(M$1021=1,"",IF(P102="","",VLOOKUP(P102,Tabelle!$B$5:$G$7,6,FALSE))) ->  | V102: =IF(AND(D102<>"",B102<>B101),(SUMIF(B$9:B$1008,B102,M$9:M$1008)-SUMIF(B$9:B$1008,B102,N$9:N$1008))+(SUMIF('Sezione INPS'!B$9:B$1008,B102,'Sezione INPS'!N$9:N$1008)-SUMIF('Sezione INPS'!B$9:B$1008,B102,'Sezione INPS'!O$9:O$1008))+(SUMIF('Sezione REGIONI'!B$9:B$1008,B102,'Sezione REGIONI'!K$9:K$1008)-SUMIF('Sezione REGIONI'!B$9:B$1008,B102,'Sezione REGIONI'!L$9:L$1008))+(SUMIF('Sezione IMU e trib. locali'!B$9:B$1008,B102,'Sezione IMU e trib. locali'!M$9:M$1008)-SUMIF('Sezione IMU e trib. locali'!B$9:B$1008,B102,'Sezione IMU e trib. locali'!N$9:N$1008))+(SUMIF('Sezione ACCISE'!B$9:B$1008,B102,'Sezione ACCISE'!N$9:N$1008)),0) -> 0 | AF102: =IF(B102="",0,IF(B102=B101,COUNTIF(B$9:B101,B102)+1,1)) -> 92 | AG102: 0 | AH102: 0
A103: 95 | B103: -1900 | C103: -1900-93 | Q103: =IF(M$1021=1,"",IF(P103="","",VLOOKUP(P103,Tabelle!$B$5:$F$7,5,FALSE))) ->  | R103: =IF(M$1021=1,"",IF(P103="","",VLOOKUP(P103,Tabelle!$B$5:$G$7,6,FALSE))) ->  | V103: =IF(AND(D103<>"",B103<>B102),(SUMIF(B$9:B$1008,B103,M$9:M$1008)-SUMIF(B$9:B$1008,B103,N$9:N$1008))+(SUMIF('Sezione INPS'!B$9:B$1008,B103,'Sezione INPS'!N$9:N$1008)-SUMIF('Sezione INPS'!B$9:B$1008,B103,'Sezione INPS'!O$9:O$1008))+(SUMIF('Sezione REGIONI'!B$9:B$1008,B103,'Sezione REGIONI'!K$9:K$1008)-SUMIF('Sezione REGIONI'!B$9:B$1008,B103,'Sezione REGIONI'!L$9:L$1008))+(SUMIF('Sezione IMU e trib. locali'!B$9:B$1008,B103,'Sezione IMU e trib. locali'!M$9:M$1008)-SUMIF('Sezione IMU e trib. locali'!B$9:B$1008,B103,'Sezione IMU e trib. locali'!N$9:N$1008))+(SUMIF('Sezione ACCISE'!B$9:B$1008,B103,'Sezione ACCISE'!N$9:N$1008)),0) -> 0 | AF103: =IF(B103="",0,IF(B103=B102,COUNTIF(B$9:B102,B103)+1,1)) -> 93 | AG103: 0 | AH103: 0
A104: 96 | B104: -1900 | C104: -1900-94 | Q104: =IF(M$1021=1,"",IF(P104="","",VLOOKUP(P104,Tabelle!$B$5:$F$7,5,FALSE))) ->  | R104: =IF(M$1021=1,"",IF(P104="","",VLOOKUP(P104,Tabelle!$B$5:$G$7,6,FALSE))) ->  | V104: =IF(AND(D104<>"",B104<>B103),(SUMIF(B$9:B$1008,B104,M$9:M$1008)-SUMIF(B$9:B$1008,B104,N$9:N$1008))+(SUMIF('Sezione INPS'!B$9:B$1008,B104,'Sezione INPS'!N$9:N$1008)-SUMIF('Sezione INPS'!B$9:B$1008,B104,'Sezione INPS'!O$9:O$1008))+(SUMIF('Sezione REGIONI'!B$9:B$1008,B104,'Sezione REGIONI'!K$9:K$1008)-SUMIF('Sezione REGIONI'!B$9:B$1008,B104,'Sezione REGIONI'!L$9:L$1008))+(SUMIF('Sezione IMU e trib. locali'!B$9:B$1008,B104,'Sezione IMU e trib. locali'!M$9:M$1008)-SUMIF('Sezione IMU e trib. locali'!B$9:B$1008,B104,'Sezione IMU e trib. locali'!N$9:N$1008))+(SUMIF('Sezione ACCISE'!B$9:B$1008,B104,'Sezione ACCISE'!N$9:N$1008)),0) -> 0 | AF104: =IF(B104="",0,IF(B104=B103,COUNTIF(B$9:B103,B104)+1,1)) -> 94 | AG104: 0 | AH104: 0
A105: 97 | B105: -1900 | C105: -1900-95 | Q105: =IF(M$1021=1,"",IF(P105="","",VLOOKUP(P105,Tabelle!$B$5:$F$7,5,FALSE))) ->  | R105: =IF(M$1021=1,"",IF(P105="","",VLOOKUP(P105,Tabelle!$B$5:$G$7,6,FALSE))) ->  | V105: =IF(AND(D105<>"",B105<>B104),(SUMIF(B$9:B$1008,B105,M$9:M$1008)-SUMIF(B$9:B$1008,B105,N$9:N$1008))+(SUMIF('Sezione INPS'!B$9:B$1008,B105,'Sezione INPS'!N$9:N$1008)-SUMIF('Sezione INPS'!B$9:B$1008,B105,'Sezione INPS'!O$9:O$1008))+(SUMIF('Sezione REGIONI'!B$9:B$1008,B105,'Sezione REGIONI'!K$9:K$1008)-SUMIF('Sezione REGIONI'!B$9:B$1008,B105,'Sezione REGIONI'!L$9:L$1008))+(SUMIF('Sezione IMU e trib. locali'!B$9:B$1008,B105,'Sezione IMU e trib. locali'!M$9:M$1008)-SUMIF('Sezione IMU e trib. locali'!B$9:B$1008,B105,'Sezione IMU e trib. locali'!N$9:N$1008))+(SUMIF('Sezione ACCISE'!B$9:B$1008,B105,'Sezione ACCISE'!N$9:N$1008)),0) -> 0 | AF105: =IF(B105="",0,IF(B105=B104,COUNTIF(B$9:B104,B105)+1,1)) -> 95 | AG105: 0 | AH105: 0
A106: 98 | B106: -1900 | C106: -1900-96 | Q106: =IF(M$1021=1,"",IF(P106="","",VLOOKUP(P106,Tabelle!$B$5:$F$7,5,FALSE))) ->  | R106: =IF(M$1021=1,"",IF(P106="","",VLOOKUP(P106,Tabelle!$B$5:$G$7,6,FALSE))) ->  | V106: =IF(AND(D106<>"",B106<>B105),(SUMIF(B$9:B$1008,B106,M$9:M$1008)-SUMIF(B$9:B$1008,B106,N$9:N$1008))+(SUMIF('Sezione INPS'!B$9:B$1008,B106,'Sezione INPS'!N$9:N$1008)-SUMIF('Sezione INPS'!B$9:B$1008,B106,'Sezione INPS'!O$9:O$1008))+(SUMIF('Sezione REGIONI'!B$9:B$1008,B106,'Sezione REGIONI'!K$9:K$1008)-SUMIF('Sezione REGIONI'!B$9:B$1008,B106,'Sezione REGIONI'!L$9:L$1008))+(SUMIF('Sezione IMU e trib. locali'!B$9:B$1008,B106,'Sezione IMU e trib. locali'!M$9:M$1008)-SUMIF('Sezione IMU e trib. locali'!B$9:B$1008,B106,'Sezione IMU e trib. locali'!N$9:N$1008))+(SUMIF('Sezione ACCISE'!B$9:B$1008,B106,'Sezione ACCISE'!N$9:N$1008)),0) -> 0 | AF106: =IF(B106="",0,IF(B106=B105,COUNTIF(B$9:B105,B106)+1,1)) -> 96 | AG106: 0 | AH106: 0
A107: 99 | B107: -1900 | C107: -1900-97 | Q107: =IF(M$1021=1,"",IF(P107="","",VLOOKUP(P107,Tabelle!$B$5:$F$7,5,FALSE))) ->  | R107: =IF(M$1021=1,"",IF(P107="","",VLOOKUP(P107,Tabelle!$B$5:$G$7,6,FALSE))) ->  | V107: =IF(AND(D107<>"",B107<>B106),(SUMIF(B$9:B$1008,B107,M$9:M$1008)-SUMIF(B$9:B$1008,B107,N$9:N$1008))+(SUMIF('Sezione INPS'!B$9:B$1008,B107,'Sezione INPS'!N$9:N$1008)-SUMIF('Sezione INPS'!B$9:B$1008,B107,'Sezione INPS'!O$9:O$1008))+(SUMIF('Sezione REGIONI'!B$9:B$1008,B107,'Sezione REGIONI'!K$9:K$1008)-SUMIF('Sezione REGIONI'!B$9:B$1008,B107,'Sezione REGIONI'!L$9:L$1008))+(SUMIF('Sezione IMU e trib. locali'!B$9:B$1008,B107,'Sezione IMU e trib. locali'!M$9:M$1008)-SUMIF('Sezione IMU e trib. locali'!B$9:B$1008,B107,'Sezione IMU e trib. locali'!N$9:N$1008))+(SUMIF('Sezione ACCISE'!B$9:B$1008,B107,'Sezione ACCISE'!N$9:N$1008)),0) -> 0 | AF107: =IF(B107="",0,IF(B107=B106,COUNTIF(B$9:B106,B107)+1,1)) -> 97 | AG107: 0 | AH107: 0
A108: 100 | B108: -1900 | C108: -1900-98 | Q108: =IF(M$1021=1,"",IF(P108="","",VLOOKUP(P108,Tabelle!$B$5:$F$7,5,FALSE))) ->  | R108: =IF(M$1021=1,"",IF(P108="","",VLOOKUP(P108,Tabelle!$B$5:$G$7,6,FALSE))) ->  | V108: =IF(AND(D108<>"",B108<>B107),(SUMIF(B$9:B$1008,B108,M$9:M$1008)-SUMIF(B$9:B$1008,B108,N$9:N$1008))+(SUMIF('Sezione INPS'!B$9:B$1008,B108,'Sezione INPS'!N$9:N$1008)-SUMIF('Sezione INPS'!B$9:B$1008,B108,'Sezione INPS'!O$9:O$1008))+(SUMIF('Sezione REGIONI'!B$9:B$1008,B108,'Sezione REGIONI'!K$9:K$1008)-SUMIF('Sezione REGIONI'!B$9:B$1008,B108,'Sezione REGIONI'!L$9:L$1008))+(SUMIF('Sezione IMU e trib. locali'!B$9:B$1008,B108,'Sezione IMU e trib. locali'!M$9:M$1008)-SUMIF('Sezione IMU e trib. locali'!B$9:B$1008,B108,'Sezione IMU e trib. locali'!N$9:N$1008))+(SUMIF('Sezione ACCISE'!B$9:B$1008,B108,'Sezione ACCISE'!N$9:N$1008)),0) -> 0 | AF108: =IF(B108="",0,IF(B108=B107,COUNTIF(B$9:B107,B108)+1,1)) -> 98 | AG108: 0 | AH108: 0
A109: 101 | B109: -1900 | C109: -1900-99 | Q109: =IF(M$1021=1,"",IF(P109="","",VLOOKUP(P109,Tabelle!$B$5:$F$7,5,FALSE))) ->  | R109: =IF(M$1021=1,"",IF(P109="","",VLOOKUP(P109,Tabelle!$B$5:$G$7,6,FALSE))) ->  | V109: =IF(AND(D109<>"",B109<>B108),(SUMIF(B$9:B$1008,B109,M$9:M$1008)-SUMIF(B$9:B$1008,B109,N$9:N$1008))+(SUMIF('Sezione INPS'!B$9:B$1008,B109,'Sezione INPS'!N$9:N$1008)-SUMIF('Sezione INPS'!B$9:B$1008,B109,'Sezione INPS'!O$9:O$1008))+(SUMIF('Sezione REGIONI'!B$9:B$1008,B109,'Sezione REGIONI'!K$9:K$1008)-SUMIF('Sezione REGIONI'!B$9:B$1008,B109,'Sezione REGIONI'!L$9:L$1008))+(SUMIF('Sezione IMU e trib. locali'!B$9:B$1008,B109,'Sezione IMU e trib. locali'!M$9:M$1008)-SUMIF('Sezione IMU e trib. locali'!B$9:B$1008,B109,'Sezione IMU e trib. locali'!N$9:N$1008))+(SUMIF('Sezione ACCISE'!B$9:B$1008,B109,'Sezione ACCISE'!N$9:N$1008)),0) -> 0 | AF109: =IF(B109="",0,IF(B109=B108,COUNTIF(B$9:B108,B109)+1,1)) -> 99 | AG109: 0 | AH109: 0
A110: 102 | B110: -1900 | C110: -1900-100 | Q110: =IF(M$1021=1,"",IF(P110="","",VLOOKUP(P110,Tabelle!$B$5:$F$7,5,FALSE))) ->  | R110: =IF(M$1021=1,"",IF(P110="","",VLOOKUP(P110,Tabelle!$B$5:$G$7,6,FALSE))) ->  | V110: =IF(AND(D110<>"",B110<>B109),(SUMIF(B$9:B$1008,B110,M$9:M$1008)-SUMIF(B$9:B$1008,B110,N$9:N$1008))+(SUMIF('Sezione INPS'!B$9:B$1008,B110,'Sezione INPS'!N$9:N$1008)-SUMIF('Sezione INPS'!B$9:B$1008,B110,'Sezione INPS'!O$9:O$1008))+(SUMIF('Sezione REGIONI'!B$9:B$1008,B110,'Sezione REGIONI'!K$9:K$1008)-SUMIF('Sezione REGIONI'!B$9:B$1008,B110,'Sezione REGIONI'!L$9:L$1008))+(SUMIF('Sezione IMU e trib. locali'!B$9:B$1008,B110,'Sezione IMU e trib. locali'!M$9:M$1008)-SUMIF('Sezione IMU e trib. locali'!B$9:B$1008,B110,'Sezione IMU e trib. locali'!N$9:N$1008))+(SUMIF('Sezione ACCISE'!B$9:B$1008,B110,'Sezione ACCISE'!N$9:N$1008)),0) -> 0 | AF110: =IF(B110="",0,IF(B110=B109,COUNTIF(B$9:B109,B110)+1,1)) -> 100 | AG110: 0 | AH110: 0
A111: 103 | B111: -1900 | C111: -1900-101 | Q111: =IF(M$1021=1,"",IF(P111="","",VLOOKUP(P111,Tabelle!$B$5:$F$7,5,FALSE))) ->  | R111: =IF(M$1021=1,"",IF(P111="","",VLOOKUP(P111,Tabelle!$B$5:$G$7,6,FALSE))) ->  | V111: =IF(AND(D111<>"",B111<>B110),(SUMIF(B$9:B$1008,B111,M$9:M$1008)-SUMIF(B$9:B$1008,B111,N$9:N$1008))+(SUMIF('Sezione INPS'!B$9:B$1008,B111,'Sezione INPS'!N$9:N$1008)-SUMIF('Sezione INPS'!B$9:B$1008,B111,'Sezione INPS'!O$9:O$1008))+(SUMIF('Sezione REGIONI'!B$9:B$1008,B111,'Sezione REGIONI'!K$9:K$1008)-SUMIF('Sezione REGIONI'!B$9:B$1008,B111,'Sezione REGIONI'!L$9:L$1008))+(SUMIF('Sezione IMU e trib. locali'!B$9:B$1008,B111,'Sezione IMU e trib. locali'!M$9:M$1008)-SUMIF('Sezione IMU e trib. locali'!B$9:B$1008,B111,'Sezione IMU e trib. locali'!N$9:N$1008))+(SUMIF('Sezione ACCISE'!B$9:B$1008,B111,'Sezione ACCISE'!N$9:N$1008)),0) -> 0 | AF111: =IF(B111="",0,IF(B111=B110,COUNTIF(B$9:B110,B111)+1,1)) -> 101 | AG111: 0 | AH111: 0
A112: 104 | B112: -1900 | C112: -1900-102 | Q112: =IF(M$1021=1,"",IF(P112="","",VLOOKUP(P112,Tabelle!$B$5:$F$7,5,FALSE))) ->  | R112: =IF(M$1021=1,"",IF(P112="","",VLOOKUP(P112,Tabelle!$B$5:$G$7,6,FALSE))) ->  | V112: =IF(AND(D112<>"",B112<>B111),(SUMIF(B$9:B$1008,B112,M$9:M$1008)-SUMIF(B$9:B$1008,B112,N$9:N$1008))+(SUMIF('Sezione INPS'!B$9:B$1008,B112,'Sezione INPS'!N$9:N$1008)-SUMIF('Sezione INPS'!B$9:B$1008,B112,'Sezione INPS'!O$9:O$1008))+(SUMIF('Sezione REGIONI'!B$9:B$1008,B112,'Sezione REGIONI'!K$9:K$1008)-SUMIF('Sezione REGIONI'!B$9:B$1008,B112,'Sezione REGIONI'!L$9:L$1008))+(SUMIF('Sezione IMU e trib. locali'!B$9:B$1008,B112,'Sezione IMU e trib. locali'!M$9:M$1008)-SUMIF('Sezione IMU e trib. locali'!B$9:B$1008,B112,'Sezione IMU e trib. locali'!N$9:N$1008))+(SUMIF('Sezione ACCISE'!B$9:B$1008,B112,'Sezione ACCISE'!N$9:N$1008)),0) -> 0 | AF112: =IF(B112="",0,IF(B112=B111,COUNTIF(B$9:B111,B112)+1,1)) -> 102 | AG112: 0 | AH112: 0
A113: 105 | B113: -1900 | C113: -1900-103 | Q113: =IF(M$1021=1,"",IF(P113="","",VLOOKUP(P113,Tabelle!$B$5:$F$7,5,FALSE))) ->  | R113: =IF(M$1021=1,"",IF(P113="","",VLOOKUP(P113,Tabelle!$B$5:$G$7,6,FALSE))) ->  | V113: =IF(AND(D113<>"",B113<>B112),(SUMIF(B$9:B$1008,B113,M$9:M$1008)-SUMIF(B$9:B$1008,B113,N$9:N$1008))+(SUMIF('Sezione INPS'!B$9:B$1008,B113,'Sezione INPS'!N$9:N$1008)-SUMIF('Sezione INPS'!B$9:B$1008,B113,'Sezione INPS'!O$9:O$1008))+(SUMIF('Sezione REGIONI'!B$9:B$1008,B113,'Sezione REGIONI'!K$9:K$1008)-SUMIF('Sezione REGIONI'!B$9:B$1008,B113,'Sezione REGIONI'!L$9:L$1008))+(SUMIF('Sezione IMU e trib. locali'!B$9:B$1008,B113,'Sezione IMU e trib. locali'!M$9:M$1008)-SUMIF('Sezione IMU e trib. locali'!B$9:B$1008,B113,'Sezione IMU e trib. locali'!N$9:N$1008))+(SUMIF('Sezione ACCISE'!B$9:B$1008,B113,'Sezione ACCISE'!N$9:N$1008)),0) -> 0 | AF113: =IF(B113="",0,IF(B113=B112,COUNTIF(B$9:B112,B113)+1,1)) -> 103 | AG113: 0 | AH113: 0
A114: 106 | B114: -1900 | C114: -1900-104 | Q114: =IF(M$1021=1,"",IF(P114="","",VLOOKUP(P114,Tabelle!$B$5:$F$7,5,FALSE))) ->  | R114: =IF(M$1021=1,"",IF(P114="","",VLOOKUP(P114,Tabelle!$B$5:$G$7,6,FALSE))) ->  | V114: =IF(AND(D114<>"",B114<>B113),(SUMIF(B$9:B$1008,B114,M$9:M$1008)-SUMIF(B$9:B$1008,B114,N$9:N$1008))+(SUMIF('Sezione INPS'!B$9:B$1008,B114,'Sezione INPS'!N$9:N$1008)-SUMIF('Sezione INPS'!B$9:B$1008,B114,'Sezione INPS'!O$9:O$1008))+(SUMIF('Sezione REGIONI'!B$9:B$1008,B114,'Sezione REGIONI'!K$9:K$1008)-SUMIF('Sezione REGIONI'!B$9:B$1008,B114,'Sezione REGIONI'!L$9:L$1008))+(SUMIF('Sezione IMU e trib. locali'!B$9:B$1008,B114,'Sezione IMU e trib. locali'!M$9:M$1008)-SUMIF('Sezione IMU e trib. locali'!B$9:B$1008,B114,'Sezione IMU e trib. locali'!N$9:N$1008))+(SUMIF('Sezione ACCISE'!B$9:B$1008,B114,'Sezione ACCISE'!N$9:N$1008)),0) -> 0 | AF114: =IF(B114="",0,IF(B114=B113,COUNTIF(B$9:B113,B114)+1,1)) -> 104 | AG114: 0 | AH114: 0
A115: 107 | B115: -1900 | C115: -1900-105 | Q115: =IF(M$1021=1,"",IF(P115="","",VLOOKUP(P115,Tabelle!$B$5:$F$7,5,FALSE))) ->  | R115: =IF(M$1021=1,"",IF(P115="","",VLOOKUP(P115,Tabelle!$B$5:$G$7,6,FALSE))) ->  | V115: =IF(AND(D115<>"",B115<>B114),(SUMIF(B$9:B$1008,B115,M$9:M$1008)-SUMIF(B$9:B$1008,B115,N$9:N$1008))+(SUMIF('Sezione INPS'!B$9:B$1008,B115,'Sezione INPS'!N$9:N$1008)-SUMIF('Sezione INPS'!B$9:B$1008,B115,'Sezione INPS'!O$9:O$1008))+(SUMIF('Sezione REGIONI'!B$9:B$1008,B115,'Sezione REGIONI'!K$9:K$1008)-SUMIF('Sezione REGIONI'!B$9:B$1008,B115,'Sezione REGIONI'!L$9:L$1008))+(SUMIF('Sezione IMU e trib. locali'!B$9:B$1008,B115,'Sezione IMU e trib. locali'!M$9:M$1008)-SUMIF('Sezione IMU e trib. locali'!B$9:B$1008,B115,'Sezione IMU e trib. locali'!N$9:N$1008))+(SUMIF('Sezione ACCISE'!B$9:B$1008,B115,'Sezione ACCISE'!N$9:N$1008)),0) -> 0 | AF115: =IF(B115="",0,IF(B115=B114,COUNTIF(B$9:B114,B115)+1,1)) -> 105 | AG115: 0 | AH115: 0
A116: 108 | B116: -1900 | C116: -1900-106 | Q116: =IF(M$1021=1,"",IF(P116="","",VLOOKUP(P116,Tabelle!$B$5:$F$7,5,FALSE))) ->  | R116: =IF(M$1021=1,"",IF(P116="","",VLOOKUP(P116,Tabelle!$B$5:$G$7,6,FALSE))) ->  | V116: =IF(AND(D116<>"",B116<>B115),(SUMIF(B$9:B$1008,B116,M$9:M$1008)-SUMIF(B$9:B$1008,B116,N$9:N$1008))+(SUMIF('Sezione INPS'!B$9:B$1008,B116,'Sezione INPS'!N$9:N$1008)-SUMIF('Sezione INPS'!B$9:B$1008,B116,'Sezione INPS'!O$9:O$1008))+(SUMIF('Sezione REGIONI'!B$9:B$1008,B116,'Sezione REGIONI'!K$9:K$1008)-SUMIF('Sezione REGIONI'!B$9:B$1008,B116,'Sezione REGIONI'!L$9:L$1008))+(SUMIF('Sezione IMU e trib. locali'!B$9:B$1008,B116,'Sezione IMU e trib. locali'!M$9:M$1008)-SUMIF('Sezione IMU e trib. locali'!B$9:B$1008,B116,'Sezione IMU e trib. locali'!N$9:N$1008))+(SUMIF('Sezione ACCISE'!B$9:B$1008,B116,'Sezione ACCISE'!N$9:N$1008)),0) -> 0 | AF116: =IF(B116="",0,IF(B116=B115,COUNTIF(B$9:B115,B116)+1,1)) -> 106 | AG116: 0 | AH116: 0
A117: 109 | B117: -1900 | C117: -1900-107 | Q117: =IF(M$1021=1,"",IF(P117="","",VLOOKUP(P117,Tabelle!$B$5:$F$7,5,FALSE))) ->  | R117: =IF(M$1021=1,"",IF(P117="","",VLOOKUP(P117,Tabelle!$B$5:$G$7,6,FALSE))) ->  | V117: =IF(AND(D117<>"",B117<>B116),(SUMIF(B$9:B$1008,B117,M$9:M$1008)-SUMIF(B$9:B$1008,B117,N$9:N$1008))+(SUMIF('Sezione INPS'!B$9:B$1008,B117,'Sezione INPS'!N$9:N$1008)-SUMIF('Sezione INPS'!B$9:B$1008,B117,'Sezione INPS'!O$9:O$1008))+(SUMIF('Sezione REGIONI'!B$9:B$1008,B117,'Sezione REGIONI'!K$9:K$1008)-SUMIF('Sezione REGIONI'!B$9:B$1008,B117,'Sezione REGIONI'!L$9:L$1008))+(SUMIF('Sezione IMU e trib. locali'!B$9:B$1008,B117,'Sezione IMU e trib. locali'!M$9:M$1008)-SUMIF('Sezione IMU e trib. locali'!B$9:B$1008,B117,'Sezione IMU e trib. locali'!N$9:N$1008))+(SUMIF('Sezione ACCISE'!B$9:B$1008,B117,'Sezione ACCISE'!N$9:N$1008)),0) -> 0 | AF117: =IF(B117="",0,IF(B117=B116,COUNTIF(B$9:B116,B117)+1,1)) -> 107 | AG117: 0 | AH117: 0
A118: 110 | B118: -1900 | C118: -1900-108 | Q118: =IF(M$1021=1,"",IF(P118="","",VLOOKUP(P118,Tabelle!$B$5:$F$7,5,FALSE))) ->  | R118: =IF(M$1021=1,"",IF(P118="","",VLOOKUP(P118,Tabelle!$B$5:$G$7,6,FALSE))) ->  | V118: =IF(AND(D118<>"",B118<>B117),(SUMIF(B$9:B$1008,B118,M$9:M$1008)-SUMIF(B$9:B$1008,B118,N$9:N$1008))+(SUMIF('Sezione INPS'!B$9:B$1008,B118,'Sezione INPS'!N$9:N$1008)-SUMIF('Sezione INPS'!B$9:B$1008,B118,'Sezione INPS'!O$9:O$1008))+(SUMIF('Sezione REGIONI'!B$9:B$1008,B118,'Sezione REGIONI'!K$9:K$1008)-SUMIF('Sezione REGIONI'!B$9:B$1008,B118,'Sezione REGIONI'!L$9:L$1008))+(SUMIF('Sezione IMU e trib. locali'!B$9:B$1008,B118,'Sezione IMU e trib. locali'!M$9:M$1008)-SUMIF('Sezione IMU e trib. locali'!B$9:B$1008,B118,'Sezione IMU e trib. locali'!N$9:N$1008))+(SUMIF('Sezione ACCISE'!B$9:B$1008,B118,'Sezione ACCISE'!N$9:N$1008)),0) -> 0 | AF118: =IF(B118="",0,IF(B118=B117,COUNTIF(B$9:B117,B118)+1,1)) -> 108 | AG118: 0 | AH118: 0
A119: 111 | B119: -1900 | C119: -1900-109 | Q119: =IF(M$1021=1,"",IF(P119="","",VLOOKUP(P119,Tabelle!$B$5:$F$7,5,FALSE))) ->  | R119: =IF(M$1021=1,"",IF(P119="","",VLOOKUP(P119,Tabelle!$B$5:$G$7,6,FALSE))) ->  | V119: =IF(AND(D119<>"",B119<>B118),(SUMIF(B$9:B$1008,B119,M$9:M$1008)-SUMIF(B$9:B$1008,B119,N$9:N$1008))+(SUMIF('Sezione INPS'!B$9:B$1008,B119,'Sezione INPS'!N$9:N$1008)-SUMIF('Sezione INPS'!B$9:B$1008,B119,'Sezione INPS'!O$9:O$1008))+(SUMIF('Sezione REGIONI'!B$9:B$1008,B119,'Sezione REGIONI'!K$9:K$1008)-SUMIF('Sezione REGIONI'!B$9:B$1008,B119,'Sezione REGIONI'!L$9:L$1008))+(SUMIF('Sezione IMU e trib. locali'!B$9:B$1008,B119,'Sezione IMU e trib. locali'!M$9:M$1008)-SUMIF('Sezione IMU e trib. locali'!B$9:B$1008,B119,'Sezione IMU e trib. locali'!N$9:N$1008))+(SUMIF('Sezione ACCISE'!B$9:B$1008,B119,'Sezione ACCISE'!N$9:N$1008)),0) -> 0 | AF119: =IF(B119="",0,IF(B119=B118,COUNTIF(B$9:B118,B119)+1,1)) -> 109 | AG119: 0 | AH119: 0
A120: 112 | B120: -1900 | C120: -1900-110 | Q120: =IF(M$1021=1,"",IF(P120="","",VLOOKUP(P120,Tabelle!$B$5:$F$7,5,FALSE))) ->  | R120: =IF(M$1021=1,"",IF(P120="","",VLOOKUP(P120,Tabelle!$B$5:$G$7,6,FALSE))) ->  | V120: =IF(AND(D120<>"",B120<>B119),(SUMIF(B$9:B$1008,B120,M$9:M$1008)-SUMIF(B$9:B$1008,B120,N$9:N$1008))+(SUMIF('Sezione INPS'!B$9:B$1008,B120,'Sezione INPS'!N$9:N$1008)-SUMIF('Sezione INPS'!B$9:B$1008,B120,'Sezione INPS'!O$9:O$1008))+(SUMIF('Sezione REGIONI'!B$9:B$1008,B120,'Sezione REGIONI'!K$9:K$1008)-SUMIF('Sezione REGIONI'!B$9:B$1008,B120,'Sezione REGIONI'!L$9:L$1008))+(SUMIF('Sezione IMU e trib. locali'!B$9:B$1008,B120,'Sezione IMU e trib. locali'!M$9:M$1008)-SUMIF('Sezione IMU e trib. locali'!B$9:B$1008,B120,'Sezione IMU e trib. locali'!N$9:N$1008))+(SUMIF('Sezione ACCISE'!B$9:B$1008,B120,'Sezione ACCISE'!N$9:N$1008)),0) -> 0 | AF120: =IF(B120="",0,IF(B120=B119,COUNTIF(B$9:B119,B120)+1,1)) -> 110 | AG120: 0 | AH120: 0
A121: 113 | B121: -1900 | C121: -1900-111 | Q121: =IF(M$1021=1,"",IF(P121="","",VLOOKUP(P121,Tabelle!$B$5:$F$7,5,FALSE))) ->  | R121: =IF(M$1021=1,"",IF(P121="","",VLOOKUP(P121,Tabelle!$B$5:$G$7,6,FALSE))) ->  | V121: =IF(AND(D121<>"",B121<>B120),(SUMIF(B$9:B$1008,B121,M$9:M$1008)-SUMIF(B$9:B$1008,B121,N$9:N$1008))+(SUMIF('Sezione INPS'!B$9:B$1008,B121,'Sezione INPS'!N$9:N$1008)-SUMIF('Sezione INPS'!B$9:B$1008,B121,'Sezione INPS'!O$9:O$1008))+(SUMIF('Sezione REGIONI'!B$9:B$1008,B121,'Sezione REGIONI'!K$9:K$1008)-SUMIF('Sezione REGIONI'!B$9:B$1008,B121,'Sezione REGIONI'!L$9:L$1008))+(SUMIF('Sezione IMU e trib. locali'!B$9:B$1008,B121,'Sezione IMU e trib. locali'!M$9:M$1008)-SUMIF('Sezione IMU e trib. locali'!B$9:B$1008,B121,'Sezione IMU e trib. locali'!N$9:N$1008))+(SUMIF('Sezione ACCISE'!B$9:B$1008,B121,'Sezione ACCISE'!N$9:N$1008)),0) -> 0 | AF121: =IF(B121="",0,IF(B121=B120,COUNTIF(B$9:B120,B121)+1,1)) -> 111 | AG121: 0 | AH121: 0
A122: 114 | B122: -1900 | C122: -1900-112 | Q122: =IF(M$1021=1,"",IF(P122="","",VLOOKUP(P122,Tabelle!$B$5:$F$7,5,FALSE))) ->  | R122: =IF(M$1021=1,"",IF(P122="","",VLOOKUP(P122,Tabelle!$B$5:$G$7,6,FALSE))) ->  | V122: =IF(AND(D122<>"",B122<>B121),(SUMIF(B$9:B$1008,B122,M$9:M$1008)-SUMIF(B$9:B$1008,B122,N$9:N$1008))+(SUMIF('Sezione INPS'!B$9:B$1008,B122,'Sezione INPS'!N$9:N$1008)-SUMIF('Sezione INPS'!B$9:B$1008,B122,'Sezione INPS'!O$9:O$1008))+(SUMIF('Sezione REGIONI'!B$9:B$1008,B122,'Sezione REGIONI'!K$9:K$1008)-SUMIF('Sezione REGIONI'!B$9:B$1008,B122,'Sezione REGIONI'!L$9:L$1008))+(SUMIF('Sezione IMU e trib. locali'!B$9:B$1008,B122,'Sezione IMU e trib. locali'!M$9:M$1008)-SUMIF('Sezione IMU e trib. locali'!B$9:B$1008,B122,'Sezione IMU e trib. locali'!N$9:N$1008))+(SUMIF('Sezione ACCISE'!B$9:B$1008,B122,'Sezione ACCISE'!N$9:N$1008)),0) -> 0 | AF122: =IF(B122="",0,IF(B122=B121,COUNTIF(B$9:B121,B122)+1,1)) -> 112 | AG122: 0 | AH122: 0
A123: 115 | B123: -1900 | C123: -1900-113 | Q123: =IF(M$1021=1,"",IF(P123="","",VLOOKUP(P123,Tabelle!$B$5:$F$7,5,FALSE))) ->  | R123: =IF(M$1021=1,"",IF(P123="","",VLOOKUP(P123,Tabelle!$B$5:$G$7,6,FALSE))) ->  | V123: =IF(AND(D123<>"",B123<>B122),(SUMIF(B$9:B$1008,B123,M$9:M$1008)-SUMIF(B$9:B$1008,B123,N$9:N$1008))+(SUMIF('Sezione INPS'!B$9:B$1008,B123,'Sezione INPS'!N$9:N$1008)-SUMIF('Sezione INPS'!B$9:B$1008,B123,'Sezione INPS'!O$9:O$1008))+(SUMIF('Sezione REGIONI'!B$9:B$1008,B123,'Sezione REGIONI'!K$9:K$1008)-SUMIF('Sezione REGIONI'!B$9:B$1008,B123,'Sezione REGIONI'!L$9:L$1008))+(SUMIF('Sezione IMU e trib. locali'!B$9:B$1008,B123,'Sezione IMU e trib. locali'!M$9:M$1008)-SUMIF('Sezione IMU e trib. locali'!B$9:B$1008,B123,'Sezione IMU e trib. locali'!N$9:N$1008))+(SUMIF('Sezione ACCISE'!B$9:B$1008,B123,'Sezione ACCISE'!N$9:N$1008)),0) -> 0 | AF123: =IF(B123="",0,IF(B123=B122,COUNTIF(B$9:B122,B123)+1,1)) -> 113 | AG123: 0 | AH123: 0
A124: 116 | B124: -1900 | C124: -1900-114 | Q124: =IF(M$1021=1,"",IF(P124="","",VLOOKUP(P124,Tabelle!$B$5:$F$7,5,FALSE))) ->  | R124: =IF(M$1021=1,"",IF(P124="","",VLOOKUP(P124,Tabelle!$B$5:$G$7,6,FALSE))) ->  | V124: =IF(AND(D124<>"",B124<>B123),(SUMIF(B$9:B$1008,B124,M$9:M$1008)-SUMIF(B$9:B$1008,B124,N$9:N$1008))+(SUMIF('Sezione INPS'!B$9:B$1008,B124,'Sezione INPS'!N$9:N$1008)-SUMIF('Sezione INPS'!B$9:B$1008,B124,'Sezione INPS'!O$9:O$1008))+(SUMIF('Sezione REGIONI'!B$9:B$1008,B124,'Sezione REGIONI'!K$9:K$1008)-SUMIF('Sezione REGIONI'!B$9:B$1008,B124,'Sezione REGIONI'!L$9:L$1008))+(SUMIF('Sezione IMU e trib. locali'!B$9:B$1008,B124,'Sezione IMU e trib. locali'!M$9:M$1008)-SUMIF('Sezione IMU e trib. locali'!B$9:B$1008,B124,'Sezione IMU e trib. locali'!N$9:N$1008))+(SUMIF('Sezione ACCISE'!B$9:B$1008,B124,'Sezione ACCISE'!N$9:N$1008)),0) -> 0 | AF124: =IF(B124="",0,IF(B124=B123,COUNTIF(B$9:B123,B124)+1,1)) -> 114 | AG124: 0 | AH124: 0
A125: 117 | B125: -1900 | C125: -1900-115 | Q125: =IF(M$1021=1,"",IF(P125="","",VLOOKUP(P125,Tabelle!$B$5:$F$7,5,FALSE))) ->  | R125: =IF(M$1021=1,"",IF(P125="","",VLOOKUP(P125,Tabelle!$B$5:$G$7,6,FALSE))) ->  | V125: =IF(AND(D125<>"",B125<>B124),(SUMIF(B$9:B$1008,B125,M$9:M$1008)-SUMIF(B$9:B$1008,B125,N$9:N$1008))+(SUMIF('Sezione INPS'!B$9:B$1008,B125,'Sezione INPS'!N$9:N$1008)-SUMIF('Sezione INPS'!B$9:B$1008,B125,'Sezione INPS'!O$9:O$1008))+(SUMIF('Sezione REGIONI'!B$9:B$1008,B125,'Sezione REGIONI'!K$9:K$1008)-SUMIF('Sezione REGIONI'!B$9:B$1008,B125,'Sezione REGIONI'!L$9:L$1008))+(SUMIF('Sezione IMU e trib. locali'!B$9:B$1008,B125,'Sezione IMU e trib. locali'!M$9:M$1008)-SUMIF('Sezione IMU e trib. locali'!B$9:B$1008,B125,'Sezione IMU e trib. locali'!N$9:N$1008))+(SUMIF('Sezione ACCISE'!B$9:B$1008,B125,'Sezione ACCISE'!N$9:N$1008)),0) -> 0 | AF125: =IF(B125="",0,IF(B125=B124,COUNTIF(B$9:B124,B125)+1,1)) -> 115 | AG125: 0 | AH125: 0
A126: 118 | B126: -1900 | C126: -1900-116 | Q126: =IF(M$1021=1,"",IF(P126="","",VLOOKUP(P126,Tabelle!$B$5:$F$7,5,FALSE))) ->  | R126: =IF(M$1021=1,"",IF(P126="","",VLOOKUP(P126,Tabelle!$B$5:$G$7,6,FALSE))) ->  | V126: =IF(AND(D126<>"",B126<>B125),(SUMIF(B$9:B$1008,B126,M$9:M$1008)-SUMIF(B$9:B$1008,B126,N$9:N$1008))+(SUMIF('Sezione INPS'!B$9:B$1008,B126,'Sezione INPS'!N$9:N$1008)-SUMIF('Sezione INPS'!B$9:B$1008,B126,'Sezione INPS'!O$9:O$1008))+(SUMIF('Sezione REGIONI'!B$9:B$1008,B126,'Sezione REGIONI'!K$9:K$1008)-SUMIF('Sezione REGIONI'!B$9:B$1008,B126,'Sezione REGIONI'!L$9:L$1008))+(SUMIF('Sezione IMU e trib. locali'!B$9:B$1008,B126,'Sezione IMU e trib. locali'!M$9:M$1008)-SUMIF('Sezione IMU e trib. locali'!B$9:B$1008,B126,'Sezione IMU e trib. locali'!N$9:N$1008))+(SUMIF('Sezione ACCISE'!B$9:B$1008,B126,'Sezione ACCISE'!N$9:N$1008)),0) -> 0 | AF126: =IF(B126="",0,IF(B126=B125,COUNTIF(B$9:B125,B126)+1,1)) -> 116 | AG126: 0 | AH126: 0
A127: 119 | B127: -1900 | C127: -1900-117 | Q127: =IF(M$1021=1,"",IF(P127="","",VLOOKUP(P127,Tabelle!$B$5:$F$7,5,FALSE))) ->  | R127: =IF(M$1021=1,"",IF(P127="","",VLOOKUP(P127,Tabelle!$B$5:$G$7,6,FALSE))) ->  | V127: =IF(AND(D127<>"",B127<>B126),(SUMIF(B$9:B$1008,B127,M$9:M$1008)-SUMIF(B$9:B$1008,B127,N$9:N$1008))+(SUMIF('Sezione INPS'!B$9:B$1008,B127,'Sezione INPS'!N$9:N$1008)-SUMIF('Sezione INPS'!B$9:B$1008,B127,'Sezione INPS'!O$9:O$1008))+(SUMIF('Sezione REGIONI'!B$9:B$1008,B127,'Sezione REGIONI'!K$9:K$1008)-SUMIF('Sezione REGIONI'!B$9:B$1008,B127,'Sezione REGIONI'!L$9:L$1008))+(SUMIF('Sezione IMU e trib. locali'!B$9:B$1008,B127,'Sezione IMU e trib. locali'!M$9:M$1008)-SUMIF('Sezione IMU e trib. locali'!B$9:B$1008,B127,'Sezione IMU e trib. locali'!N$9:N$1008))+(SUMIF('Sezione ACCISE'!B$9:B$1008,B127,'Sezione ACCISE'!N$9:N$1008)),0) -> 0 | AF127: =IF(B127="",0,IF(B127=B126,COUNTIF(B$9:B126,B127)+1,1)) -> 117 | AG127: 0 | AH127: 0
A128: 120 | B128: -1900 | C128: -1900-118 | Q128: =IF(M$1021=1,"",IF(P128="","",VLOOKUP(P128,Tabelle!$B$5:$F$7,5,FALSE))) ->  | R128: =IF(M$1021=1,"",IF(P128="","",VLOOKUP(P128,Tabelle!$B$5:$G$7,6,FALSE))) ->  | V128: =IF(AND(D128<>"",B128<>B127),(SUMIF(B$9:B$1008,B128,M$9:M$1008)-SUMIF(B$9:B$1008,B128,N$9:N$1008))+(SUMIF('Sezione INPS'!B$9:B$1008,B128,'Sezione INPS'!N$9:N$1008)-SUMIF('Sezione INPS'!B$9:B$1008,B128,'Sezione INPS'!O$9:O$1008))+(SUMIF('Sezione REGIONI'!B$9:B$1008,B128,'Sezione REGIONI'!K$9:K$1008)-SUMIF('Sezione REGIONI'!B$9:B$1008,B128,'Sezione REGIONI'!L$9:L$1008))+(SUMIF('Sezione IMU e trib. locali'!B$9:B$1008,B128,'Sezione IMU e trib. locali'!M$9:M$1008)-SUMIF('Sezione IMU e trib. locali'!B$9:B$1008,B128,'Sezione IMU e trib. locali'!N$9:N$1008))+(SUMIF('Sezione ACCISE'!B$9:B$1008,B128,'Sezione ACCISE'!N$9:N$1008)),0) -> 0 | AF128: =IF(B128="",0,IF(B128=B127,COUNTIF(B$9:B127,B128)+1,1)) -> 118 | AG128: 0 | AH128: 0
A129: 121 | B129: -1900 | C129: -1900-119 | Q129: =IF(M$1021=1,"",IF(P129="","",VLOOKUP(P129,Tabelle!$B$5:$F$7,5,FALSE))) ->  | R129: =IF(M$1021=1,"",IF(P129="","",VLOOKUP(P129,Tabelle!$B$5:$G$7,6,FALSE))) ->  | V129: =IF(AND(D129<>"",B129<>B128),(SUMIF(B$9:B$1008,B129,M$9:M$1008)-SUMIF(B$9:B$1008,B129,N$9:N$1008))+(SUMIF('Sezione INPS'!B$9:B$1008,B129,'Sezione INPS'!N$9:N$1008)-SUMIF('Sezione INPS'!B$9:B$1008,B129,'Sezione INPS'!O$9:O$1008))+(SUMIF('Sezione REGIONI'!B$9:B$1008,B129,'Sezione REGIONI'!K$9:K$1008)-SUMIF('Sezione REGIONI'!B$9:B$1008,B129,'Sezione REGIONI'!L$9:L$1008))+(SUMIF('Sezione IMU e trib. locali'!B$9:B$1008,B129,'Sezione IMU e trib. locali'!M$9:M$1008)-SUMIF('Sezione IMU e trib. locali'!B$9:B$1008,B129,'Sezione IMU e trib. locali'!N$9:N$1008))+(SUMIF('Sezione ACCISE'!B$9:B$1008,B129,'Sezione ACCISE'!N$9:N$1008)),0) -> 0 | AF129: =IF(B129="",0,IF(B129=B128,COUNTIF(B$9:B128,B129)+1,1)) -> 119 | AG129: 0 | AH129: 0
A130: 122 | B130: -1900 | C130: -1900-120 | Q130: =IF(M$1021=1,"",IF(P130="","",VLOOKUP(P130,Tabelle!$B$5:$F$7,5,FALSE))) ->  | R130: =IF(M$1021=1,"",IF(P130="","",VLOOKUP(P130,Tabelle!$B$5:$G$7,6,FALSE))) ->  | V130: =IF(AND(D130<>"",B130<>B129),(SUMIF(B$9:B$1008,B130,M$9:M$1008)-SUMIF(B$9:B$1008,B130,N$9:N$1008))+(SUMIF('Sezione INPS'!B$9:B$1008,B130,'Sezione INPS'!N$9:N$1008)-SUMIF('Sezione INPS'!B$9:B$1008,B130,'Sezione INPS'!O$9:O$1008))+(SUMIF('Sezione REGIONI'!B$9:B$1008,B130,'Sezione REGIONI'!K$9:K$1008)-SUMIF('Sezione REGIONI'!B$9:B$1008,B130,'Sezione REGIONI'!L$9:L$1008))+(SUMIF('Sezione IMU e trib. locali'!B$9:B$1008,B130,'Sezione IMU e trib. locali'!M$9:M$1008)-SUMIF('Sezione IMU e trib. locali'!B$9:B$1008,B130,'Sezione IMU e trib. locali'!N$9:N$1008))+(SUMIF('Sezione ACCISE'!B$9:B$1008,B130,'Sezione ACCISE'!N$9:N$1008)),0) -> 0 | AF130: =IF(B130="",0,IF(B130=B129,COUNTIF(B$9:B129,B130)+1,1)) -> 120 | AG130: 0 | AH130: 0
A131: 123 | B131: -1900 | C131: -1900-121 | Q131: =IF(M$1021=1,"",IF(P131="","",VLOOKUP(P131,Tabelle!$B$5:$F$7,5,FALSE))) ->  | R131: =IF(M$1021=1,"",IF(P131="","",VLOOKUP(P131,Tabelle!$B$5:$G$7,6,FALSE))) ->  | V131: =IF(AND(D131<>"",B131<>B130),(SUMIF(B$9:B$1008,B131,M$9:M$1008)-SUMIF(B$9:B$1008,B131,N$9:N$1008))+(SUMIF('Sezione INPS'!B$9:B$1008,B131,'Sezione INPS'!N$9:N$1008)-SUMIF('Sezione INPS'!B$9:B$1008,B131,'Sezione INPS'!O$9:O$1008))+(SUMIF('Sezione REGIONI'!B$9:B$1008,B131,'Sezione REGIONI'!K$9:K$1008)-SUMIF('Sezione REGIONI'!B$9:B$1008,B131,'Sezione REGIONI'!L$9:L$1008))+(SUMIF('Sezione IMU e trib. locali'!B$9:B$1008,B131,'Sezione IMU e trib. locali'!M$9:M$1008)-SUMIF('Sezione IMU e trib. locali'!B$9:B$1008,B131,'Sezione IMU e trib. locali'!N$9:N$1008))+(SUMIF('Sezione ACCISE'!B$9:B$1008,B131,'Sezione ACCISE'!N$9:N$1008)),0) -> 0 | AF131: =IF(B131="",0,IF(B131=B130,COUNTIF(B$9:B130,B131)+1,1)) -> 121 | AG131: 0 | AH131: 0
A132: 124 | B132: -1900 | C132: -1900-122 | Q132: =IF(M$1021=1,"",IF(P132="","",VLOOKUP(P132,Tabelle!$B$5:$F$7,5,FALSE))) ->  | R132: =IF(M$1021=1,"",IF(P132="","",VLOOKUP(P132,Tabelle!$B$5:$G$7,6,FALSE))) ->  | V132: =IF(AND(D132<>"",B132<>B131),(SUMIF(B$9:B$1008,B132,M$9:M$1008)-SUMIF(B$9:B$1008,B132,N$9:N$1008))+(SUMIF('Sezione INPS'!B$9:B$1008,B132,'Sezione INPS'!N$9:N$1008)-SUMIF('Sezione INPS'!B$9:B$1008,B132,'Sezione INPS'!O$9:O$1008))+(SUMIF('Sezione REGIONI'!B$9:B$1008,B132,'Sezione REGIONI'!K$9:K$1008)-SUMIF('Sezione REGIONI'!B$9:B$1008,B132,'Sezione REGIONI'!L$9:L$1008))+(SUMIF('Sezione IMU e trib. locali'!B$9:B$1008,B132,'Sezione IMU e trib. locali'!M$9:M$1008)-SUMIF('Sezione IMU e trib. locali'!B$9:B$1008,B132,'Sezione IMU e trib. locali'!N$9:N$1008))+(SUMIF('Sezione ACCISE'!B$9:B$1008,B132,'Sezione ACCISE'!N$9:N$1008)),0) -> 0 | AF132: =IF(B132="",0,IF(B132=B131,COUNTIF(B$9:B131,B132)+1,1)) -> 122 | AG132: 0 | AH132: 0
A133: 125 | B133: -1900 | C133: -1900-123 | Q133: =IF(M$1021=1,"",IF(P133="","",VLOOKUP(P133,Tabelle!$B$5:$F$7,5,FALSE))) ->  | R133: =IF(M$1021=1,"",IF(P133="","",VLOOKUP(P133,Tabelle!$B$5:$G$7,6,FALSE))) ->  | V133: =IF(AND(D133<>"",B133<>B132),(SUMIF(B$9:B$1008,B133,M$9:M$1008)-SUMIF(B$9:B$1008,B133,N$9:N$1008))+(SUMIF('Sezione INPS'!B$9:B$1008,B133,'Sezione INPS'!N$9:N$1008)-SUMIF('Sezione INPS'!B$9:B$1008,B133,'Sezione INPS'!O$9:O$1008))+(SUMIF('Sezione REGIONI'!B$9:B$1008,B133,'Sezione REGIONI'!K$9:K$1008)-SUMIF('Sezione REGIONI'!B$9:B$1008,B133,'Sezione REGIONI'!L$9:L$1008))+(SUMIF('Sezione IMU e trib. locali'!B$9:B$1008,B133,'Sezione IMU e trib. locali'!M$9:M$1008)-SUMIF('Sezione IMU e trib. locali'!B$9:B$1008,B133,'Sezione IMU e trib. locali'!N$9:N$1008))+(SUMIF('Sezione ACCISE'!B$9:B$1008,B133,'Sezione ACCISE'!N$9:N$1008)),0) -> 0 | AF133: =IF(B133="",0,IF(B133=B132,COUNTIF(B$9:B132,B133)+1,1)) -> 123 | AG133: 0 | AH133: 0
A134: 126 | B134: -1900 | C134: -1900-124 | Q134: =IF(M$1021=1,"",IF(P134="","",VLOOKUP(P134,Tabelle!$B$5:$F$7,5,FALSE))) ->  | R134: =IF(M$1021=1,"",IF(P134="","",VLOOKUP(P134,Tabelle!$B$5:$G$7,6,FALSE))) ->  | V134: =IF(AND(D134<>"",B134<>B133),(SUMIF(B$9:B$1008,B134,M$9:M$1008)-SUMIF(B$9:B$1008,B134,N$9:N$1008))+(SUMIF('Sezione INPS'!B$9:B$1008,B134,'Sezione INPS'!N$9:N$1008)-SUMIF('Sezione INPS'!B$9:B$1008,B134,'Sezione INPS'!O$9:O$1008))+(SUMIF('Sezione REGIONI'!B$9:B$1008,B134,'Sezione REGIONI'!K$9:K$1008)-SUMIF('Sezione REGIONI'!B$9:B$1008,B134,'Sezione REGIONI'!L$9:L$1008))+(SUMIF('Sezione IMU e trib. locali'!B$9:B$1008,B134,'Sezione IMU e trib. locali'!M$9:M$1008)-SUMIF('Sezione IMU e trib. locali'!B$9:B$1008,B134,'Sezione IMU e trib. locali'!N$9:N$1008))+(SUMIF('Sezione ACCISE'!B$9:B$1008,B134,'Sezione ACCISE'!N$9:N$1008)),0) -> 0 | AF134: =IF(B134="",0,IF(B134=B133,COUNTIF(B$9:B133,B134)+1,1)) -> 124 | AG134: 0 | AH134: 0
A135: 127 | B135: -1900 | C135: -1900-125 | Q135: =IF(M$1021=1,"",IF(P135="","",VLOOKUP(P135,Tabelle!$B$5:$F$7,5,FALSE))) ->  | R135: =IF(M$1021=1,"",IF(P135="","",VLOOKUP(P135,Tabelle!$B$5:$G$7,6,FALSE))) ->  | V135: =IF(AND(D135<>"",B135<>B134),(SUMIF(B$9:B$1008,B135,M$9:M$1008)-SUMIF(B$9:B$1008,B135,N$9:N$1008))+(SUMIF('Sezione INPS'!B$9:B$1008,B135,'Sezione INPS'!N$9:N$1008)-SUMIF('Sezione INPS'!B$9:B$1008,B135,'Sezione INPS'!O$9:O$1008))+(SUMIF('Sezione REGIONI'!B$9:B$1008,B135,'Sezione REGIONI'!K$9:K$1008)-SUMIF('Sezione REGIONI'!B$9:B$1008,B135,'Sezione REGIONI'!L$9:L$1008))+(SUMIF('Sezione IMU e trib. locali'!B$9:B$1008,B135,'Sezione IMU e trib. locali'!M$9:M$1008)-SUMIF('Sezione IMU e trib. locali'!B$9:B$1008,B135,'Sezione IMU e trib. locali'!N$9:N$1008))+(SUMIF('Sezione ACCISE'!B$9:B$1008,B135,'Sezione ACCISE'!N$9:N$1008)),0) -> 0 | AF135: =IF(B135="",0,IF(B135=B134,COUNTIF(B$9:B134,B135)+1,1)) -> 125 | AG135: 0 | AH135: 0
A136: 128 | B136: -1900 | C136: -1900-126 | Q136: =IF(M$1021=1,"",IF(P136="","",VLOOKUP(P136,Tabelle!$B$5:$F$7,5,FALSE))) ->  | R136: =IF(M$1021=1,"",IF(P136="","",VLOOKUP(P136,Tabelle!$B$5:$G$7,6,FALSE))) ->  | V136: =IF(AND(D136<>"",B136<>B135),(SUMIF(B$9:B$1008,B136,M$9:M$1008)-SUMIF(B$9:B$1008,B136,N$9:N$1008))+(SUMIF('Sezione INPS'!B$9:B$1008,B136,'Sezione INPS'!N$9:N$1008)-SUMIF('Sezione INPS'!B$9:B$1008,B136,'Sezione INPS'!O$9:O$1008))+(SUMIF('Sezione REGIONI'!B$9:B$1008,B136,'Sezione REGIONI'!K$9:K$1008)-SUMIF('Sezione REGIONI'!B$9:B$1008,B136,'Sezione REGIONI'!L$9:L$1008))+(SUMIF('Sezione IMU e trib. locali'!B$9:B$1008,B136,'Sezione IMU e trib. locali'!M$9:M$1008)-SUMIF('Sezione IMU e trib. locali'!B$9:B$1008,B136,'Sezione IMU e trib. locali'!N$9:N$1008))+(SUMIF('Sezione ACCISE'!B$9:B$1008,B136,'Sezione ACCISE'!N$9:N$1008)),0) -> 0 | AF136: =IF(B136="",0,IF(B136=B135,COUNTIF(B$9:B135,B136)+1,1)) -> 126 | AG136: 0 | AH136: 0
A137: 129 | B137: -1900 | C137: =IF(M$1021=1,0,B137&"-"&AF137) -> -1900-127 | Q137: =IF(M$1021=1,"",IF(P137="","",VLOOKUP(P137,Tabelle!$B$5:$F$7,5,FALSE))) ->  | R137: =IF(M$1021=1,"",IF(P137="","",VLOOKUP(P137,Tabelle!$B$5:$G$7,6,FALSE))) ->  | V137: =IF(AND(D137<>"",B137<>B136),(SUMIF(B$9:B$1008,B137,M$9:M$1008)-SUMIF(B$9:B$1008,B137,N$9:N$1008))+(SUMIF('Sezione INPS'!B$9:B$1008,B137,'Sezione INPS'!N$9:N$1008)-SUMIF('Sezione INPS'!B$9:B$1008,B137,'Sezione INPS'!O$9:O$1008))+(SUMIF('Sezione REGIONI'!B$9:B$1008,B137,'Sezione REGIONI'!K$9:K$1008)-SUMIF('Sezione REGIONI'!B$9:B$1008,B137,'Sezione REGIONI'!L$9:L$1008))+(SUMIF('Sezione IMU e trib. locali'!B$9:B$1008,B137,'Sezione IMU e trib. locali'!M$9:M$1008)-SUMIF('Sezione IMU e trib. locali'!B$9:B$1008,B137,'Sezione IMU e trib. locali'!N$9:N$1008))+(SUMIF('Sezione ACCISE'!B$9:B$1008,B137,'Sezione ACCISE'!N$9:N$1008)),0) -> 0 | AF137: =IF(B137="",0,IF(B137=B136,COUNTIF(B$9:B136,B137)+1,1)) -> 127 | AG137: 0 | AH137: 0
A138: 130 | B138: =IF(AH138=$AH$1015,0,IF(M$1021=1,0,D138&"-"&YEAR(E138))) -> -1900 | C138: -1900-128 | Q138: =IF(M$1021=1,"",IF(P138="","",VLOOKUP(P138,Tabelle!$B$5:$F$7,5,FALSE))) ->  | R138: =IF(M$1021=1,"",IF(P138="","",VLOOKUP(P138,Tabelle!$B$5:$G$7,6,FALSE))) ->  | V138: =IF(AND(D138<>"",B138<>B137),(SUMIF(B$9:B$1008,B138,M$9:M$1008)-SUMIF(B$9:B$1008,B138,N$9:N$1008))+(SUMIF('Sezione INPS'!B$9:B$1008,B138,'Sezione INPS'!N$9:N$1008)-SUMIF('Sezione INPS'!B$9:B$1008,B138,'Sezione INPS'!O$9:O$1008))+(SUMIF('Sezione REGIONI'!B$9:B$1008,B138,'Sezione REGIONI'!K$9:K$1008)-SUMIF('Sezione REGIONI'!B$9:B$1008,B138,'Sezione REGIONI'!L$9:L$1008))+(SUMIF('Sezione IMU e trib. locali'!B$9:B$1008,B138,'Sezione IMU e trib. locali'!M$9:M$1008)-SUMIF('Sezione IMU e trib. locali'!B$9:B$1008,B138,'Sezione IMU e trib. locali'!N$9:N$1008))+(SUMIF('Sezione ACCISE'!B$9:B$1008,B138,'Sezione ACCISE'!N$9:N$1008)),0) -> 0 | AF138: =IF(B138="",0,IF(B138=B137,COUNTIF(B$9:B137,B138)+1,1)) -> 128 | AG138: =IF(OR(D138="",M$1021=1),0,IF(AF138=6,1,0)) -> 0 | AH138: =IF(E138>0,IF(OR(MONTH(E138)<$L$1027,MONTH(E138)>$L$1028),AH$1015,0),0) -> 0
A139: 131 | B139: -1900 | C139: -1900-129 | Q139: =IF(M$1021=1,"",IF(P139="","",VLOOKUP(P139,Tabelle!$B$5:$F$7,5,FALSE))) ->  | R139: =IF(M$1021=1,"",IF(P139="","",VLOOKUP(P139,Tabelle!$B$5:$G$7,6,FALSE))) ->  | V139: =IF(AND(D139<>"",B139<>B138),(SUMIF(B$9:B$1008,B139,M$9:M$1008)-SUMIF(B$9:B$1008,B139,N$9:N$1008))+(SUMIF('Sezione INPS'!B$9:B$1008,B139,'Sezione INPS'!N$9:N$1008)-SUMIF('Sezione INPS'!B$9:B$1008,B139,'Sezione INPS'!O$9:O$1008))+(SUMIF('Sezione REGIONI'!B$9:B$1008,B139,'Sezione REGIONI'!K$9:K$1008)-SUMIF('Sezione REGIONI'!B$9:B$1008,B139,'Sezione REGIONI'!L$9:L$1008))+(SUMIF('Sezione IMU e trib. locali'!B$9:B$1008,B139,'Sezione IMU e trib. locali'!M$9:M$1008)-SUMIF('Sezione IMU e trib. locali'!B$9:B$1008,B139,'Sezione IMU e trib. locali'!N$9:N$1008))+(SUMIF('Sezione ACCISE'!B$9:B$1008,B139,'Sezione ACCISE'!N$9:N$1008)),0) -> 0 | AF139: =IF(B139="",0,IF(B139=B138,COUNTIF(B$9:B138,B139)+1,1)) -> 129 | AG139: 0 | AH139: 0
A140: 132 | B140: -1900 | C140: -1900-130 | Q140: =IF(M$1021=1,"",IF(P140="","",VLOOKUP(P140,Tabelle!$B$5:$F$7,5,FALSE))) ->  | R140: =IF(M$1021=1,"",IF(P140="","",VLOOKUP(P140,Tabelle!$B$5:$G$7,6,FALSE))) ->  | V140: =IF(AND(D140<>"",B140<>B139),(SUMIF(B$9:B$1008,B140,M$9:M$1008)-SUMIF(B$9:B$1008,B140,N$9:N$1008))+(SUMIF('Sezione INPS'!B$9:B$1008,B140,'Sezione INPS'!N$9:N$1008)-SUMIF('Sezione INPS'!B$9:B$1008,B140,'Sezione INPS'!O$9:O$1008))+(SUMIF('Sezione REGIONI'!B$9:B$1008,B140,'Sezione REGIONI'!K$9:K$1008)-SUMIF('Sezione REGIONI'!B$9:B$1008,B140,'Sezione REGIONI'!L$9:L$1008))+(SUMIF('Sezione IMU e trib. locali'!B$9:B$1008,B140,'Sezione IMU e trib. locali'!M$9:M$1008)-SUMIF('Sezione IMU e trib. locali'!B$9:B$1008,B140,'Sezione IMU e trib. locali'!N$9:N$1008))+(SUMIF('Sezione ACCISE'!B$9:B$1008,B140,'Sezione ACCISE'!N$9:N$1008)),0) -> 0 | AF140: =IF(B140="",0,IF(B140=B139,COUNTIF(B$9:B139,B140)+1,1)) -> 130 | AG140: 0 | AH140: 0
A141: 133 | B141: -1900 | C141: -1900-131 | Q141: =IF(M$1021=1,"",IF(P141="","",VLOOKUP(P141,Tabelle!$B$5:$F$7,5,FALSE))) ->  | R141: =IF(M$1021=1,"",IF(P141="","",VLOOKUP(P141,Tabelle!$B$5:$G$7,6,FALSE))) ->  | V141: =IF(AND(D141<>"",B141<>B140),(SUMIF(B$9:B$1008,B141,M$9:M$1008)-SUMIF(B$9:B$1008,B141,N$9:N$1008))+(SUMIF('Sezione INPS'!B$9:B$1008,B141,'Sezione INPS'!N$9:N$1008)-SUMIF('Sezione INPS'!B$9:B$1008,B141,'Sezione INPS'!O$9:O$1008))+(SUMIF('Sezione REGIONI'!B$9:B$1008,B141,'Sezione REGIONI'!K$9:K$1008)-SUMIF('Sezione REGIONI'!B$9:B$1008,B141,'Sezione REGIONI'!L$9:L$1008))+(SUMIF('Sezione IMU e trib. locali'!B$9:B$1008,B141,'Sezione IMU e trib. locali'!M$9:M$1008)-SUMIF('Sezione IMU e trib. locali'!B$9:B$1008,B141,'Sezione IMU e trib. locali'!N$9:N$1008))+(SUMIF('Sezione ACCISE'!B$9:B$1008,B141,'Sezione ACCISE'!N$9:N$1008)),0) -> 0 | AF141: =IF(B141="",0,IF(B141=B140,COUNTIF(B$9:B140,B141)+1,1)) -> 131 | AG141: 0 | AH141: 0
A142: 134 | B142: -1900 | C142: -1900-132 | Q142: =IF(M$1021=1,"",IF(P142="","",VLOOKUP(P142,Tabelle!$B$5:$F$7,5,FALSE))) ->  | R142: =IF(M$1021=1,"",IF(P142="","",VLOOKUP(P142,Tabelle!$B$5:$G$7,6,FALSE))) ->  | V142: =IF(AND(D142<>"",B142<>B141),(SUMIF(B$9:B$1008,B142,M$9:M$1008)-SUMIF(B$9:B$1008,B142,N$9:N$1008))+(SUMIF('Sezione INPS'!B$9:B$1008,B142,'Sezione INPS'!N$9:N$1008)-SUMIF('Sezione INPS'!B$9:B$1008,B142,'Sezione INPS'!O$9:O$1008))+(SUMIF('Sezione REGIONI'!B$9:B$1008,B142,'Sezione REGIONI'!K$9:K$1008)-SUMIF('Sezione REGIONI'!B$9:B$1008,B142,'Sezione REGIONI'!L$9:L$1008))+(SUMIF('Sezione IMU e trib. locali'!B$9:B$1008,B142,'Sezione IMU e trib. locali'!M$9:M$1008)-SUMIF('Sezione IMU e trib. locali'!B$9:B$1008,B142,'Sezione IMU e trib. locali'!N$9:N$1008))+(SUMIF('Sezione ACCISE'!B$9:B$1008,B142,'Sezione ACCISE'!N$9:N$1008)),0) -> 0 | AF142: =IF(B142="",0,IF(B142=B141,COUNTIF(B$9:B141,B142)+1,1)) -> 132 | AG142: 0 | AH142: 0
A143: 135 | B143: -1900 | C143: -1900-133 | Q143: =IF(M$1021=1,"",IF(P143="","",VLOOKUP(P143,Tabelle!$B$5:$F$7,5,FALSE))) ->  | R143: =IF(M$1021=1,"",IF(P143="","",VLOOKUP(P143,Tabelle!$B$5:$G$7,6,FALSE))) ->  | V143: =IF(AND(D143<>"",B143<>B142),(SUMIF(B$9:B$1008,B143,M$9:M$1008)-SUMIF(B$9:B$1008,B143,N$9:N$1008))+(SUMIF('Sezione INPS'!B$9:B$1008,B143,'Sezione INPS'!N$9:N$1008)-SUMIF('Sezione INPS'!B$9:B$1008,B143,'Sezione INPS'!O$9:O$1008))+(SUMIF('Sezione REGIONI'!B$9:B$1008,B143,'Sezione REGIONI'!K$9:K$1008)-SUMIF('Sezione REGIONI'!B$9:B$1008,B143,'Sezione REGIONI'!L$9:L$1008))+(SUMIF('Sezione IMU e trib. locali'!B$9:B$1008,B143,'Sezione IMU e trib. locali'!M$9:M$1008)-SUMIF('Sezione IMU e trib. locali'!B$9:B$1008,B143,'Sezione IMU e trib. locali'!N$9:N$1008))+(SUMIF('Sezione ACCISE'!B$9:B$1008,B143,'Sezione ACCISE'!N$9:N$1008)),0) -> 0 | AF143: =IF(B143="",0,IF(B143=B142,COUNTIF(B$9:B142,B143)+1,1)) -> 133 | AG143: 0 | AH143: 0
A144: 136 | B144: -1900 | C144: -1900-134 | Q144: =IF(M$1021=1,"",IF(P144="","",VLOOKUP(P144,Tabelle!$B$5:$F$7,5,FALSE))) ->  | R144: =IF(M$1021=1,"",IF(P144="","",VLOOKUP(P144,Tabelle!$B$5:$G$7,6,FALSE))) ->  | V144: =IF(AND(D144<>"",B144<>B143),(SUMIF(B$9:B$1008,B144,M$9:M$1008)-SUMIF(B$9:B$1008,B144,N$9:N$1008))+(SUMIF('Sezione INPS'!B$9:B$1008,B144,'Sezione INPS'!N$9:N$1008)-SUMIF('Sezione INPS'!B$9:B$1008,B144,'Sezione INPS'!O$9:O$1008))+(SUMIF('Sezione REGIONI'!B$9:B$1008,B144,'Sezione REGIONI'!K$9:K$1008)-SUMIF('Sezione REGIONI'!B$9:B$1008,B144,'Sezione REGIONI'!L$9:L$1008))+(SUMIF('Sezione IMU e trib. locali'!B$9:B$1008,B144,'Sezione IMU e trib. locali'!M$9:M$1008)-SUMIF('Sezione IMU e trib. locali'!B$9:B$1008,B144,'Sezione IMU e trib. locali'!N$9:N$1008))+(SUMIF('Sezione ACCISE'!B$9:B$1008,B144,'Sezione ACCISE'!N$9:N$1008)),0) -> 0 | AF144: =IF(B144="",0,IF(B144=B143,COUNTIF(B$9:B143,B144)+1,1)) -> 134 | AG144: 0 | AH144: 0
A145: 137 | B145: -1900 | C145: -1900-135 | Q145: =IF(M$1021=1,"",IF(P145="","",VLOOKUP(P145,Tabelle!$B$5:$F$7,5,FALSE))) ->  | R145: =IF(M$1021=1,"",IF(P145="","",VLOOKUP(P145,Tabelle!$B$5:$G$7,6,FALSE))) ->  | V145: =IF(AND(D145<>"",B145<>B144),(SUMIF(B$9:B$1008,B145,M$9:M$1008)-SUMIF(B$9:B$1008,B145,N$9:N$1008))+(SUMIF('Sezione INPS'!B$9:B$1008,B145,'Sezione INPS'!N$9:N$1008)-SUMIF('Sezione INPS'!B$9:B$1008,B145,'Sezione INPS'!O$9:O$1008))+(SUMIF('Sezione REGIONI'!B$9:B$1008,B145,'Sezione REGIONI'!K$9:K$1008)-SUMIF('Sezione REGIONI'!B$9:B$1008,B145,'Sezione REGIONI'!L$9:L$1008))+(SUMIF('Sezione IMU e trib. locali'!B$9:B$1008,B145,'Sezione IMU e trib. locali'!M$9:M$1008)-SUMIF('Sezione IMU e trib. locali'!B$9:B$1008,B145,'Sezione IMU e trib. locali'!N$9:N$1008))+(SUMIF('Sezione ACCISE'!B$9:B$1008,B145,'Sezione ACCISE'!N$9:N$1008)),0) -> 0 | AF145: =IF(B145="",0,IF(B145=B144,COUNTIF(B$9:B144,B145)+1,1)) -> 135 | AG145: 0 | AH145: 0
A146: 138 | B146: -1900 | C146: -1900-136 | Q146: =IF(M$1021=1,"",IF(P146="","",VLOOKUP(P146,Tabelle!$B$5:$F$7,5,FALSE))) ->  | R146: =IF(M$1021=1,"",IF(P146="","",VLOOKUP(P146,Tabelle!$B$5:$G$7,6,FALSE))) ->  | V146: =IF(AND(D146<>"",B146<>B145),(SUMIF(B$9:B$1008,B146,M$9:M$1008)-SUMIF(B$9:B$1008,B146,N$9:N$1008))+(SUMIF('Sezione INPS'!B$9:B$1008,B146,'Sezione INPS'!N$9:N$1008)-SUMIF('Sezione INPS'!B$9:B$1008,B146,'Sezione INPS'!O$9:O$1008))+(SUMIF('Sezione REGIONI'!B$9:B$1008,B146,'Sezione REGIONI'!K$9:K$1008)-SUMIF('Sezione REGIONI'!B$9:B$1008,B146,'Sezione REGIONI'!L$9:L$1008))+(SUMIF('Sezione IMU e trib. locali'!B$9:B$1008,B146,'Sezione IMU e trib. locali'!M$9:M$1008)-SUMIF('Sezione IMU e trib. locali'!B$9:B$1008,B146,'Sezione IMU e trib. locali'!N$9:N$1008))+(SUMIF('Sezione ACCISE'!B$9:B$1008,B146,'Sezione ACCISE'!N$9:N$1008)),0) -> 0 | AF146: =IF(B146="",0,IF(B146=B145,COUNTIF(B$9:B145,B146)+1,1)) -> 136 | AG146: 0 | AH146: 0
A147: 139 | B147: -1900 | C147: -1900-137 | Q147: =IF(M$1021=1,"",IF(P147="","",VLOOKUP(P147,Tabelle!$B$5:$F$7,5,FALSE))) ->  | R147: =IF(M$1021=1,"",IF(P147="","",VLOOKUP(P147,Tabelle!$B$5:$G$7,6,FALSE))) ->  | V147: =IF(AND(D147<>"",B147<>B146),(SUMIF(B$9:B$1008,B147,M$9:M$1008)-SUMIF(B$9:B$1008,B147,N$9:N$1008))+(SUMIF('Sezione INPS'!B$9:B$1008,B147,'Sezione INPS'!N$9:N$1008)-SUMIF('Sezione INPS'!B$9:B$1008,B147,'Sezione INPS'!O$9:O$1008))+(SUMIF('Sezione REGIONI'!B$9:B$1008,B147,'Sezione REGIONI'!K$9:K$1008)-SUMIF('Sezione REGIONI'!B$9:B$1008,B147,'Sezione REGIONI'!L$9:L$1008))+(SUMIF('Sezione IMU e trib. locali'!B$9:B$1008,B147,'Sezione IMU e trib. locali'!M$9:M$1008)-SUMIF('Sezione IMU e trib. locali'!B$9:B$1008,B147,'Sezione IMU e trib. locali'!N$9:N$1008))+(SUMIF('Sezione ACCISE'!B$9:B$1008,B147,'Sezione ACCISE'!N$9:N$1008)),0) -> 0 | AF147: =IF(B147="",0,IF(B147=B146,COUNTIF(B$9:B146,B147)+1,1)) -> 137 | AG147: 0 | AH147: 0
A148: 140 | B148: -1900 | C148: -1900-138 | Q148: =IF(M$1021=1,"",IF(P148="","",VLOOKUP(P148,Tabelle!$B$5:$F$7,5,FALSE))) ->  | R148: =IF(M$1021=1,"",IF(P148="","",VLOOKUP(P148,Tabelle!$B$5:$G$7,6,FALSE))) ->  | V148: =IF(AND(D148<>"",B148<>B147),(SUMIF(B$9:B$1008,B148,M$9:M$1008)-SUMIF(B$9:B$1008,B148,N$9:N$1008))+(SUMIF('Sezione INPS'!B$9:B$1008,B148,'Sezione INPS'!N$9:N$1008)-SUMIF('Sezione INPS'!B$9:B$1008,B148,'Sezione INPS'!O$9:O$1008))+(SUMIF('Sezione REGIONI'!B$9:B$1008,B148,'Sezione REGIONI'!K$9:K$1008)-SUMIF('Sezione REGIONI'!B$9:B$1008,B148,'Sezione REGIONI'!L$9:L$1008))+(SUMIF('Sezione IMU e trib. locali'!B$9:B$1008,B148,'Sezione IMU e trib. locali'!M$9:M$1008)-SUMIF('Sezione IMU e trib. locali'!B$9:B$1008,B148,'Sezione IMU e trib. locali'!N$9:N$1008))+(SUMIF('Sezione ACCISE'!B$9:B$1008,B148,'Sezione ACCISE'!N$9:N$1008)),0) -> 0 | AF148: =IF(B148="",0,IF(B148=B147,COUNTIF(B$9:B147,B148)+1,1)) -> 138 | AG148: 0 | AH148: 0
A149: 141 | B149: -1900 | C149: -1900-139 | Q149: =IF(M$1021=1,"",IF(P149="","",VLOOKUP(P149,Tabelle!$B$5:$F$7,5,FALSE))) ->  | R149: =IF(M$1021=1,"",IF(P149="","",VLOOKUP(P149,Tabelle!$B$5:$G$7,6,FALSE))) ->  | V149: =IF(AND(D149<>"",B149<>B148),(SUMIF(B$9:B$1008,B149,M$9:M$1008)-SUMIF(B$9:B$1008,B149,N$9:N$1008))+(SUMIF('Sezione INPS'!B$9:B$1008,B149,'Sezione INPS'!N$9:N$1008)-SUMIF('Sezione INPS'!B$9:B$1008,B149,'Sezione INPS'!O$9:O$1008))+(SUMIF('Sezione REGIONI'!B$9:B$1008,B149,'Sezione REGIONI'!K$9:K$1008)-SUMIF('Sezione REGIONI'!B$9:B$1008,B149,'Sezione REGIONI'!L$9:L$1008))+(SUMIF('Sezione IMU e trib. locali'!B$9:B$1008,B149,'Sezione IMU e trib. locali'!M$9:M$1008)-SUMIF('Sezione IMU e trib. locali'!B$9:B$1008,B149,'Sezione IMU e trib. locali'!N$9:N$1008))+(SUMIF('Sezione ACCISE'!B$9:B$1008,B149,'Sezione ACCISE'!N$9:N$1008)),0) -> 0 | AF149: =IF(B149="",0,IF(B149=B148,COUNTIF(B$9:B148,B149)+1,1)) -> 139 | AG149: 0 | AH149: 0
A150: 142 | B150: -1900 | C150: -1900-140 | Q150: =IF(M$1021=1,"",IF(P150="","",VLOOKUP(P150,Tabelle!$B$5:$F$7,5,FALSE))) ->  | R150: =IF(M$1021=1,"",IF(P150="","",VLOOKUP(P150,Tabelle!$B$5:$G$7,6,FALSE))) ->  | V150: =IF(AND(D150<>"",B150<>B149),(SUMIF(B$9:B$1008,B150,M$9:M$1008)-SUMIF(B$9:B$1008,B150,N$9:N$1008))+(SUMIF('Sezione INPS'!B$9:B$1008,B150,'Sezione INPS'!N$9:N$1008)-SUMIF('Sezione INPS'!B$9:B$1008,B150,'Sezione INPS'!O$9:O$1008))+(SUMIF('Sezione REGIONI'!B$9:B$1008,B150,'Sezione REGIONI'!K$9:K$1008)-SUMIF('Sezione REGIONI'!B$9:B$1008,B150,'Sezione REGIONI'!L$9:L$1008))+(SUMIF('Sezione IMU e trib. locali'!B$9:B$1008,B150,'Sezione IMU e trib. locali'!M$9:M$1008)-SUMIF('Sezione IMU e trib. locali'!B$9:B$1008,B150,'Sezione IMU e trib. locali'!N$9:N$1008))+(SUMIF('Sezione ACCISE'!B$9:B$1008,B150,'Sezione ACCISE'!N$9:N$1008)),0) -> 0 | AF150: =IF(B150="",0,IF(B150=B149,COUNTIF(B$9:B149,B150)+1,1)) -> 140 | AG150: 0 | AH150: 0
A151: 143 | B151: -1900 | C151: -1900-141 | Q151: =IF(M$1021=1,"",IF(P151="","",VLOOKUP(P151,Tabelle!$B$5:$F$7,5,FALSE))) ->  | R151: =IF(M$1021=1,"",IF(P151="","",VLOOKUP(P151,Tabelle!$B$5:$G$7,6,FALSE))) ->  | V151: =IF(AND(D151<>"",B151<>B150),(SUMIF(B$9:B$1008,B151,M$9:M$1008)-SUMIF(B$9:B$1008,B151,N$9:N$1008))+(SUMIF('Sezione INPS'!B$9:B$1008,B151,'Sezione INPS'!N$9:N$1008)-SUMIF('Sezione INPS'!B$9:B$1008,B151,'Sezione INPS'!O$9:O$1008))+(SUMIF('Sezione REGIONI'!B$9:B$1008,B151,'Sezione REGIONI'!K$9:K$1008)-SUMIF('Sezione REGIONI'!B$9:B$1008,B151,'Sezione REGIONI'!L$9:L$1008))+(SUMIF('Sezione IMU e trib. locali'!B$9:B$1008,B151,'Sezione IMU e trib. locali'!M$9:M$1008)-SUMIF('Sezione IMU e trib. locali'!B$9:B$1008,B151,'Sezione IMU e trib. locali'!N$9:N$1008))+(SUMIF('Sezione ACCISE'!B$9:B$1008,B151,'Sezione ACCISE'!N$9:N$1008)),0) -> 0 | AF151: =IF(B151="",0,IF(B151=B150,COUNTIF(B$9:B150,B151)+1,1)) -> 141 | AG151: 0 | AH151: 0
A152: 144 | B152: -1900 | C152: -1900-142 | Q152: =IF(M$1021=1,"",IF(P152="","",VLOOKUP(P152,Tabelle!$B$5:$F$7,5,FALSE))) ->  | R152: =IF(M$1021=1,"",IF(P152="","",VLOOKUP(P152,Tabelle!$B$5:$G$7,6,FALSE))) ->  | V152: =IF(AND(D152<>"",B152<>B151),(SUMIF(B$9:B$1008,B152,M$9:M$1008)-SUMIF(B$9:B$1008,B152,N$9:N$1008))+(SUMIF('Sezione INPS'!B$9:B$1008,B152,'Sezione INPS'!N$9:N$1008)-SUMIF('Sezione INPS'!B$9:B$1008,B152,'Sezione INPS'!O$9:O$1008))+(SUMIF('Sezione REGIONI'!B$9:B$1008,B152,'Sezione REGIONI'!K$9:K$1008)-SUMIF('Sezione REGIONI'!B$9:B$1008,B152,'Sezione REGIONI'!L$9:L$1008))+(SUMIF('Sezione IMU e trib. locali'!B$9:B$1008,B152,'Sezione IMU e trib. locali'!M$9:M$1008)-SUMIF('Sezione IMU e trib. locali'!B$9:B$1008,B152,'Sezione IMU e trib. locali'!N$9:N$1008))+(SUMIF('Sezione ACCISE'!B$9:B$1008,B152,'Sezione ACCISE'!N$9:N$1008)),0) -> 0 | AF152: =IF(B152="",0,IF(B152=B151,COUNTIF(B$9:B151,B152)+1,1)) -> 142 | AG152: 0 | AH152: 0
A153: 145 | B153: -1900 | C153: -1900-143 | Q153: =IF(M$1021=1,"",IF(P153="","",VLOOKUP(P153,Tabelle!$B$5:$F$7,5,FALSE))) ->  | R153: =IF(M$1021=1,"",IF(P153="","",VLOOKUP(P153,Tabelle!$B$5:$G$7,6,FALSE))) ->  | V153: =IF(AND(D153<>"",B153<>B152),(SUMIF(B$9:B$1008,B153,M$9:M$1008)-SUMIF(B$9:B$1008,B153,N$9:N$1008))+(SUMIF('Sezione INPS'!B$9:B$1008,B153,'Sezione INPS'!N$9:N$1008)-SUMIF('Sezione INPS'!B$9:B$1008,B153,'Sezione INPS'!O$9:O$1008))+(SUMIF('Sezione REGIONI'!B$9:B$1008,B153,'Sezione REGIONI'!K$9:K$1008)-SUMIF('Sezione REGIONI'!B$9:B$1008,B153,'Sezione REGIONI'!L$9:L$1008))+(SUMIF('Sezione IMU e trib. locali'!B$9:B$1008,B153,'Sezione IMU e trib. locali'!M$9:M$1008)-SUMIF('Sezione IMU e trib. locali'!B$9:B$1008,B153,'Sezione IMU e trib. locali'!N$9:N$1008))+(SUMIF('Sezione ACCISE'!B$9:B$1008,B153,'Sezione ACCISE'!N$9:N$1008)),0) -> 0 | AF153: =IF(B153="",0,IF(B153=B152,COUNTIF(B$9:B152,B153)+1,1)) -> 143 | AG153: 0 | AH153: 0
A154: 146 | B154: -1900 | C154: -1900-144 | Q154: =IF(M$1021=1,"",IF(P154="","",VLOOKUP(P154,Tabelle!$B$5:$F$7,5,FALSE))) ->  | R154: =IF(M$1021=1,"",IF(P154="","",VLOOKUP(P154,Tabelle!$B$5:$G$7,6,FALSE))) ->  | V154: =IF(AND(D154<>"",B154<>B153),(SUMIF(B$9:B$1008,B154,M$9:M$1008)-SUMIF(B$9:B$1008,B154,N$9:N$1008))+(SUMIF('Sezione INPS'!B$9:B$1008,B154,'Sezione INPS'!N$9:N$1008)-SUMIF('Sezione INPS'!B$9:B$1008,B154,'Sezione INPS'!O$9:O$1008))+(SUMIF('Sezione REGIONI'!B$9:B$1008,B154,'Sezione REGIONI'!K$9:K$1008)-SUMIF('Sezione REGIONI'!B$9:B$1008,B154,'Sezione REGIONI'!L$9:L$1008))+(SUMIF('Sezione IMU e trib. locali'!B$9:B$1008,B154,'Sezione IMU e trib. locali'!M$9:M$1008)-SUMIF('Sezione IMU e trib. locali'!B$9:B$1008,B154,'Sezione IMU e trib. locali'!N$9:N$1008))+(SUMIF('Sezione ACCISE'!B$9:B$1008,B154,'Sezione ACCISE'!N$9:N$1008)),0) -> 0 | AF154: =IF(B154="",0,IF(B154=B153,COUNTIF(B$9:B153,B154)+1,1)) -> 144 | AG154: 0 | AH154: 0
A155: 147 | B155: -1900 | C155: -1900-145 | Q155: =IF(M$1021=1,"",IF(P155="","",VLOOKUP(P155,Tabelle!$B$5:$F$7,5,FALSE))) ->  | R155: =IF(M$1021=1,"",IF(P155="","",VLOOKUP(P155,Tabelle!$B$5:$G$7,6,FALSE))) ->  | V155: =IF(AND(D155<>"",B155<>B154),(SUMIF(B$9:B$1008,B155,M$9:M$1008)-SUMIF(B$9:B$1008,B155,N$9:N$1008))+(SUMIF('Sezione INPS'!B$9:B$1008,B155,'Sezione INPS'!N$9:N$1008)-SUMIF('Sezione INPS'!B$9:B$1008,B155,'Sezione INPS'!O$9:O$1008))+(SUMIF('Sezione REGIONI'!B$9:B$1008,B155,'Sezione REGIONI'!K$9:K$1008)-SUMIF('Sezione REGIONI'!B$9:B$1008,B155,'Sezione REGIONI'!L$9:L$1008))+(SUMIF('Sezione IMU e trib. locali'!B$9:B$1008,B155,'Sezione IMU e trib. locali'!M$9:M$1008)-SUMIF('Sezione IMU e trib. locali'!B$9:B$1008,B155,'Sezione IMU e trib. locali'!N$9:N$1008))+(SUMIF('Sezione ACCISE'!B$9:B$1008,B155,'Sezione ACCISE'!N$9:N$1008)),0) -> 0 | AF155: =IF(B155="",0,IF(B155=B154,COUNTIF(B$9:B154,B155)+1,1)) -> 145 | AG155: 0 | AH155: 0
A156: 148 | B156: -1900 | C156: -1900-146 | Q156: =IF(M$1021=1,"",IF(P156="","",VLOOKUP(P156,Tabelle!$B$5:$F$7,5,FALSE))) ->  | R156: =IF(M$1021=1,"",IF(P156="","",VLOOKUP(P156,Tabelle!$B$5:$G$7,6,FALSE))) ->  | V156: =IF(AND(D156<>"",B156<>B155),(SUMIF(B$9:B$1008,B156,M$9:M$1008)-SUMIF(B$9:B$1008,B156,N$9:N$1008))+(SUMIF('Sezione INPS'!B$9:B$1008,B156,'Sezione INPS'!N$9:N$1008)-SUMIF('Sezione INPS'!B$9:B$1008,B156,'Sezione INPS'!O$9:O$1008))+(SUMIF('Sezione REGIONI'!B$9:B$1008,B156,'Sezione REGIONI'!K$9:K$1008)-SUMIF('Sezione REGIONI'!B$9:B$1008,B156,'Sezione REGIONI'!L$9:L$1008))+(SUMIF('Sezione IMU e trib. locali'!B$9:B$1008,B156,'Sezione IMU e trib. locali'!M$9:M$1008)-SUMIF('Sezione IMU e trib. locali'!B$9:B$1008,B156,'Sezione IMU e trib. locali'!N$9:N$1008))+(SUMIF('Sezione ACCISE'!B$9:B$1008,B156,'Sezione ACCISE'!N$9:N$1008)),0) -> 0 | AF156: =IF(B156="",0,IF(B156=B155,COUNTIF(B$9:B155,B156)+1,1)) -> 146 | AG156: 0 | AH156: 0
A157: 149 | B157: -1900 | C157: -1900-147 | Q157: =IF(M$1021=1,"",IF(P157="","",VLOOKUP(P157,Tabelle!$B$5:$F$7,5,FALSE))) ->  | R157: =IF(M$1021=1,"",IF(P157="","",VLOOKUP(P157,Tabelle!$B$5:$G$7,6,FALSE))) ->  | V157: =IF(AND(D157<>"",B157<>B156),(SUMIF(B$9:B$1008,B157,M$9:M$1008)-SUMIF(B$9:B$1008,B157,N$9:N$1008))+(SUMIF('Sezione INPS'!B$9:B$1008,B157,'Sezione INPS'!N$9:N$1008)-SUMIF('Sezione INPS'!B$9:B$1008,B157,'Sezione INPS'!O$9:O$1008))+(SUMIF('Sezione REGIONI'!B$9:B$1008,B157,'Sezione REGIONI'!K$9:K$1008)-SUMIF('Sezione REGIONI'!B$9:B$1008,B157,'Sezione REGIONI'!L$9:L$1008))+(SUMIF('Sezione IMU e trib. locali'!B$9:B$1008,B157,'Sezione IMU e trib. locali'!M$9:M$1008)-SUMIF('Sezione IMU e trib. locali'!B$9:B$1008,B157,'Sezione IMU e trib. locali'!N$9:N$1008))+(SUMIF('Sezione ACCISE'!B$9:B$1008,B157,'Sezione ACCISE'!N$9:N$1008)),0) -> 0 | AF157: =IF(B157="",0,IF(B157=B156,COUNTIF(B$9:B156,B157)+1,1)) -> 147 | AG157: 0 | AH157: 0
A158: 150 | B158: -1900 | C158: -1900-148 | Q158: =IF(M$1021=1,"",IF(P158="","",VLOOKUP(P158,Tabelle!$B$5:$F$7,5,FALSE))) ->  | R158: =IF(M$1021=1,"",IF(P158="","",VLOOKUP(P158,Tabelle!$B$5:$G$7,6,FALSE))) ->  | V158: =IF(AND(D158<>"",B158<>B157),(SUMIF(B$9:B$1008,B158,M$9:M$1008)-SUMIF(B$9:B$1008,B158,N$9:N$1008))+(SUMIF('Sezione INPS'!B$9:B$1008,B158,'Sezione INPS'!N$9:N$1008)-SUMIF('Sezione INPS'!B$9:B$1008,B158,'Sezione INPS'!O$9:O$1008))+(SUMIF('Sezione REGIONI'!B$9:B$1008,B158,'Sezione REGIONI'!K$9:K$1008)-SUMIF('Sezione REGIONI'!B$9:B$1008,B158,'Sezione REGIONI'!L$9:L$1008))+(SUMIF('Sezione IMU e trib. locali'!B$9:B$1008,B158,'Sezione IMU e trib. locali'!M$9:M$1008)-SUMIF('Sezione IMU e trib. locali'!B$9:B$1008,B158,'Sezione IMU e trib. locali'!N$9:N$1008))+(SUMIF('Sezione ACCISE'!B$9:B$1008,B158,'Sezione ACCISE'!N$9:N$1008)),0) -> 0 | AF158: =IF(B158="",0,IF(B158=B157,COUNTIF(B$9:B157,B158)+1,1)) -> 148 | AG158: 0 | AH158: 0
A159: 151 | B159: -1900 | C159: -1900-149 | Q159: =IF(M$1021=1,"",IF(P159="","",VLOOKUP(P159,Tabelle!$B$5:$F$7,5,FALSE))) ->  | R159: =IF(M$1021=1,"",IF(P159="","",VLOOKUP(P159,Tabelle!$B$5:$G$7,6,FALSE))) ->  | V159: =IF(AND(D159<>"",B159<>B158),(SUMIF(B$9:B$1008,B159,M$9:M$1008)-SUMIF(B$9:B$1008,B159,N$9:N$1008))+(SUMIF('Sezione INPS'!B$9:B$1008,B159,'Sezione INPS'!N$9:N$1008)-SUMIF('Sezione INPS'!B$9:B$1008,B159,'Sezione INPS'!O$9:O$1008))+(SUMIF('Sezione REGIONI'!B$9:B$1008,B159,'Sezione REGIONI'!K$9:K$1008)-SUMIF('Sezione REGIONI'!B$9:B$1008,B159,'Sezione REGIONI'!L$9:L$1008))+(SUMIF('Sezione IMU e trib. locali'!B$9:B$1008,B159,'Sezione IMU e trib. locali'!M$9:M$1008)-SUMIF('Sezione IMU e trib. locali'!B$9:B$1008,B159,'Sezione IMU e trib. locali'!N$9:N$1008))+(SUMIF('Sezione ACCISE'!B$9:B$1008,B159,'Sezione ACCISE'!N$9:N$1008)),0) -> 0 | AF159: =IF(B159="",0,IF(B159=B158,COUNTIF(B$9:B158,B159)+1,1)) -> 149 | AG159: 0 | AH159: 0
A160: 152 | B160: -1900 | C160: -1900-150 | Q160: =IF(M$1021=1,"",IF(P160="","",VLOOKUP(P160,Tabelle!$B$5:$F$7,5,FALSE))) ->  | R160: =IF(M$1021=1,"",IF(P160="","",VLOOKUP(P160,Tabelle!$B$5:$G$7,6,FALSE))) ->  | V160: =IF(AND(D160<>"",B160<>B159),(SUMIF(B$9:B$1008,B160,M$9:M$1008)-SUMIF(B$9:B$1008,B160,N$9:N$1008))+(SUMIF('Sezione INPS'!B$9:B$1008,B160,'Sezione INPS'!N$9:N$1008)-SUMIF('Sezione INPS'!B$9:B$1008,B160,'Sezione INPS'!O$9:O$1008))+(SUMIF('Sezione REGIONI'!B$9:B$1008,B160,'Sezione REGIONI'!K$9:K$1008)-SUMIF('Sezione REGIONI'!B$9:B$1008,B160,'Sezione REGIONI'!L$9:L$1008))+(SUMIF('Sezione IMU e trib. locali'!B$9:B$1008,B160,'Sezione IMU e trib. locali'!M$9:M$1008)-SUMIF('Sezione IMU e trib. locali'!B$9:B$1008,B160,'Sezione IMU e trib. locali'!N$9:N$1008))+(SUMIF('Sezione ACCISE'!B$9:B$1008,B160,'Sezione ACCISE'!N$9:N$1008)),0) -> 0 | AF160: =IF(B160="",0,IF(B160=B159,COUNTIF(B$9:B159,B160)+1,1)) -> 150 | AG160: 0 | AH160: 0
A161: 153 | B161: -1900 | C161: -1900-151 | Q161: =IF(M$1021=1,"",IF(P161="","",VLOOKUP(P161,Tabelle!$B$5:$F$7,5,FALSE))) ->  | R161: =IF(M$1021=1,"",IF(P161="","",VLOOKUP(P161,Tabelle!$B$5:$G$7,6,FALSE))) ->  | V161: =IF(AND(D161<>"",B161<>B160),(SUMIF(B$9:B$1008,B161,M$9:M$1008)-SUMIF(B$9:B$1008,B161,N$9:N$1008))+(SUMIF('Sezione INPS'!B$9:B$1008,B161,'Sezione INPS'!N$9:N$1008)-SUMIF('Sezione INPS'!B$9:B$1008,B161,'Sezione INPS'!O$9:O$1008))+(SUMIF('Sezione REGIONI'!B$9:B$1008,B161,'Sezione REGIONI'!K$9:K$1008)-SUMIF('Sezione REGIONI'!B$9:B$1008,B161,'Sezione REGIONI'!L$9:L$1008))+(SUMIF('Sezione IMU e trib. locali'!B$9:B$1008,B161,'Sezione IMU e trib. locali'!M$9:M$1008)-SUMIF('Sezione IMU e trib. locali'!B$9:B$1008,B161,'Sezione IMU e trib. locali'!N$9:N$1008))+(SUMIF('Sezione ACCISE'!B$9:B$1008,B161,'Sezione ACCISE'!N$9:N$1008)),0) -> 0 | AF161: =IF(B161="",0,IF(B161=B160,COUNTIF(B$9:B160,B161)+1,1)) -> 151 | AG161: 0 | AH161: 0
A162: 154 | B162: -1900 | C162: -1900-152 | Q162: =IF(M$1021=1,"",IF(P162="","",VLOOKUP(P162,Tabelle!$B$5:$F$7,5,FALSE))) ->  | R162: =IF(M$1021=1,"",IF(P162="","",VLOOKUP(P162,Tabelle!$B$5:$G$7,6,FALSE))) ->  | V162: =IF(AND(D162<>"",B162<>B161),(SUMIF(B$9:B$1008,B162,M$9:M$1008)-SUMIF(B$9:B$1008,B162,N$9:N$1008))+(SUMIF('Sezione INPS'!B$9:B$1008,B162,'Sezione INPS'!N$9:N$1008)-SUMIF('Sezione INPS'!B$9:B$1008,B162,'Sezione INPS'!O$9:O$1008))+(SUMIF('Sezione REGIONI'!B$9:B$1008,B162,'Sezione REGIONI'!K$9:K$1008)-SUMIF('Sezione REGIONI'!B$9:B$1008,B162,'Sezione REGIONI'!L$9:L$1008))+(SUMIF('Sezione IMU e trib. locali'!B$9:B$1008,B162,'Sezione IMU e trib. locali'!M$9:M$1008)-SUMIF('Sezione IMU e trib. locali'!B$9:B$1008,B162,'Sezione IMU e trib. locali'!N$9:N$1008))+(SUMIF('Sezione ACCISE'!B$9:B$1008,B162,'Sezione ACCISE'!N$9:N$1008)),0) -> 0 | AF162: =IF(B162="",0,IF(B162=B161,COUNTIF(B$9:B161,B162)+1,1)) -> 152 | AG162: 0 | AH162: 0
A163: 155 | B163: -1900 | C163: -1900-153 | Q163: =IF(M$1021=1,"",IF(P163="","",VLOOKUP(P163,Tabelle!$B$5:$F$7,5,FALSE))) ->  | R163: =IF(M$1021=1,"",IF(P163="","",VLOOKUP(P163,Tabelle!$B$5:$G$7,6,FALSE))) ->  | V163: =IF(AND(D163<>"",B163<>B162),(SUMIF(B$9:B$1008,B163,M$9:M$1008)-SUMIF(B$9:B$1008,B163,N$9:N$1008))+(SUMIF('Sezione INPS'!B$9:B$1008,B163,'Sezione INPS'!N$9:N$1008)-SUMIF('Sezione INPS'!B$9:B$1008,B163,'Sezione INPS'!O$9:O$1008))+(SUMIF('Sezione REGIONI'!B$9:B$1008,B163,'Sezione REGIONI'!K$9:K$1008)-SUMIF('Sezione REGIONI'!B$9:B$1008,B163,'Sezione REGIONI'!L$9:L$1008))+(SUMIF('Sezione IMU e trib. locali'!B$9:B$1008,B163,'Sezione IMU e trib. locali'!M$9:M$1008)-SUMIF('Sezione IMU e trib. locali'!B$9:B$1008,B163,'Sezione IMU e trib. locali'!N$9:N$1008))+(SUMIF('Sezione ACCISE'!B$9:B$1008,B163,'Sezione ACCISE'!N$9:N$1008)),0) -> 0 | AF163: =IF(B163="",0,IF(B163=B162,COUNTIF(B$9:B162,B163)+1,1)) -> 153 | AG163: 0 | AH163: 0
A164: 156 | B164: -1900 | C164: -1900-154 | Q164: =IF(M$1021=1,"",IF(P164="","",VLOOKUP(P164,Tabelle!$B$5:$F$7,5,FALSE))) ->  | R164: =IF(M$1021=1,"",IF(P164="","",VLOOKUP(P164,Tabelle!$B$5:$G$7,6,FALSE))) ->  | V164: =IF(AND(D164<>"",B164<>B163),(SUMIF(B$9:B$1008,B164,M$9:M$1008)-SUMIF(B$9:B$1008,B164,N$9:N$1008))+(SUMIF('Sezione INPS'!B$9:B$1008,B164,'Sezione INPS'!N$9:N$1008)-SUMIF('Sezione INPS'!B$9:B$1008,B164,'Sezione INPS'!O$9:O$1008))+(SUMIF('Sezione REGIONI'!B$9:B$1008,B164,'Sezione REGIONI'!K$9:K$1008)-SUMIF('Sezione REGIONI'!B$9:B$1008,B164,'Sezione REGIONI'!L$9:L$1008))+(SUMIF('Sezione IMU e trib. locali'!B$9:B$1008,B164,'Sezione IMU e trib. locali'!M$9:M$1008)-SUMIF('Sezione IMU e trib. locali'!B$9:B$1008,B164,'Sezione IMU e trib. locali'!N$9:N$1008))+(SUMIF('Sezione ACCISE'!B$9:B$1008,B164,'Sezione ACCISE'!N$9:N$1008)),0) -> 0 | AF164: =IF(B164="",0,IF(B164=B163,COUNTIF(B$9:B163,B164)+1,1)) -> 154 | AG164: 0 | AH164: 0
A165: 157 | B165: -1900 | C165: -1900-155 | Q165: =IF(M$1021=1,"",IF(P165="","",VLOOKUP(P165,Tabelle!$B$5:$F$7,5,FALSE))) ->  | R165: =IF(M$1021=1,"",IF(P165="","",VLOOKUP(P165,Tabelle!$B$5:$G$7,6,FALSE))) ->  | V165: =IF(AND(D165<>"",B165<>B164),(SUMIF(B$9:B$1008,B165,M$9:M$1008)-SUMIF(B$9:B$1008,B165,N$9:N$1008))+(SUMIF('Sezione INPS'!B$9:B$1008,B165,'Sezione INPS'!N$9:N$1008)-SUMIF('Sezione INPS'!B$9:B$1008,B165,'Sezione INPS'!O$9:O$1008))+(SUMIF('Sezione REGIONI'!B$9:B$1008,B165,'Sezione REGIONI'!K$9:K$1008)-SUMIF('Sezione REGIONI'!B$9:B$1008,B165,'Sezione REGIONI'!L$9:L$1008))+(SUMIF('Sezione IMU e trib. locali'!B$9:B$1008,B165,'Sezione IMU e trib. locali'!M$9:M$1008)-SUMIF('Sezione IMU e trib. locali'!B$9:B$1008,B165,'Sezione IMU e trib. locali'!N$9:N$1008))+(SUMIF('Sezione ACCISE'!B$9:B$1008,B165,'Sezione ACCISE'!N$9:N$1008)),0) -> 0 | AF165: =IF(B165="",0,IF(B165=B164,COUNTIF(B$9:B164,B165)+1,1)) -> 155 | AG165: 0 | AH165: 0
A166: 158 | B166: -1900 | C166: -1900-156 | Q166: =IF(M$1021=1,"",IF(P166="","",VLOOKUP(P166,Tabelle!$B$5:$F$7,5,FALSE))) ->  | R166: =IF(M$1021=1,"",IF(P166="","",VLOOKUP(P166,Tabelle!$B$5:$G$7,6,FALSE))) ->  | V166: =IF(AND(D166<>"",B166<>B165),(SUMIF(B$9:B$1008,B166,M$9:M$1008)-SUMIF(B$9:B$1008,B166,N$9:N$1008))+(SUMIF('Sezione INPS'!B$9:B$1008,B166,'Sezione INPS'!N$9:N$1008)-SUMIF('Sezione INPS'!B$9:B$1008,B166,'Sezione INPS'!O$9:O$1008))+(SUMIF('Sezione REGIONI'!B$9:B$1008,B166,'Sezione REGIONI'!K$9:K$1008)-SUMIF('Sezione REGIONI'!B$9:B$1008,B166,'Sezione REGIONI'!L$9:L$1008))+(SUMIF('Sezione IMU e trib. locali'!B$9:B$1008,B166,'Sezione IMU e trib. locali'!M$9:M$1008)-SUMIF('Sezione IMU e trib. locali'!B$9:B$1008,B166,'Sezione IMU e trib. locali'!N$9:N$1008))+(SUMIF('Sezione ACCISE'!B$9:B$1008,B166,'Sezione ACCISE'!N$9:N$1008)),0) -> 0 | AF166: =IF(B166="",0,IF(B166=B165,COUNTIF(B$9:B165,B166)+1,1)) -> 156 | AG166: 0 | AH166: 0
A167: 159 | B167: -1900 | C167: -1900-157 | Q167: =IF(M$1021=1,"",IF(P167="","",VLOOKUP(P167,Tabelle!$B$5:$F$7,5,FALSE))) ->  | R167: =IF(M$1021=1,"",IF(P167="","",VLOOKUP(P167,Tabelle!$B$5:$G$7,6,FALSE))) ->  | V167: =IF(AND(D167<>"",B167<>B166),(SUMIF(B$9:B$1008,B167,M$9:M$1008)-SUMIF(B$9:B$1008,B167,N$9:N$1008))+(SUMIF('Sezione INPS'!B$9:B$1008,B167,'Sezione INPS'!N$9:N$1008)-SUMIF('Sezione INPS'!B$9:B$1008,B167,'Sezione INPS'!O$9:O$1008))+(SUMIF('Sezione REGIONI'!B$9:B$1008,B167,'Sezione REGIONI'!K$9:K$1008)-SUMIF('Sezione REGIONI'!B$9:B$1008,B167,'Sezione REGIONI'!L$9:L$1008))+(SUMIF('Sezione IMU e trib. locali'!B$9:B$1008,B167,'Sezione IMU e trib. locali'!M$9:M$1008)-SUMIF('Sezione IMU e trib. locali'!B$9:B$1008,B167,'Sezione IMU e trib. locali'!N$9:N$1008))+(SUMIF('Sezione ACCISE'!B$9:B$1008,B167,'Sezione ACCISE'!N$9:N$1008)),0) -> 0 | AF167: =IF(B167="",0,IF(B167=B166,COUNTIF(B$9:B166,B167)+1,1)) -> 157 | AG167: 0 | AH167: 0
A168: 160 | B168: -1900 | C168: -1900-158 | Q168: =IF(M$1021=1,"",IF(P168="","",VLOOKUP(P168,Tabelle!$B$5:$F$7,5,FALSE))) ->  | R168: =IF(M$1021=1,"",IF(P168="","",VLOOKUP(P168,Tabelle!$B$5:$G$7,6,FALSE))) ->  | V168: =IF(AND(D168<>"",B168<>B167),(SUMIF(B$9:B$1008,B168,M$9:M$1008)-SUMIF(B$9:B$1008,B168,N$9:N$1008))+(SUMIF('Sezione INPS'!B$9:B$1008,B168,'Sezione INPS'!N$9:N$1008)-SUMIF('Sezione INPS'!B$9:B$1008,B168,'Sezione INPS'!O$9:O$1008))+(SUMIF('Sezione REGIONI'!B$9:B$1008,B168,'Sezione REGIONI'!K$9:K$1008)-SUMIF('Sezione REGIONI'!B$9:B$1008,B168,'Sezione REGIONI'!L$9:L$1008))+(SUMIF('Sezione IMU e trib. locali'!B$9:B$1008,B168,'Sezione IMU e trib. locali'!M$9:M$1008)-SUMIF('Sezione IMU e trib. locali'!B$9:B$1008,B168,'Sezione IMU e trib. locali'!N$9:N$1008))+(SUMIF('Sezione ACCISE'!B$9:B$1008,B168,'Sezione ACCISE'!N$9:N$1008)),0) -> 0 | AF168: =IF(B168="",0,IF(B168=B167,COUNTIF(B$9:B167,B168)+1,1)) -> 158 | AG168: 0 | AH168: 0
A169: 161 | B169: -1900 | C169: -1900-159 | Q169: =IF(M$1021=1,"",IF(P169="","",VLOOKUP(P169,Tabelle!$B$5:$F$7,5,FALSE))) ->  | R169: =IF(M$1021=1,"",IF(P169="","",VLOOKUP(P169,Tabelle!$B$5:$G$7,6,FALSE))) ->  | V169: =IF(AND(D169<>"",B169<>B168),(SUMIF(B$9:B$1008,B169,M$9:M$1008)-SUMIF(B$9:B$1008,B169,N$9:N$1008))+(SUMIF('Sezione INPS'!B$9:B$1008,B169,'Sezione INPS'!N$9:N$1008)-SUMIF('Sezione INPS'!B$9:B$1008,B169,'Sezione INPS'!O$9:O$1008))+(SUMIF('Sezione REGIONI'!B$9:B$1008,B169,'Sezione REGIONI'!K$9:K$1008)-SUMIF('Sezione REGIONI'!B$9:B$1008,B169,'Sezione REGIONI'!L$9:L$1008))+(SUMIF('Sezione IMU e trib. locali'!B$9:B$1008,B169,'Sezione IMU e trib. locali'!M$9:M$1008)-SUMIF('Sezione IMU e trib. locali'!B$9:B$1008,B169,'Sezione IMU e trib. locali'!N$9:N$1008))+(SUMIF('Sezione ACCISE'!B$9:B$1008,B169,'Sezione ACCISE'!N$9:N$1008)),0) -> 0 | AF169: =IF(B169="",0,IF(B169=B168,COUNTIF(B$9:B168,B169)+1,1)) -> 159 | AG169: 0 | AH169: 0
A170: 162 | B170: -1900 | C170: -1900-160 | Q170: =IF(M$1021=1,"",IF(P170="","",VLOOKUP(P170,Tabelle!$B$5:$F$7,5,FALSE))) ->  | R170: =IF(M$1021=1,"",IF(P170="","",VLOOKUP(P170,Tabelle!$B$5:$G$7,6,FALSE))) ->  | V170: =IF(AND(D170<>"",B170<>B169),(SUMIF(B$9:B$1008,B170,M$9:M$1008)-SUMIF(B$9:B$1008,B170,N$9:N$1008))+(SUMIF('Sezione INPS'!B$9:B$1008,B170,'Sezione INPS'!N$9:N$1008)-SUMIF('Sezione INPS'!B$9:B$1008,B170,'Sezione INPS'!O$9:O$1008))+(SUMIF('Sezione REGIONI'!B$9:B$1008,B170,'Sezione REGIONI'!K$9:K$1008)-SUMIF('Sezione REGIONI'!B$9:B$1008,B170,'Sezione REGIONI'!L$9:L$1008))+(SUMIF('Sezione IMU e trib. locali'!B$9:B$1008,B170,'Sezione IMU e trib. locali'!M$9:M$1008)-SUMIF('Sezione IMU e trib. locali'!B$9:B$1008,B170,'Sezione IMU e trib. locali'!N$9:N$1008))+(SUMIF('Sezione ACCISE'!B$9:B$1008,B170,'Sezione ACCISE'!N$9:N$1008)),0) -> 0 | AF170: =IF(B170="",0,IF(B170=B169,COUNTIF(B$9:B169,B170)+1,1)) -> 160 | AG170: 0 | AH170: 0
A171: 163 | B171: -1900 | C171: -1900-161 | Q171: =IF(M$1021=1,"",IF(P171="","",VLOOKUP(P171,Tabelle!$B$5:$F$7,5,FALSE))) ->  | R171: =IF(M$1021=1,"",IF(P171="","",VLOOKUP(P171,Tabelle!$B$5:$G$7,6,FALSE))) ->  | V171: =IF(AND(D171<>"",B171<>B170),(SUMIF(B$9:B$1008,B171,M$9:M$1008)-SUMIF(B$9:B$1008,B171,N$9:N$1008))+(SUMIF('Sezione INPS'!B$9:B$1008,B171,'Sezione INPS'!N$9:N$1008)-SUMIF('Sezione INPS'!B$9:B$1008,B171,'Sezione INPS'!O$9:O$1008))+(SUMIF('Sezione REGIONI'!B$9:B$1008,B171,'Sezione REGIONI'!K$9:K$1008)-SUMIF('Sezione REGIONI'!B$9:B$1008,B171,'Sezione REGIONI'!L$9:L$1008))+(SUMIF('Sezione IMU e trib. locali'!B$9:B$1008,B171,'Sezione IMU e trib. locali'!M$9:M$1008)-SUMIF('Sezione IMU e trib. locali'!B$9:B$1008,B171,'Sezione IMU e trib. locali'!N$9:N$1008))+(SUMIF('Sezione ACCISE'!B$9:B$1008,B171,'Sezione ACCISE'!N$9:N$1008)),0) -> 0 | AF171: =IF(B171="",0,IF(B171=B170,COUNTIF(B$9:B170,B171)+1,1)) -> 161 | AG171: 0 | AH171: 0
A172: 164 | B172: -1900 | C172: -1900-162 | Q172: =IF(M$1021=1,"",IF(P172="","",VLOOKUP(P172,Tabelle!$B$5:$F$7,5,FALSE))) ->  | R172: =IF(M$1021=1,"",IF(P172="","",VLOOKUP(P172,Tabelle!$B$5:$G$7,6,FALSE))) ->  | V172: =IF(AND(D172<>"",B172<>B171),(SUMIF(B$9:B$1008,B172,M$9:M$1008)-SUMIF(B$9:B$1008,B172,N$9:N$1008))+(SUMIF('Sezione INPS'!B$9:B$1008,B172,'Sezione INPS'!N$9:N$1008)-SUMIF('Sezione INPS'!B$9:B$1008,B172,'Sezione INPS'!O$9:O$1008))+(SUMIF('Sezione REGIONI'!B$9:B$1008,B172,'Sezione REGIONI'!K$9:K$1008)-SUMIF('Sezione REGIONI'!B$9:B$1008,B172,'Sezione REGIONI'!L$9:L$1008))+(SUMIF('Sezione IMU e trib. locali'!B$9:B$1008,B172,'Sezione IMU e trib. locali'!M$9:M$1008)-SUMIF('Sezione IMU e trib. locali'!B$9:B$1008,B172,'Sezione IMU e trib. locali'!N$9:N$1008))+(SUMIF('Sezione ACCISE'!B$9:B$1008,B172,'Sezione ACCISE'!N$9:N$1008)),0) -> 0 | AF172: =IF(B172="",0,IF(B172=B171,COUNTIF(B$9:B171,B172)+1,1)) -> 162 | AG172: 0 | AH172: 0
A173: 165 | B173: -1900 | C173: -1900-163 | Q173: =IF(M$1021=1,"",IF(P173="","",VLOOKUP(P173,Tabelle!$B$5:$F$7,5,FALSE))) ->  | R173: =IF(M$1021=1,"",IF(P173="","",VLOOKUP(P173,Tabelle!$B$5:$G$7,6,FALSE))) ->  | V173: =IF(AND(D173<>"",B173<>B172),(SUMIF(B$9:B$1008,B173,M$9:M$1008)-SUMIF(B$9:B$1008,B173,N$9:N$1008))+(SUMIF('Sezione INPS'!B$9:B$1008,B173,'Sezione INPS'!N$9:N$1008)-SUMIF('Sezione INPS'!B$9:B$1008,B173,'Sezione INPS'!O$9:O$1008))+(SUMIF('Sezione REGIONI'!B$9:B$1008,B173,'Sezione REGIONI'!K$9:K$1008)-SUMIF('Sezione REGIONI'!B$9:B$1008,B173,'Sezione REGIONI'!L$9:L$1008))+(SUMIF('Sezione IMU e trib. locali'!B$9:B$1008,B173,'Sezione IMU e trib. locali'!M$9:M$1008)-SUMIF('Sezione IMU e trib. locali'!B$9:B$1008,B173,'Sezione IMU e trib. locali'!N$9:N$1008))+(SUMIF('Sezione ACCISE'!B$9:B$1008,B173,'Sezione ACCISE'!N$9:N$1008)),0) -> 0 | AF173: =IF(B173="",0,IF(B173=B172,COUNTIF(B$9:B172,B173)+1,1)) -> 163 | AG173: 0 | AH173: 0
A174: 166 | B174: -1900 | C174: -1900-164 | Q174: =IF(M$1021=1,"",IF(P174="","",VLOOKUP(P174,Tabelle!$B$5:$F$7,5,FALSE))) ->  | R174: =IF(M$1021=1,"",IF(P174="","",VLOOKUP(P174,Tabelle!$B$5:$G$7,6,FALSE))) ->  | V174: =IF(AND(D174<>"",B174<>B173),(SUMIF(B$9:B$1008,B174,M$9:M$1008)-SUMIF(B$9:B$1008,B174,N$9:N$1008))+(SUMIF('Sezione INPS'!B$9:B$1008,B174,'Sezione INPS'!N$9:N$1008)-SUMIF('Sezione INPS'!B$9:B$1008,B174,'Sezione INPS'!O$9:O$1008))+(SUMIF('Sezione REGIONI'!B$9:B$1008,B174,'Sezione REGIONI'!K$9:K$1008)-SUMIF('Sezione REGIONI'!B$9:B$1008,B174,'Sezione REGIONI'!L$9:L$1008))+(SUMIF('Sezione IMU e trib. locali'!B$9:B$1008,B174,'Sezione IMU e trib. locali'!M$9:M$1008)-SUMIF('Sezione IMU e trib. locali'!B$9:B$1008,B174,'Sezione IMU e trib. locali'!N$9:N$1008))+(SUMIF('Sezione ACCISE'!B$9:B$1008,B174,'Sezione ACCISE'!N$9:N$1008)),0) -> 0 | AF174: =IF(B174="",0,IF(B174=B173,COUNTIF(B$9:B173,B174)+1,1)) -> 164 | AG174: 0 | AH174: 0
A175: 167 | B175: -1900 | C175: -1900-165 | Q175: =IF(M$1021=1,"",IF(P175="","",VLOOKUP(P175,Tabelle!$B$5:$F$7,5,FALSE))) ->  | R175: =IF(M$1021=1,"",IF(P175="","",VLOOKUP(P175,Tabelle!$B$5:$G$7,6,FALSE))) ->  | V175: =IF(AND(D175<>"",B175<>B174),(SUMIF(B$9:B$1008,B175,M$9:M$1008)-SUMIF(B$9:B$1008,B175,N$9:N$1008))+(SUMIF('Sezione INPS'!B$9:B$1008,B175,'Sezione INPS'!N$9:N$1008)-SUMIF('Sezione INPS'!B$9:B$1008,B175,'Sezione INPS'!O$9:O$1008))+(SUMIF('Sezione REGIONI'!B$9:B$1008,B175,'Sezione REGIONI'!K$9:K$1008)-SUMIF('Sezione REGIONI'!B$9:B$1008,B175,'Sezione REGIONI'!L$9:L$1008))+(SUMIF('Sezione IMU e trib. locali'!B$9:B$1008,B175,'Sezione IMU e trib. locali'!M$9:M$1008)-SUMIF('Sezione IMU e trib. locali'!B$9:B$1008,B175,'Sezione IMU e trib. locali'!N$9:N$1008))+(SUMIF('Sezione ACCISE'!B$9:B$1008,B175,'Sezione ACCISE'!N$9:N$1008)),0) -> 0 | AF175: =IF(B175="",0,IF(B175=B174,COUNTIF(B$9:B174,B175)+1,1)) -> 165 | AG175: 0 | AH175: 0
A176: 168 | B176: -1900 | C176: -1900-166 | Q176: =IF(M$1021=1,"",IF(P176="","",VLOOKUP(P176,Tabelle!$B$5:$F$7,5,FALSE))) ->  | R176: =IF(M$1021=1,"",IF(P176="","",VLOOKUP(P176,Tabelle!$B$5:$G$7,6,FALSE))) ->  | V176: =IF(AND(D176<>"",B176<>B175),(SUMIF(B$9:B$1008,B176,M$9:M$1008)-SUMIF(B$9:B$1008,B176,N$9:N$1008))+(SUMIF('Sezione INPS'!B$9:B$1008,B176,'Sezione INPS'!N$9:N$1008)-SUMIF('Sezione INPS'!B$9:B$1008,B176,'Sezione INPS'!O$9:O$1008))+(SUMIF('Sezione REGIONI'!B$9:B$1008,B176,'Sezione REGIONI'!K$9:K$1008)-SUMIF('Sezione REGIONI'!B$9:B$1008,B176,'Sezione REGIONI'!L$9:L$1008))+(SUMIF('Sezione IMU e trib. locali'!B$9:B$1008,B176,'Sezione IMU e trib. locali'!M$9:M$1008)-SUMIF('Sezione IMU e trib. locali'!B$9:B$1008,B176,'Sezione IMU e trib. locali'!N$9:N$1008))+(SUMIF('Sezione ACCISE'!B$9:B$1008,B176,'Sezione ACCISE'!N$9:N$1008)),0) -> 0 | AF176: =IF(B176="",0,IF(B176=B175,COUNTIF(B$9:B175,B176)+1,1)) -> 166 | AG176: 0 | AH176: 0
A177: 169 | B177: -1900 | C177: -1900-167 | Q177: =IF(M$1021=1,"",IF(P177="","",VLOOKUP(P177,Tabelle!$B$5:$F$7,5,FALSE))) ->  | R177: =IF(M$1021=1,"",IF(P177="","",VLOOKUP(P177,Tabelle!$B$5:$G$7,6,FALSE))) ->  | V177: =IF(AND(D177<>"",B177<>B176),(SUMIF(B$9:B$1008,B177,M$9:M$1008)-SUMIF(B$9:B$1008,B177,N$9:N$1008))+(SUMIF('Sezione INPS'!B$9:B$1008,B177,'Sezione INPS'!N$9:N$1008)-SUMIF('Sezione INPS'!B$9:B$1008,B177,'Sezione INPS'!O$9:O$1008))+(SUMIF('Sezione REGIONI'!B$9:B$1008,B177,'Sezione REGIONI'!K$9:K$1008)-SUMIF('Sezione REGIONI'!B$9:B$1008,B177,'Sezione REGIONI'!L$9:L$1008))+(SUMIF('Sezione IMU e trib. locali'!B$9:B$1008,B177,'Sezione IMU e trib. locali'!M$9:M$1008)-SUMIF('Sezione IMU e trib. locali'!B$9:B$1008,B177,'Sezione IMU e trib. locali'!N$9:N$1008))+(SUMIF('Sezione ACCISE'!B$9:B$1008,B177,'Sezione ACCISE'!N$9:N$1008)),0) -> 0 | AF177: =IF(B177="",0,IF(B177=B176,COUNTIF(B$9:B176,B177)+1,1)) -> 167 | AG177: 0 | AH177: 0
A178: 170 | B178: -1900 | C178: -1900-168 | Q178: =IF(M$1021=1,"",IF(P178="","",VLOOKUP(P178,Tabelle!$B$5:$F$7,5,FALSE))) ->  | R178: =IF(M$1021=1,"",IF(P178="","",VLOOKUP(P178,Tabelle!$B$5:$G$7,6,FALSE))) ->  | V178: =IF(AND(D178<>"",B178<>B177),(SUMIF(B$9:B$1008,B178,M$9:M$1008)-SUMIF(B$9:B$1008,B178,N$9:N$1008))+(SUMIF('Sezione INPS'!B$9:B$1008,B178,'Sezione INPS'!N$9:N$1008)-SUMIF('Sezione INPS'!B$9:B$1008,B178,'Sezione INPS'!O$9:O$1008))+(SUMIF('Sezione REGIONI'!B$9:B$1008,B178,'Sezione REGIONI'!K$9:K$1008)-SUMIF('Sezione REGIONI'!B$9:B$1008,B178,'Sezione REGIONI'!L$9:L$1008))+(SUMIF('Sezione IMU e trib. locali'!B$9:B$1008,B178,'Sezione IMU e trib. locali'!M$9:M$1008)-SUMIF('Sezione IMU e trib. locali'!B$9:B$1008,B178,'Sezione IMU e trib. locali'!N$9:N$1008))+(SUMIF('Sezione ACCISE'!B$9:B$1008,B178,'Sezione ACCISE'!N$9:N$1008)),0) -> 0 | AF178: =IF(B178="",0,IF(B178=B177,COUNTIF(B$9:B177,B178)+1,1)) -> 168 | AG178: 0 | AH178: 0
A179: 171 | B179: -1900 | C179: -1900-169 | Q179: =IF(M$1021=1,"",IF(P179="","",VLOOKUP(P179,Tabelle!$B$5:$F$7,5,FALSE))) ->  | R179: =IF(M$1021=1,"",IF(P179="","",VLOOKUP(P179,Tabelle!$B$5:$G$7,6,FALSE))) ->  | V179: =IF(AND(D179<>"",B179<>B178),(SUMIF(B$9:B$1008,B179,M$9:M$1008)-SUMIF(B$9:B$1008,B179,N$9:N$1008))+(SUMIF('Sezione INPS'!B$9:B$1008,B179,'Sezione INPS'!N$9:N$1008)-SUMIF('Sezione INPS'!B$9:B$1008,B179,'Sezione INPS'!O$9:O$1008))+(SUMIF('Sezione REGIONI'!B$9:B$1008,B179,'Sezione REGIONI'!K$9:K$1008)-SUMIF('Sezione REGIONI'!B$9:B$1008,B179,'Sezione REGIONI'!L$9:L$1008))+(SUMIF('Sezione IMU e trib. locali'!B$9:B$1008,B179,'Sezione IMU e trib. locali'!M$9:M$1008)-SUMIF('Sezione IMU e trib. locali'!B$9:B$1008,B179,'Sezione IMU e trib. locali'!N$9:N$1008))+(SUMIF('Sezione ACCISE'!B$9:B$1008,B179,'Sezione ACCISE'!N$9:N$1008)),0) -> 0 | AF179: =IF(B179="",0,IF(B179=B178,COUNTIF(B$9:B178,B179)+1,1)) -> 169 | AG179: 0 | AH179: 0
A180: 172 | B180: -1900 | C180: -1900-170 | Q180: =IF(M$1021=1,"",IF(P180="","",VLOOKUP(P180,Tabelle!$B$5:$F$7,5,FALSE))) ->  | R180: =IF(M$1021=1,"",IF(P180="","",VLOOKUP(P180,Tabelle!$B$5:$G$7,6,FALSE))) ->  | V180: =IF(AND(D180<>"",B180<>B179),(SUMIF(B$9:B$1008,B180,M$9:M$1008)-SUMIF(B$9:B$1008,B180,N$9:N$1008))+(SUMIF('Sezione INPS'!B$9:B$1008,B180,'Sezione INPS'!N$9:N$1008)-SUMIF('Sezione INPS'!B$9:B$1008,B180,'Sezione INPS'!O$9:O$1008))+(SUMIF('Sezione REGIONI'!B$9:B$1008,B180,'Sezione REGIONI'!K$9:K$1008)-SUMIF('Sezione REGIONI'!B$9:B$1008,B180,'Sezione REGIONI'!L$9:L$1008))+(SUMIF('Sezione IMU e trib. locali'!B$9:B$1008,B180,'Sezione IMU e trib. locali'!M$9:M$1008)-SUMIF('Sezione IMU e trib. locali'!B$9:B$1008,B180,'Sezione IMU e trib. locali'!N$9:N$1008))+(SUMIF('Sezione ACCISE'!B$9:B$1008,B180,'Sezione ACCISE'!N$9:N$1008)),0) -> 0 | AF180: =IF(B180="",0,IF(B180=B179,COUNTIF(B$9:B179,B180)+1,1)) -> 170 | AG180: 0 | AH180: 0
A181: 173 | B181: -1900 | C181: -1900-171 | Q181: =IF(M$1021=1,"",IF(P181="","",VLOOKUP(P181,Tabelle!$B$5:$F$7,5,FALSE))) ->  | R181: =IF(M$1021=1,"",IF(P181="","",VLOOKUP(P181,Tabelle!$B$5:$G$7,6,FALSE))) ->  | V181: =IF(AND(D181<>"",B181<>B180),(SUMIF(B$9:B$1008,B181,M$9:M$1008)-SUMIF(B$9:B$1008,B181,N$9:N$1008))+(SUMIF('Sezione INPS'!B$9:B$1008,B181,'Sezione INPS'!N$9:N$1008)-SUMIF('Sezione INPS'!B$9:B$1008,B181,'Sezione INPS'!O$9:O$1008))+(SUMIF('Sezione REGIONI'!B$9:B$1008,B181,'Sezione REGIONI'!K$9:K$1008)-SUMIF('Sezione REGIONI'!B$9:B$1008,B181,'Sezione REGIONI'!L$9:L$1008))+(SUMIF('Sezione IMU e trib. locali'!B$9:B$1008,B181,'Sezione IMU e trib. locali'!M$9:M$1008)-SUMIF('Sezione IMU e trib. locali'!B$9:B$1008,B181,'Sezione IMU e trib. locali'!N$9:N$1008))+(SUMIF('Sezione ACCISE'!B$9:B$1008,B181,'Sezione ACCISE'!N$9:N$1008)),0) -> 0 | AF181: =IF(B181="",0,IF(B181=B180,COUNTIF(B$9:B180,B181)+1,1)) -> 171 | AG181: 0 | AH181: 0
A182: 174 | B182: -1900 | C182: -1900-172 | Q182: =IF(M$1021=1,"",IF(P182="","",VLOOKUP(P182,Tabelle!$B$5:$F$7,5,FALSE))) ->  | R182: =IF(M$1021=1,"",IF(P182="","",VLOOKUP(P182,Tabelle!$B$5:$G$7,6,FALSE))) ->  | V182: =IF(AND(D182<>"",B182<>B181),(SUMIF(B$9:B$1008,B182,M$9:M$1008)-SUMIF(B$9:B$1008,B182,N$9:N$1008))+(SUMIF('Sezione INPS'!B$9:B$1008,B182,'Sezione INPS'!N$9:N$1008)-SUMIF('Sezione INPS'!B$9:B$1008,B182,'Sezione INPS'!O$9:O$1008))+(SUMIF('Sezione REGIONI'!B$9:B$1008,B182,'Sezione REGIONI'!K$9:K$1008)-SUMIF('Sezione REGIONI'!B$9:B$1008,B182,'Sezione REGIONI'!L$9:L$1008))+(SUMIF('Sezione IMU e trib. locali'!B$9:B$1008,B182,'Sezione IMU e trib. locali'!M$9:M$1008)-SUMIF('Sezione IMU e trib. locali'!B$9:B$1008,B182,'Sezione IMU e trib. locali'!N$9:N$1008))+(SUMIF('Sezione ACCISE'!B$9:B$1008,B182,'Sezione ACCISE'!N$9:N$1008)),0) -> 0 | AF182: =IF(B182="",0,IF(B182=B181,COUNTIF(B$9:B181,B182)+1,1)) -> 172 | AG182: 0 | AH182: 0
A183: 175 | B183: -1900 | C183: -1900-173 | Q183: =IF(M$1021=1,"",IF(P183="","",VLOOKUP(P183,Tabelle!$B$5:$F$7,5,FALSE))) ->  | R183: =IF(M$1021=1,"",IF(P183="","",VLOOKUP(P183,Tabelle!$B$5:$G$7,6,FALSE))) ->  | V183: =IF(AND(D183<>"",B183<>B182),(SUMIF(B$9:B$1008,B183,M$9:M$1008)-SUMIF(B$9:B$1008,B183,N$9:N$1008))+(SUMIF('Sezione INPS'!B$9:B$1008,B183,'Sezione INPS'!N$9:N$1008)-SUMIF('Sezione INPS'!B$9:B$1008,B183,'Sezione INPS'!O$9:O$1008))+(SUMIF('Sezione REGIONI'!B$9:B$1008,B183,'Sezione REGIONI'!K$9:K$1008)-SUMIF('Sezione REGIONI'!B$9:B$1008,B183,'Sezione REGIONI'!L$9:L$1008))+(SUMIF('Sezione IMU e trib. locali'!B$9:B$1008,B183,'Sezione IMU e trib. locali'!M$9:M$1008)-SUMIF('Sezione IMU e trib. locali'!B$9:B$1008,B183,'Sezione IMU e trib. locali'!N$9:N$1008))+(SUMIF('Sezione ACCISE'!B$9:B$1008,B183,'Sezione ACCISE'!N$9:N$1008)),0) -> 0 | AF183: =IF(B183="",0,IF(B183=B182,COUNTIF(B$9:B182,B183)+1,1)) -> 173 | AG183: 0 | AH183: 0
A184: 176 | B184: -1900 | C184: -1900-174 | Q184: =IF(M$1021=1,"",IF(P184="","",VLOOKUP(P184,Tabelle!$B$5:$F$7,5,FALSE))) ->  | R184: =IF(M$1021=1,"",IF(P184="","",VLOOKUP(P184,Tabelle!$B$5:$G$7,6,FALSE))) ->  | V184: =IF(AND(D184<>"",B184<>B183),(SUMIF(B$9:B$1008,B184,M$9:M$1008)-SUMIF(B$9:B$1008,B184,N$9:N$1008))+(SUMIF('Sezione INPS'!B$9:B$1008,B184,'Sezione INPS'!N$9:N$1008)-SUMIF('Sezione INPS'!B$9:B$1008,B184,'Sezione INPS'!O$9:O$1008))+(SUMIF('Sezione REGIONI'!B$9:B$1008,B184,'Sezione REGIONI'!K$9:K$1008)-SUMIF('Sezione REGIONI'!B$9:B$1008,B184,'Sezione REGIONI'!L$9:L$1008))+(SUMIF('Sezione IMU e trib. locali'!B$9:B$1008,B184,'Sezione IMU e trib. locali'!M$9:M$1008)-SUMIF('Sezione IMU e trib. locali'!B$9:B$1008,B184,'Sezione IMU e trib. locali'!N$9:N$1008))+(SUMIF('Sezione ACCISE'!B$9:B$1008,B184,'Sezione ACCISE'!N$9:N$1008)),0) -> 0 | AF184: =IF(B184="",0,IF(B184=B183,COUNTIF(B$9:B183,B184)+1,1)) -> 174 | AG184: 0 | AH184: 0
A185: 177 | B185: -1900 | C185: -1900-175 | Q185: =IF(M$1021=1,"",IF(P185="","",VLOOKUP(P185,Tabelle!$B$5:$F$7,5,FALSE))) ->  | R185: =IF(M$1021=1,"",IF(P185="","",VLOOKUP(P185,Tabelle!$B$5:$G$7,6,FALSE))) ->  | V185: =IF(AND(D185<>"",B185<>B184),(SUMIF(B$9:B$1008,B185,M$9:M$1008)-SUMIF(B$9:B$1008,B185,N$9:N$1008))+(SUMIF('Sezione INPS'!B$9:B$1008,B185,'Sezione INPS'!N$9:N$1008)-SUMIF('Sezione INPS'!B$9:B$1008,B185,'Sezione INPS'!O$9:O$1008))+(SUMIF('Sezione REGIONI'!B$9:B$1008,B185,'Sezione REGIONI'!K$9:K$1008)-SUMIF('Sezione REGIONI'!B$9:B$1008,B185,'Sezione REGIONI'!L$9:L$1008))+(SUMIF('Sezione IMU e trib. locali'!B$9:B$1008,B185,'Sezione IMU e trib. locali'!M$9:M$1008)-SUMIF('Sezione IMU e trib. locali'!B$9:B$1008,B185,'Sezione IMU e trib. locali'!N$9:N$1008))+(SUMIF('Sezione ACCISE'!B$9:B$1008,B185,'Sezione ACCISE'!N$9:N$1008)),0) -> 0 | AF185: =IF(B185="",0,IF(B185=B184,COUNTIF(B$9:B184,B185)+1,1)) -> 175 | AG185: 0 | AH185: 0
A186: 178 | B186: -1900 | C186: -1900-176 | Q186: =IF(M$1021=1,"",IF(P186="","",VLOOKUP(P186,Tabelle!$B$5:$F$7,5,FALSE))) ->  | R186: =IF(M$1021=1,"",IF(P186="","",VLOOKUP(P186,Tabelle!$B$5:$G$7,6,FALSE))) ->  | V186: =IF(AND(D186<>"",B186<>B185),(SUMIF(B$9:B$1008,B186,M$9:M$1008)-SUMIF(B$9:B$1008,B186,N$9:N$1008))+(SUMIF('Sezione INPS'!B$9:B$1008,B186,'Sezione INPS'!N$9:N$1008)-SUMIF('Sezione INPS'!B$9:B$1008,B186,'Sezione INPS'!O$9:O$1008))+(SUMIF('Sezione REGIONI'!B$9:B$1008,B186,'Sezione REGIONI'!K$9:K$1008)-SUMIF('Sezione REGIONI'!B$9:B$1008,B186,'Sezione REGIONI'!L$9:L$1008))+(SUMIF('Sezione IMU e trib. locali'!B$9:B$1008,B186,'Sezione IMU e trib. locali'!M$9:M$1008)-SUMIF('Sezione IMU e trib. locali'!B$9:B$1008,B186,'Sezione IMU e trib. locali'!N$9:N$1008))+(SUMIF('Sezione ACCISE'!B$9:B$1008,B186,'Sezione ACCISE'!N$9:N$1008)),0) -> 0 | AF186: =IF(B186="",0,IF(B186=B185,COUNTIF(B$9:B185,B186)+1,1)) -> 176 | AG186: 0 | AH186: 0
A187: 179 | B187: -1900 | C187: -1900-177 | Q187: =IF(M$1021=1,"",IF(P187="","",VLOOKUP(P187,Tabelle!$B$5:$F$7,5,FALSE))) ->  | R187: =IF(M$1021=1,"",IF(P187="","",VLOOKUP(P187,Tabelle!$B$5:$G$7,6,FALSE))) ->  | V187: =IF(AND(D187<>"",B187<>B186),(SUMIF(B$9:B$1008,B187,M$9:M$1008)-SUMIF(B$9:B$1008,B187,N$9:N$1008))+(SUMIF('Sezione INPS'!B$9:B$1008,B187,'Sezione INPS'!N$9:N$1008)-SUMIF('Sezione INPS'!B$9:B$1008,B187,'Sezione INPS'!O$9:O$1008))+(SUMIF('Sezione REGIONI'!B$9:B$1008,B187,'Sezione REGIONI'!K$9:K$1008)-SUMIF('Sezione REGIONI'!B$9:B$1008,B187,'Sezione REGIONI'!L$9:L$1008))+(SUMIF('Sezione IMU e trib. locali'!B$9:B$1008,B187,'Sezione IMU e trib. locali'!M$9:M$1008)-SUMIF('Sezione IMU e trib. locali'!B$9:B$1008,B187,'Sezione IMU e trib. locali'!N$9:N$1008))+(SUMIF('Sezione ACCISE'!B$9:B$1008,B187,'Sezione ACCISE'!N$9:N$1008)),0) -> 0 | AF187: =IF(B187="",0,IF(B187=B186,COUNTIF(B$9:B186,B187)+1,1)) -> 177 | AG187: 0 | AH187: 0
A188: 180 | B188: -1900 | C188: -1900-178 | Q188: =IF(M$1021=1,"",IF(P188="","",VLOOKUP(P188,Tabelle!$B$5:$F$7,5,FALSE))) ->  | R188: =IF(M$1021=1,"",IF(P188="","",VLOOKUP(P188,Tabelle!$B$5:$G$7,6,FALSE))) ->  | V188: =IF(AND(D188<>"",B188<>B187),(SUMIF(B$9:B$1008,B188,M$9:M$1008)-SUMIF(B$9:B$1008,B188,N$9:N$1008))+(SUMIF('Sezione INPS'!B$9:B$1008,B188,'Sezione INPS'!N$9:N$1008)-SUMIF('Sezione INPS'!B$9:B$1008,B188,'Sezione INPS'!O$9:O$1008))+(SUMIF('Sezione REGIONI'!B$9:B$1008,B188,'Sezione REGIONI'!K$9:K$1008)-SUMIF('Sezione REGIONI'!B$9:B$1008,B188,'Sezione REGIONI'!L$9:L$1008))+(SUMIF('Sezione IMU e trib. locali'!B$9:B$1008,B188,'Sezione IMU e trib. locali'!M$9:M$1008)-SUMIF('Sezione IMU e trib. locali'!B$9:B$1008,B188,'Sezione IMU e trib. locali'!N$9:N$1008))+(SUMIF('Sezione ACCISE'!B$9:B$1008,B188,'Sezione ACCISE'!N$9:N$1008)),0) -> 0 | AF188: =IF(B188="",0,IF(B188=B187,COUNTIF(B$9:B187,B188)+1,1)) -> 178 | AG188: 0 | AH188: 0
A189: 181 | B189: -1900 | C189: -1900-179 | Q189: =IF(M$1021=1,"",IF(P189="","",VLOOKUP(P189,Tabelle!$B$5:$F$7,5,FALSE))) ->  | R189: =IF(M$1021=1,"",IF(P189="","",VLOOKUP(P189,Tabelle!$B$5:$G$7,6,FALSE))) ->  | V189: =IF(AND(D189<>"",B189<>B188),(SUMIF(B$9:B$1008,B189,M$9:M$1008)-SUMIF(B$9:B$1008,B189,N$9:N$1008))+(SUMIF('Sezione INPS'!B$9:B$1008,B189,'Sezione INPS'!N$9:N$1008)-SUMIF('Sezione INPS'!B$9:B$1008,B189,'Sezione INPS'!O$9:O$1008))+(SUMIF('Sezione REGIONI'!B$9:B$1008,B189,'Sezione REGIONI'!K$9:K$1008)-SUMIF('Sezione REGIONI'!B$9:B$1008,B189,'Sezione REGIONI'!L$9:L$1008))+(SUMIF('Sezione IMU e trib. locali'!B$9:B$1008,B189,'Sezione IMU e trib. locali'!M$9:M$1008)-SUMIF('Sezione IMU e trib. locali'!B$9:B$1008,B189,'Sezione IMU e trib. locali'!N$9:N$1008))+(SUMIF('Sezione ACCISE'!B$9:B$1008,B189,'Sezione ACCISE'!N$9:N$1008)),0) -> 0 | AF189: =IF(B189="",0,IF(B189=B188,COUNTIF(B$9:B188,B189)+1,1)) -> 179 | AG189: 0 | AH189: 0
A190: 182 | B190: -1900 | C190: -1900-180 | Q190: =IF(M$1021=1,"",IF(P190="","",VLOOKUP(P190,Tabelle!$B$5:$F$7,5,FALSE))) ->  | R190: =IF(M$1021=1,"",IF(P190="","",VLOOKUP(P190,Tabelle!$B$5:$G$7,6,FALSE))) ->  | V190: =IF(AND(D190<>"",B190<>B189),(SUMIF(B$9:B$1008,B190,M$9:M$1008)-SUMIF(B$9:B$1008,B190,N$9:N$1008))+(SUMIF('Sezione INPS'!B$9:B$1008,B190,'Sezione INPS'!N$9:N$1008)-SUMIF('Sezione INPS'!B$9:B$1008,B190,'Sezione INPS'!O$9:O$1008))+(SUMIF('Sezione REGIONI'!B$9:B$1008,B190,'Sezione REGIONI'!K$9:K$1008)-SUMIF('Sezione REGIONI'!B$9:B$1008,B190,'Sezione REGIONI'!L$9:L$1008))+(SUMIF('Sezione IMU e trib. locali'!B$9:B$1008,B190,'Sezione IMU e trib. locali'!M$9:M$1008)-SUMIF('Sezione IMU e trib. locali'!B$9:B$1008,B190,'Sezione IMU e trib. locali'!N$9:N$1008))+(SUMIF('Sezione ACCISE'!B$9:B$1008,B190,'Sezione ACCISE'!N$9:N$1008)),0) -> 0 | AF190: =IF(B190="",0,IF(B190=B189,COUNTIF(B$9:B189,B190)+1,1)) -> 180 | AG190: 0 | AH190: 0
A191: 183 | B191: -1900 | C191: -1900-181 | Q191: =IF(M$1021=1,"",IF(P191="","",VLOOKUP(P191,Tabelle!$B$5:$F$7,5,FALSE))) ->  | R191: =IF(M$1021=1,"",IF(P191="","",VLOOKUP(P191,Tabelle!$B$5:$G$7,6,FALSE))) ->  | V191: =IF(AND(D191<>"",B191<>B190),(SUMIF(B$9:B$1008,B191,M$9:M$1008)-SUMIF(B$9:B$1008,B191,N$9:N$1008))+(SUMIF('Sezione INPS'!B$9:B$1008,B191,'Sezione INPS'!N$9:N$1008)-SUMIF('Sezione INPS'!B$9:B$1008,B191,'Sezione INPS'!O$9:O$1008))+(SUMIF('Sezione REGIONI'!B$9:B$1008,B191,'Sezione REGIONI'!K$9:K$1008)-SUMIF('Sezione REGIONI'!B$9:B$1008,B191,'Sezione REGIONI'!L$9:L$1008))+(SUMIF('Sezione IMU e trib. locali'!B$9:B$1008,B191,'Sezione IMU e trib. locali'!M$9:M$1008)-SUMIF('Sezione IMU e trib. locali'!B$9:B$1008,B191,'Sezione IMU e trib. locali'!N$9:N$1008))+(SUMIF('Sezione ACCISE'!B$9:B$1008,B191,'Sezione ACCISE'!N$9:N$1008)),0) -> 0 | AF191: =IF(B191="",0,IF(B191=B190,COUNTIF(B$9:B190,B191)+1,1)) -> 181 | AG191: 0 | AH191: 0
A192: 184 | B192: -1900 | C192: -1900-182 | Q192: =IF(M$1021=1,"",IF(P192="","",VLOOKUP(P192,Tabelle!$B$5:$F$7,5,FALSE))) ->  | R192: =IF(M$1021=1,"",IF(P192="","",VLOOKUP(P192,Tabelle!$B$5:$G$7,6,FALSE))) ->  | V192: =IF(AND(D192<>"",B192<>B191),(SUMIF(B$9:B$1008,B192,M$9:M$1008)-SUMIF(B$9:B$1008,B192,N$9:N$1008))+(SUMIF('Sezione INPS'!B$9:B$1008,B192,'Sezione INPS'!N$9:N$1008)-SUMIF('Sezione INPS'!B$9:B$1008,B192,'Sezione INPS'!O$9:O$1008))+(SUMIF('Sezione REGIONI'!B$9:B$1008,B192,'Sezione REGIONI'!K$9:K$1008)-SUMIF('Sezione REGIONI'!B$9:B$1008,B192,'Sezione REGIONI'!L$9:L$1008))+(SUMIF('Sezione IMU e trib. locali'!B$9:B$1008,B192,'Sezione IMU e trib. locali'!M$9:M$1008)-SUMIF('Sezione IMU e trib. locali'!B$9:B$1008,B192,'Sezione IMU e trib. locali'!N$9:N$1008))+(SUMIF('Sezione ACCISE'!B$9:B$1008,B192,'Sezione ACCISE'!N$9:N$1008)),0) -> 0 | AF192: =IF(B192="",0,IF(B192=B191,COUNTIF(B$9:B191,B192)+1,1)) -> 182 | AG192: 0 | AH192: 0
A193: 185 | B193: -1900 | C193: -1900-183 | Q193: =IF(M$1021=1,"",IF(P193="","",VLOOKUP(P193,Tabelle!$B$5:$F$7,5,FALSE))) ->  | R193: =IF(M$1021=1,"",IF(P193="","",VLOOKUP(P193,Tabelle!$B$5:$G$7,6,FALSE))) ->  | V193: =IF(AND(D193<>"",B193<>B192),(SUMIF(B$9:B$1008,B193,M$9:M$1008)-SUMIF(B$9:B$1008,B193,N$9:N$1008))+(SUMIF('Sezione INPS'!B$9:B$1008,B193,'Sezione INPS'!N$9:N$1008)-SUMIF('Sezione INPS'!B$9:B$1008,B193,'Sezione INPS'!O$9:O$1008))+(SUMIF('Sezione REGIONI'!B$9:B$1008,B193,'Sezione REGIONI'!K$9:K$1008)-SUMIF('Sezione REGIONI'!B$9:B$1008,B193,'Sezione REGIONI'!L$9:L$1008))+(SUMIF('Sezione IMU e trib. locali'!B$9:B$1008,B193,'Sezione IMU e trib. locali'!M$9:M$1008)-SUMIF('Sezione IMU e trib. locali'!B$9:B$1008,B193,'Sezione IMU e trib. locali'!N$9:N$1008))+(SUMIF('Sezione ACCISE'!B$9:B$1008,B193,'Sezione ACCISE'!N$9:N$1008)),0) -> 0 | AF193: =IF(B193="",0,IF(B193=B192,COUNTIF(B$9:B192,B193)+1,1)) -> 183 | AG193: 0 | AH193: 0
A194: 186 | B194: -1900 | C194: -1900-184 | Q194: =IF(M$1021=1,"",IF(P194="","",VLOOKUP(P194,Tabelle!$B$5:$F$7,5,FALSE))) ->  | R194: =IF(M$1021=1,"",IF(P194="","",VLOOKUP(P194,Tabelle!$B$5:$G$7,6,FALSE))) ->  | V194: =IF(AND(D194<>"",B194<>B193),(SUMIF(B$9:B$1008,B194,M$9:M$1008)-SUMIF(B$9:B$1008,B194,N$9:N$1008))+(SUMIF('Sezione INPS'!B$9:B$1008,B194,'Sezione INPS'!N$9:N$1008)-SUMIF('Sezione INPS'!B$9:B$1008,B194,'Sezione INPS'!O$9:O$1008))+(SUMIF('Sezione REGIONI'!B$9:B$1008,B194,'Sezione REGIONI'!K$9:K$1008)-SUMIF('Sezione REGIONI'!B$9:B$1008,B194,'Sezione REGIONI'!L$9:L$1008))+(SUMIF('Sezione IMU e trib. locali'!B$9:B$1008,B194,'Sezione IMU e trib. locali'!M$9:M$1008)-SUMIF('Sezione IMU e trib. locali'!B$9:B$1008,B194,'Sezione IMU e trib. locali'!N$9:N$1008))+(SUMIF('Sezione ACCISE'!B$9:B$1008,B194,'Sezione ACCISE'!N$9:N$1008)),0) -> 0 | AF194: =IF(B194="",0,IF(B194=B193,COUNTIF(B$9:B193,B194)+1,1)) -> 184 | AG194: 0 | AH194: 0
A195: 187 | B195: -1900 | C195: -1900-185 | Q195: =IF(M$1021=1,"",IF(P195="","",VLOOKUP(P195,Tabelle!$B$5:$F$7,5,FALSE))) ->  | R195: =IF(M$1021=1,"",IF(P195="","",VLOOKUP(P195,Tabelle!$B$5:$G$7,6,FALSE))) ->  | V195: =IF(AND(D195<>"",B195<>B194),(SUMIF(B$9:B$1008,B195,M$9:M$1008)-SUMIF(B$9:B$1008,B195,N$9:N$1008))+(SUMIF('Sezione INPS'!B$9:B$1008,B195,'Sezione INPS'!N$9:N$1008)-SUMIF('Sezione INPS'!B$9:B$1008,B195,'Sezione INPS'!O$9:O$1008))+(SUMIF('Sezione REGIONI'!B$9:B$1008,B195,'Sezione REGIONI'!K$9:K$1008)-SUMIF('Sezione REGIONI'!B$9:B$1008,B195,'Sezione REGIONI'!L$9:L$1008))+(SUMIF('Sezione IMU e trib. locali'!B$9:B$1008,B195,'Sezione IMU e trib. locali'!M$9:M$1008)-SUMIF('Sezione IMU e trib. locali'!B$9:B$1008,B195,'Sezione IMU e trib. locali'!N$9:N$1008))+(SUMIF('Sezione ACCISE'!B$9:B$1008,B195,'Sezione ACCISE'!N$9:N$1008)),0) -> 0 | AF195: =IF(B195="",0,IF(B195=B194,COUNTIF(B$9:B194,B195)+1,1)) -> 185 | AG195: 0 | AH195: 0
A196: 188 | B196: -1900 | C196: -1900-186 | Q196: =IF(M$1021=1,"",IF(P196="","",VLOOKUP(P196,Tabelle!$B$5:$F$7,5,FALSE))) ->  | R196: =IF(M$1021=1,"",IF(P196="","",VLOOKUP(P196,Tabelle!$B$5:$G$7,6,FALSE))) ->  | V196: =IF(AND(D196<>"",B196<>B195),(SUMIF(B$9:B$1008,B196,M$9:M$1008)-SUMIF(B$9:B$1008,B196,N$9:N$1008))+(SUMIF('Sezione INPS'!B$9:B$1008,B196,'Sezione INPS'!N$9:N$1008)-SUMIF('Sezione INPS'!B$9:B$1008,B196,'Sezione INPS'!O$9:O$1008))+(SUMIF('Sezione REGIONI'!B$9:B$1008,B196,'Sezione REGIONI'!K$9:K$1008)-SUMIF('Sezione REGIONI'!B$9:B$1008,B196,'Sezione REGIONI'!L$9:L$1008))+(SUMIF('Sezione IMU e trib. locali'!B$9:B$1008,B196,'Sezione IMU e trib. locali'!M$9:M$1008)-SUMIF('Sezione IMU e trib. locali'!B$9:B$1008,B196,'Sezione IMU e trib. locali'!N$9:N$1008))+(SUMIF('Sezione ACCISE'!B$9:B$1008,B196,'Sezione ACCISE'!N$9:N$1008)),0) -> 0 | AF196: =IF(B196="",0,IF(B196=B195,COUNTIF(B$9:B195,B196)+1,1)) -> 186 | AG196: 0 | AH196: 0
A197: 189 | B197: -1900 | C197: -1900-187 | Q197: =IF(M$1021=1,"",IF(P197="","",VLOOKUP(P197,Tabelle!$B$5:$F$7,5,FALSE))) ->  | R197: =IF(M$1021=1,"",IF(P197="","",VLOOKUP(P197,Tabelle!$B$5:$G$7,6,FALSE))) ->  | V197: =IF(AND(D197<>"",B197<>B196),(SUMIF(B$9:B$1008,B197,M$9:M$1008)-SUMIF(B$9:B$1008,B197,N$9:N$1008))+(SUMIF('Sezione INPS'!B$9:B$1008,B197,'Sezione INPS'!N$9:N$1008)-SUMIF('Sezione INPS'!B$9:B$1008,B197,'Sezione INPS'!O$9:O$1008))+(SUMIF('Sezione REGIONI'!B$9:B$1008,B197,'Sezione REGIONI'!K$9:K$1008)-SUMIF('Sezione REGIONI'!B$9:B$1008,B197,'Sezione REGIONI'!L$9:L$1008))+(SUMIF('Sezione IMU e trib. locali'!B$9:B$1008,B197,'Sezione IMU e trib. locali'!M$9:M$1008)-SUMIF('Sezione IMU e trib. locali'!B$9:B$1008,B197,'Sezione IMU e trib. locali'!N$9:N$1008))+(SUMIF('Sezione ACCISE'!B$9:B$1008,B197,'Sezione ACCISE'!N$9:N$1008)),0) -> 0 | AF197: =IF(B197="",0,IF(B197=B196,COUNTIF(B$9:B196,B197)+1,1)) -> 187 | AG197: 0 | AH197: 0
A198: 190 | B198: -1900 | C198: -1900-188 | Q198: =IF(M$1021=1,"",IF(P198="","",VLOOKUP(P198,Tabelle!$B$5:$F$7,5,FALSE))) ->  | R198: =IF(M$1021=1,"",IF(P198="","",VLOOKUP(P198,Tabelle!$B$5:$G$7,6,FALSE))) ->  | V198: =IF(AND(D198<>"",B198<>B197),(SUMIF(B$9:B$1008,B198,M$9:M$1008)-SUMIF(B$9:B$1008,B198,N$9:N$1008))+(SUMIF('Sezione INPS'!B$9:B$1008,B198,'Sezione INPS'!N$9:N$1008)-SUMIF('Sezione INPS'!B$9:B$1008,B198,'Sezione INPS'!O$9:O$1008))+(SUMIF('Sezione REGIONI'!B$9:B$1008,B198,'Sezione REGIONI'!K$9:K$1008)-SUMIF('Sezione REGIONI'!B$9:B$1008,B198,'Sezione REGIONI'!L$9:L$1008))+(SUMIF('Sezione IMU e trib. locali'!B$9:B$1008,B198,'Sezione IMU e trib. locali'!M$9:M$1008)-SUMIF('Sezione IMU e trib. locali'!B$9:B$1008,B198,'Sezione IMU e trib. locali'!N$9:N$1008))+(SUMIF('Sezione ACCISE'!B$9:B$1008,B198,'Sezione ACCISE'!N$9:N$1008)),0) -> 0 | AF198: =IF(B198="",0,IF(B198=B197,COUNTIF(B$9:B197,B198)+1,1)) -> 188 | AG198: 0 | AH198: 0
A199: 191 | B199: -1900 | C199: -1900-189 | Q199: =IF(M$1021=1,"",IF(P199="","",VLOOKUP(P199,Tabelle!$B$5:$F$7,5,FALSE))) ->  | R199: =IF(M$1021=1,"",IF(P199="","",VLOOKUP(P199,Tabelle!$B$5:$G$7,6,FALSE))) ->  | V199: =IF(AND(D199<>"",B199<>B198),(SUMIF(B$9:B$1008,B199,M$9:M$1008)-SUMIF(B$9:B$1008,B199,N$9:N$1008))+(SUMIF('Sezione INPS'!B$9:B$1008,B199,'Sezione INPS'!N$9:N$1008)-SUMIF('Sezione INPS'!B$9:B$1008,B199,'Sezione INPS'!O$9:O$1008))+(SUMIF('Sezione REGIONI'!B$9:B$1008,B199,'Sezione REGIONI'!K$9:K$1008)-SUMIF('Sezione REGIONI'!B$9:B$1008,B199,'Sezione REGIONI'!L$9:L$1008))+(SUMIF('Sezione IMU e trib. locali'!B$9:B$1008,B199,'Sezione IMU e trib. locali'!M$9:M$1008)-SUMIF('Sezione IMU e trib. locali'!B$9:B$1008,B199,'Sezione IMU e trib. locali'!N$9:N$1008))+(SUMIF('Sezione ACCISE'!B$9:B$1008,B199,'Sezione ACCISE'!N$9:N$1008)),0) -> 0 | AF199: =IF(B199="",0,IF(B199=B198,COUNTIF(B$9:B198,B199)+1,1)) -> 189 | AG199: 0 | AH199: 0
A200: 192 | B200: -1900 | C200: -1900-190 | Q200: =IF(M$1021=1,"",IF(P200="","",VLOOKUP(P200,Tabelle!$B$5:$F$7,5,FALSE))) ->  | R200: =IF(M$1021=1,"",IF(P200="","",VLOOKUP(P200,Tabelle!$B$5:$G$7,6,FALSE))) ->  | V200: =IF(AND(D200<>"",B200<>B199),(SUMIF(B$9:B$1008,B200,M$9:M$1008)-SUMIF(B$9:B$1008,B200,N$9:N$1008))+(SUMIF('Sezione INPS'!B$9:B$1008,B200,'Sezione INPS'!N$9:N$1008)-SUMIF('Sezione INPS'!B$9:B$1008,B200,'Sezione INPS'!O$9:O$1008))+(SUMIF('Sezione REGIONI'!B$9:B$1008,B200,'Sezione REGIONI'!K$9:K$1008)-SUMIF('Sezione REGIONI'!B$9:B$1008,B200,'Sezione REGIONI'!L$9:L$1008))+(SUMIF('Sezione IMU e trib. locali'!B$9:B$1008,B200,'Sezione IMU e trib. locali'!M$9:M$1008)-SUMIF('Sezione IMU e trib. locali'!B$9:B$1008,B200,'Sezione IMU e trib. locali'!N$9:N$1008))+(SUMIF('Sezione ACCISE'!B$9:B$1008,B200,'Sezione ACCISE'!N$9:N$1008)),0) -> 0 | AF200: =IF(B200="",0,IF(B200=B199,COUNTIF(B$9:B199,B200)+1,1)) -> 190 | AG200: 0 | AH200: 0
A201: 193 | B201: -1900 | C201: =IF(M$1021=1,0,B201&"-"&AF201) -> -1900-191 | Q201: =IF(M$1021=1,"",IF(P201="","",VLOOKUP(P201,Tabelle!$B$5:$F$7,5,FALSE))) ->  | R201: =IF(M$1021=1,"",IF(P201="","",VLOOKUP(P201,Tabelle!$B$5:$G$7,6,FALSE))) ->  | V201: =IF(AND(D201<>"",B201<>B200),(SUMIF(B$9:B$1008,B201,M$9:M$1008)-SUMIF(B$9:B$1008,B201,N$9:N$1008))+(SUMIF('Sezione INPS'!B$9:B$1008,B201,'Sezione INPS'!N$9:N$1008)-SUMIF('Sezione INPS'!B$9:B$1008,B201,'Sezione INPS'!O$9:O$1008))+(SUMIF('Sezione REGIONI'!B$9:B$1008,B201,'Sezione REGIONI'!K$9:K$1008)-SUMIF('Sezione REGIONI'!B$9:B$1008,B201,'Sezione REGIONI'!L$9:L$1008))+(SUMIF('Sezione IMU e trib. locali'!B$9:B$1008,B201,'Sezione IMU e trib. locali'!M$9:M$1008)-SUMIF('Sezione IMU e trib. locali'!B$9:B$1008,B201,'Sezione IMU e trib. locali'!N$9:N$1008))+(SUMIF('Sezione ACCISE'!B$9:B$1008,B201,'Sezione ACCISE'!N$9:N$1008)),0) -> 0 | AF201: =IF(B201="",0,IF(B201=B200,COUNTIF(B$9:B200,B201)+1,1)) -> 191 | AG201: 0 | AH201: 0
A202: 194 | B202: =IF(AH202=$AH$1015,0,IF(M$1021=1,0,D202&"-"&YEAR(E202))) -> -1900 | C202: -1900-192 | Q202: =IF(M$1021=1,"",IF(P202="","",VLOOKUP(P202,Tabelle!$B$5:$F$7,5,FALSE))) ->  | R202: =IF(M$1021=1,"",IF(P202="","",VLOOKUP(P202,Tabelle!$B$5:$G$7,6,FALSE))) ->  | V202: =IF(AND(D202<>"",B202<>B201),(SUMIF(B$9:B$1008,B202,M$9:M$1008)-SUMIF(B$9:B$1008,B202,N$9:N$1008))+(SUMIF('Sezione INPS'!B$9:B$1008,B202,'Sezione INPS'!N$9:N$1008)-SUMIF('Sezione INPS'!B$9:B$1008,B202,'Sezione INPS'!O$9:O$1008))+(SUMIF('Sezione REGIONI'!B$9:B$1008,B202,'Sezione REGIONI'!K$9:K$1008)-SUMIF('Sezione REGIONI'!B$9:B$1008,B202,'Sezione REGIONI'!L$9:L$1008))+(SUMIF('Sezione IMU e trib. locali'!B$9:B$1008,B202,'Sezione IMU e trib. locali'!M$9:M$1008)-SUMIF('Sezione IMU e trib. locali'!B$9:B$1008,B202,'Sezione IMU e trib. locali'!N$9:N$1008))+(SUMIF('Sezione ACCISE'!B$9:B$1008,B202,'Sezione ACCISE'!N$9:N$1008)),0) -> 0 | AF202: =IF(B202="",0,IF(B202=B201,COUNTIF(B$9:B201,B202)+1,1)) -> 192 | AG202: =IF(OR(D202="",M$1021=1),0,IF(AF202=6,1,0)) -> 0 | AH202: =IF(E202>0,IF(OR(MONTH(E202)<$L$1027,MONTH(E202)>$L$1028),AH$1015,0),0) -> 0
... 822 more rows

Sheet Sezione INPS
D2: Contribuente: | G2: Compila le righe di questa sezione una sotto l' altra, assegnando un numero di protocollo progressivo e la data
D3: =CONTRIBUENTE!E34 -> 01234567891 | G3: in ogni riga. Nel foglio \ F24 Accise / potrai richiamare e stampare tutti i documenti così generati.
D4: ='Sezione ERARIO'!D4:D5 -> 2 | E4: Ultimo Protocollo | G4: Sezione INPS
E5: nelle SEZIONI | G5: =IF(L1024=0,"",CONTRIBUENTE!$F$134) ->  | N5: C | O5: D
D6: NR. | E6: DATA | G6: codice | H6: causale | I6: matricola INPS / codice INPS / | J6: DA periodo di riferimento A | N6: importi a debito | O6: importi a credito | Q6: N O T E
D7: Prot. | G7: sede | H7: contributo | I7: filiale azienda | J7: MM | K7: AAAA | L7: MM | M7: AAAA | N7: VERSATI | O7: COMPENSATI
A9: 1 di 1000 | B9: =IF(U9=U$1015,0,IF(L$1024=1,0,D9&"-"&YEAR(E9))) -> 1-2024 | C9: =IF(L$1024=1,0,B9&"-"&S9) -> 1-2024-1 | D9: 1 | E9: 2024-01-01 | G9: 01 | H9: 0002 | I9: 0000000000003 | J9: 1 | K9: 2020 | L9: 12 | M9: 2020 | N9: 2 | Q9: Testo Libero | S9: 1 | U9: =IF(E9>0,IF(OR(MONTH(E9)<$N$1027,MONTH(E9)>$N$1028),U$1015,0),0) -> 0
A10: 2 | B10: =IF(U10=U$1015,0,IF(L$1024=1,0,D10&"-"&YEAR(E10))) -> 2-2024 | C10: 2-2024-1 | D10: 2 | E10: 2024-01-01 | G10: 10 | H10: 2000 | I10: 3000000000000 | J10: 1 | K10: 2020 | L10: 12 | M10: 2020 | N10: 1 | Q10: Testo Libero | S10: =IF(D10="",0,IF(D10=D9,COUNTIF(D$9:D9,D10)+1,1)) -> 1 | T10: =IF(OR(D10="",L$1024=1),0,IF(S10=4,1,0)) -> 0 | U10: =IF(E10>0,IF(OR(MONTH(E10)<$N$1027,MONTH(E10)>$N$1028),U$1015,0),0) -> 0
A11: 3 | B11: 2-2024 | C11: 2-2024-2 | D11: 2 | E11: 2024-01-01 | G11: 10 | H11: 2000 | I11: 3000000000003 | J11: 1 | K11: 2020 | L11: 12 | M11: 2020 | N11: 3 | Q11: RIGHE DI ESEMPIO | S11: =IF(D11="",0,IF(D11=D10,COUNTIF(D$9:D10,D11)+1,1)) -> 2 | T11: 0 | U11: 0
A12: 4 | B12: -1900 | C12: -1900-0 | S12: =IF(D12="",0,IF(D12=D11,COUNTIF(D$9:D11,D12)+1,1)) -> 0 | T12: 0 | U12: 0
A13: 5 | B13: -1900 | C13: -1900-0 | S13: =IF(D13="",0,IF(D13=D12,COUNTIF(D$9:D12,D13)+1,1)) -> 0 | T13: 0 | U13: 0
A14: 6 | B14: -1900 | C14: -1900-0 | S14: =IF(D14="",0,IF(D14=D13,COUNTIF(D$9:D13,D14)+1,1)) -> 0 | T14: 0 | U14: 0
A15: 7 | B15: -1900 | C15: -1900-0 | S15: =IF(D15="",0,IF(D15=D14,COUNTIF(D$9:D14,D15)+1,1)) -> 0 | T15: 0 | U15: 0
A16: 8 | B16: -1900 | C16: -1900-0 | S16: =IF(D16="",0,IF(D16=D15,COUNTIF(D$9:D15,D16)+1,1)) -> 0 | T16: 0 | U16: 0
A17: 9 | B17: -1900 | C17: -1900-0 | S17: =IF(D17="",0,IF(D17=D16,COUNTIF(D$9:D16,D17)+1,1)) -> 0 | T17: 0 | U17: 0
A18: 10 | B18: -1900 | C18: -1900-0 | S18: =IF(D18="",0,IF(D18=D17,COUNTIF(D$9:D17,D18)+1,1)) -> 0 | T18: 0 | U18: 0
A19: 11 | B19: -1900 | C19: -1900-0 | S19: =IF(D19="",0,IF(D19=D18,COUNTIF(D$9:D18,D19)+1,1)) -> 0 | T19: 0 | U19: 0
A20: 12 | B20: -1900 | C20: -1900-0 | S20: =IF(D20="",0,IF(D20=D19,COUNTIF(D$9:D19,D20)+1,1)) -> 0 | T20: 0 | U20: 0
A21: 13 | B21: -1900 | C21: -1900-0 | S21: =IF(D21="",0,IF(D21=D20,COUNTIF(D$9:D20,D21)+1,1)) -> 0 | T21: 0 | U21: 0
A22: 14 | B22: -1900 | C22: -1900-0 | S22: =IF(D22="",0,IF(D22=D21,COUNTIF(D$9:D21,D22)+1,1)) -> 0 | T22: 0 | U22: 0
A23: 15 | B23: -1900 | C23: -1900-0 | S23: =IF(D23="",0,IF(D23=D22,COUNTIF(D$9:D22,D23)+1,1)) -> 0 | T23: 0 | U23: 0
A24: 16 | B24: -1900 | C24: -1900-0 | S24: =IF(D24="",0,IF(D24=D23,COUNTIF(D$9:D23,D24)+1,1)) -> 0 | T24: 0 | U24: 0
A25: 17 | B25: -1900 | C25: -1900-0 | S25: =IF(D25="",0,IF(D25=D24,COUNTIF(D$9:D24,D25)+1,1)) -> 0 | T25: 0 | U25: 0
A26: 18 | B26: -1900 | C26: -1900-0 | S26: =IF(D26="",0,IF(D26=D25,COUNTIF(D$9:D25,D26)+1,1)) -> 0 | T26: 0 | U26: 0
A27: 19 | B27: -1900 | C27: -1900-0 | S27: =IF(D27="",0,IF(D27=D26,COUNTIF(D$9:D26,D27)+1,1)) -> 0 | T27: 0 | U27: 0
A28: 20 | B28: -1900 | C28: -1900-0 | S28: =IF(D28="",0,IF(D28=D27,COUNTIF(D$9:D27,D28)+1,1)) -> 0 | T28: 0 | U28: 0
A29: 21 | B29: -1900 | C29: -1900-0 | S29: =IF(D29="",0,IF(D29=D28,COUNTIF(D$9:D28,D29)+1,1)) -> 0 | T29: 0 | U29: 0
A30: 22 | B30: -1900 | C30: -1900-0 | S30: =IF(D30="",0,IF(D30=D29,COUNTIF(D$9:D29,D30)+1,1)) -> 0 | T30: 0 | U30: 0
A31: 23 | B31: -1900 | C31: -1900-0 | S31: =IF(D31="",0,IF(D31=D30,COUNTIF(D$9:D30,D31)+1,1)) -> 0 | T31: 0 | U31: 0
A32: 24 | B32: -1900 | C32: -1900-0 | S32: =IF(D32="",0,IF(D32=D31,COUNTIF(D$9:D31,D32)+1,1)) -> 0 | T32: 0 | U32: 0
A33: 25 | B33: -1900 | C33: -1900-0 | S33: =IF(D33="",0,IF(D33=D32,COUNTIF(D$9:D32,D33)+1,1)) -> 0 | T33: 0 | U33: 0
A34: 26 | B34: -1900 | C34: -1900-0 | S34: =IF(D34="",0,IF(D34=D33,COUNTIF(D$9:D33,D34)+1,1)) -> 0 | T34: 0 | U34: 0
A35: 27 | B35: -1900 | C35: -1900-0 | S35: =IF(D35="",0,IF(D35=D34,COUNTIF(D$9:D34,D35)+1,1)) -> 0 | T35: 0 | U35: 0
A36: 28 | B36: -1900 | C36: -1900-0 | S36: =IF(D36="",0,IF(D36=D35,COUNTIF(D$9:D35,D36)+1,1)) -> 0 | T36: 0 | U36: 0
A37: 29 | B37: -1900 | C37: -1900-0 | S37: =IF(D37="",0,IF(D37=D36,COUNTIF(D$9:D36,D37)+1,1)) -> 0 | T37: 0 | U37: 0
A38: 30 | B38: -1900 | C38: -1900-0 | S38: =IF(D38="",0,IF(D38=D37,COUNTIF(D$9:D37,D38)+1,1)) -> 0 | T38: 0 | U38: 0
A39: 31 | B39: -1900 | C39: -1900-0 | S39: =IF(D39="",0,IF(D39=D38,COUNTIF(D$9:D38,D39)+1,1)) -> 0 | T39: 0 | U39: 0
A40: 32 | B40: -1900 | C40: -1900-0 | S40: =IF(D40="",0,IF(D40=D39,COUNTIF(D$9:D39,D40)+1,1)) -> 0 | T40: 0 | U40: 0
A41: 33 | B41: -1900 | C41: =IF(L$1024=1,0,B41&"-"&S41) -> -1900-0 | S41: =IF(D41="",0,IF(D41=D40,COUNTIF(D$9:D40,D41)+1,1)) -> 0 | T41: 0 | U41: 0
A42: 34 | B42: -1900 | C42: -1900-0 | S42: =IF(D42="",0,IF(D42=D41,COUNTIF(D$9:D41,D42)+1,1)) -> 0 | T42: =IF(OR(D42="",L$1024=1),0,IF(S42=4,1,0)) -> 0 | U42: 0
A43: 35 | B43: -1900 | C43: -1900-0 | S43: =IF(D43="",0,IF(D43=D42,COUNTIF(D$9:D42,D43)+1,1)) -> 0 | T43: 0 | U43: 0
A44: 36 | B44: -1900 | C44: -1900-0 | S44: =IF(D44="",0,IF(D44=D43,COUNTIF(D$9:D43,D44)+1,1)) -> 0 | T44: 0 | U44: 0
A45: 37 | B45: -1900 | C45: -1900-0 | S45: =IF(D45="",0,IF(D45=D44,COUNTIF(D$9:D44,D45)+1,1)) -> 0 | T45: 0 | U45: 0
A46: 38 | B46: -1900 | C46: -1900-0 | S46: =IF(D46="",0,IF(D46=D45,COUNTIF(D$9:D45,D46)+1,1)) -> 0 | T46: 0 | U46: 0
A47: 39 | B47: -1900 | C47: -1900-0 | S47: =IF(D47="",0,IF(D47=D46,COUNTIF(D$9:D46,D47)+1,1)) -> 0 | T47: 0 | U47: 0
A48: 40 | B48: -1900 | C48: -1900-0 | S48: =IF(D48="",0,IF(D48=D47,COUNTIF(D$9:D47,D48)+1,1)) -> 0 | T48: 0 | U48: 0
A49: 41 | B49: -1900 | C49: -1900-0 | S49: =IF(D49="",0,IF(D49=D48,COUNTIF(D$9:D48,D49)+1,1)) -> 0 | T49: 0 | U49: 0
A50: 42 | B50: -1900 | C50: -1900-0 | S50: =IF(D50="",0,IF(D50=D49,COUNTIF(D$9:D49,D50)+1,1)) -> 0 | T50: 0 | U50: 0
A51: 43 | B51: -1900 | C51: -1900-0 | S51: =IF(D51="",0,IF(D51=D50,COUNTIF(D$9:D50,D51)+1,1)) -> 0 | T51: 0 | U51: 0
A52: 44 | B52: -1900 | C52: -1900-0 | S52: =IF(D52="",0,IF(D52=D51,COUNTIF(D$9:D51,D52)+1,1)) -> 0 | T52: 0 | U52: 0
A53: 45 | B53: -1900 | C53: -1900-0 | S53: =IF(D53="",0,IF(D53=D52,COUNTIF(D$9:D52,D53)+1,1)) -> 0 | T53: 0 | U53: 0
A54: 46 | B54: -1900 | C54: -1900-0 | S54: =IF(D54="",0,IF(D54=D53,COUNTIF(D$9:D53,D54)+1,1)) -> 0 | T54: 0 | U54: 0
A55: 47 | B55: -1900 | C55: -1900-0 | S55: =IF(D55="",0,IF(D55=D54,COUNTIF(D$9:D54,D55)+1,1)) -> 0 | T55: 0 | U55: 0
A56: 48 | B56: -1900 | C56: -1900-0 | S56: =IF(D56="",0,IF(D56=D55,COUNTIF(D$9:D55,D56)+1,1)) -> 0 | T56: 0 | U56: 0
A57: 49 | B57: -1900 | C57: -1900-0 | S57: =IF(D57="",0,IF(D57=D56,COUNTIF(D$9:D56,D57)+1,1)) -> 0 | T57: 0 | U57: 0
A58: 50 | B58: -1900 | C58: -1900-0 | S58: =IF(D58="",0,IF(D58=D57,COUNTIF(D$9:D57,D58)+1,1)) -> 0 | T58: 0 | U58: 0
A59: 51 | B59: -1900 | C59: -1900-0 | S59: =IF(D59="",0,IF(D59=D58,COUNTIF(D$9:D58,D59)+1,1)) -> 0 | T59: 0 | U59: 0
A60: 52 | B60: -1900 | C60: -1900-0 | S60: =IF(D60="",0,IF(D60=D59,COUNTIF(D$9:D59,D60)+1,1)) -> 0 | T60: 0 | U60: 0
A61: 53 | B61: -1900 | C61: -1900-0 | S61: =IF(D61="",0,IF(D61=D60,COUNTIF(D$9:D60,D61)+1,1)) -> 0 | T61: 0 | U61: 0
A62: 54 | B62: -1900 | C62: -1900-0 | S62: =IF(D62="",0,IF(D62=D61,COUNTIF(D$9:D61,D62)+1,1)) -> 0 | T62: 0 | U62: 0
A63: 55 | B63: -1900 | C63: -1900-0 | S63: =IF(D63="",0,IF(D63=D62,COUNTIF(D$9:D62,D63)+1,1)) -> 0 | T63: 0 | U63: 0
A64: 56 | B64: -1900 | C64: -1900-0 | S64: =IF(D64="",0,IF(D64=D63,COUNTIF(D$9:D63,D64)+1,1)) -> 0 | T64: 0 | U64: 0
A65: 57 | B65: -1900 | C65: -1900-0 | S65: =IF(D65="",0,IF(D65=D64,COUNTIF(D$9:D64,D65)+1,1)) -> 0 | T65: 0 | U65: 0
A66: 58 | B66: -1900 | C66: -1900-0 | S66: =IF(D66="",0,IF(D66=D65,COUNTIF(D$9:D65,D66)+1,1)) -> 0 | T66: 0 | U66: 0
A67: 59 | B67: -1900 | C67: -1900-0 | S67: =IF(D67="",0,IF(D67=D66,COUNTIF(D$9:D66,D67)+1,1)) -> 0 | T67: 0 | U67: 0
A68: 60 | B68: -1900 | C68: -1900-0 | S68: =IF(D68="",0,IF(D68=D67,COUNTIF(D$9:D67,D68)+1,1)) -> 0 | T68: 0 | U68: 0
A69: 61 | B69: -1900 | C69: -1900-0 | S69: =IF(D69="",0,IF(D69=D68,COUNTIF(D$9:D68,D69)+1,1)) -> 0 | T69: 0 | U69: 0
A70: 62 | B70: -1900 | C70: -1900-0 | S70: =IF(D70="",0,IF(D70=D69,COUNTIF(D$9:D69,D70)+1,1)) -> 0 | T70: 0 | U70: 0
A71: 63 | B71: -1900 | C71: -1900-0 | S71: =IF(D71="",0,IF(D71=D70,COUNTIF(D$9:D70,D71)+1,1)) -> 0 | T71: 0 | U71: 0
A72: 64 | B72: -1900 | C72: -1900-0 | S72: =IF(D72="",0,IF(D72=D71,COUNTIF(D$9:D71,D72)+1,1)) -> 0 | T72: 0 | U72: 0
A73: 65 | B73: -1900 | C73: =IF(L$1024=1,0,B73&"-"&S73) -> -1900-0 | S73: =IF(D73="",0,IF(D73=D72,COUNTIF(D$9:D72,D73)+1,1)) -> 0 | T73: 0 | U73: 0
A74: 66 | B74: =IF(U74=U$1015,0,IF(L$1024=1,0,D74&"-"&YEAR(E74))) -> -1900 | C74: -1900-0 | S74: =IF(D74="",0,IF(D74=D73,COUNTIF(D$9:D73,D74)+1,1)) -> 0 | T74: =IF(OR(D74="",L$1024=1),0,IF(S74=4,1,0)) -> 0 | U74: =IF(E74>0,IF(OR(MONTH(E74)<$N$1027,MONTH(E74)>$N$1028),U$1015,0),0) -> 0
A75: 67 | B75: -1900 | C75: -1900-0 | S75: =IF(D75="",0,IF(D75=D74,COUNTIF(D$9:D74,D75)+1,1)) -> 0 | T75: 0 | U75: 0
A76: 68 | B76: -1900 | C76: -1900-0 | S76: =IF(D76="",0,IF(D76=D75,COUNTIF(D$9:D75,D76)+1,1)) -> 0 | T76: 0 | U76: 0
A77: 69 | B77: -1900 | C77: -1900-0 | S77: =IF(D77="",0,IF(D77=D76,COUNTIF(D$9:D76,D77)+1,1)) -> 0 | T77: 0 | U77: 0
A78: 70 | B78: -1900 | C78: -1900-0 | S78: =IF(D78="",0,IF(D78=D77,COUNTIF(D$9:D77,D78)+1,1)) -> 0 | T78: 0 | U78: 0
A79: 71 | B79: -1900 | C79: -1900-0 | S79: =IF(D79="",0,IF(D79=D78,COUNTIF(D$9:D78,D79)+1,1)) -> 0 | T79: 0 | U79: 0
A80: 72 | B80: -1900 | C80: -1900-0 | S80: =IF(D80="",0,IF(D80=D79,COUNTIF(D$9:D79,D80)+1,1)) -> 0 | T80: 0 | U80: 0
A81: 73 | B81: -1900 | C81: -1900-0 | S81: =IF(D81="",0,IF(D81=D80,COUNTIF(D$9:D80,D81)+1,1)) -> 0 | T81: 0 | U81: 0
A82: 74 | B82: -1900 | C82: -1900-0 | S82: =IF(D82="",0,IF(D82=D81,COUNTIF(D$9:D81,D82)+1,1)) -> 0 | T82: 0 | U82: 0
A83: 75 | B83: -1900 | C83: -1900-0 | S83: =IF(D83="",0,IF(D83=D82,COUNTIF(D$9:D82,D83)+1,1)) -> 0 | T83: 0 | U83: 0
A84: 76 | B84: -1900 | C84: -1900-0 | S84: =IF(D84="",0,IF(D84=D83,COUNTIF(D$9:D83,D84)+1,1)) -> 0 | T84: 0 | U84: 0
A85: 77 | B85: -1900 | C85: -1900-0 | S85: =IF(D85="",0,IF(D85=D84,COUNTIF(D$9:D84,D85)+1,1)) -> 0 | T85: 0 | U85: 0
A86: 78 | B86: -1900 | C86: -1900-0 | S86: =IF(D86="",0,IF(D86=D85,COUNTIF(D$9:D85,D86)+1,1)) -> 0 | T86: 0 | U86: 0
A87: 79 | B87: -1900 | C87: -1900-0 | S87: =IF(D87="",0,IF(D87=D86,COUNTIF(D$9:D86,D87)+1,1)) -> 0 | T87: 0 | U87: 0
A88: 80 | B88: -1900 | C88: -1900-0 | S88: =IF(D88="",0,IF(D88=D87,COUNTIF(D$9:D87,D88)+1,1)) -> 0 | T88: 0 | U88: 0
A89: 81 | B89: -1900 | C89: -1900-0 | S89: =IF(D89="",0,IF(D89=D88,COUNTIF(D$9:D88,D89)+1,1)) -> 0 | T89: 0 | U89: 0
A90: 82 | B90: -1900 | C90: -1900-0 | S90: =IF(D90="",0,IF(D90=D89,COUNTIF(D$9:D89,D90)+1,1)) -> 0 | T90: 0 | U90: 0
A91: 83 | B91: -1900 | C91: -1900-0 | S91: =IF(D91="",0,IF(D91=D90,COUNTIF(D$9:D90,D91)+1,1)) -> 0 | T91: 0 | U91: 0
A92: 84 | B92: -1900 | C92: -1900-0 | S92: =IF(D92="",0,IF(D92=D91,COUNTIF(D$9:D91,D92)+1,1)) -> 0 | T92: 0 | U92: 0
A93: 85 | B93: -1900 | C93: -1900-0 | S93: =IF(D93="",0,IF(D93=D92,COUNTIF(D$9:D92,D93)+1,1)) -> 0 | T93: 0 | U93: 0
A94: 86 | B94: -1900 | C94: -1900-0 | S94: =IF(D94="",0,IF(D94=D93,COUNTIF(D$9:D93,D94)+1,1)) -> 0 | T94: 0 | U94: 0
A95: 87 | B95: -1900 | C95: -1900-0 | S95: =IF(D95="",0,IF(D95=D94,COUNTIF(D$9:D94,D95)+1,1)) -> 0 | T95: 0 | U95: 0
A96: 88 | B96: -1900 | C96: -1900-0 | S96: =IF(D96="",0,IF(D96=D95,COUNTIF(D$9:D95,D96)+1,1)) -> 0 | T96: 0 | U96: 0
A97: 89 | B97: -1900 | C97: -1900-0 | S97: =IF(D97="",0,IF(D97=D96,COUNTIF(D$9:D96,D97)+1,1)) -> 0 | T97: 0 | U97: 0
A98: 90 | B98: -1900 | C98: -1900-0 | S98: =IF(D98="",0,IF(D98=D97,COUNTIF(D$9:D97,D98)+1,1)) -> 0 | T98: 0 | U98: 0
A99: 91 | B99: -1900 | C99: -1900-0 | S99: =IF(D99="",0,IF(D99=D98,COUNTIF(D$9:D98,D99)+1,1)) -> 0 | T99: 0 | U99: 0
A100: 92 | B100: -1900 | C100: -1900-0 | S100: =IF(D100="",0,IF(D100=D99,COUNTIF(D$9:D99,D100)+1,1)) -> 0 | T100: 0 | U100: 0
A101: 93 | B101: -1900 | C101: -1900-0 | S101: =IF(D101="",0,IF(D101=D100,COUNTIF(D$9:D100,D101)+1,1)) -> 0 | T101: 0 | U101: 0
A102: 94 | B102: -1900 | C102: -1900-0 | S102: =IF(D102="",0,IF(D102=D101,COUNTIF(D$9:D101,D102)+1,1)) -> 0 | T102: 0 | U102: 0
A103: 95 | B103: -1900 | C103: -1900-0 | S103: =IF(D103="",0,IF(D103=D102,COUNTIF(D$9:D102,D103)+1,1)) -> 0 | T103: 0 | U103: 0
A104: 96 | B104: -1900 | C104: -1900-0 | S104: =IF(D104="",0,IF(D104=D103,COUNTIF(D$9:D103,D104)+1,1)) -> 0 | T104: 0 | U104: 0
A105: 97 | B105: -1900 | C105: =IF(L$1024=1,0,B105&"-"&S105) -> -1900-0 | S105: =IF(D105="",0,IF(D105=D104,COUNTIF(D$9:D104,D105)+1,1)) -> 0 | T105: 0 | U105: 0
A106: 98 | B106: -1900 | C106: -1900-0 | S106: =IF(D106="",0,IF(D106=D105,COUNTIF(D$9:D105,D106)+1,1)) -> 0 | T106: =IF(OR(D106="",L$1024=1),0,IF(S106=4,1,0)) -> 0 | U106: 0
A107: 99 | B107: -1900 | C107: -1900-0 | S107: =IF(D107="",0,IF(D107=D106,COUNTIF(D$9:D106,D107)+1,1)) -> 0 | T107: 0 | U107: 0
A108: 100 | B108: -1900 | C108: -1900-0 | S108: =IF(D108="",0,IF(D108=D107,COUNTIF(D$9:D107,D108)+1,1)) -> 0 | T108: 0 | U108: 0
A109: 101 | B109: -1900 | C109: -1900-0 | S109: =IF(D109="",0,IF(D109=D108,COUNTIF(D$9:D108,D109)+1,1)) -> 0 | T109: 0 | U109: 0
A110: 102 | B110: -1900 | C110: -1900-0 | S110: =IF(D110="",0,IF(D110=D109,COUNTIF(D$9:D109,D110)+1,1)) -> 0 | T110: 0 | U110: 0
A111: 103 | B111: -1900 | C111: -1900-0 | S111: =IF(D111="",0,IF(D111=D110,COUNTIF(D$9:D110,D111)+1,1)) -> 0 | T111: 0 | U111: 0
A112: 104 | B112: -1900 | C112: -1900-0 | S112: =IF(D112="",0,IF(D112=D111,COUNTIF(D$9:D111,D112)+1,1)) -> 0 | T112: 0 | U112: 0
A113: 105 | B113: -1900 | C113: -1900-0 | S113: =IF(D113="",0,IF(D113=D112,COUNTIF(D$9:D112,D113)+1,1)) -> 0 | T113: 0 | U113: 0
A114: 106 | B114: -1900 | C114: -1900-0 | S114: =IF(D114="",0,IF(D114=D113,COUNTIF(D$9:D113,D114)+1,1)) -> 0 | T114: 0 | U114: 0
A115: 107 | B115: -1900 | C115: -1900-0 | S115: =IF(D115="",0,IF(D115=D114,COUNTIF(D$9:D114,D115)+1,1)) -> 0 | T115: 0 | U115: 0
A116: 108 | B116: -1900 | C116: -1900-0 | S116: =IF(D116="",0,IF(D116=D115,COUNTIF(D$9:D115,D116)+1,1)) -> 0 | T116: 0 | U116: 0
A117: 109 | B117: -1900 | C117: -1900-0 | S117: =IF(D117="",0,IF(D117=D116,COUNTIF(D$9:D116,D117)+1,1)) -> 0 | T117: 0 | U117: 0
A118: 110 | B118: -1900 | C118: -1900-0 | S118: =IF(D118="",0,IF(D118=D117,COUNTIF(D$9:D117,D118)+1,1)) -> 0 | T118: 0 | U118: 0
A119: 111 | B119: -1900 | C119: -1900-0 | S119: =IF(D119="",0,IF(D119=D118,COUNTIF(D$9:D118,D119)+1,1)) -> 0 | T119: 0 | U119: 0
A120: 112 | B120: -1900 | C120: -1900-0 | S120: =IF(D120="",0,IF(D120=D119,COUNTIF(D$9:D119,D120)+1,1)) -> 0 | T120: 0 | U120: 0
A121: 113 | B121: -1900 | C121: -1900-0 | S121: =IF(D121="",0,IF(D121=D120,COUNTIF(D$9:D120,D121)+1,1)) -> 0 | T121: 0 | U121: 0
A122: 114 | B122: -1900 | C122: -1900-0 | S122: =IF(D122="",0,IF(D122=D121,COUNTIF(D$9:D121,D122)+1,1)) -> 0 | T122: 0 | U122: 0
A123: 115 | B123: -1900 | C123: -1900-0 | S123: =IF(D123="",0,IF(D123=D122,COUNTIF(D$9:D122,D123)+1,1)) -> 0 | T123: 0 | U123: 0
A124: 116 | B124: -1900 | C124: -1900-0 | S124: =IF(D124="",0,IF(D124=D123,COUNTIF(D$9:D123,D124)+1,1)) -> 0 | T124: 0 | U124: 0
A125: 117 | B125: -1900 | C125: -1900-0 | S125: =IF(D125="",0,IF(D125=D124,COUNTIF(D$9:D124,D125)+1,1)) -> 0 | T125: 0 | U125: 0
A126: 118 | B126: -1900 | C126: -1900-0 | S126: =IF(D126="",0,IF(D126=D125,COUNTIF(D$9:D125,D126)+1,1)) -> 0 | T126: 0 | U126: 0
A127: 119 | B127: -1900 | C127: -1900-0 | S127: =IF(D127="",0,IF(D127=D126,COUNTIF(D$9:D126,D127)+1,1)) -> 0 | T127: 0 | U127: 0
A128: 120 | B128: -1900 | C128: -1900-0 | S128: =IF(D128="",0,IF(D128=D127,COUNTIF(D$9:D127,D128)+1,1)) -> 0 | T128: 0 | U128: 0
A129: 121 | B129: -1900 | C129: -1900-0 | S129: =IF(D129="",0,IF(D129=D128,COUNTIF(D$9:D128,D129)+1,1)) -> 0 | T129: 0 | U129: 0
A130: 122 | B130: -1900 | C130: -1900-0 | S130: =IF(D130="",0,IF(D130=D129,COUNTIF(D$9:D129,D130)+1,1)) -> 0 | T130: 0 | U130: 0
A131: 123 | B131: -1900 | C131: -1900-0 | S131: =IF(D131="",0,IF(D131=D130,COUNTIF(D$9:D130,D131)+1,1)) -> 0 | T131: 0 | U131: 0
A132: 124 | B132: -1900 | C132: -1900-0 | S132: =IF(D132="",0,IF(D132=D131,COUNTIF(D$9:D131,D132)+1,1)) -> 0 | T132: 0 | U132: 0
A133: 125 | B133: -1900 | C133: -1900-0 | S133: =IF(D133="",0,IF(D133=D132,COUNTIF(D$9:D132,D133)+1,1)) -> 0 | T133: 0 | U133: 0
A134: 126 | B134: -1900 | C134: -1900-0 | S134: =IF(D134="",0,IF(D134=D133,COUNTIF(D$9:D133,D134)+1,1)) -> 0 | T134: 0 | U134: 0
A135: 127 | B135: -1900 | C135: -1900-0 | S135: =IF(D135="",0,IF(D135=D134,COUNTIF(D$9:D134,D135)+1,1)) -> 0 | T135: 0 | U135: 0
A136: 128 | B136: -1900 | C136: -1900-0 | S136: =IF(D136="",0,IF(D136=D135,COUNTIF(D$9:D135,D136)+1,1)) -> 0 | T136: 0 | U136: 0
A137: 129 | B137: -1900 | C137: =IF(L$1024=1,0,B137&"-"&S137) -> -1900-0 | S137: =IF(D137="",0,IF(D137=D136,COUNTIF(D$9:D136,D137)+1,1)) -> 0 | T137: 0 | U137: 0
A138: 130 | B138: =IF(U138=U$1015,0,IF(L$1024=1,0,D138&"-"&YEAR(E138))) -> -1900 | C138: -1900-0 | S138: =IF(D138="",0,IF(D138=D137,COUNTIF(D$9:D137,D138)+1,1)) -> 0 | T138: =IF(OR(D138="",L$1024=1),0,IF(S138=4,1,0)) -> 0 | U138: =IF(E138>0,IF(OR(MONTH(E138)<$N$1027,MONTH(E138)>$N$1028),U$1015,0),0) -> 0
A139: 131 | B139: -1900 | C139: -1900-0 | S139: =IF(D139="",0,IF(D139=D138,COUNTIF(D$9:D138,D139)+1,1)) -> 0 | T139: 0 | U139: 0
A140: 132 | B140: -1900 | C140: -1900-0 | S140: =IF(D140="",0,IF(D140=D139,COUNTIF(D$9:D139,D140)+1,1)) -> 0 | T140: 0 | U140: 0
A141: 133 | B141: -1900 | C141: -1900-0 | S141: =IF(D141="",0,IF(D141=D140,COUNTIF(D$9:D140,D141)+1,1)) -> 0 | T141: 0 | U141: 0
A142: 134 | B142: -1900 | C142: -1900-0 | S142: =IF(D142="",0,IF(D142=D141,COUNTIF(D$9:D141,D142)+1,1)) -> 0 | T142: 0 | U142: 0
A143: 135 | B143: -1900 | C143: -1900-0 | S143: =IF(D143="",0,IF(D143=D142,COUNTIF(D$9:D142,D143)+1,1)) -> 0 | T143: 0 | U143: 0
A144: 136 | B144: -1900 | C144: -1900-0 | S144: =IF(D144="",0,IF(D144=D143,COUNTIF(D$9:D143,D144)+1,1)) -> 0 | T144: 0 | U144: 0
A145: 137 | B145: -1900 | C145: -1900-0 | S145: =IF(D145="",0,IF(D145=D144,COUNTIF(D$9:D144,D145)+1,1)) -> 0 | T145: 0 | U145: 0
A146: 138 | B146: -1900 | C146: -1900-0 | S146: =IF(D146="",0,IF(D146=D145,COUNTIF(D$9:D145,D146)+1,1)) -> 0 | T146: 0 | U146: 0
A147: 139 | B147: -1900 | C147: -1900-0 | S147: =IF(D147="",0,IF(D147=D146,COUNTIF(D$9:D146,D147)+1,1)) -> 0 | T147: 0 | U147: 0
A148: 140 | B148: -1900 | C148: -1900-0 | S148: =IF(D148="",0,IF(D148=D147,COUNTIF(D$9:D147,D148)+1,1)) -> 0 | T148: 0 | U148: 0
A149: 141 | B149: -1900 | C149: -1900-0 | S149: =IF(D149="",0,IF(D149=D148,COUNTIF(D$9:D148,D149)+1,1)) -> 0 | T149: 0 | U149: 0
A150: 142 | B150: -1900 | C150: -1900-0 | S150: =IF(D150="",0,IF(D150=D149,COUNTIF(D$9:D149,D150)+1,1)) -> 0 | T150: 0 | U150: 0
A151: 143 | B151: -1900 | C151: -1900-0 | S151: =IF(D151="",0,IF(D151=D150,COUNTIF(D$9:D150,D151)+1,1)) -> 0 | T151: 0 | U151: 0
A152: 144 | B152: -1900 | C152: -1900-0 | S152: =IF(D152="",0,IF(D152=D151,COUNTIF(D$9:D151,D152)+1,1)) -> 0 | T152: 0 | U152: 0
A153: 145 | B153: -1900 | C153: -1900-0 | S153: =IF(D153="",0,IF(D153=D152,COUNTIF(D$9:D152,D153)+1,1)) -> 0 | T153: 0 | U153: 0
A154: 146 | B154: -1900 | C154: -1900-0 | S154: =IF(D154="",0,IF(D154=D153,COUNTIF(D$9:D153,D154)+1,1)) -> 0 | T154: 0 | U154: 0
A155: 147 | B155: -1900 | C155: -1900-0 | S155: =IF(D155="",0,IF(D155=D154,COUNTIF(D$9:D154,D155)+1,1)) -> 0 | T155: 0 | U155: 0
A156: 148 | B156: -1900 | C156: -1900-0 | S156: =IF(D156="",0,IF(D156=D155,COUNTIF(D$9:D155,D156)+1,1)) -> 0 | T156: 0 | U156: 0
A157: 149 | B157: -1900 | C157: -1900-0 | S157: =IF(D157="",0,IF(D157=D156,COUNTIF(D$9:D156,D157)+1,1)) -> 0 | T157: 0 | U157: 0
A158: 150 | B158: -1900 | C158: -1900-0 | S158: =IF(D158="",0,IF(D158=D157,COUNTIF(D$9:D157,D158)+1,1)) -> 0 | T158: 0 | U158: 0
A159: 151 | B159: -1900 | C159: -1900-0 | S159: =IF(D159="",0,IF(D159=D158,COUNTIF(D$9:D158,D159)+1,1)) -> 0 | T159: 0 | U159: 0
A160: 152 | B160: -1900 | C160: -1900-0 | S160: =IF(D160="",0,IF(D160=D159,COUNTIF(D$9:D159,D160)+1,1)) -> 0 | T160: 0 | U160: 0
A161: 153 | B161: -1900 | C161: -1900-0 | S161: =IF(D161="",0,IF(D161=D160,COUNTIF(D$9:D160,D161)+1,1)) -> 0 | T161: 0 | U161: 0
A162: 154 | B162: -1900 | C162: -1900-0 | S162: =IF(D162="",0,IF(D162=D161,COUNTIF(D$9:D161,D162)+1,1)) -> 0 | T162: 0 | U162: 0
A163: 155 | B163: -1900 | C163: -1900-0 | S163: =IF(D163="",0,IF(D163=D162,COUNTIF(D$9:D162,D163)+1,1)) -> 0 | T163: 0 | U163: 0
A164: 156 | B164: -1900 | C164: -1900-0 | S164: =IF(D164="",0,IF(D164=D163,COUNTIF(D$9:D163,D164)+1,1)) -> 0 | T164: 0 | U164: 0
A165: 157 | B165: -1900 | C165: -1900-0 | S165: =IF(D165="",0,IF(D165=D164,COUNTIF(D$9:D164,D165)+1,1)) -> 0 | T165: 0 | U165: 0
A166: 158 | B166: -1900 | C166: -1900-0 | S166: =IF(D166="",0,IF(D166=D165,COUNTIF(D$9:D165,D166)+1,1)) -> 0 | T166: 0 | U166: 0
A167: 159 | B167: -1900 | C167: -1900-0 | S167: =IF(D167="",0,IF(D167=D166,COUNTIF(D$9:D166,D167)+1,1)) -> 0 | T167: 0 | U167: 0
A168: 160 | B168: -1900 | C168: -1900-0 | S168: =IF(D168="",0,IF(D168=D167,COUNTIF(D$9:D167,D168)+1,1)) -> 0 | T168: 0 | U168: 0
A169: 161 | B169: -1900 | C169: =IF(L$1024=1,0,B169&"-"&S169) -> -1900-0 | S169: =IF(D169="",0,IF(D169=D168,COUNTIF(D$9:D168,D169)+1,1)) -> 0 | T169: 0 | U169: 0
A170: 162 | B170: -1900 | C170: -1900-0 | S170: =IF(D170="",0,IF(D170=D169,COUNTIF(D$9:D169,D170)+1,1)) -> 0 | T170: =IF(OR(D170="",L$1024=1),0,IF(S170=4,1,0)) -> 0 | U170: 0
A171: 163 | B171: -1900 | C171: -1900-0 | S171: =IF(D171="",0,IF(D171=D170,COUNTIF(D$9:D170,D171)+1,1)) -> 0 | T171: 0 | U171: 0
A172: 164 | B172: -1900 | C172: -1900-0 | S172: =IF(D172="",0,IF(D172=D171,COUNTIF(D$9:D171,D172)+1,1)) -> 0 | T172: 0 | U172: 0
A173: 165 | B173: -1900 | C173: -1900-0 | S173: =IF(D173="",0,IF(D173=D172,COUNTIF(D$9:D172,D173)+1,1)) -> 0 | T173: 0 | U173: 0
A174: 166 | B174: -1900 | C174: -1900-0 | S174: =IF(D174="",0,IF(D174=D173,COUNTIF(D$9:D173,D174)+1,1)) -> 0 | T174: 0 | U174: 0
A175: 167 | B175: -1900 | C175: -1900-0 | S175: =IF(D175="",0,IF(D175=D174,COUNTIF(D$9:D174,D175)+1,1)) -> 0 | T175: 0 | U175: 0
A176: 168 | B176: -1900 | C176: -1900-0 | S176: =IF(D176="",0,IF(D176=D175,COUNTIF(D$9:D175,D176)+1,1)) -> 0 | T176: 0 | U176: 0
A177: 169 | B177: -1900 | C177: -1900-0 | S177: =IF(D177="",0,IF(D177=D176,COUNTIF(D$9:D176,D177)+1,1)) -> 0 | T177: 0 | U177: 0
A178: 170 | B178: -1900 | C178: -1900-0 | S178: =IF(D178="",0,IF(D178=D177,COUNTIF(D$9:D177,D178)+1,1)) -> 0 | T178: 0 | U178: 0
A179: 171 | B179: -1900 | C179: -1900-0 | S179: =IF(D179="",0,IF(D179=D178,COUNTIF(D$9:D178,D179)+1,1)) -> 0 | T179: 0 | U179: 0
A180: 172 | B180: -1900 | C180: -1900-0 | S180: =IF(D180="",0,IF(D180=D179,COUNTIF(D$9:D179,D180)+1,1)) -> 0 | T180: 0 | U180: 0
A181: 173 | B181: -1900 | C181: -1900-0 | S181: =IF(D181="",0,IF(D181=D180,COUNTIF(D$9:D180,D181)+1,1)) -> 0 | T181: 0 | U181: 0
A182: 174 | B182: -1900 | C182: -1900-0 | S182: =IF(D182="",0,IF(D182=D181,COUNTIF(D$9:D181,D182)+1,1)) -> 0 | T182: 0 | U182: 0
A183: 175 | B183: -1900 | C183: -1900-0 | S183: =IF(D183="",0,IF(D183=D182,COUNTIF(D$9:D182,D183)+1,1)) -> 0 | T183: 0 | U183: 0
A184: 176 | B184: -1900 | C184: -1900-0 | S184: =IF(D184="",0,IF(D184=D183,COUNTIF(D$9:D183,D184)+1,1)) -> 0 | T184: 0 | U184: 0
A185: 177 | B185: -1900 | C185: -1900-0 | S185: =IF(D185="",0,IF(D185=D184,COUNTIF(D$9:D184,D185)+1,1)) -> 0 | T185: 0 | U185: 0
A186: 178 | B186: -1900 | C186: -1900-0 | S186: =IF(D186="",0,IF(D186=D185,COUNTIF(D$9:D185,D186)+1,1)) -> 0 | T186: 0 | U186: 0
A187: 179 | B187: -1900 | C187: -1900-0 | S187: =IF(D187="",0,IF(D187=D186,COUNTIF(D$9:D186,D187)+1,1)) -> 0 | T187: 0 | U187: 0
A188: 180 | B188: -1900 | C188: -1900-0 | S188: =IF(D188="",0,IF(D188=D187,COUNTIF(D$9:D187,D188)+1,1)) -> 0 | T188: 0 | U188: 0
A189: 181 | B189: -1900 | C189: -1900-0 | S189: =IF(D189="",0,IF(D189=D188,COUNTIF(D$9:D188,D189)+1,1)) -> 0 | T189: 0 | U189: 0
A190: 182 | B190: -1900 | C190: -1900-0 | S190: =IF(D190="",0,IF(D190=D189,COUNTIF(D$9:D189,D190)+1,1)) -> 0 | T190: 0 | U190: 0
A191: 183 | B191: -1900 | C191: -1900-0 | S191: =IF(D191="",0,IF(D191=D190,COUNTIF(D$9:D190,D191)+1,1)) -> 0 | T191: 0 | U191: 0
A192: 184 | B192: -1900 | C192: -1900-0 | S192: =IF(D192="",0,IF(D192=D191,COUNTIF(D$9:D191,D192)+1,1)) -> 0 | T192: 0 | U192: 0
A193: 185 | B193: -1900 | C193: -1900-0 | S193: =IF(D193="",0,IF(D193=D192,COUNTIF(D$9:D192,D193)+1,1)) -> 0 | T193: 0 | U193: 0
A194: 186 | B194: -1900 | C194: -1900-0 | S194: =IF(D194="",0,IF(D194=D193,COUNTIF(D$9:D193,D194)+1,1)) -> 0 | T194: 0 | U194: 0
A195: 187 | B195: -1900 | C195: -1900-0 | S195: =IF(D195="",0,IF(D195=D194,COUNTIF(D$9:D194,D195)+1,1)) -> 0 | T195: 0 | U195: 0
A196: 188 | B196: -1900 | C196: -1900-0 | S196: =IF(D196="",0,IF(D196=D195,COUNTIF(D$9:D195,D196)+1,1)) -> 0 | T196: 0 | U196: 0
A197: 189 | B197: -1900 | C197: -1900-0 | S197: =IF(D197="",0,IF(D197=D196,COUNTIF(D$9:D196,D197)+1,1)) -> 0 | T197: 0 | U197: 0
A198: 190 | B198: -1900 | C198: -1900-0 | S198: =IF(D198="",0,IF(D198=D197,COUNTIF(D$9:D197,D198)+1,1)) -> 0 | T198: 0 | U198: 0
A199: 191 | B199: -1900 | C199: -1900-0 | S199: =IF(D199="",0,IF(D199=D198,COUNTIF(D$9:D198,D199)+1,1)) -> 0 | T199: 0 | U199: 0
A200: 192 | B200: -1900 | C200: -1900-0 | S200: =IF(D200="",0,IF(D200=D199,COUNTIF(D$9:D199,D200)+1,1)) -> 0 | T200: 0 | U200: 0
A201: 193 | B201: -1900 | C201: =IF(L$1024=1,0,B201&"-"&S201) -> -1900-0 | S201: =IF(D201="",0,IF(D201=D200,COUNTIF(D$9:D200,D201)+1,1)) -> 0 | T201: 0 | U201: 0
A202: 194 | B202: =IF(U202=U$1015,0,IF(L$1024=1,0,D202&"-"&YEAR(E202))) -> -1900 | C202: -1900-0 | S202: =IF(D202="",0,IF(D202=D201,COUNTIF(D$9:D201,D202)+1,1)) -> 0 | T202: =IF(OR(D202="",L$1024=1),0,IF(S202=4,1,0)) -> 0 | U202: =IF(E202>0,IF(OR(MONTH(E202)<$N$1027,MONTH(E202)>$N$1028),U$1015,0),0) -> 0
... 817 more rows

Sheet Sezione REGIONI
D2: Contribuente: | G2: Compila le righe di questa sezione una sotto l' altra, assegnando un numero di protocollo progressivo e
D3: =CONTRIBUENTE!E34 -> 01234567891 | G3: la data in ogni riga. Nel foglio \ F24 Accise / potrai richiamare e stampare tutti i documenti così generati.
D4: ='Sezione ERARIO'!D4:D5 -> 2 | E4: Ultimo Protocollo | G4: Sezione REGIONI
E5: nelle SEZIONI | G5: =IF(L1024=0,"",CONTRIBUENTE!$F$134) ->  | K5: E | L5: F
D6: NR. | E6: DATA | G6: codice | H6: codice | I6: Rateazione | K6: importi a debito | L6: importi a credito | N6: N O T E
D7: Prot. | G7: regione | H7: tributo | I7: MM | J7: AAAA | K7: VERSATI | L7: COMPENSATI
A9: 1 di 1000 | B9: =IF(R9=R$1015,0,IF(L$1024=1,0,D9&"-"&YEAR(E9))) -> 1-2024 | C9: =IF(L$1024=1,0,B9&"-"&P9) -> 1-2024-1 | D9: 1 | E9: 2024-01-01 | G9: 01 | H9: 0002 | I9: 01 | J9: 2020 | K9: 2 | N9: Testo Libero | P9: 1 | R9: =IF(E9>0,IF(OR(MONTH(E9)<$K$1027,MONTH(E9)>$K$1028),R$1015,0),0) -> 0
A10: 2 | B10: =IF(R10=R$1015,0,IF(L$1024=1,0,D10&"-"&YEAR(E10))) -> 2-2024 | C10: 2-2024-1 | D10: 2 | E10: 2024-01-01 | G10: 10 | H10: 2000 | I10: 10 | J10: 2020 | K10: 1 | N10: Testo Libero | P10: =IF(D10="",0,IF(D10=D9,COUNTIF(D$9:D9,D10)+1,1)) -> 1 | Q10: =IF(OR(D10="",L$1024=1),0,IF(P10=4,1,0)) -> 0 | R10: =IF(E10>0,IF(OR(MONTH(E10)<$K$1027,MONTH(E10)>$K$1028),R$1015,0),0) -> 0
A11: 3 | B11: 2-2024 | C11: 2-2024-2 | D11: 2 | E11: 2024-01-01 | G11: 10 | H11: 2000 | I11: 1 | J11: 2020 | K11: 3 | N11: RIGHE DI ESEMPIO | P11: =IF(D11="",0,IF(D11=D10,COUNTIF(D$9:D10,D11)+1,1)) -> 2 | Q11: 0 | R11: 0
A12: 4 | B12: -1900 | C12: -1900-0 | P12: =IF(D12="",0,IF(D12=D11,COUNTIF(D$9:D11,D12)+1,1)) -> 0 | Q12: 0 | R12: 0
A13: 5 | B13: -1900 | C13: -1900-0 | P13: =IF(D13="",0,IF(D13=D12,COUNTIF(D$9:D12,D13)+1,1)) -> 0 | Q13: 0 | R13: 0
A14: 6 | B14: -1900 | C14: -1900-0 | P14: =IF(D14="",0,IF(D14=D13,COUNTIF(D$9:D13,D14)+1,1)) -> 0 | Q14: 0 | R14: 0
A15: 7 | B15: -1900 | C15: -1900-0 | P15: =IF(D15="",0,IF(D15=D14,COUNTIF(D$9:D14,D15)+1,1)) -> 0 | Q15: 0 | R15: 0
A16: 8 | B16: -1900 | C16: -1900-0 | P16: =IF(D16="",0,IF(D16=D15,COUNTIF(D$9:D15,D16)+1,1)) -> 0 | Q16: 0 | R16: 0
A17: 9 | B17: -1900 | C17: -1900-0 | P17: =IF(D17="",0,IF(D17=D16,COUNTIF(D$9:D16,D17)+1,1)) -> 0 | Q17: 0 | R17: 0
A18: 10 | B18: -1900 | C18: -1900-0 | P18: =IF(D18="",0,IF(D18=D17,COUNTIF(D$9:D17,D18)+1,1)) -> 0 | Q18: 0 | R18: 0
A19: 11 | B19: -1900 | C19: -1900-0 | P19: =IF(D19="",0,IF(D19=D18,COUNTIF(D$9:D18,D19)+1,1)) -> 0 | Q19: 0 | R19: 0
A20: 12 | B20: -1900 | C20: -1900-0 | P20: =IF(D20="",0,IF(D20=D19,COUNTIF(D$9:D19,D20)+1,1)) -> 0 | Q20: 0 | R20: 0
A21: 13 | B21: -1900 | C21: -1900-0 | P21: =IF(D21="",0,IF(D21=D20,COUNTIF(D$9:D20,D21)+1,1)) -> 0 | Q21: 0 | R21: 0
A22: 14 | B22: -1900 | C22: -1900-0 | P22: =IF(D22="",0,IF(D22=D21,COUNTIF(D$9:D21,D22)+1,1)) -> 0 | Q22: 0 | R22: 0
A23: 15 | B23: -1900 | C23: -1900-0 | P23: =IF(D23="",0,IF(D23=D22,COUNTIF(D$9:D22,D23)+1,1)) -> 0 | Q23: 0 | R23: 0
A24: 16 | B24: -1900 | C24: -1900-0 | P24: =IF(D24="",0,IF(D24=D23,COUNTIF(D$9:D23,D24)+1,1)) -> 0 | Q24: 0 | R24: 0
A25: 17 | B25: -1900 | C25: -1900-0 | P25: =IF(D25="",0,IF(D25=D24,COUNTIF(D$9:D24,D25)+1,1)) -> 0 | Q25: 0 | R25: 0
A26: 18 | B26: -1900 | C26: -1900-0 | P26: =IF(D26="",0,IF(D26=D25,COUNTIF(D$9:D25,D26)+1,1)) -> 0 | Q26: 0 | R26: 0
A27: 19 | B27: -1900 | C27: -1900-0 | P27: =IF(D27="",0,IF(D27=D26,COUNTIF(D$9:D26,D27)+1,1)) -> 0 | Q27: 0 | R27: 0
A28: 20 | B28: -1900 | C28: -1900-0 | P28: =IF(D28="",0,IF(D28=D27,COUNTIF(D$9:D27,D28)+1,1)) -> 0 | Q28: 0 | R28: 0
A29: 21 | B29: -1900 | C29: -1900-0 | P29: =IF(D29="",0,IF(D29=D28,COUNTIF(D$9:D28,D29)+1,1)) -> 0 | Q29: 0 | R29: 0
A30: 22 | B30: -1900 | C30: -1900-0 | P30: =IF(D30="",0,IF(D30=D29,COUNTIF(D$9:D29,D30)+1,1)) -> 0 | Q30: 0 | R30: 0
A31: 23 | B31: -1900 | C31: -1900-0 | P31: =IF(D31="",0,IF(D31=D30,COUNTIF(D$9:D30,D31)+1,1)) -> 0 | Q31: 0 | R31: 0
A32: 24 | B32: -1900 | C32: -1900-0 | P32: =IF(D32="",0,IF(D32=D31,COUNTIF(D$9:D31,D32)+1,1)) -> 0 | Q32: 0 | R32: 0
A33: 25 | B33: -1900 | C33: -1900-0 | P33: =IF(D33="",0,IF(D33=D32,COUNTIF(D$9:D32,D33)+1,1)) -> 0 | Q33: 0 | R33: 0
A34: 26 | B34: -1900 | C34: -1900-0 | P34: =IF(D34="",0,IF(D34=D33,COUNTIF(D$9:D33,D34)+1,1)) -> 0 | Q34: 0 | R34: 0
A35: 27 | B35: -1900 | C35: -1900-0 | P35: =IF(D35="",0,IF(D35=D34,COUNTIF(D$9:D34,D35)+1,1)) -> 0 | Q35: 0 | R35: 0
A36: 28 | B36: -1900 | C36: -1900-0 | P36: =IF(D36="",0,IF(D36=D35,COUNTIF(D$9:D35,D36)+1,1)) -> 0 | Q36: 0 | R36: 0
A37: 29 | B37: -1900 | C37: -1900-0 | P37: =IF(D37="",0,IF(D37=D36,COUNTIF(D$9:D36,D37)+1,1)) -> 0 | Q37: 0 | R37: 0
A38: 30 | B38: -1900 | C38: -1900-0 | P38: =IF(D38="",0,IF(D38=D37,COUNTIF(D$9:D37,D38)+1,1)) -> 0 | Q38: 0 | R38: 0
A39: 31 | B39: -1900 | C39: -1900-0 | P39: =IF(D39="",0,IF(D39=D38,COUNTIF(D$9:D38,D39)+1,1)) -> 0 | Q39: 0 | R39: 0
A40: 32 | B40: -1900 | C40: -1900-0 | P40: =IF(D40="",0,IF(D40=D39,COUNTIF(D$9:D39,D40)+1,1)) -> 0 | Q40: 0 | R40: 0
A41: 33 | B41: -1900 | C41: -1900-0 | P41: =IF(D41="",0,IF(D41=D40,COUNTIF(D$9:D40,D41)+1,1)) -> 0 | Q41: 0 | R41: 0
A42: 34 | B42: -1900 | C42: -1900-0 | P42: =IF(D42="",0,IF(D42=D41,COUNTIF(D$9:D41,D42)+1,1)) -> 0 | Q42: 0 | R42: 0
A43: 35 | B43: -1900 | C43: -1900-0 | P43: =IF(D43="",0,IF(D43=D42,COUNTIF(D$9:D42,D43)+1,1)) -> 0 | Q43: 0 | R43: 0
A44: 36 | B44: -1900 | C44: -1900-0 | P44: =IF(D44="",0,IF(D44=D43,COUNTIF(D$9:D43,D44)+1,1)) -> 0 | Q44: 0 | R44: 0
A45: 37 | B45: -1900 | C45: -1900-0 | P45: =IF(D45="",0,IF(D45=D44,COUNTIF(D$9:D44,D45)+1,1)) -> 0 | Q45: 0 | R45: 0
A46: 38 | B46: -1900 | C46: -1900-0 | P46: =IF(D46="",0,IF(D46=D45,COUNTIF(D$9:D45,D46)+1,1)) -> 0 | Q46: 0 | R46: 0
A47: 39 | B47: -1900 | C47: -1900-0 | P47: =IF(D47="",0,IF(D47=D46,COUNTIF(D$9:D46,D47)+1,1)) -> 0 | Q47: 0 | R47: 0
A48: 40 | B48: -1900 | C48: -1900-0 | P48: =IF(D48="",0,IF(D48=D47,COUNTIF(D$9:D47,D48)+1,1)) -> 0 | Q48: 0 | R48: 0
A49: 41 | B49: -1900 | C49: -1900-0 | P49: =IF(D49="",0,IF(D49=D48,COUNTIF(D$9:D48,D49)+1,1)) -> 0 | Q49: 0 | R49: 0
A50: 42 | B50: -1900 | C50: -1900-0 | P50: =IF(D50="",0,IF(D50=D49,COUNTIF(D$9:D49,D50)+1,1)) -> 0 | Q50: 0 | R50: 0
A51: 43 | B51: -1900 | C51: -1900-0 | P51: =IF(D51="",0,IF(D51=D50,COUNTIF(D$9:D50,D51)+1,1)) -> 0 | Q51: 0 | R51: 0
A52: 44 | B52: -1900 | C52: -1900-0 | P52: =IF(D52="",0,IF(D52=D51,COUNTIF(D$9:D51,D52)+1,1)) -> 0 | Q52: 0 | R52: 0
A53: 45 | B53: -1900 | C53: -1900-0 | P53: =IF(D53="",0,IF(D53=D52,COUNTIF(D$9:D52,D53)+1,1)) -> 0 | Q53: 0 | R53: 0
A54: 46 | B54: -1900 | C54: -1900-0 | P54: =IF(D54="",0,IF(D54=D53,COUNTIF(D$9:D53,D54)+1,1)) -> 0 | Q54: 0 | R54: 0
A55: 47 | B55: -1900 | C55: -1900-0 | P55: =IF(D55="",0,IF(D55=D54,COUNTIF(D$9:D54,D55)+1,1)) -> 0 | Q55: 0 | R55: 0
A56: 48 | B56: -1900 | C56: -1900-0 | P56: =IF(D56="",0,IF(D56=D55,COUNTIF(D$9:D55,D56)+1,1)) -> 0 | Q56: 0 | R56: 0
A57: 49 | B57: -1900 | C57: -1900-0 | P57: =IF(D57="",0,IF(D57=D56,COUNTIF(D$9:D56,D57)+1,1)) -> 0 | Q57: 0 | R57: 0
A58: 50 | B58: -1900 | C58: -1900-0 | P58: =IF(D58="",0,IF(D58=D57,COUNTIF(D$9:D57,D58)+1,1)) -> 0 | Q58: 0 | R58: 0
A59: 51 | B59: -1900 | C59: -1900-0 | P59: =IF(D59="",0,IF(D59=D58,COUNTIF(D$9:D58,D59)+1,1)) -> 0 | Q59: 0 | R59: 0
A60: 52 | B60: -1900 | C60: -1900-0 | P60: =IF(D60="",0,IF(D60=D59,COUNTIF(D$9:D59,D60)+1,1)) -> 0 | Q60: 0 | R60: 0
A61: 53 | B61: -1900 | C61: -1900-0 | P61: =IF(D61="",0,IF(D61=D60,COUNTIF(D$9:D60,D61)+1,1)) -> 0 | Q61: 0 | R61: 0
A62: 54 | B62: -1900 | C62: -1900-0 | P62: =IF(D62="",0,IF(D62=D61,COUNTIF(D$9:D61,D62)+1,1)) -> 0 | Q62: 0 | R62: 0
A63: 55 | B63: -1900 | C63: -1900-0 | P63: =IF(D63="",0,IF(D63=D62,COUNTIF(D$9:D62,D63)+1,1)) -> 0 | Q63: 0 | R63: 0
A64: 56 | B64: -1900 | C64: -1900-0 | P64: =IF(D64="",0,IF(D64=D63,COUNTIF(D$9:D63,D64)+1,1)) -> 0 | Q64: 0 | R64: 0
A65: 57 | B65: -1900 | C65: -1900-0 | P65: =IF(D65="",0,IF(D65=D64,COUNTIF(D$9:D64,D65)+1,1)) -> 0 | Q65: 0 | R65: 0
A66: 58 | B66: -1900 | C66: -1900-0 | P66: =IF(D66="",0,IF(D66=D65,COUNTIF(D$9:D65,D66)+1,1)) -> 0 | Q66: 0 | R66: 0
A67: 59 | B67: -1900 | C67: -1900-0 | P67: =IF(D67="",0,IF(D67=D66,COUNTIF(D$9:D66,D67)+1,1)) -> 0 | Q67: 0 | R67: 0
A68: 60 | B68: -1900 | C68: -1900-0 | P68: =IF(D68="",0,IF(D68=D67,COUNTIF(D$9:D67,D68)+1,1)) -> 0 | Q68: 0 | R68: 0
A69: 61 | B69: -1900 | C69: -1900-0 | P69: =IF(D69="",0,IF(D69=D68,COUNTIF(D$9:D68,D69)+1,1)) -> 0 | Q69: 0 | R69: 0
A70: 62 | B70: -1900 | C70: -1900-0 | P70: =IF(D70="",0,IF(D70=D69,COUNTIF(D$9:D69,D70)+1,1)) -> 0 | Q70: 0 | R70: 0
A71: 63 | B71: -1900 | C71: -1900-0 | P71: =IF(D71="",0,IF(D71=D70,COUNTIF(D$9:D70,D71)+1,1)) -> 0 | Q71: 0 | R71: 0
A72: 64 | B72: -1900 | C72: -1900-0 | P72: =IF(D72="",0,IF(D72=D71,COUNTIF(D$9:D71,D72)+1,1)) -> 0 | Q72: 0 | R72: 0
A73: 65 | B73: -1900 | C73: =IF(L$1024=1,0,B73&"-"&P73) -> -1900-0 | P73: =IF(D73="",0,IF(D73=D72,COUNTIF(D$9:D72,D73)+1,1)) -> 0 | Q73: 0 | R73: 0
A74: 66 | B74: =IF(R74=R$1015,0,IF(L$1024=1,0,D74&"-"&YEAR(E74))) -> -1900 | C74: -1900-0 | P74: =IF(D74="",0,IF(D74=D73,COUNTIF(D$9:D73,D74)+1,1)) -> 0 | Q74: =IF(OR(D74="",L$1024=1),0,IF(P74=4,1,0)) -> 0 | R74: =IF(E74>0,IF(OR(MONTH(E74)<$K$1027,MONTH(E74)>$K$1028),R$1015,0),0) -> 0
A75: 67 | B75: -1900 | C75: -1900-0 | P75: =IF(D75="",0,IF(D75=D74,COUNTIF(D$9:D74,D75)+1,1)) -> 0 | Q75: 0 | R75: 0
A76: 68 | B76: -1900 | C76: -1900-0 | P76: =IF(D76="",0,IF(D76=D75,COUNTIF(D$9:D75,D76)+1,1)) -> 0 | Q76: 0 | R76: 0
A77: 69 | B77: -1900 | C77: -1900-0 | P77: =IF(D77="",0,IF(D77=D76,COUNTIF(D$9:D76,D77)+1,1)) -> 0 | Q77: 0 | R77: 0
A78: 70 | B78: -1900 | C78: -1900-0 | P78: =IF(D78="",0,IF(D78=D77,COUNTIF(D$9:D77,D78)+1,1)) -> 0 | Q78: 0 | R78: 0
A79: 71 | B79: -1900 | C79: -1900-0 | P79: =IF(D79="",0,IF(D79=D78,COUNTIF(D$9:D78,D79)+1,1)) -> 0 | Q79: 0 | R79: 0
A80: 72 | B80: -1900 | C80: -1900-0 | P80: =IF(D80="",0,IF(D80=D79,COUNTIF(D$9:D79,D80)+1,1)) -> 0 | Q80: 0 | R80: 0
A81: 73 | B81: -1900 | C81: -1900-0 | P81: =IF(D81="",0,IF(D81=D80,COUNTIF(D$9:D80,D81)+1,1)) -> 0 | Q81: 0 | R81: 0
A82: 74 | B82: -1900 | C82: -1900-0 | P82: =IF(D82="",0,IF(D82=D81,COUNTIF(D$9:D81,D82)+1,1)) -> 0 | Q82: 0 | R82: 0
A83: 75 | B83: -1900 | C83: -1900-0 | P83: =IF(D83="",0,IF(D83=D82,COUNTIF(D$9:D82,D83)+1,1)) -> 0 | Q83: 0 | R83: 0
A84: 76 | B84: -1900 | C84: -1900-0 | P84: =IF(D84="",0,IF(D84=D83,COUNTIF(D$9:D83,D84)+1,1)) -> 0 | Q84: 0 | R84: 0
A85: 77 | B85: -1900 | C85: -1900-0 | P85: =IF(D85="",0,IF(D85=D84,COUNTIF(D$9:D84,D85)+1,1)) -> 0 | Q85: 0 | R85: 0
A86: 78 | B86: -1900 | C86: -1900-0 | P86: =IF(D86="",0,IF(D86=D85,COUNTIF(D$9:D85,D86)+1,1)) -> 0 | Q86: 0 | R86: 0
A87: 79 | B87: -1900 | C87: -1900-0 | P87: =IF(D87="",0,IF(D87=D86,COUNTIF(D$9:D86,D87)+1,1)) -> 0 | Q87: 0 | R87: 0
A88: 80 | B88: -1900 | C88: -1900-0 | P88: =IF(D88="",0,IF(D88=D87,COUNTIF(D$9:D87,D88)+1,1)) -> 0 | Q88: 0 | R88: 0
A89: 81 | B89: -1900 | C89: -1900-0 | P89: =IF(D89="",0,IF(D89=D88,COUNTIF(D$9:D88,D89)+1,1)) -> 0 | Q89: 0 | R89: 0
A90: 82 | B90: -1900 | C90: -1900-0 | P90: =IF(D90="",0,IF(D90=D89,COUNTIF(D$9:D89,D90)+1,1)) -> 0 | Q90: 0 | R90: 0
A91: 83 | B91: -1900 | C91: -1900-0 | P91: =IF(D91="",0,IF(D91=D90,COUNTIF(D$9:D90,D91)+1,1)) -> 0 | Q91: 0 | R91: 0
A92: 84 | B92: -1900 | C92: -1900-0 | P92: =IF(D92="",0,IF(D92=D91,COUNTIF(D$9:D91,D92)+1,1)) -> 0 | Q92: 0 | R92: 0
A93: 85 | B93: -1900 | C93: -1900-0 | P93: =IF(D93="",0,IF(D93=D92,COUNTIF(D$9:D92,D93)+1,1)) -> 0 | Q93: 0 | R93: 0
A94: 86 | B94: -1900 | C94: -1900-0 | P94: =IF(D94="",0,IF(D94=D93,COUNTIF(D$9:D93,D94)+1,1)) -> 0 | Q94: 0 | R94: 0
A95: 87 | B95: -1900 | C95: -1900-0 | P95: =IF(D95="",0,IF(D95=D94,COUNTIF(D$9:D94,D95)+1,1)) -> 0 | Q95: 0 | R95: 0
A96: 88 | B96: -1900 | C96: -1900-0 | P96: =IF(D96="",0,IF(D96=D95,COUNTIF(D$9:D95,D96)+1,1)) -> 0 | Q96: 0 | R96: 0
A97: 89 | B97: -1900 | C97: -1900-0 | P97: =IF(D97="",0,IF(D97=D96,COUNTIF(D$9:D96,D97)+1,1)) -> 0 | Q97: 0 | R97: 0
A98: 90 | B98: -1900 | C98: -1900-0 | P98: =IF(D98="",0,IF(D98=D97,COUNTIF(D$9:D97,D98)+1,1)) -> 0 | Q98: 0 | R98: 0
A99: 91 | B99: -1900 | C99: -1900-0 | P99: =IF(D99="",0,IF(D99=D98,COUNTIF(D$9:D98,D99)+1,1)) -> 0 | Q99: 0 | R99: 0
A100: 92 | B100: -1900 | C100: -1900-0 | P100: =IF(D100="",0,IF(D100=D99,COUNTIF(D$9:D99,D100)+1,1)) -> 0 | Q100: 0 | R100: 0
A101: 93 | B101: -1900 | C101: -1900-0 | P101: =IF(D101="",0,IF(D101=D100,COUNTIF(D$9:D100,D101)+1,1)) -> 0 | Q101: 0 | R101: 0
A102: 94 | B102: -1900 | C102: -1900-0 | P102: =IF(D102="",0,IF(D102=D101,COUNTIF(D$9:D101,D102)+1,1)) -> 0 | Q102: 0 | R102: 0
A103: 95 | B103: -1900 | C103: -1900-0 | P103: =IF(D103="",0,IF(D103=D102,COUNTIF(D$9:D102,D103)+1,1)) -> 0 | Q103: 0 | R103: 0
A104: 96 | B104: -1900 | C104: -1900-0 | P104: =IF(D104="",0,IF(D104=D103,COUNTIF(D$9:D103,D104)+1,1)) -> 0 | Q104: 0 | R104: 0
A105: 97 | B105: -1900 | C105: -1900-0 | P105: =IF(D105="",0,IF(D105=D104,COUNTIF(D$9:D104,D105)+1,1)) -> 0 | Q105: 0 | R105: 0
A106: 98 | B106: -1900 | C106: -1900-0 | P106: =IF(D106="",0,IF(D106=D105,COUNTIF(D$9:D105,D106)+1,1)) -> 0 | Q106: 0 | R106: 0
A107: 99 | B107: -1900 | C107: -1900-0 | P107: =IF(D107="",0,IF(D107=D106,COUNTIF(D$9:D106,D107)+1,1)) -> 0 | Q107: 0 | R107: 0
A108: 100 | B108: -1900 | C108: -1900-0 | P108: =IF(D108="",0,IF(D108=D107,COUNTIF(D$9:D107,D108)+1,1)) -> 0 | Q108: 0 | R108: 0
A109: 101 | B109: -1900 | C109: -1900-0 | P109: =IF(D109="",0,IF(D109=D108,COUNTIF(D$9:D108,D109)+1,1)) -> 0 | Q109: 0 | R109: 0
A110: 102 | B110: -1900 | C110: -1900-0 | P110: =IF(D110="",0,IF(D110=D109,COUNTIF(D$9:D109,D110)+1,1)) -> 0 | Q110: 0 | R110: 0
A111: 103 | B111: -1900 | C111: -1900-0 | P111: =IF(D111="",0,IF(D111=D110,COUNTIF(D$9:D110,D111)+1,1)) -> 0 | Q111: 0 | R111: 0
A112: 104 | B112: -1900 | C112: -1900-0 | P112: =IF(D112="",0,IF(D112=D111,COUNTIF(D$9:D111,D112)+1,1)) -> 0 | Q112: 0 | R112: 0
A113: 105 | B113: -1900 | C113: -1900-0 | P113: =IF(D113="",0,IF(D113=D112,COUNTIF(D$9:D112,D113)+1,1)) -> 0 | Q113: 0 | R113: 0
A114: 106 | B114: -1900 | C114: -1900-0 | P114: =IF(D114="",0,IF(D114=D113,COUNTIF(D$9:D113,D114)+1,1)) -> 0 | Q114: 0 | R114: 0
A115: 107 | B115: -1900 | C115: -1900-0 | P115: =IF(D115="",0,IF(D115=D114,COUNTIF(D$9:D114,D115)+1,1)) -> 0 | Q115: 0 | R115: 0
A116: 108 | B116: -1900 | C116: -1900-0 | P116: =IF(D116="",0,IF(D116=D115,COUNTIF(D$9:D115,D116)+1,1)) -> 0 | Q116: 0 | R116: 0
A117: 109 | B117: -1900 | C117: -1900-0 | P117: =IF(D117="",0,IF(D117=D116,COUNTIF(D$9:D116,D117)+1,1)) -> 0 | Q117: 0 | R117: 0
A118: 110 | B118: -1900 | C118: -1900-0 | P118: =IF(D118="",0,IF(D118=D117,COUNTIF(D$9:D117,D118)+1,1)) -> 0 | Q118: 0 | R118: 0
A119: 111 | B119: -1900 | C119: -1900-0 | P119: =IF(D119="",0,IF(D119=D118,COUNTIF(D$9:D118,D119)+1,1)) -> 0 | Q119: 0 | R119: 0
A120: 112 | B120: -1900 | C120: -1900-0 | P120: =IF(D120="",0,IF(D120=D119,COUNTIF(D$9:D119,D120)+1,1)) -> 0 | Q120: 0 | R120: 0
A121: 113 | B121: -1900 | C121: -1900-0 | P121: =IF(D121="",0,IF(D121=D120,COUNTIF(D$9:D120,D121)+1,1)) -> 0 | Q121: 0 | R121: 0
A122: 114 | B122: -1900 | C122: -1900-0 | P122: =IF(D122="",0,IF(D122=D121,COUNTIF(D$9:D121,D122)+1,1)) -> 0 | Q122: 0 | R122: 0
A123: 115 | B123: -1900 | C123: -1900-0 | P123: =IF(D123="",0,IF(D123=D122,COUNTIF(D$9:D122,D123)+1,1)) -> 0 | Q123: 0 | R123: 0
A124: 116 | B124: -1900 | C124: -1900-0 | P124: =IF(D124="",0,IF(D124=D123,COUNTIF(D$9:D123,D124)+1,1)) -> 0 | Q124: 0 | R124: 0
A125: 117 | B125: -1900 | C125: -1900-0 | P125: =IF(D125="",0,IF(D125=D124,COUNTIF(D$9:D124,D125)+1,1)) -> 0 | Q125: 0 | R125: 0
A126: 118 | B126: -1900 | C126: -1900-0 | P126: =IF(D126="",0,IF(D126=D125,COUNTIF(D$9:D125,D126)+1,1)) -> 0 | Q126: 0 | R126: 0
A127: 119 | B127: -1900 | C127: -1900-0 | P127: =IF(D127="",0,IF(D127=D126,COUNTIF(D$9:D126,D127)+1,1)) -> 0 | Q127: 0 | R127: 0
A128: 120 | B128: -1900 | C128: -1900-0 | P128: =IF(D128="",0,IF(D128=D127,COUNTIF(D$9:D127,D128)+1,1)) -> 0 | Q128: 0 | R128: 0
A129: 121 | B129: -1900 | C129: -1900-0 | P129: =IF(D129="",0,IF(D129=D128,COUNTIF(D$9:D128,D129)+1,1)) -> 0 | Q129: 0 | R129: 0
A130: 122 | B130: -1900 | C130: -1900-0 | P130: =IF(D130="",0,IF(D130=D129,COUNTIF(D$9:D129,D130)+1,1)) -> 0 | Q130: 0 | R130: 0
A131: 123 | B131: -1900 | C131: -1900-0 | P131: =IF(D131="",0,IF(D131=D130,COUNTIF(D$9:D130,D131)+1,1)) -> 0 | Q131: 0 | R131: 0
A132: 124 | B132: -1900 | C132: -1900-0 | P132: =IF(D132="",0,IF(D132=D131,COUNTIF(D$9:D131,D132)+1,1)) -> 0 | Q132: 0 | R132: 0
A133: 125 | B133: -1900 | C133: -1900-0 | P133: =IF(D133="",0,IF(D133=D132,COUNTIF(D$9:D132,D133)+1,1)) -> 0 | Q133: 0 | R133: 0
A134: 126 | B134: -1900 | C134: -1900-0 | P134: =IF(D134="",0,IF(D134=D133,COUNTIF(D$9:D133,D134)+1,1)) -> 0 | Q134: 0 | R134: 0
A135: 127 | B135: -1900 | C135: -1900-0 | P135: =IF(D135="",0,IF(D135=D134,COUNTIF(D$9:D134,D135)+1,1)) -> 0 | Q135: 0 | R135: 0
A136: 128 | B136: -1900 | C136: -1900-0 | P136: =IF(D136="",0,IF(D136=D135,COUNTIF(D$9:D135,D136)+1,1)) -> 0 | Q136: 0 | R136: 0
A137: 129 | B137: -1900 | C137: =IF(L$1024=1,0,B137&"-"&P137) -> -1900-0 | P137: =IF(D137="",0,IF(D137=D136,COUNTIF(D$9:D136,D137)+1,1)) -> 0 | Q137: 0 | R137: 0
A138: 130 | B138: =IF(R138=R$1015,0,IF(L$1024=1,0,D138&"-"&YEAR(E138))) -> -1900 | C138: -1900-0 | P138: =IF(D138="",0,IF(D138=D137,COUNTIF(D$9:D137,D138)+1,1)) -> 0 | Q138: =IF(OR(D138="",L$1024=1),0,IF(P138=4,1,0)) -> 0 | R138: =IF(E138>0,IF(OR(MONTH(E138)<$K$1027,MONTH(E138)>$K$1028),R$1015,0),0) -> 0
A139: 131 | B139: -1900 | C139: -1900-0 | P139: =IF(D139="",0,IF(D139=D138,COUNTIF(D$9:D138,D139)+1,1)) -> 0 | Q139: 0 | R139: 0
A140: 132 | B140: -1900 | C140: -1900-0 | P140: =IF(D140="",0,IF(D140=D139,COUNTIF(D$9:D139,D140)+1,1)) -> 0 | Q140: 0 | R140: 0
A141: 133 | B141: -1900 | C141: -1900-0 | P141: =IF(D141="",0,IF(D141=D140,COUNTIF(D$9:D140,D141)+1,1)) -> 0 | Q141: 0 | R141: 0
A142: 134 | B142: -1900 | C142: -1900-0 | P142: =IF(D142="",0,IF(D142=D141,COUNTIF(D$9:D141,D142)+1,1)) -> 0 | Q142: 0 | R142: 0
A143: 135 | B143: -1900 | C143: -1900-0 | P143: =IF(D143="",0,IF(D143=D142,COUNTIF(D$9:D142,D143)+1,1)) -> 0 | Q143: 0 | R143: 0
A144: 136 | B144: -1900 | C144: -1900-0 | P144: =IF(D144="",0,IF(D144=D143,COUNTIF(D$9:D143,D144)+1,1)) -> 0 | Q144: 0 | R144: 0
A145: 137 | B145: -1900 | C145: -1900-0 | P145: =IF(D145="",0,IF(D145=D144,COUNTIF(D$9:D144,D145)+1,1)) -> 0 | Q145: 0 | R145: 0
A146: 138 | B146: -1900 | C146: -1900-0 | P146: =IF(D146="",0,IF(D146=D145,COUNTIF(D$9:D145,D146)+1,1)) -> 0 | Q146: 0 | R146: 0
A147: 139 | B147: -1900 | C147: -1900-0 | P147: =IF(D147="",0,IF(D147=D146,COUNTIF(D$9:D146,D147)+1,1)) -> 0 | Q147: 0 | R147: 0
A148: 140 | B148: -1900 | C148: -1900-0 | P148: =IF(D148="",0,IF(D148=D147,COUNTIF(D$9:D147,D148)+1,1)) -> 0 | Q148: 0 | R148: 0
A149: 141 | B149: -1900 | C149: -1900-0 | P149: =IF(D149="",0,IF(D149=D148,COUNTIF(D$9:D148,D149)+1,1)) -> 0 | Q149: 0 | R149: 0
A150: 142 | B150: -1900 | C150: -1900-0 | P150: =IF(D150="",0,IF(D150=D149,COUNTIF(D$9:D149,D150)+1,1)) -> 0 | Q150: 0 | R150: 0
A151: 143 | B151: -1900 | C151: -1900-0 | P151: =IF(D151="",0,IF(D151=D150,COUNTIF(D$9:D150,D151)+1,1)) -> 0 | Q151: 0 | R151: 0
A152: 144 | B152: -1900 | C152: -1900-0 | P152: =IF(D152="",0,IF(D152=D151,COUNTIF(D$9:D151,D152)+1,1)) -> 0 | Q152: 0 | R152: 0
A153: 145 | B153: -1900 | C153: -1900-0 | P153: =IF(D153="",0,IF(D153=D152,COUNTIF(D$9:D152,D153)+1,1)) -> 0 | Q153: 0 | R153: 0
A154: 146 | B154: -1900 | C154: -1900-0 | P154: =IF(D154="",0,IF(D154=D153,COUNTIF(D$9:D153,D154)+1,1)) -> 0 | Q154: 0 | R154: 0
A155: 147 | B155: -1900 | C155: -1900-0 | P155: =IF(D155="",0,IF(D155=D154,COUNTIF(D$9:D154,D155)+1,1)) -> 0 | Q155: 0 | R155: 0
A156: 148 | B156: -1900 | C156: -1900-0 | P156: =IF(D156="",0,IF(D156=D155,COUNTIF(D$9:D155,D156)+1,1)) -> 0 | Q156: 0 | R156: 0
A157: 149 | B157: -1900 | C157: -1900-0 | P157: =IF(D157="",0,IF(D157=D156,COUNTIF(D$9:D156,D157)+1,1)) -> 0 | Q157: 0 | R157: 0
A158: 150 | B158: -1900 | C158: -1900-0 | P158: =IF(D158="",0,IF(D158=D157,COUNTIF(D$9:D157,D158)+1,1)) -> 0 | Q158: 0 | R158: 0
A159: 151 | B159: -1900 | C159: -1900-0 | P159: =IF(D159="",0,IF(D159=D158,COUNTIF(D$9:D158,D159)+1,1)) -> 0 | Q159: 0 | R159: 0
A160: 152 | B160: -1900 | C160: -1900-0 | P160: =IF(D160="",0,IF(D160=D159,COUNTIF(D$9:D159,D160)+1,1)) -> 0 | Q160: 0 | R160: 0
A161: 153 | B161: -1900 | C161: -1900-0 | P161: =IF(D161="",0,IF(D161=D160,COUNTIF(D$9:D160,D161)+1,1)) -> 0 | Q161: 0 | R161: 0
A162: 154 | B162: -1900 | C162: -1900-0 | P162: =IF(D162="",0,IF(D162=D161,COUNTIF(D$9:D161,D162)+1,1)) -> 0 | Q162: 0 | R162: 0
A163: 155 | B163: -1900 | C163: -1900-0 | P163: =IF(D163="",0,IF(D163=D162,COUNTIF(D$9:D162,D163)+1,1)) -> 0 | Q163: 0 | R163: 0
A164: 156 | B164: -1900 | C164: -1900-0 | P164: =IF(D164="",0,IF(D164=D163,COUNTIF(D$9:D163,D164)+1,1)) -> 0 | Q164: 0 | R164: 0
A165: 157 | B165: -1900 | C165: -1900-0 | P165: =IF(D165="",0,IF(D165=D164,COUNTIF(D$9:D164,D165)+1,1)) -> 0 | Q165: 0 | R165: 0
A166: 158 | B166: -1900 | C166: -1900-0 | P166: =IF(D166="",0,IF(D166=D165,COUNTIF(D$9:D165,D166)+1,1)) -> 0 | Q166: 0 | R166: 0
A167: 159 | B167: -1900 | C167: -1900-0 | P167: =IF(D167="",0,IF(D167=D166,COUNTIF(D$9:D166,D167)+1,1)) -> 0 | Q167: 0 | R167: 0
A168: 160 | B168: -1900 | C168: -1900-0 | P168: =IF(D168="",0,IF(D168=D167,COUNTIF(D$9:D167,D168)+1,1)) -> 0 | Q168: 0 | R168: 0
A169: 161 | B169: -1900 | C169: -1900-0 | P169: =IF(D169="",0,IF(D169=D168,COUNTIF(D$9:D168,D169)+1,1)) -> 0 | Q169: 0 | R169: 0
A170: 162 | B170: -1900 | C170: -1900-0 | P170: =IF(D170="",0,IF(D170=D169,COUNTIF(D$9:D169,D170)+1,1)) -> 0 | Q170: 0 | R170: 0
A171: 163 | B171: -1900 | C171: -1900-0 | P171: =IF(D171="",0,IF(D171=D170,COUNTIF(D$9:D170,D171)+1,1)) -> 0 | Q171: 0 | R171: 0
A172: 164 | B172: -1900 | C172: -1900-0 | P172: =IF(D172="",0,IF(D172=D171,COUNTIF(D$9:D171,D172)+1,1)) -> 0 | Q172: 0 | R172: 0
A173: 165 | B173: -1900 | C173: -1900-0 | P173: =IF(D173="",0,IF(D173=D172,COUNTIF(D$9:D172,D173)+1,1)) -> 0 | Q173: 0 | R173: 0
A174: 166 | B174: -1900 | C174: -1900-0 | P174: =IF(D174="",0,IF(D174=D173,COUNTIF(D$9:D173,D174)+1,1)) -> 0 | Q174: 0 | R174: 0
A175: 167 | B175: -1900 | C175: -1900-0 | P175: =IF(D175="",0,IF(D175=D174,COUNTIF(D$9:D174,D175)+1,1)) -> 0 | Q175: 0 | R175: 0
A176: 168 | B176: -1900 | C176: -1900-0 | P176: =IF(D176="",0,IF(D176=D175,COUNTIF(D$9:D175,D176)+1,1)) -> 0 | Q176: 0 | R176: 0
A177: 169 | B177: -1900 | C177: -1900-0 | P177: =IF(D177="",0,IF(D177=D176,COUNTIF(D$9:D176,D177)+1,1)) -> 0 | Q177: 0 | R177: 0
A178: 170 | B178: -1900 | C178: -1900-0 | P178: =IF(D178="",0,IF(D178=D177,COUNTIF(D$9:D177,D178)+1,1)) -> 0 | Q178: 0 | R178: 0
A179: 171 | B179: -1900 | C179: -1900-0 | P179: =IF(D179="",0,IF(D179=D178,COUNTIF(D$9:D178,D179)+1,1)) -> 0 | Q179: 0 | R179: 0
A180: 172 | B180: -1900 | C180: -1900-0 | P180: =IF(D180="",0,IF(D180=D179,COUNTIF(D$9:D179,D180)+1,1)) -> 0 | Q180: 0 | R180: 0
A181: 173 | B181: -1900 | C181: -1900-0 | P181: =IF(D181="",0,IF(D181=D180,COUNTIF(D$9:D180,D181)+1,1)) -> 0 | Q181: 0 | R181: 0
A182: 174 | B182: -1900 | C182: -1900-0 | P182: =IF(D182="",0,IF(D182=D181,COUNTIF(D$9:D181,D182)+1,1)) -> 0 | Q182: 0 | R182: 0
A183: 175 | B183: -1900 | C183: -1900-0 | P183: =IF(D183="",0,IF(D183=D182,COUNTIF(D$9:D182,D183)+1,1)) -> 0 | Q183: 0 | R183: 0
A184: 176 | B184: -1900 | C184: -1900-0 | P184: =IF(D184="",0,IF(D184=D183,COUNTIF(D$9:D183,D184)+1,1)) -> 0 | Q184: 0 | R184: 0
A185: 177 | B185: -1900 | C185: -1900-0 | P185: =IF(D185="",0,IF(D185=D184,COUNTIF(D$9:D184,D185)+1,1)) -> 0 | Q185: 0 | R185: 0
A186: 178 | B186: -1900 | C186: -1900-0 | P186: =IF(D186="",0,IF(D186=D185,COUNTIF(D$9:D185,D186)+1,1)) -> 0 | Q186: 0 | R186: 0
A187: 179 | B187: -1900 | C187: -1900-0 | P187: =IF(D187="",0,IF(D187=D186,COUNTIF(D$9:D186,D187)+1,1)) -> 0 | Q187: 0 | R187: 0
A188: 180 | B188: -1900 | C188: -1900-0 | P188: =IF(D188="",0,IF(D188=D187,COUNTIF(D$9:D187,D188)+1,1)) -> 0 | Q188: 0 | R188: 0
A189: 181 | B189: -1900 | C189: -1900-0 | P189: =IF(D189="",0,IF(D189=D188,COUNTIF(D$9:D188,D189)+1,1)) -> 0 | Q189: 0 | R189: 0
A190: 182 | B190: -1900 | C190: -1900-0 | P190: =IF(D190="",0,IF(D190=D189,COUNTIF(D$9:D189,D190)+1,1)) -> 0 | Q190: 0 | R190: 0
A191: 183 | B191: -1900 | C191: -1900-0 | P191: =IF(D191="",0,IF(D191=D190,COUNTIF(D$9:D190,D191)+1,1)) -> 0 | Q191: 0 | R191: 0
A192: 184 | B192: -1900 | C192: -1900-0 | P192: =IF(D192="",0,IF(D192=D191,COUNTIF(D$9:D191,D192)+1,1)) -> 0 | Q192: 0 | R192: 0
A193: 185 | B193: -1900 | C193: -1900-0 | P193: =IF(D193="",0,IF(D193=D192,COUNTIF(D$9:D192,D193)+1,1)) -> 0 | Q193: 0 | R193: 0
A194: 186 | B194: -1900 | C194: -1900-0 | P194: =IF(D194="",0,IF(D194=D193,COUNTIF(D$9:D193,D194)+1,1)) -> 0 | Q194: 0 | R194: 0
A195: 187 | B195: -1900 | C195: -1900-0 | P195: =IF(D195="",0,IF(D195=D194,COUNTIF(D$9:D194,D195)+1,1)) -> 0 | Q195: 0 | R195: 0
A196: 188 | B196: -1900 | C196: -1900-0 | P196: =IF(D196="",0,IF(D196=D195,COUNTIF(D$9:D195,D196)+1,1)) -> 0 | Q196: 0 | R196: 0
A197: 189 | B197: -1900 | C197: -1900-0 | P197: =IF(D197="",0,IF(D197=D196,COUNTIF(D$9:D196,D197)+1,1)) -> 0 | Q197: 0 | R197: 0
A198: 190 | B198: -1900 | C198: -1900-0 | P198: =IF(D198="",0,IF(D198=D197,COUNTIF(D$9:D197,D198)+1,1)) -> 0 | Q198: 0 | R198: 0
A199: 191 | B199: -1900 | C199: -1900-0 | P199: =IF(D199="",0,IF(D199=D198,COUNTIF(D$9:D198,D199)+1,1)) -> 0 | Q199: 0 | R199: 0
A200: 192 | B200: -1900 | C200: -1900-0 | P200: =IF(D200="",0,IF(D200=D199,COUNTIF(D$9:D199,D200)+1,1)) -> 0 | Q200: 0 | R200: 0
A201: 193 | B201: -1900 | C201: =IF(L$1024=1,0,B201&"-"&P201) -> -1900-0 | P201: =IF(D201="",0,IF(D201=D200,COUNTIF(D$9:D200,D201)+1,1)) -> 0 | Q201: 0 | R201: 0
A202: 194 | B202: =IF(R202=R$1015,0,IF(L$1024=1,0,D202&"-"&YEAR(E202))) -> -1900 | C202: -1900-0 | P202: =IF(D202="",0,IF(D202=D201,COUNTIF(D$9:D201,D202)+1,1)) -> 0 | Q202: =IF(OR(D202="",L$1024=1),0,IF(P202=4,1,0)) -> 0 | R202: =IF(E202>0,IF(OR(MONTH(E202)<$K$1027,MONTH(E202)>$K$1028),R$1015,0),0) -> 0
... 817 more rows

Sheet Sezione IMU e trib. locali
D2: Contribuente: | G2: Compila le righe di questa sezione una sotto l' altra, assegnando un numero di protocollo progressivo e la data
D3: =CONTRIBUENTE!E34 -> 01234567891 | G3: in ogni riga. Nel foglio \ F24 Accise / potrai richiamare e stampare tutti i documenti così generati.
D4: ='Sezione ERARIO'!D4:D5 -> 2 | E4: Ultimo Protocollo | G4: Sezione IMU e altri tributi locali
E5: nelle SEZIONI | G5: =IF(N1030=0,"",CONTRIBUENTE!$F$134) ->  | M5: G | N5: H
D6: NR. | E6: DATA | G6: codice ente | I6: num. | J6: codice | K6: Rateazione | M6: importi a debito | N6: importi a credito | R6: N O T E
D7: Prot. | G7: codice comune | H7: TIPO | I7: immob. | J7: tributo | K7: mese | L7: anno di rif. | M7: VERSATI | N7: COMPENSATI | P7: Detrazione
A9: 1 di 1000 | B9: =IF(V9=V$1015,0,IF(N$1030=1,0,D9&"-"&YEAR(E9))) -> 1-2024 | C9: =IF(N$1030=1,0,B9&"-"&T9) -> 1-2024-1 | D9: 1 | E9: 2024-01-01 | G9: 0001 | H9: Ravvedimento | I9: 2 | J9: 0001 | K9: 01 | L9: 2020 | M9: 2 | P9: 2 | R9: Testo Libero | T9: 1 | V9: =IF(E9>0,IF(OR(MONTH(E9)<$J$1033,MONTH(E9)>$J$1034),V$1015,0),0) -> 0
A10: 2 | B10: =IF(V10=V$1015,0,IF(N$1030=1,0,D10&"-"&YEAR(E10))) -> 2-2024 | C10: 2-2024-1 | D10: 2 | E10: 2024-01-01 | G10: 1000 | H10: Imm.li Variati | I10: 20 | J10: 1000 | K10: 10 | L10: 2020 | M10: 1 | P10: 4 | R10: Testo Libero | T10: =IF(D10="",0,IF(D10=D9,COUNTIF(D$9:D9,D10)+1,1)) -> 1 | U10: =IF(OR(D10="",N$1030=1),0,IF(T10=4,1,0)) -> 0 | V10: =IF(E10>0,IF(OR(MONTH(E10)<$J$1033,MONTH(E10)>$J$1034),V$1015,0),0) -> 0
A11: 3 | B11: 2-2024 | C11: 2-2024-2 | D11: 2 | E11: 2024-01-01 | G11: 1000 | H11: Ravvedimento | I11: 1 | J11: 1001 | K11: 12 | L11: 2020 | M11: 3 | R11: RIGHE DI ESEMPIO | T11: =IF(D11="",0,IF(D11=D10,COUNTIF(D$9:D10,D11)+1,1)) -> 2 | U11: 0 | V11: 0
A12: 4 | B12: -1900 | C12: -1900-0 | T12: =IF(D12="",0,IF(D12=D11,COUNTIF(D$9:D11,D12)+1,1)) -> 0 | U12: 0 | V12: 0
A13: 5 | B13: -1900 | C13: -1900-0 | T13: =IF(D13="",0,IF(D13=D12,COUNTIF(D$9:D12,D13)+1,1)) -> 0 | U13: 0 | V13: 0
A14: 6 | B14: -1900 | C14: -1900-0 | T14: =IF(D14="",0,IF(D14=D13,COUNTIF(D$9:D13,D14)+1,1)) -> 0 | U14: 0 | V14: 0
A15: 7 | B15: -1900 | C15: -1900-0 | T15: =IF(D15="",0,IF(D15=D14,COUNTIF(D$9:D14,D15)+1,1)) -> 0 | U15: 0 | V15: 0
A16: 8 | B16: -1900 | C16: -1900-0 | T16: =IF(D16="",0,IF(D16=D15,COUNTIF(D$9:D15,D16)+1,1)) -> 0 | U16: 0 | V16: 0
A17: 9 | B17: -1900 | C17: -1900-0 | T17: =IF(D17="",0,IF(D17=D16,COUNTIF(D$9:D16,D17)+1,1)) -> 0 | U17: 0 | V17: 0
A18: 10 | B18: -1900 | C18: -1900-0 | T18: =IF(D18="",0,IF(D18=D17,COUNTIF(D$9:D17,D18)+1,1)) -> 0 | U18: 0 | V18: 0
A19: 11 | B19: -1900 | C19: -1900-0 | T19: =IF(D19="",0,IF(D19=D18,COUNTIF(D$9:D18,D19)+1,1)) -> 0 | U19: 0 | V19: 0
A20: 12 | B20: -1900 | C20: -1900-0 | T20: =IF(D20="",0,IF(D20=D19,COUNTIF(D$9:D19,D20)+1,1)) -> 0 | U20: 0 | V20: 0
A21: 13 | B21: -1900 | C21: -1900-0 | T21: =IF(D21="",0,IF(D21=D20,COUNTIF(D$9:D20,D21)+1,1)) -> 0 | U21: 0 | V21: 0
A22: 14 | B22: -1900 | C22: -1900-0 | T22: =IF(D22="",0,IF(D22=D21,COUNTIF(D$9:D21,D22)+1,1)) -> 0 | U22: 0 | V22: 0
A23: 15 | B23: -1900 | C23: -1900-0 | T23: =IF(D23="",0,IF(D23=D22,COUNTIF(D$9:D22,D23)+1,1)) -> 0 | U23: 0 | V23: 0
A24: 16 | B24: -1900 | C24: -1900-0 | T24: =IF(D24="",0,IF(D24=D23,COUNTIF(D$9:D23,D24)+1,1)) -> 0 | U24: 0 | V24: 0
A25: 17 | B25: -1900 | C25: -1900-0 | T25: =IF(D25="",0,IF(D25=D24,COUNTIF(D$9:D24,D25)+1,1)) -> 0 | U25: 0 | V25: 0
A26: 18 | B26: -1900 | C26: -1900-0 | T26: =IF(D26="",0,IF(D26=D25,COUNTIF(D$9:D25,D26)+1,1)) -> 0 | U26: 0 | V26: 0
A27: 19 | B27: -1900 | C27: -1900-0 | T27: =IF(D27="",0,IF(D27=D26,COUNTIF(D$9:D26,D27)+1,1)) -> 0 | U27: 0 | V27: 0
A28: 20 | B28: -1900 | C28: -1900-0 | T28: =IF(D28="",0,IF(D28=D27,COUNTIF(D$9:D27,D28)+1,1)) -> 0 | U28: 0 | V28: 0
A29: 21 | B29: -1900 | C29: -1900-0 | T29: =IF(D29="",0,IF(D29=D28,COUNTIF(D$9:D28,D29)+1,1)) -> 0 | U29: 0 | V29: 0
A30: 22 | B30: -1900 | C30: -1900-0 | T30: =IF(D30="",0,IF(D30=D29,COUNTIF(D$9:D29,D30)+1,1)) -> 0 | U30: 0 | V30: 0
A31: 23 | B31: -1900 | C31: -1900-0 | T31: =IF(D31="",0,IF(D31=D30,COUNTIF(D$9:D30,D31)+1,1)) -> 0 | U31: 0 | V31: 0
A32: 24 | B32: -1900 | C32: -1900-0 | T32: =IF(D32="",0,IF(D32=D31,COUNTIF(D$9:D31,D32)+1,1)) -> 0 | U32: 0 | V32: 0
A33: 25 | B33: -1900 | C33: -1900-0 | T33: =IF(D33="",0,IF(D33=D32,COUNTIF(D$9:D32,D33)+1,1)) -> 0 | U33: 0 | V33: 0
A34: 26 | B34: -1900 | C34: -1900-0 | T34: =IF(D34="",0,IF(D34=D33,COUNTIF(D$9:D33,D34)+1,1)) -> 0 | U34: 0 | V34: 0
A35: 27 | B35: -1900 | C35: -1900-0 | T35: =IF(D35="",0,IF(D35=D34,COUNTIF(D$9:D34,D35)+1,1)) -> 0 | U35: 0 | V35: 0
A36: 28 | B36: -1900 | C36: -1900-0 | T36: =IF(D36="",0,IF(D36=D35,COUNTIF(D$9:D35,D36)+1,1)) -> 0 | U36: 0 | V36: 0
A37: 29 | B37: -1900 | C37: -1900-0 | T37: =IF(D37="",0,IF(D37=D36,COUNTIF(D$9:D36,D37)+1,1)) -> 0 | U37: 0 | V37: 0
A38: 30 | B38: -1900 | C38: -1900-0 | T38: =IF(D38="",0,IF(D38=D37,COUNTIF(D$9:D37,D38)+1,1)) -> 0 | U38: 0 | V38: 0
A39: 31 | B39: -1900 | C39: -1900-0 | T39: =IF(D39="",0,IF(D39=D38,COUNTIF(D$9:D38,D39)+1,1)) -> 0 | U39: 0 | V39: 0
A40: 32 | B40: -1900 | C40: -1900-0 | T40: =IF(D40="",0,IF(D40=D39,COUNTIF(D$9:D39,D40)+1,1)) -> 0 | U40: 0 | V40: 0
A41: 33 | B41: -1900 | C41: =IF(N$1030=1,0,B41&"-"&T41) -> -1900-0 | T41: =IF(D41="",0,IF(D41=D40,COUNTIF(D$9:D40,D41)+1,1)) -> 0 | U41: 0 | V41: 0
A42: 34 | B42: -1900 | C42: -1900-0 | T42: =IF(D42="",0,IF(D42=D41,COUNTIF(D$9:D41,D42)+1,1)) -> 0 | U42: =IF(OR(D42="",N$1030=1),0,IF(T42=4,1,0)) -> 0 | V42: 0
A43: 35 | B43: -1900 | C43: -1900-0 | T43: =IF(D43="",0,IF(D43=D42,COUNTIF(D$9:D42,D43)+1,1)) -> 0 | U43: 0 | V43: 0
A44: 36 | B44: -1900 | C44: -1900-0 | T44: =IF(D44="",0,IF(D44=D43,COUNTIF(D$9:D43,D44)+1,1)) -> 0 | U44: 0 | V44: 0
A45: 37 | B45: -1900 | C45: -1900-0 | T45: =IF(D45="",0,IF(D45=D44,COUNTIF(D$9:D44,D45)+1,1)) -> 0 | U45: 0 | V45: 0
A46: 38 | B46: -1900 | C46: -1900-0 | T46: =IF(D46="",0,IF(D46=D45,COUNTIF(D$9:D45,D46)+1,1)) -> 0 | U46: 0 | V46: 0
A47: 39 | B47: -1900 | C47: -1900-0 | T47: =IF(D47="",0,IF(D47=D46,COUNTIF(D$9:D46,D47)+1,1)) -> 0 | U47: 0 | V47: 0
A48: 40 | B48: -1900 | C48: -1900-0 | T48: =IF(D48="",0,IF(D48=D47,COUNTIF(D$9:D47,D48)+1,1)) -> 0 | U48: 0 | V48: 0
A49: 41 | B49: -1900 | C49: -1900-0 | T49: =IF(D49="",0,IF(D49=D48,COUNTIF(D$9:D48,D49)+1,1)) -> 0 | U49: 0 | V49: 0
A50: 42 | B50: -1900 | C50: -1900-0 | T50: =IF(D50="",0,IF(D50=D49,COUNTIF(D$9:D49,D50)+1,1)) -> 0 | U50: 0 | V50: 0
A51: 43 | B51: -1900 | C51: -1900-0 | T51: =IF(D51="",0,IF(D51=D50,COUNTIF(D$9:D50,D51)+1,1)) -> 0 | U51: 0 | V51: 0
A52: 44 | B52: -1900 | C52: -1900-0 | T52: =IF(D52="",0,IF(D52=D51,COUNTIF(D$9:D51,D52)+1,1)) -> 0 | U52: 0 | V52: 0
A53: 45 | B53: -1900 | C53: -1900-0 | T53: =IF(D53="",0,IF(D53=D52,COUNTIF(D$9:D52,D53)+1,1)) -> 0 | U53: 0 | V53: 0
A54: 46 | B54: -1900 | C54: -1900-0 | T54: =IF(D54="",0,IF(D54=D53,COUNTIF(D$9:D53,D54)+1,1)) -> 0 | U54: 0 | V54: 0
A55: 47 | B55: -1900 | C55: -1900-0 | T55: =IF(D55="",0,IF(D55=D54,COUNTIF(D$9:D54,D55)+1,1)) -> 0 | U55: 0 | V55: 0
A56: 48 | B56: -1900 | C56: -1900-0 | T56: =IF(D56="",0,IF(D56=D55,COUNTIF(D$9:D55,D56)+1,1)) -> 0 | U56: 0 | V56: 0
A57: 49 | B57: -1900 | C57: -1900-0 | T57: =IF(D57="",0,IF(D57=D56,COUNTIF(D$9:D56,D57)+1,1)) -> 0 | U57: 0 | V57: 0
A58: 50 | B58: -1900 | C58: -1900-0 | T58: =IF(D58="",0,IF(D58=D57,COUNTIF(D$9:D57,D58)+1,1)) -> 0 | U58: 0 | V58: 0
A59: 51 | B59: -1900 | C59: -1900-0 | T59: =IF(D59="",0,IF(D59=D58,COUNTIF(D$9:D58,D59)+1,1)) -> 0 | U59: 0 | V59: 0
A60: 52 | B60: -1900 | C60: -1900-0 | T60: =IF(D60="",0,IF(D60=D59,COUNTIF(D$9:D59,D60)+1,1)) -> 0 | U60: 0 | V60: 0
A61: 53 | B61: -1900 | C61: -1900-0 | T61: =IF(D61="",0,IF(D61=D60,COUNTIF(D$9:D60,D61)+1,1)) -> 0 | U61: 0 | V61: 0
A62: 54 | B62: -1900 | C62: -1900-0 | T62: =IF(D62="",0,IF(D62=D61,COUNTIF(D$9:D61,D62)+1,1)) -> 0 | U62: 0 | V62: 0
A63: 55 | B63: -1900 | C63: -1900-0 | T63: =IF(D63="",0,IF(D63=D62,COUNTIF(D$9:D62,D63)+1,1)) -> 0 | U63: 0 | V63: 0
A64: 56 | B64: -1900 | C64: -1900-0 | T64: =IF(D64="",0,IF(D64=D63,COUNTIF(D$9:D63,D64)+1,1)) -> 0 | U64: 0 | V64: 0
A65: 57 | B65: -1900 | C65: -1900-0 | T65: =IF(D65="",0,IF(D65=D64,COUNTIF(D$9:D64,D65)+1,1)) -> 0 | U65: 0 | V65: 0
A66: 58 | B66: -1900 | C66: -1900-0 | T66: =IF(D66="",0,IF(D66=D65,COUNTIF(D$9:D65,D66)+1,1)) -> 0 | U66: 0 | V66: 0
A67: 59 | B67: -1900 | C67: -1900-0 | T67: =IF(D67="",0,IF(D67=D66,COUNTIF(D$9:D66,D67)+1,1)) -> 0 | U67: 0 | V67: 0
A68: 60 | B68: -1900 | C68: -1900-0 | T68: =IF(D68="",0,IF(D68=D67,COUNTIF(D$9:D67,D68)+1,1)) -> 0 | U68: 0 | V68: 0
A69: 61 | B69: -1900 | C69: -1900-0 | T69: =IF(D69="",0,IF(D69=D68,COUNTIF(D$9:D68,D69)+1,1)) -> 0 | U69: 0 | V69: 0
A70: 62 | B70: -1900 | C70: -1900-0 | T70: =IF(D70="",0,IF(D70=D69,COUNTIF(D$9:D69,D70)+1,1)) -> 0 | U70: 0 | V70: 0
A71: 63 | B71: -1900 | C71: -1900-0 | T71: =IF(D71="",0,IF(D71=D70,COUNTIF(D$9:D70,D71)+1,1)) -> 0 | U71: 0 | V71: 0
A72: 64 | B72: -1900 | C72: -1900-0 | T72: =IF(D72="",0,IF(D72=D71,COUNTIF(D$9:D71,D72)+1,1)) -> 0 | U72: 0 | V72: 0
A73: 65 | B73: -1900 | C73: =IF(N$1030=1,0,B73&"-"&T73) -> -1900-0 | T73: =IF(D73="",0,IF(D73=D72,COUNTIF(D$9:D72,D73)+1,1)) -> 0 | U73: 0 | V73: 0
A74: 66 | B74: =IF(V74=V$1015,0,IF(N$1030=1,0,D74&"-"&YEAR(E74))) -> -1900 | C74: -1900-0 | T74: =IF(D74="",0,IF(D74=D73,COUNTIF(D$9:D73,D74)+1,1)) -> 0 | U74: =IF(OR(D74="",N$1030=1),0,IF(T74=4,1,0)) -> 0 | V74: =IF(E74>0,IF(OR(MONTH(E74)<$J$1033,MONTH(E74)>$J$1034),V$1015,0),0) -> 0
A75: 67 | B75: -1900 | C75: -1900-0 | T75: =IF(D75="",0,IF(D75=D74,COUNTIF(D$9:D74,D75)+1,1)) -> 0 | U75: 0 | V75: 0
A76: 68 | B76: -1900 | C76: -1900-0 | T76: =IF(D76="",0,IF(D76=D75,COUNTIF(D$9:D75,D76)+1,1)) -> 0 | U76: 0 | V76: 0
A77: 69 | B77: -1900 | C77: -1900-0 | T77: =IF(D77="",0,IF(D77=D76,COUNTIF(D$9:D76,D77)+1,1)) -> 0 | U77: 0 | V77: 0
A78: 70 | B78: -1900 | C78: -1900-0 | T78: =IF(D78="",0,IF(D78=D77,COUNTIF(D$9:D77,D78)+1,1)) -> 0 | U78: 0 | V78: 0
A79: 71 | B79: -1900 | C79: -1900-0 | T79: =IF(D79="",0,IF(D79=D78,COUNTIF(D$9:D78,D79)+1,1)) -> 0 | U79: 0 | V79: 0
A80: 72 | B80: -1900 | C80: -1900-0 | T80: =IF(D80="",0,IF(D80=D79,COUNTIF(D$9:D79,D80)+1,1)) -> 0 | U80: 0 | V80: 0
A81: 73 | B81: -1900 | C81: -1900-0 | T81: =IF(D81="",0,IF(D81=D80,COUNTIF(D$9:D80,D81)+1,1)) -> 0 | U81: 0 | V81: 0
A82: 74 | B82: -1900 | C82: -1900-0 | T82: =IF(D82="",0,IF(D82=D81,COUNTIF(D$9:D81,D82)+1,1)) -> 0 | U82: 0 | V82: 0
A83: 75 | B83: -1900 | C83: -1900-0 | T83: =IF(D83="",0,IF(D83=D82,COUNTIF(D$9:D82,D83)+1,1)) -> 0 | U83: 0 | V83: 0
A84: 76 | B84: -1900 | C84: -1900-0 | T84: =IF(D84="",0,IF(D84=D83,COUNTIF(D$9:D83,D84)+1,1)) -> 0 | U84: 0 | V84: 0
A85: 77 | B85: -1900 | C85: -1900-0 | T85: =IF(D85="",0,IF(D85=D84,COUNTIF(D$9:D84,D85)+1,1)) -> 0 | U85: 0 | V85: 0
A86: 78 | B86: -1900 | C86: -1900-0 | T86: =IF(D86="",0,IF(D86=D85,COUNTIF(D$9:D85,D86)+1,1)) -> 0 | U86: 0 | V86: 0
A87: 79 | B87: -1900 | C87: -1900-0 | T87: =IF(D87="",0,IF(D87=D86,COUNTIF(D$9:D86,D87)+1,1)) -> 0 | U87: 0 | V87: 0
A88: 80 | B88: -1900 | C88: -1900-0 | T88: =IF(D88="",0,IF(D88=D87,COUNTIF(D$9:D87,D88)+1,1)) -> 0 | U88: 0 | V88: 0
A89: 81 | B89: -1900 | C89: -1900-0 | T89: =IF(D89="",0,IF(D89=D88,COUNTIF(D$9:D88,D89)+1,1)) -> 0 | U89: 0 | V89: 0
A90: 82 | B90: -1900 | C90: -1900-0 | T90: =IF(D90="",0,IF(D90=D89,COUNTIF(D$9:D89,D90)+1,1)) -> 0 | U90: 0 | V90: 0
A91: 83 | B91: -1900 | C91: -1900-0 | T91: =IF(D91="",0,IF(D91=D90,COUNTIF(D$9:D90,D91)+1,1)) -> 0 | U91: 0 | V91: 0
A92: 84 | B92: -1900 | C92: -1900-0 | T92: =IF(D92="",0,IF(D92=D91,COUNTIF(D$9:D91,D92)+1,1)) -> 0 | U92: 0 | V92: 0
A93: 85 | B93: -1900 | C93: -1900-0 | T93: =IF(D93="",0,IF(D93=D92,COUNTIF(D$9:D92,D93)+1,1)) -> 0 | U93: 0 | V93: 0
A94: 86 | B94: -1900 | C94: -1900-0 | T94: =IF(D94="",0,IF(D94=D93,COUNTIF(D$9:D93,D94)+1,1)) -> 0 | U94: 0 | V94: 0
A95: 87 | B95: -1900 | C95: -1900-0 | T95: =IF(D95="",0,IF(D95=D94,COUNTIF(D$9:D94,D95)+1,1)) -> 0 | U95: 0 | V95: 0
A96: 88 | B96: -1900 | C96: -1900-0 | T96: =IF(D96="",0,IF(D96=D95,COUNTIF(D$9:D95,D96)+1,1)) -> 0 | U96: 0 | V96: 0
A97: 89 | B97: -1900 | C97: -1900-0 | T97: =IF(D97="",0,IF(D97=D96,COUNTIF(D$9:D96,D97)+1,1)) -> 0 | U97: 0 | V97: 0
A98: 90 | B98: -1900 | C98: -1900-0 | T98: =IF(D98="",0,IF(D98=D97,COUNTIF(D$9:D97,D98)+1,1)) -> 0 | U98: 0 | V98: 0
A99: 91 | B99: -1900 | C99: -1900-0 | T99: =IF(D99="",0,IF(D99=D98,COUNTIF(D$9:D98,D99)+1,1)) -> 0 | U99: 0 | V99: 0
A100: 92 | B100: -1900 | C100: -1900-0 | T100: =IF(D100="",0,IF(D100=D99,COUNTIF(D$9:D99,D100)+1,1)) -> 0 | U100: 0 | V100: 0
A101: 93 | B101: -1900 | C101: -1900-0 | T101: =IF(D101="",0,IF(D101=D100,COUNTIF(D$9:D100,D101)+1,1)) -> 0 | U101: 0 | V101: 0
A102: 94 | B102: -1900 | C102: -1900-0 | T102: =IF(D102="",0,IF(D102=D101,COUNTIF(D$9:D101,D102)+1,1)) -> 0 | U102: 0 | V102: 0
A103: 95 | B103: -1900 | C103: -1900-0 | T103: =IF(D103="",0,IF(D103=D102,COUNTIF(D$9:D102,D103)+1,1)) -> 0 | U103: 0 | V103: 0
A104: 96 | B104: -1900 | C104: -1900-0 | T104: =IF(D104="",0,IF(D104=D103,COUNTIF(D$9:D103,D104)+1,1)) -> 0 | U104: 0 | V104: 0
A105: 97 | B105: -1900 | C105: =IF(N$1030=1,0,B105&"-"&T105) -> -1900-0 | T105: =IF(D105="",0,IF(D105=D104,COUNTIF(D$9:D104,D105)+1,1)) -> 0 | U105: 0 | V105: 0
A106: 98 | B106: -1900 | C106: -1900-0 | T106: =IF(D106="",0,IF(D106=D105,COUNTIF(D$9:D105,D106)+1,1)) -> 0 | U106: =IF(OR(D106="",N$1030=1),0,IF(T106=4,1,0)) -> 0 | V106: 0
A107: 99 | B107: -1900 | C107: -1900-0 | T107: =IF(D107="",0,IF(D107=D106,COUNTIF(D$9:D106,D107)+1,1)) -> 0 | U107: 0 | V107: 0
A108: 100 | B108: -1900 | C108: -1900-0 | T108: =IF(D108="",0,IF(D108=D107,COUNTIF(D$9:D107,D108)+1,1)) -> 0 | U108: 0 | V108: 0
A109: 101 | B109: -1900 | C109: -1900-0 | T109: =IF(D109="",0,IF(D109=D108,COUNTIF(D$9:D108,D109)+1,1)) -> 0 | U109: 0 | V109: 0
A110: 102 | B110: -1900 | C110: -1900-0 | T110: =IF(D110="",0,IF(D110=D109,COUNTIF(D$9:D109,D110)+1,1)) -> 0 | U110: 0 | V110: 0
A111: 103 | B111: -1900 | C111: -1900-0 | T111: =IF(D111="",0,IF(D111=D110,COUNTIF(D$9:D110,D111)+1,1)) -> 0 | U111: 0 | V111: 0
A112: 104 | B112: -1900 | C112: -1900-0 | T112: =IF(D112="",0,IF(D112=D111,COUNTIF(D$9:D111,D112)+1,1)) -> 0 | U112: 0 | V112: 0
A113: 105 | B113: -1900 | C113: -1900-0 | T113: =IF(D113="",0,IF(D113=D112,COUNTIF(D$9:D112,D113)+1,1)) -> 0 | U113: 0 | V113: 0
A114: 106 | B114: -1900 | C114: -1900-0 | T114: =IF(D114="",0,IF(D114=D113,COUNTIF(D$9:D113,D114)+1,1)) -> 0 | U114: 0 | V114: 0
A115: 107 | B115: -1900 | C115: -1900-0 | T115: =IF(D115="",0,IF(D115=D114,COUNTIF(D$9:D114,D115)+1,1)) -> 0 | U115: 0 | V115: 0
A116: 108 | B116: -1900 | C116: -1900-0 | T116: =IF(D116="",0,IF(D116=D115,COUNTIF(D$9:D115,D116)+1,1)) -> 0 | U116: 0 | V116: 0
A117: 109 | B117: -1900 | C117: -1900-0 | T117: =IF(D117="",0,IF(D117=D116,COUNTIF(D$9:D116,D117)+1,1)) -> 0 | U117: 0 | V117: 0
A118: 110 | B118: -1900 | C118: -1900-0 | T118: =IF(D118="",0,IF(D118=D117,COUNTIF(D$9:D117,D118)+1,1)) -> 0 | U118: 0 | V118: 0
A119: 111 | B119: -1900 | C119: -1900-0 | T119: =IF(D119="",0,IF(D119=D118,COUNTIF(D$9:D118,D119)+1,1)) -> 0 | U119: 0 | V119: 0
A120: 112 | B120: -1900 | C120: -1900-0 | T120: =IF(D120="",0,IF(D120=D119,COUNTIF(D$9:D119,D120)+1,1)) -> 0 | U120: 0 | V120: 0
A121: 113 | B121: -1900 | C121: -1900-0 | T121: =IF(D121="",0,IF(D121=D120,COUNTIF(D$9:D120,D121)+1,1)) -> 0 | U121: 0 | V121: 0
A122: 114 | B122: -1900 | C122: -1900-0 | T122: =IF(D122="",0,IF(D122=D121,COUNTIF(D$9:D121,D122)+1,1)) -> 0 | U122: 0 | V122: 0
A123: 115 | B123: -1900 | C123: -1900-0 | T123: =IF(D123="",0,IF(D123=D122,COUNTIF(D$9:D122,D123)+1,1)) -> 0 | U123: 0 | V123: 0
A124: 116 | B124: -1900 | C124: -1900-0 | T124: =IF(D124="",0,IF(D124=D123,COUNTIF(D$9:D123,D124)+1,1)) -> 0 | U124: 0 | V124: 0
A125: 117 | B125: -1900 | C125: -1900-0 | T125: =IF(D125="",0,IF(D125=D124,COUNTIF(D$9:D124,D125)+1,1)) -> 0 | U125: 0 | V125: 0
A126: 118 | B126: -1900 | C126: -1900-0 | T126: =IF(D126="",0,IF(D126=D125,COUNTIF(D$9:D125,D126)+1,1)) -> 0 | U126: 0 | V126: 0
A127: 119 | B127: -1900 | C127: -1900-0 | T127: =IF(D127="",0,IF(D127=D126,COUNTIF(D$9:D126,D127)+1,1)) -> 0 | U127: 0 | V127: 0
A128: 120 | B128: -1900 | C128: -1900-0 | T128: =IF(D128="",0,IF(D128=D127,COUNTIF(D$9:D127,D128)+1,1)) -> 0 | U128: 0 | V128: 0
A129: 121 | B129: -1900 | C129: -1900-0 | T129: =IF(D129="",0,IF(D129=D128,COUNTIF(D$9:D128,D129)+1,1)) -> 0 | U129: 0 | V129: 0
A130: 122 | B130: -1900 | C130: -1900-0 | T130: =IF(D130="",0,IF(D130=D129,COUNTIF(D$9:D129,D130)+1,1)) -> 0 | U130: 0 | V130: 0
A131: 123 | B131: -1900 | C131: -1900-0 | T131: =IF(D131="",0,IF(D131=D130,COUNTIF(D$9:D130,D131)+1,1)) -> 0 | U131: 0 | V131: 0
A132: 124 | B132: -1900 | C132: -1900-0 | T132: =IF(D132="",0,IF(D132=D131,COUNTIF(D$9:D131,D132)+1,1)) -> 0 | U132: 0 | V132: 0
A133: 125 | B133: -1900 | C133: -1900-0 | T133: =IF(D133="",0,IF(D133=D132,COUNTIF(D$9:D132,D133)+1,1)) -> 0 | U133: 0 | V133: 0
A134: 126 | B134: -1900 | C134: -1900-0 | T134: =IF(D134="",0,IF(D134=D133,COUNTIF(D$9:D133,D134)+1,1)) -> 0 | U134: 0 | V134: 0
A135: 127 | B135: -1900 | C135: -1900-0 | T135: =IF(D135="",0,IF(D135=D134,COUNTIF(D$9:D134,D135)+1,1)) -> 0 | U135: 0 | V135: 0
A136: 128 | B136: -1900 | C136: -1900-0 | T136: =IF(D136="",0,IF(D136=D135,COUNTIF(D$9:D135,D136)+1,1)) -> 0 | U136: 0 | V136: 0
A137: 129 | B137: -1900 | C137: =IF(N$1030=1,0,B137&"-"&T137) -> -1900-0 | T137: =IF(D137="",0,IF(D137=D136,COUNTIF(D$9:D136,D137)+1,1)) -> 0 | U137: 0 | V137: 0
A138: 130 | B138: =IF(V138=V$1015,0,IF(N$1030=1,0,D138&"-"&YEAR(E138))) -> -1900 | C138: -1900-0 | T138: =IF(D138="",0,IF(D138=D137,COUNTIF(D$9:D137,D138)+1,1)) -> 0 | U138: =IF(OR(D138="",N$1030=1),0,IF(T138=4,1,0)) -> 0 | V138: =IF(E138>0,IF(OR(MONTH(E138)<$J$1033,MONTH(E138)>$J$1034),V$1015,0),0) -> 0
A139: 131 | B139: -1900 | C139: -1900-0 | T139: =IF(D139="",0,IF(D139=D138,COUNTIF(D$9:D138,D139)+1,1)) -> 0 | U139: 0 | V139: 0
A140: 132 | B140: -1900 | C140: -1900-0 | T140: =IF(D140="",0,IF(D140=D139,COUNTIF(D$9:D139,D140)+1,1)) -> 0 | U140: 0 | V140: 0
A141: 133 | B141: -1900 | C141: -1900-0 | T141: =IF(D141="",0,IF(D141=D140,COUNTIF(D$9:D140,D141)+1,1)) -> 0 | U141: 0 | V141: 0
A142: 134 | B142: -1900 | C142: -1900-0 | T142: =IF(D142="",0,IF(D142=D141,COUNTIF(D$9:D141,D142)+1,1)) -> 0 | U142: 0 | V142: 0
A143: 135 | B143: -1900 | C143: -1900-0 | T143: =IF(D143="",0,IF(D143=D142,COUNTIF(D$9:D142,D143)+1,1)) -> 0 | U143: 0 | V143: 0
A144: 136 | B144: -1900 | C144: -1900-0 | T144: =IF(D144="",0,IF(D144=D143,COUNTIF(D$9:D143,D144)+1,1)) -> 0 | U144: 0 | V144: 0
A145: 137 | B145: -1900 | C145: -1900-0 | T145: =IF(D145="",0,IF(D145=D144,COUNTIF(D$9:D144,D145)+1,1)) -> 0 | U145: 0 | V145: 0
A146: 138 | B146: -1900 | C146: -1900-0 | T146: =IF(D146="",0,IF(D146=D145,COUNTIF(D$9:D145,D146)+1,1)) -> 0 | U146: 0 | V146: 0
A147: 139 | B147: -1900 | C147: -1900-0 | T147: =IF(D147="",0,IF(D147=D146,COUNTIF(D$9:D146,D147)+1,1)) -> 0 | U147: 0 | V147: 0
A148: 140 | B148: -1900 | C148: -1900-0 | T148: =IF(D148="",0,IF(D148=D147,COUNTIF(D$9:D147,D148)+1,1)) -> 0 | U148: 0 | V148: 0
A149: 141 | B149: -1900 | C149: -1900-0 | T149: =IF(D149="",0,IF(D149=D148,COUNTIF(D$9:D148,D149)+1,1)) -> 0 | U149: 0 | V149: 0
A150: 142 | B150: -1900 | C150: -1900-0 | T150: =IF(D150="",0,IF(D150=D149,COUNTIF(D$9:D149,D150)+1,1)) -> 0 | U150: 0 | V150: 0
A151: 143 | B151: -1900 | C151: -1900-0 | T151: =IF(D151="",0,IF(D151=D150,COUNTIF(D$9:D150,D151)+1,1)) -> 0 | U151: 0 | V151: 0
A152: 144 | B152: -1900 | C152: -1900-0 | T152: =IF(D152="",0,IF(D152=D151,COUNTIF(D$9:D151,D152)+1,1)) -> 0 | U152: 0 | V152: 0
A153: 145 | B153: -1900 | C153: -1900-0 | T153: =IF(D153="",0,IF(D153=D152,COUNTIF(D$9:D152,D153)+1,1)) -> 0 | U153: 0 | V153: 0
A154: 146 | B154: -1900 | C154: -1900-0 | T154: =IF(D154="",0,IF(D154=D153,COUNTIF(D$9:D153,D154)+1,1)) -> 0 | U154: 0 | V154: 0
A155: 147 | B155: -1900 | C155: -1900-0 | T155: =IF(D155="",0,IF(D155=D154,COUNTIF(D$9:D154,D155)+1,1)) -> 0 | U155: 0 | V155: 0
A156: 148 | B156: -1900 | C156: -1900-0 | T156: =IF(D156="",0,IF(D156=D155,COUNTIF(D$9:D155,D156)+1,1)) -> 0 | U156: 0 | V156: 0
A157: 149 | B157: -1900 | C157: -1900-0 | T157: =IF(D157="",0,IF(D157=D156,COUNTIF(D$9:D156,D157)+1,1)) -> 0 | U157: 0 | V157: 0
A158: 150 | B158: -1900 | C158: -1900-0 | T158: =IF(D158="",0,IF(D158=D157,COUNTIF(D$9:D157,D158)+1,1)) -> 0 | U158: 0 | V158: 0
A159: 151 | B159: -1900 | C159: -1900-0 | T159: =IF(D159="",0,IF(D159=D158,COUNTIF(D$9:D158,D159)+1,1)) -> 0 | U159: 0 | V159: 0
A160: 152 | B160: -1900 | C160: -1900-0 | T160: =IF(D160="",0,IF(D160=D159,COUNTIF(D$9:D159,D160)+1,1)) -> 0 | U160: 0 | V160: 0
A161: 153 | B161: -1900 | C161: -1900-0 | T161: =IF(D161="",0,IF(D161=D160,COUNTIF(D$9:D160,D161)+1,1)) -> 0 | U161: 0 | V161: 0
A162: 154 | B162: -1900 | C162: -1900-0 | T162: =IF(D162="",0,IF(D162=D161,COUNTIF(D$9:D161,D162)+1,1)) -> 0 | U162: 0 | V162: 0
A163: 155 | B163: -1900 | C163: -1900-0 | T163: =IF(D163="",0,IF(D163=D162,COUNTIF(D$9:D162,D163)+1,1)) -> 0 | U163: 0 | V163: 0
A164: 156 | B164: -1900 | C164: -1900-0 | T164: =IF(D164="",0,IF(D164=D163,COUNTIF(D$9:D163,D164)+1,1)) -> 0 | U164: 0 | V164: 0
A165: 157 | B165: -1900 | C165: -1900-0 | T165: =IF(D165="",0,IF(D165=D164,COUNTIF(D$9:D164,D165)+1,1)) -> 0 | U165: 0 | V165: 0
A166: 158 | B166: -1900 | C166: -1900-0 | T166: =IF(D166="",0,IF(D166=D165,COUNTIF(D$9:D165,D166)+1,1)) -> 0 | U166: 0 | V166: 0
A167: 159 | B167: -1900 | C167: -1900-0 | T167: =IF(D167="",0,IF(D167=D166,COUNTIF(D$9:D166,D167)+1,1)) -> 0 | U167: 0 | V167: 0
A168: 160 | B168: -1900 | C168: -1900-0 | T168: =IF(D168="",0,IF(D168=D167,COUNTIF(D$9:D167,D168)+1,1)) -> 0 | U168: 0 | V168: 0
A169: 161 | B169: -1900 | C169: =IF(N$1030=1,0,B169&"-"&T169) -> -1900-0 | T169: =IF(D169="",0,IF(D169=D168,COUNTIF(D$9:D168,D169)+1,1)) -> 0 | U169: 0 | V169: 0
A170: 162 | B170: -1900 | C170: -1900-0 | T170: =IF(D170="",0,IF(D170=D169,COUNTIF(D$9:D169,D170)+1,1)) -> 0 | U170: =IF(OR(D170="",N$1030=1),0,IF(T170=4,1,0)) -> 0 | V170: 0
A171: 163 | B171: -1900 | C171: -1900-0 | T171: =IF(D171="",0,IF(D171=D170,COUNTIF(D$9:D170,D171)+1,1)) -> 0 | U171: 0 | V171: 0
A172: 164 | B172: -1900 | C172: -1900-0 | T172: =IF(D172="",0,IF(D172=D171,COUNTIF(D$9:D171,D172)+1,1)) -> 0 | U172: 0 | V172: 0
A173: 165 | B173: -1900 | C173: -1900-0 | T173: =IF(D173="",0,IF(D173=D172,COUNTIF(D$9:D172,D173)+1,1)) -> 0 | U173: 0 | V173: 0
A174: 166 | B174: -1900 | C174: -1900-0 | T174: =IF(D174="",0,IF(D174=D173,COUNTIF(D$9:D173,D174)+1,1)) -> 0 | U174: 0 | V174: 0
A175: 167 | B175: -1900 | C175: -1900-0 | T175: =IF(D175="",0,IF(D175=D174,COUNTIF(D$9:D174,D175)+1,1)) -> 0 | U175: 0 | V175: 0
A176: 168 | B176: -1900 | C176: -1900-0 | T176: =IF(D176="",0,IF(D176=D175,COUNTIF(D$9:D175,D176)+1,1)) -> 0 | U176: 0 | V176: 0
A177: 169 | B177: -1900 | C177: -1900-0 | T177: =IF(D177="",0,IF(D177=D176,COUNTIF(D$9:D176,D177)+1,1)) -> 0 | U177: 0 | V177: 0
A178: 170 | B178: -1900 | C178: -1900-0 | T178: =IF(D178="",0,IF(D178=D177,COUNTIF(D$9:D177,D178)+1,1)) -> 0 | U178: 0 | V178: 0
A179: 171 | B179: -1900 | C179: -1900-0 | T179: =IF(D179="",0,IF(D179=D178,COUNTIF(D$9:D178,D179)+1,1)) -> 0 | U179: 0 | V179: 0
A180: 172 | B180: -1900 | C180: -1900-0 | T180: =IF(D180="",0,IF(D180=D179,COUNTIF(D$9:D179,D180)+1,1)) -> 0 | U180: 0 | V180: 0
A181: 173 | B181: -1900 | C181: -1900-0 | T181: =IF(D181="",0,IF(D181=D180,COUNTIF(D$9:D180,D181)+1,1)) -> 0 | U181: 0 | V181: 0
A182: 174 | B182: -1900 | C182: -1900-0 | T182: =IF(D182="",0,IF(D182=D181,COUNTIF(D$9:D181,D182)+1,1)) -> 0 | U182: 0 | V182: 0
A183: 175 | B183: -1900 | C183: -1900-0 | T183: =IF(D183="",0,IF(D183=D182,COUNTIF(D$9:D182,D183)+1,1)) -> 0 | U183: 0 | V183: 0
A184: 176 | B184: -1900 | C184: -1900-0 | T184: =IF(D184="",0,IF(D184=D183,COUNTIF(D$9:D183,D184)+1,1)) -> 0 | U184: 0 | V184: 0
A185: 177 | B185: -1900 | C185: -1900-0 | T185: =IF(D185="",0,IF(D185=D184,COUNTIF(D$9:D184,D185)+1,1)) -> 0 | U185: 0 | V185: 0
A186: 178 | B186: -1900 | C186: -1900-0 | T186: =IF(D186="",0,IF(D186=D185,COUNTIF(D$9:D185,D186)+1,1)) -> 0 | U186: 0 | V186: 0
A187: 179 | B187: -1900 | C187: -1900-0 | T187: =IF(D187="",0,IF(D187=D186,COUNTIF(D$9:D186,D187)+1,1)) -> 0 | U187: 0 | V187: 0
A188: 180 | B188: -1900 | C188: -1900-0 | T188: =IF(D188="",0,IF(D188=D187,COUNTIF(D$9:D187,D188)+1,1)) -> 0 | U188: 0 | V188: 0
A189: 181 | B189: -1900 | C189: -1900-0 | T189: =IF(D189="",0,IF(D189=D188,COUNTIF(D$9:D188,D189)+1,1)) -> 0 | U189: 0 | V189: 0
A190: 182 | B190: -1900 | C190: -1900-0 | T190: =IF(D190="",0,IF(D190=D189,COUNTIF(D$9:D189,D190)+1,1)) -> 0 | U190: 0 | V190: 0
A191: 183 | B191: -1900 | C191: -1900-0 | T191: =IF(D191="",0,IF(D191=D190,COUNTIF(D$9:D190,D191)+1,1)) -> 0 | U191: 0 | V191: 0
A192: 184 | B192: -1900 | C192: -1900-0 | T192: =IF(D192="",0,IF(D192=D191,COUNTIF(D$9:D191,D192)+1,1)) -> 0 | U192: 0 | V192: 0
A193: 185 | B193: -1900 | C193: -1900-0 | T193: =IF(D193="",0,IF(D193=D192,COUNTIF(D$9:D192,D193)+1,1)) -> 0 | U193: 0 | V193: 0
A194: 186 | B194: -1900 | C194: -1900-0 | T194: =IF(D194="",0,IF(D194=D193,COUNTIF(D$9:D193,D194)+1,1)) -> 0 | U194: 0 | V194: 0
A195: 187 | B195: -1900 | C195: -1900-0 | T195: =IF(D195="",0,IF(D195=D194,COUNTIF(D$9:D194,D195)+1,1)) -> 0 | U195: 0 | V195: 0
A196: 188 | B196: -1900 | C196: -1900-0 | T196: =IF(D196="",0,IF(D196=D195,COUNTIF(D$9:D195,D196)+1,1)) -> 0 | U196: 0 | V196: 0
A197: 189 | B197: -1900 | C197: -1900-0 | T197: =IF(D197="",0,IF(D197=D196,COUNTIF(D$9:D196,D197)+1,1)) -> 0 | U197: 0 | V197: 0
A198: 190 | B198: -1900 | C198: -1900-0 | T198: =IF(D198="",0,IF(D198=D197,COUNTIF(D$9:D197,D198)+1,1)) -> 0 | U198: 0 | V198: 0
A199: 191 | B199: -1900 | C199: -1900-0 | T199: =IF(D199="",0,IF(D199=D198,COUNTIF(D$9:D198,D199)+1,1)) -> 0 | U199: 0 | V199: 0
A200: 192 | B200: -1900 | C200: -1900-0 | T200: =IF(D200="",0,IF(D200=D199,COUNTIF(D$9:D199,D200)+1,1)) -> 0 | U200: 0 | V200: 0
A201: 193 | B201: -1900 | C201: =IF(N$1030=1,0,B201&"-"&T201) -> -1900-0 | T201: =IF(D201="",0,IF(D201=D200,COUNTIF(D$9:D200,D201)+1,1)) -> 0 | U201: 0 | V201: 0
A202: 194 | B202: =IF(V202=V$1015,0,IF(N$1030=1,0,D202&"-"&YEAR(E202))) -> -1900 | C202: -1900-0 | T202: =IF(D202="",0,IF(D202=D201,COUNTIF(D$9:D201,D202)+1,1)) -> 0 | U202: =IF(OR(D202="",N$1030=1),0,IF(T202=4,1,0)) -> 0 | V202: =IF(E202>0,IF(OR(MONTH(E202)<$J$1033,MONTH(E202)>$J$1034),V$1015,0),0) -> 0
... 822 more rows

Sheet Sezione ACCISE
D2: Contribuente: | G2: Compila le righe di questa sezione una sotto l' altra, assegnando un numero di protocollo progressivo e la data
D3: =CONTRIBUENTE!E34 -> 01234567891 | G3: in ogni riga. Nel foglio \ F24 Accise / potrai richiamare e stampare tutti i documenti così generati.
D4: ='Sezione ERARIO'!D4:D5 -> 2 | E4: Ultimo Protocollo | G4: Sezione ACCISE/MONOPOLI e altri versamenti non ammessi in compensazione
E5: nelle SEZIONI | G5: =IF(G1022=0,"",CONTRIBUENTE!$F$134) ->  | N5: O
D6: NR. | E6: DATA | G6: ENTE | H6: PROV. | I6: codice | J6: codice | K6: rateazione | L6: mese | M6: anno di | N6: importi a debito | P6: Codice | Q6: Codice | S6: N O T E
D7: Prot. | I7: tributo | J7: identificativo | M7: riferimento | N7: VERSATI | P7: UFFICIO | Q7: ATTO
A9: 1 di 1000 | B9: =IF(W9=W$1013,0,IF(G$1022=1,0,D9&"-"&YEAR(E9))) -> 1-2024 | C9: =IF(G$1022=1,0,B9&"-"&U9) -> 1-2024-1 | D9: 1 | E9: 2024-01-01 | G9: 0L | H9: 01 | I9: 0101 | J9: 1234567891111 | K9: 01 / 01 | L9: 1 | M9: 2020 | N9: 2 | P9: 010 | Q9: 010203040506 | S9: Testo Libero | U9: 1 | W9: =IF(E9>0,IF(OR(MONTH(E9)<$J$1024,MONTH(E9)>$J$1025),W$1013,0),0) -> 0
A10: 2 | B10: =IF(W10=W$1013,0,IF(G$1022=1,0,D10&"-"&YEAR(E10))) -> 2-2024 | C10: 2-2024-1 | D10: 2 | E10: 2024-01-01 | G10: L0 | H10: 10 | I10: 1010 | J10: 1111987654321 | K10: 10 / 10 | L10: 10 | M10: 2020 | N10: 1 | P10: 101 | Q10: 102030405060 | S10: Testo Libero | U10: =IF(D10="",0,IF(D10=D9,COUNTIF(D$9:D9,D10)+1,1)) -> 1 | V10: =IF(OR(D10="",G$1022=1),0,IF(U10=7,1,0)) -> 0 | W10: =IF(E10>0,IF(OR(MONTH(E10)<$J$1024,MONTH(E10)>$J$1025),W$1013,0),0) -> 0
A11: 3 | B11: 2-2024 | C11: 2-2024-2 | D11: 2 | E11: 2024-01-01 | G11: L0 | H11: 10 | I11: 1010 | J11: 2111987654322 | K11: 01 / 01 | L11: 1 | M11: 2020 | N11: 1 | S11: Testo Libero | U11: =IF(D11="",0,IF(D11=D10,COUNTIF(D$9:D10,D11)+1,1)) -> 2 | V11: 0 | W11: 0
A12: 4 | B12: 2-2024 | C12: 2-2024-3 | D12: 2 | E12: 2024-01-01 | G12: L0 | H12: 10 | I12: 1010 | J12: 3111987654323 | K12: 10 / 10 | L12: 10 | M12: 2020 | N12: 1 | S12: Testo Libero | U12: =IF(D12="",0,IF(D12=D11,COUNTIF(D$9:D11,D12)+1,1)) -> 3 | V12: 0 | W12: 0
A13: 5 | B13: 2-2024 | C13: 2-2024-4 | D13: 2 | E13: 2024-01-01 | G13: L0 | H13: 10 | I13: 1010 | J13: 4111987654324 | K13: 01 / 01 | L13: 1 | M13: 2020 | N13: 1 | S13: RIGHE DI ESEMPIO | U13: =IF(D13="",0,IF(D13=D12,COUNTIF(D$9:D12,D13)+1,1)) -> 4 | V13: 0 | W13: 0
A14: 6 | B14: -1900 | C14: -1900-0 | U14: =IF(D14="",0,IF(D14=D13,COUNTIF(D$9:D13,D14)+1,1)) -> 0 | V14: 0 | W14: 0
A15: 7 | B15: -1900 | C15: -1900-0 | U15: =IF(D15="",0,IF(D15=D14,COUNTIF(D$9:D14,D15)+1,1)) -> 0 | V15: 0 | W15: 0
A16: 8 | B16: -1900 | C16: -1900-0 | U16: =IF(D16="",0,IF(D16=D15,COUNTIF(D$9:D15,D16)+1,1)) -> 0 | V16: 0 | W16: 0
A17: 9 | B17: -1900 | C17: -1900-0 | U17: =IF(D17="",0,IF(D17=D16,COUNTIF(D$9:D16,D17)+1,1)) -> 0 | V17: 0 | W17: 0
A18: 10 | B18: -1900 | C18: -1900-0 | U18: =IF(D18="",0,IF(D18=D17,COUNTIF(D$9:D17,D18)+1,1)) -> 0 | V18: 0 | W18: 0
A19: 11 | B19: -1900 | C19: -1900-0 | U19: =IF(D19="",0,IF(D19=D18,COUNTIF(D$9:D18,D19)+1,1)) -> 0 | V19: 0 | W19: 0
A20: 12 | B20: -1900 | C20: -1900-0 | U20: =IF(D20="",0,IF(D20=D19,COUNTIF(D$9:D19,D20)+1,1)) -> 0 | V20: 0 | W20: 0
A21: 13 | B21: -1900 | C21: -1900-0 | U21: =IF(D21="",0,IF(D21=D20,COUNTIF(D$9:D20,D21)+1,1)) -> 0 | V21: 0 | W21: 0
A22: 14 | B22: -1900 | C22: -1900-0 | U22: =IF(D22="",0,IF(D22=D21,COUNTIF(D$9:D21,D22)+1,1)) -> 0 | V22: 0 | W22: 0
A23: 15 | B23: -1900 | C23: -1900-0 | U23: =IF(D23="",0,IF(D23=D22,COUNTIF(D$9:D22,D23)+1,1)) -> 0 | V23: 0 | W23: 0
A24: 16 | B24: -1900 | C24: -1900-0 | U24: =IF(D24="",0,IF(D24=D23,COUNTIF(D$9:D23,D24)+1,1)) -> 0 | V24: 0 | W24: 0
A25: 17 | B25: -1900 | C25: -1900-0 | U25: =IF(D25="",0,IF(D25=D24,COUNTIF(D$9:D24,D25)+1,1)) -> 0 | V25: 0 | W25: 0
A26: 18 | B26: -1900 | C26: -1900-0 | U26: =IF(D26="",0,IF(D26=D25,COUNTIF(D$9:D25,D26)+1,1)) -> 0 | V26: 0 | W26: 0
A27: 19 | B27: -1900 | C27: -1900-0 | U27: =IF(D27="",0,IF(D27=D26,COUNTIF(D$9:D26,D27)+1,1)) -> 0 | V27: 0 | W27: 0
A28: 20 | B28: -1900 | C28: -1900-0 | U28: =IF(D28="",0,IF(D28=D27,COUNTIF(D$9:D27,D28)+1,1)) -> 0 | V28: 0 | W28: 0
A29: 21 | B29: -1900 | C29: -1900-0 | U29: =IF(D29="",0,IF(D29=D28,COUNTIF(D$9:D28,D29)+1,1)) -> 0 | V29: 0 | W29: 0
A30: 22 | B30: -1900 | C30: -1900-0 | U30: =IF(D30="",0,IF(D30=D29,COUNTIF(D$9:D29,D30)+1,1)) -> 0 | V30: 0 | W30: 0
A31: 23 | B31: -1900 | C31: -1900-0 | U31: =IF(D31="",0,IF(D31=D30,COUNTIF(D$9:D30,D31)+1,1)) -> 0 | V31: 0 | W31: 0
A32: 24 | B32: -1900 | C32: -1900-0 | U32: =IF(D32="",0,IF(D32=D31,COUNTIF(D$9:D31,D32)+1,1)) -> 0 | V32: 0 | W32: 0
A33: 25 | B33: -1900 | C33: -1900-0 | U33: =IF(D33="",0,IF(D33=D32,COUNTIF(D$9:D32,D33)+1,1)) -> 0 | V33: 0 | W33: 0
A34: 26 | B34: -1900 | C34: -1900-0 | U34: =IF(D34="",0,IF(D34=D33,COUNTIF(D$9:D33,D34)+1,1)) -> 0 | V34: 0 | W34: 0
A35: 27 | B35: -1900 | C35: -1900-0 | U35: =IF(D35="",0,IF(D35=D34,COUNTIF(D$9:D34,D35)+1,1)) -> 0 | V35: 0 | W35: 0
A36: 28 | B36: -1900 | C36: -1900-0 | U36: =IF(D36="",0,IF(D36=D35,COUNTIF(D$9:D35,D36)+1,1)) -> 0 | V36: 0 | W36: 0
A37: 29 | B37: -1900 | C37: -1900-0 | U37: =IF(D37="",0,IF(D37=D36,COUNTIF(D$9:D36,D37)+1,1)) -> 0 | V37: 0 | W37: 0
A38: 30 | B38: -1900 | C38: -1900-0 | U38: =IF(D38="",0,IF(D38=D37,COUNTIF(D$9:D37,D38)+1,1)) -> 0 | V38: 0 | W38: 0
A39: 31 | B39: -1900 | C39: -1900-0 | U39: =IF(D39="",0,IF(D39=D38,COUNTIF(D$9:D38,D39)+1,1)) -> 0 | V39: 0 | W39: 0
A40: 32 | B40: -1900 | C40: -1900-0 | U40: =IF(D40="",0,IF(D40=D39,COUNTIF(D$9:D39,D40)+1,1)) -> 0 | V40: 0 | W40: 0
A41: 33 | B41: -1900 | C41: -1900-0 | U41: =IF(D41="",0,IF(D41=D40,COUNTIF(D$9:D40,D41)+1,1)) -> 0 | V41: 0 | W41: 0
A42: 34 | B42: -1900 | C42: -1900-0 | U42: =IF(D42="",0,IF(D42=D41,COUNTIF(D$9:D41,D42)+1,1)) -> 0 | V42: 0 | W42: 0
A43: 35 | B43: -1900 | C43: -1900-0 | U43: =IF(D43="",0,IF(D43=D42,COUNTIF(D$9:D42,D43)+1,1)) -> 0 | V43: 0 | W43: 0
A44: 36 | B44: -1900 | C44: -1900-0 | U44: =IF(D44="",0,IF(D44=D43,COUNTIF(D$9:D43,D44)+1,1)) -> 0 | V44: 0 | W44: 0
A45: 37 | B45: -1900 | C45: -1900-0 | U45: =IF(D45="",0,IF(D45=D44,COUNTIF(D$9:D44,D45)+1,1)) -> 0 | V45: 0 | W45: 0
A46: 38 | B46: -1900 | C46: -1900-0 | U46: =IF(D46="",0,IF(D46=D45,COUNTIF(D$9:D45,D46)+1,1)) -> 0 | V46: 0 | W46: 0
A47: 39 | B47: -1900 | C47: -1900-0 | U47: =IF(D47="",0,IF(D47=D46,COUNTIF(D$9:D46,D47)+1,1)) -> 0 | V47: 0 | W47: 0
A48: 40 | B48: -1900 | C48: -1900-0 | U48: =IF(D48="",0,IF(D48=D47,COUNTIF(D$9:D47,D48)+1,1)) -> 0 | V48: 0 | W48: 0
A49: 41 | B49: -1900 | C49: -1900-0 | U49: =IF(D49="",0,IF(D49=D48,COUNTIF(D$9:D48,D49)+1,1)) -> 0 | V49: 0 | W49: 0
A50: 42 | B50: -1900 | C50: -1900-0 | U50: =IF(D50="",0,IF(D50=D49,COUNTIF(D$9:D49,D50)+1,1)) -> 0 | V50: 0 | W50: 0
A51: 43 | B51: -1900 | C51: -1900-0 | U51: =IF(D51="",0,IF(D51=D50,COUNTIF(D$9:D50,D51)+1,1)) -> 0 | V51: 0 | W51: 0
A52: 44 | B52: -1900 | C52: -1900-0 | U52: =IF(D52="",0,IF(D52=D51,COUNTIF(D$9:D51,D52)+1,1)) -> 0 | V52: 0 | W52: 0
A53: 45 | B53: -1900 | C53: -1900-0 | U53: =IF(D53="",0,IF(D53=D52,COUNTIF(D$9:D52,D53)+1,1)) -> 0 | V53: 0 | W53: 0
A54: 46 | B54: -1900 | C54: -1900-0 | U54: =IF(D54="",0,IF(D54=D53,COUNTIF(D$9:D53,D54)+1,1)) -> 0 | V54: 0 | W54: 0
A55: 47 | B55: -1900 | C55: -1900-0 | U55: =IF(D55="",0,IF(D55=D54,COUNTIF(D$9:D54,D55)+1,1)) -> 0 | V55: 0 | W55: 0
A56: 48 | B56: -1900 | C56: -1900-0 | U56: =IF(D56="",0,IF(D56=D55,COUNTIF(D$9:D55,D56)+1,1)) -> 0 | V56: 0 | W56: 0
A57: 49 | B57: -1900 | C57: -1900-0 | U57: =IF(D57="",0,IF(D57=D56,COUNTIF(D$9:D56,D57)+1,1)) -> 0 | V57: 0 | W57: 0
A58: 50 | B58: -1900 | C58: -1900-0 | U58: =IF(D58="",0,IF(D58=D57,COUNTIF(D$9:D57,D58)+1,1)) -> 0 | V58: 0 | W58: 0
A59: 51 | B59: -1900 | C59: -1900-0 | U59: =IF(D59="",0,IF(D59=D58,COUNTIF(D$9:D58,D59)+1,1)) -> 0 | V59: 0 | W59: 0
A60: 52 | B60: -1900 | C60: -1900-0 | U60: =IF(D60="",0,IF(D60=D59,COUNTIF(D$9:D59,D60)+1,1)) -> 0 | V60: 0 | W60: 0
A61: 53 | B61: -1900 | C61: -1900-0 | U61: =IF(D61="",0,IF(D61=D60,COUNTIF(D$9:D60,D61)+1,1)) -> 0 | V61: 0 | W61: 0
A62: 54 | B62: -1900 | C62: -1900-0 | U62: =IF(D62="",0,IF(D62=D61,COUNTIF(D$9:D61,D62)+1,1)) -> 0 | V62: 0 | W62: 0
A63: 55 | B63: -1900 | C63: -1900-0 | U63: =IF(D63="",0,IF(D63=D62,COUNTIF(D$9:D62,D63)+1,1)) -> 0 | V63: 0 | W63: 0
A64: 56 | B64: -1900 | C64: -1900-0 | U64: =IF(D64="",0,IF(D64=D63,COUNTIF(D$9:D63,D64)+1,1)) -> 0 | V64: 0 | W64: 0
A65: 57 | B65: -1900 | C65: -1900-0 | U65: =IF(D65="",0,IF(D65=D64,COUNTIF(D$9:D64,D65)+1,1)) -> 0 | V65: 0 | W65: 0
A66: 58 | B66: -1900 | C66: -1900-0 | U66: =IF(D66="",0,IF(D66=D65,COUNTIF(D$9:D65,D66)+1,1)) -> 0 | V66: 0 | W66: 0
A67: 59 | B67: -1900 | C67: -1900-0 | U67: =IF(D67="",0,IF(D67=D66,COUNTIF(D$9:D66,D67)+1,1)) -> 0 | V67: 0 | W67: 0
A68: 60 | B68: -1900 | C68: -1900-0 | U68: =IF(D68="",0,IF(D68=D67,COUNTIF(D$9:D67,D68)+1,1)) -> 0 | V68: 0 | W68: 0
A69: 61 | B69: -1900 | C69: -1900-0 | U69: =IF(D69="",0,IF(D69=D68,COUNTIF(D$9:D68,D69)+1,1)) -> 0 | V69: 0 | W69: 0
A70: 62 | B70: -1900 | C70: -1900-0 | U70: =IF(D70="",0,IF(D70=D69,COUNTIF(D$9:D69,D70)+1,1)) -> 0 | V70: 0 | W70: 0
A71: 63 | B71: -1900 | C71: -1900-0 | U71: =IF(D71="",0,IF(D71=D70,COUNTIF(D$9:D70,D71)+1,1)) -> 0 | V71: 0 | W71: 0
A72: 64 | B72: -1900 | C72: -1900-0 | U72: =IF(D72="",0,IF(D72=D71,COUNTIF(D$9:D71,D72)+1,1)) -> 0 | V72: 0 | W72: 0
A73: 65 | B73: -1900 | C73: =IF(G$1022=1,0,B73&"-"&U73) -> -1900-0 | U73: =IF(D73="",0,IF(D73=D72,COUNTIF(D$9:D72,D73)+1,1)) -> 0 | V73: 0 | W73: 0
A74: 66 | B74: =IF(W74=W$1013,0,IF(G$1022=1,0,D74&"-"&YEAR(E74))) -> -1900 | C74: -1900-0 | U74: =IF(D74="",0,IF(D74=D73,COUNTIF(D$9:D73,D74)+1,1)) -> 0 | V74: =IF(OR(D74="",G$1022=1),0,IF(U74=7,1,0)) -> 0 | W74: =IF(E74>0,IF(OR(MONTH(E74)<$J$1024,MONTH(E74)>$J$1025),W$1013,0),0) -> 0
A75: 67 | B75: -1900 | C75: -1900-0 | U75: =IF(D75="",0,IF(D75=D74,COUNTIF(D$9:D74,D75)+1,1)) -> 0 | V75: 0 | W75: 0
A76: 68 | B76: -1900 | C76: -1900-0 | U76: =IF(D76="",0,IF(D76=D75,COUNTIF(D$9:D75,D76)+1,1)) -> 0 | V76: 0 | W76: 0
A77: 69 | B77: -1900 | C77: -1900-0 | U77: =IF(D77="",0,IF(D77=D76,COUNTIF(D$9:D76,D77)+1,1)) -> 0 | V77: 0 | W77: 0
A78: 70 | B78: -1900 | C78: -1900-0 | U78: =IF(D78="",0,IF(D78=D77,COUNTIF(D$9:D77,D78)+1,1)) -> 0 | V78: 0 | W78: 0
A79: 71 | B79: -1900 | C79: -1900-0 | U79: =IF(D79="",0,IF(D79=D78,COUNTIF(D$9:D78,D79)+1,1)) -> 0 | V79: 0 | W79: 0
A80: 72 | B80: -1900 | C80: -1900-0 | U80: =IF(D80="",0,IF(D80=D79,COUNTIF(D$9:D79,D80)+1,1)) -> 0 | V80: 0 | W80: 0
A81: 73 | B81: -1900 | C81: -1900-0 | U81: =IF(D81="",0,IF(D81=D80,COUNTIF(D$9:D80,D81)+1,1)) -> 0 | V81: 0 | W81: 0
A82: 74 | B82: -1900 | C82: -1900-0 | U82: =IF(D82="",0,IF(D82=D81,COUNTIF(D$9:D81,D82)+1,1)) -> 0 | V82: 0 | W82: 0
A83: 75 | B83: -1900 | C83: -1900-0 | U83: =IF(D83="",0,IF(D83=D82,COUNTIF(D$9:D82,D83)+1,1)) -> 0 | V83: 0 | W83: 0
A84: 76 | B84: -1900 | C84: -1900-0 | U84: =IF(D84="",0,IF(D84=D83,COUNTIF(D$9:D83,D84)+1,1)) -> 0 | V84: 0 | W84: 0
A85: 77 | B85: -1900 | C85: -1900-0 | U85: =IF(D85="",0,IF(D85=D84,COUNTIF(D$9:D84,D85)+1,1)) -> 0 | V85: 0 | W85: 0
A86: 78 | B86: -1900 | C86: -1900-0 | U86: =IF(D86="",0,IF(D86=D85,COUNTIF(D$9:D85,D86)+1,1)) -> 0 | V86: 0 | W86: 0
A87: 79 | B87: -1900 | C87: -1900-0 | U87: =IF(D87="",0,IF(D87=D86,COUNTIF(D$9:D86,D87)+1,1)) -> 0 | V87: 0 | W87: 0
A88: 80 | B88: -1900 | C88: -1900-0 | U88: =IF(D88="",0,IF(D88=D87,COUNTIF(D$9:D87,D88)+1,1)) -> 0 | V88: 0 | W88: 0
A89: 81 | B89: -1900 | C89: -1900-0 | U89: =IF(D89="",0,IF(D89=D88,COUNTIF(D$9:D88,D89)+1,1)) -> 0 | V89: 0 | W89: 0
A90: 82 | B90: -1900 | C90: -1900-0 | U90: =IF(D90="",0,IF(D90=D89,COUNTIF(D$9:D89,D90)+1,1)) -> 0 | V90: 0 | W90: 0
A91: 83 | B91: -1900 | C91: -1900-0 | U91: =IF(D91="",0,IF(D91=D90,COUNTIF(D$9:D90,D91)+1,1)) -> 0 | V91: 0 | W91: 0
A92: 84 | B92: -1900 | C92: -1900-0 | U92: =IF(D92="",0,IF(D92=D91,COUNTIF(D$9:D91,D92)+1,1)) -> 0 | V92: 0 | W92: 0
A93: 85 | B93: -1900 | C93: -1900-0 | U93: =IF(D93="",0,IF(D93=D92,COUNTIF(D$9:D92,D93)+1,1)) -> 0 | V93: 0 | W93: 0
A94: 86 | B94: -1900 | C94: -1900-0 | U94: =IF(D94="",0,IF(D94=D93,COUNTIF(D$9:D93,D94)+1,1)) -> 0 | V94: 0 | W94: 0
A95: 87 | B95: -1900 | C95: -1900-0 | U95: =IF(D95="",0,IF(D95=D94,COUNTIF(D$9:D94,D95)+1,1)) -> 0 | V95: 0 | W95: 0
A96: 88 | B96: -1900 | C96: -1900-0 | U96: =IF(D96="",0,IF(D96=D95,COUNTIF(D$9:D95,D96)+1,1)) -> 0 | V96: 0 | W96: 0
A97: 89 | B97: -1900 | C97: -1900-0 | U97: =IF(D97="",0,IF(D97=D96,COUNTIF(D$9:D96,D97)+1,1)) -> 0 | V97: 0 | W97: 0
A98: 90 | B98: -1900 | C98: -1900-0 | U98: =IF(D98="",0,IF(D98=D97,COUNTIF(D$9:D97,D98)+1,1)) -> 0 | V98: 0 | W98: 0
A99: 91 | B99: -1900 | C99: -1900-0 | U99: =IF(D99="",0,IF(D99=D98,COUNTIF(D$9:D98,D99)+1,1)) -> 0 | V99: 0 | W99: 0
A100: 92 | B100: -1900 | C100: -1900-0 | U100: =IF(D100="",0,IF(D100=D99,COUNTIF(D$9:D99,D100)+1,1)) -> 0 | V100: 0 | W100: 0
A101: 93 | B101: -1900 | C101: -1900-0 | U101: =IF(D101="",0,IF(D101=D100,COUNTIF(D$9:D100,D101)+1,1)) -> 0 | V101: 0 | W101: 0
A102: 94 | B102: -1900 | C102: -1900-0 | U102: =IF(D102="",0,IF(D102=D101,COUNTIF(D$9:D101,D102)+1,1)) -> 0 | V102: 0 | W102: 0
A103: 95 | B103: -1900 | C103: -1900-0 | U103: =IF(D103="",0,IF(D103=D102,COUNTIF(D$9:D102,D103)+1,1)) -> 0 | V103: 0 | W103: 0
A104: 96 | B104: -1900 | C104: -1900-0 | U104: =IF(D104="",0,IF(D104=D103,COUNTIF(D$9:D103,D104)+1,1)) -> 0 | V104: 0 | W104: 0
A105: 97 | B105: -1900 | C105: -1900-0 | U105: =IF(D105="",0,IF(D105=D104,COUNTIF(D$9:D104,D105)+1,1)) -> 0 | V105: 0 | W105: 0
A106: 98 | B106: -1900 | C106: -1900-0 | U106: =IF(D106="",0,IF(D106=D105,COUNTIF(D$9:D105,D106)+1,1)) -> 0 | V106: 0 | W106: 0
A107: 99 | B107: -1900 | C107: -1900-0 | U107: =IF(D107="",0,IF(D107=D106,COUNTIF(D$9:D106,D107)+1,1)) -> 0 | V107: 0 | W107: 0
A108: 100 | B108: -1900 | C108: -1900-0 | U108: =IF(D108="",0,IF(D108=D107,COUNTIF(D$9:D107,D108)+1,1)) -> 0 | V108: 0 | W108: 0
A109: 101 | B109: -1900 | C109: -1900-0 | U109: =IF(D109="",0,IF(D109=D108,COUNTIF(D$9:D108,D109)+1,1)) -> 0 | V109: 0 | W109: 0
A110: 102 | B110: -1900 | C110: -1900-0 | U110: =IF(D110="",0,IF(D110=D109,COUNTIF(D$9:D109,D110)+1,1)) -> 0 | V110: 0 | W110: 0
A111: 103 | B111: -1900 | C111: -1900-0 | U111: =IF(D111="",0,IF(D111=D110,COUNTIF(D$9:D110,D111)+1,1)) -> 0 | V111: 0 | W111: 0
A112: 104 | B112: -1900 | C112: -1900-0 | U112: =IF(D112="",0,IF(D112=D111,COUNTIF(D$9:D111,D112)+1,1)) -> 0 | V112: 0 | W112: 0
A113: 105 | B113: -1900 | C113: -1900-0 | U113: =IF(D113="",0,IF(D113=D112,COUNTIF(D$9:D112,D113)+1,1)) -> 0 | V113: 0 | W113: 0
A114: 106 | B114: -1900 | C114: -1900-0 | U114: =IF(D114="",0,IF(D114=D113,COUNTIF(D$9:D113,D114)+1,1)) -> 0 | V114: 0 | W114: 0
A115: 107 | B115: -1900 | C115: -1900-0 | U115: =IF(D115="",0,IF(D115=D114,COUNTIF(D$9:D114,D115)+1,1)) -> 0 | V115: 0 | W115: 0
A116: 108 | B116: -1900 | C116: -1900-0 | U116: =IF(D116="",0,IF(D116=D115,COUNTIF(D$9:D115,D116)+1,1)) -> 0 | V116: 0 | W116: 0
A117: 109 | B117: -1900 | C117: -1900-0 | U117: =IF(D117="",0,IF(D117=D116,COUNTIF(D$9:D116,D117)+1,1)) -> 0 | V117: 0 | W117: 0
A118: 110 | B118: -1900 | C118: -1900-0 | U118: =IF(D118="",0,IF(D118=D117,COUNTIF(D$9:D117,D118)+1,1)) -> 0 | V118: 0 | W118: 0
A119: 111 | B119: -1900 | C119: -1900-0 | U119: =IF(D119="",0,IF(D119=D118,COUNTIF(D$9:D118,D119)+1,1)) -> 0 | V119: 0 | W119: 0
A120: 112 | B120: -1900 | C120: -1900-0 | U120: =IF(D120="",0,IF(D120=D119,COUNTIF(D$9:D119,D120)+1,1)) -> 0 | V120: 0 | W120: 0
